Workbook

Sheet Hoja2 (hidden)
A1: =CA!E5 -> Parcela y emplazamiento | B1: =CA!G5 -> 0.1524462241
A2: =CA!E28 -> Energía y atmósfera | B2: =CA!G28 -> 0.1760100621
A3: =CA!E41 -> Recursos naturales | B3: =CA!G41 -> 0.2292212126
A4: =CA!E70 -> Ambiente Interior. | B4: =CA!G70 -> 0.09487139997
A5: =CA!E85 -> Aspectos sociales | B5: =CA!G85 -> 0.1671543714
A6: =CA!E109 -> Calidad de la edificación | B6: =CA!G109 -> 0.1802967298

Sheet Matriz para imagen (hidden)
D1: Cambio climático | E1: Emisiones a la atmósfera, tierra y agua | F1: Cambios en la biodiversidad | G1: Agotamiento de energía no renovable | H1: Agotamiento de agua potable | I1: Agotamiento de recursos materiales | J1: Generación de residuos | K1: Impactos sobre el vecindario | L1: Accesibilidad | M1: Salud y confort | N1: Aspectos económicos del resultado | O1: Ahorro en el coste del ciclo de vida
B2: Parcela y Emplazamiento
B3: PyE 01 | C3: Proximidad al transporte publico. | L3: 1 | M3: 1 | N3: 1
B4: PyE 02 | C4: Proximidad a equipamiento y servicios. | L4: 1 | M4: 1 | N4: 1
B5: PyE 03 | C5: Facilidades para la bicicleta. | L5: 1 | M5: 1 | N5: 1
B6: PyE 04 | C6: Clasificación de RSU | I6: 1 | J6: 2
B7: PyE 05 | C7: Gestión y Restauración del hábitat | F7: 1 | I7: 1 | K7: 1 | N7: 1
B8: PyE 06 | C8: Uso de plantas para crear sombras | D8: 0.15 | F8: 1 | K8: 1 | M8: 1
B9: PyE 07 | C9: Efecto isla de calor | D9: 0.75 | F9: 1 | K9: 1
B10: PyE 08 | C10: Contaminación lumínica. | F10: 2 | K10: 1
B11: Energía y Atmósfera
B12: EyA 01 | C12: Demanda de calefacción y refrigeración | D12: 1 | E12: 1 | G12: 1 | M12: 2 | N12: 1 | O12: 2
B13: EyA 02 | C13: Consumo de energía primaria no renovable | D13: 1 | E13: 1 | G13: 2 | O13: 1
B14: EyA 03 | C14: Emisiones de CO2 por procesos de climatización y ACS | D14: 2 | E14: 2
B15: EyA 04 | C15: Demanda de energía eléctrica en fase de uso | D15: 0.25 | E15: 0.25 | G15: 0.25 | O15: 0.25
B16: EyA 05 | C16: Emisión de NOx en calderas de combustión. | E16: 1 | M16: 1
B17: EyA 06 | C17: Elección responsable de refrigerantes | D17: 1 | E17: 2 | F17: 1
B18: Recursos Naturales
B19: RN 01 | C19: Consumo de agua en aparatos sanitarios | E19: 1 | H19: 2 | O19: 2
B20: RN 02 | C20: Necesidades de riego en jardines | H20: 1 | N20: 1 | O20: 1
B21: RN 03 | C21: Consumo de agua en zonas comunes | H21: 0.5 | O21: 1
B22: RN 04 | C22: Uso de aguas no potables. | H22: 1 | N22: 1 | O22: 1
B23: RN 05 | C23: Uso de materiales reciclados. | I23: 1 | J23: 1
B24: RN 06 | C24: Uso de materiales obtenidos de recursos sostenibles. | I24: 0.5 | N24: 1
B25: RN 07 | C25: Uso de materiales locales. | K25: 1 | N25: 3
B26: RN 08 | C26: Planificación de una estrategia de demolición selectiva, | I26: 1 | J26: 1 | O26: 1
B27: RN 09 | C27: Gestión de los residuos de la construcción. | I27: 1 | J27: 1
B28: RN 10 | C28: Impacto de los materiales de la construcción. | E28: 2 | G28: 1 | H28: 1 | I28: 1 | J28: 1
B29: RN 11 | C29: Ecoetiquetado de producto. | I29: 1 | N29: 3
B30: Calidad del Ambiente Interior
B31: CAI 01 | C31: Limitación en las emisiones de COVs. | M31: 2 | N31: 1
B32: CAI 02 | C32: Eficacia de la ventilación natural. | M32: 3 | N32: 1
B33: CAI 03 | C33: Iluminación natural. | M33: 3 | N33: 2
B34: CAI 04 | C34: Protección frente al ruido. | M34: 3 | N34: 1
B35: Aspectos Sociales y Económicos
B36: ASE 01 | C36: Acceso universal. | K36: 1 | L36: 3 | N36: 2
B37: ASE 02 | C37: Derecho al sol. | M37: 2 | N37: 1
B38: ASE 03 | C38: Acceso a espacios abiertos privados. | M38: 1 | N38: 1
B39: ASE 04 | C39: Derecho a la intimidad. | M39: 1 | N39: 1
B40: ASE 05 | C40: Coste de construcción. | O40: 3
B41: Concepto de Calidad
B42: CC 01 | C42: Eficiencia de los espacios. | N42: 2 | O42: 1
B43: CC 02 | C43: Disponibilidad de un sistema de gestión del edificio (BMS). | G43: 1 | H43: 1 | N43: 2 | O43: 1
B44: CC 03 | C44: Custodia de la documentación del proyecto | N44: 3
B45: CC 04 | C45: El edificio como una herramienta para la educación | K45: 1 | N45: 3

Sheet Matriz VERDE-GBCe (hidden)
A2: Residencial colectivo | B2: Unifamiliar | C2: Urbanizaciones | D2: Vivienda en un edificio | E2: Edificios administrativos | F2: Equipamiento público | G2: Edificios docentes | H2: Edificios comerciales | I2: Alojamiento y hospedaje | J2: Servicios de restauración | K2: Edificios deportivos | L2: Edificios sanitarios | M2: Industria ligera o logística | N2: Local o parte de un edificio | P2: Nueva Edificación | Q2: Rehabilitación | R2: Existente | S2: Mixto | T2: Límites de aplicabilidad | W2: Lista de criterios | X2: Peso del criterio | Z2: Solidez del criterio | AA2: Solidez del criterio | AB2: Alcance del efecto | AC2: Duración del efecto | AD2: Intensidad del efecto | AE2: Fiabilidad de los datos | AF2: Capacidad de lograr el objetivo | AG2: Complejidad del criterio | AH2: Peso por impactos | AI2: Peso por impactos | AJ2: Cambio climático | AK2: Emisiones a la atmósfera, tierra y agua | AL2: Cambios en la biodiversidad | AM2: Agotamiento de energía no renovable | AN2: Agotamiento de agua potable | AO2: Agotamiento de recursos materiales | AP2: Generación de residuos | AQ2: Accesibilidad | AR2: Adaptabilidad | AS2: Salud y confort | AT2: Impactos sobre el vecindario | AU2: Mantenimiento | AV2: Seguridad | AW2: Aspectos económicos del resultado | AX2: Ahorro en el coste del ciclo de vida | AZ2: Cambio climático | BA2: Emisiones a la atmósfera, tierra y agua | BB2: Cambios en la biodiversidad | BC2: Agotamiento de energía no renovable | BD2: Agotamiento de agua potable | BE2: Agotamiento de recursos materiales | BF2: Generación de residuos | BG2: Accesibilidad | BH2: Adaptabilidad | BI2: Salud y confort | BJ2: Impactos sobre el vecindario | BK2: Mantenimiento | BL2: Seguridad | BM2: Aspectos económicos del resultado | BN2: Ahorro en el coste del ciclo de vida | BP2: Cambio climático | BQ2: Emisiones a la atmósfera, tierra y agua | BR2: Cambios en la biodiversidad | BS2: Agotamiento de energía no renovable | BT2: Agotamiento de agua potable | BU2: Agotamiento de recursos materiales | BV2: Generación de residuos | BW2: Accesibilidad | BX2: Adaptabilidad | BY2: Salud y confort | BZ2: Impactos sobre el vecindario | CA2: Mantenimiento | CB2: Seguridad | CC2: Aspectos económicos del resultado | CD2: Ahorro en el coste del ciclo de vida
V3: Listas de criterios | X3: Peso | AB3: Solidez del criterio | AJ3: Influencia de los impactos
AB4: 3 | AC4: 3 | AD4: 2 | AE4: 1 | AF4: 3 | AG4: 1 | AJ4: 3 | AK4: 2 | AL4: 3 | AM4: 3 | AN4: 2 | AO4: 2 | AP4: 1 | AQ4: 2 | AR4: 1 | AS4: 3 | AT4: 2 | AU4: 1 | AV4: 2 | AW4: 2 | AX4: 3 | AZ4: 3 | BA4: 2 | BB4: 3 | BC4: 3 | BD4: 2 | BE4: 2 | BF4: 1 | BG4: 2 | BH4: 1 | BI4: 3 | BJ4: 2 | BK4: 1 | BL4: 2 | BM4: 2 | BN4: 3 | BP4: 3 | BQ4: 2 | BR4: 3 | BS4: 3 | BT4: 2 | BU4: 2 | BV4: 1 | BW4: 2 | BX4: 1 | BY4: 3 | BZ4: 2 | CA4: 1 | CB4: 2 | CC4: 2 | CD4: 3
AA5: =SUM(AB5:AG5) -> 1 | AB5: =AB4/SUM($AB4:$AG4) -> 0.2307692308 | AC5: 0.2307692308 | AD5: 0.1538461538 | AE5: 0.07692307692 | AF5: 0.2307692308 | AG5: 0.07692307692 | AI5: =SUM(AJ5:AX5) -> 1 | AJ5: =AJ4/SUM($AJ4:$AX4) -> 0.09375 | AK5: 0.0625 | AL5: 0.09375 | AM5: 0.09375 | AN5: 0.0625 | AO5: 0.0625 | AP5: 0.03125 | AQ5: 0.0625 | AR5: =AR4/SUM($AJ4:$AX4) -> 0.03125 | AS5: 0.09375 | AT5: 0.0625 | AU5: 0.03125 | AV5: 0.0625 | AW5: 0.0625 | AX5: 0.09375 | AZ5: =AZ4/SUM($AJ4:$AX4) -> 0.09375 | BA5: 0.0625 | BB5: 0.09375 | BC5: 0.09375 | BD5: 0.0625 | BE5: 0.0625 | BF5: 0.03125 | BG5: 0.0625 | BH5: 0.03125 | BI5: 0.09375 | BJ5: 0.0625 | BK5: =BK4/SUM($AJ4:$AX4) -> 0.03125 | BL5: =BL4/SUM($AJ4:$AX4) -> 0.0625 | BM5: =BM4/SUM($AJ4:$AX4) -> 0.0625 | BN5: =BN4/SUM($AJ4:$AX4) -> 0.09375 | BP5: =BP4/SUM($AJ4:$AX4) -> 0.09375 | BQ5: 0.0625 | BR5: 0.09375 | BS5: 0.09375 | BT5: 0.0625 | BU5: 0.0625 | BV5: 0.03125 | BW5: 0.0625 | BX5: 0.03125 | BY5: 0.09375 | BZ5: 0.0625 | CA5: =CA4/SUM($AJ4:$AX4) -> 0.03125 | CB5: =CB4/SUM($AJ4:$AX4) -> 0.0625 | CC5: =CC4/SUM($AJ4:$AX4) -> 0.0625 | CD5: =CD4/SUM($AJ4:$AX4) -> 0.09375
U6: PE | V6: Parcela y emplazamiento | X6: =SUM(X7:X15) -> 0.1524462241 | AA6: =SUM(AA7:AA15) -> 0.1471389646 | AI6: =SUM(AI7:AI15) -> 0.1605042017
A7: si | B7: si | C7: si | D7: si | E7: si | F7: si | G7: si | H7: si | I7: si | J7: si | K7: si | L7: si | M7: si | N7: si | T7: NO | U7: =VLOOKUP(V7,CA!$E$9:$L$132,5,FALSE) -> 1 | V7: PE 01 | W7: Proximidad al transporte publico. | X7: =($Z7+2*$AH7)/($Z$60+2*$AH$60) -> 0.01429744853 | Y7: ='Informe resultados'!N27 -> 0 | Z7: =IF($U7=1,SUMPRODUCT(AB7:AG7,AB$5:AG$5),"0") -> 1.615384615 | AA7: =IF($Z$60=0,0,$Z7/$Z$60) -> 0.01430517711 | AB7: 2 | AC7: 2 | AD7: 1 | AE7: 3 | AF7: 1 | AG7: 1 | AH7: =IF($U7=1,SUMPRODUCT(AJ7:AX7,AJ$5:AX$5),"0") -> 0.53125 | AI7: =IF($AH$60=0,0,$AH7/$AH$60) -> 0.01428571429 | AJ7: 1 | AK7: 1 | AQ7: 3 | AR7: 2 | AW7: 2 | AZ7: =(AJ7*AJ$5)*$X7/SUMPRODUCT($AJ7:$AX7,$AJ$5:$AX$5) -> 0.002523079153 | BA7: 0.001682052769 | BB7: 0 | BC7: 0 | BD7: 0 | BE7: 0 | BF7: 0 | BG7: 0.005046158306 | BH7: =(AU7*AU$5)*$X7/SUMPRODUCT($AJ7:$AX7,$AJ$5:$AX$5) -> 0 | BI7: 0 | BJ7: 0.003364105537 | BK7: 0 | BL7: =(AV7*AV$5)*$X7/SUMPRODUCT($AJ7:$AX7,$AJ$5:$AX$5) -> 0 | BM7: 0.003364105537 | BN7: 0 | BP7: =(AJ7*AJ$5)*$Y7/SUMPRODUCT($AJ7:$AX7,$AJ$5:$AX$5) -> 0 | BQ7: 0 | BR7: 0 | BS7: 0 | BT7: 0 | BU7: 0 | BV7: 0 | BW7: 0 | BX7: =(AO7*AO$5)*$Y7/SUMPRODUCT($AJ7:$AX7,$AJ$5:$AX$5) -> 0 | BY7: 0 | BZ7: 0 | CA7: =(AU7*AU$5)*$Y7/SUMPRODUCT($AJ7:$AX7,$AJ$5:$AX$5) -> 0 | CB7: 0 | CC7: 0 | CD7: 0
A8: si | B8: si | C8: si | D8: si | E8: si | F8: si | G8: si | H8: si | I8: si | J8: si | K8: si | L8: si | M8: si | N8: si | T8: NO | U8: =VLOOKUP(V8,CA!$E$9:$L$132,5,FALSE) -> 1 | V8: PE 02 | W8: Proximidad a equipamiento y servicios. | X8: 0.01347605113 | Y8: ='Informe resultados'!N28 -> 0 | Z8: =IF($U8=1,SUMPRODUCT(AB8:AG8,AB$5:AG$5),"0") -> 1.461538462 | AA8: 0.01294277929 | AB8: 2 | AC8: 1 | AD8: 1 | AE8: 3 | AF8: 1 | AG8: 2 | AH8: =IF($U8=1,SUMPRODUCT(AJ8:AX8,AJ$5:AX$5),"0") -> 0.53125 | AI8: 0.01428571429 | AJ8: 1 | AK8: 1 | AQ8: 3 | AR8: 2 | AW8: 2 | AZ8: 0.00237812667 | BA8: 0.00158541778 | BB8: 0 | BC8: 0 | BD8: 0 | BE8: 0 | BF8: 0 | BG8: 0.004756253341 | BH8: 0 | BI8: 0 | BJ8: 0.00317083556 | BK8: 0 | BL8: 0 | BM8: 0.00317083556 | BN8: 0 | BP8: 0 | BQ8: 0 | BR8: 0 | BS8: 0 | BT8: 0 | BU8: 0 | BV8: 0 | BW8: 0 | BX8: 0 | BY8: 0 | BZ8: 0 | CA8: 0 | CB8: 0 | CC8: 0 | CD8: 0
A9: si | B9: no | C9: no | D9: no | E9: si | F9: si | G9: si | H9: si | I9: si | J9: si | K9: si | L9: si | M9: si | N9: no | U9: =IF(OR(DG!F$29="Unifamiliar",DG!F29="Urbanizaciones",DG!F29="Vivienda en un edificio",DG!F29="Local o parte de un edificio"),0,VLOOKUP(V9,CA!$E$9:$L$132,5,FALSE)) -> 1 | V9: PE 03 | W9: Facilidades para la bicicleta. | X9: 0.0162996047 | Y9: ='Informe resultados'!N29 -> 0 | Z9: 1.615384615 | AA9: 0.01430517711 | AB9: 2 | AC9: 2 | AD9: 1 | AE9: 3 | AF9: 1 | AG9: 1 | AH9: 0.71875 | AI9: 0.01932773109 | AJ9: 1 | AK9: 1 | AQ9: 3 | AR9: 2 | AS9: 2 | AW9: 2 | AZ9: 0.002126035396 | BA9: 0.001417356931 | BB9: 0 | BC9: 0 | BD9: 0 | BE9: 0 | BF9: 0 | BG9: 0.004252070792 | BH9: 0 | BI9: 0 | BJ9: 0.002834713861 | BK9: 0 | BL9: 0 | BM9: 0.002834713861 | BN9: 0 | BP9: 0 | BQ9: 0 | BR9: 0 | BS9: 0 | BT9: 0 | BU9: 0 | BV9: 0 | BW9: 0 | BX9: 0 | BY9: 0 | BZ9: 0 | CA9: 0 | CB9: 0 | CC9: 0 | CD9: 0
A10: si | B10: si | C10: si | D10: no | E10: si | F10: si | G10: si | H10: si | I10: si | J10: si | K10: si | L10: si | M10: si | N10: no | U10: =IF(OR(DG!F29="Vivienda en un edificio",DG!F29="Local o parte de un edificio",DG!F43="NO"),0,VLOOKUP(V10,CA!$E$9:$L$132,5,FALSE)) -> 1 | V10: PE 04 | W10: Capacidad de carga de vehículos eléctricos. | X10: 0.01601724935 | Y10: ='Informe resultados'!N30 -> 0 | Z10: 2 | AA10: 0.01771117166 | AB10: 2 | AC10: 2 | AD10: 2 | AE10: 3 | AF10: 2 | AG10: 1 | AH10: 0.5 | AI10: 0.01344537815 | AJ10: 1 | AK10: 1 | AQ10: 1 | AR10: 2 | AW10: 2 | AX10: 1 | AZ10: 0.003003234252 | BA10: 0.002002156168 | BB10: 0 | BC10: 0 | BD10: 0 | BE10: 0 | BF10: 0 | BG10: 0.002002156168 | BH10: 0 | BI10: 0 | BJ10: 0.004004312336 | BK10: 0.003003234252 | BL10: 0 | BM10: 0.004004312336 | BN10: 0.003003234252 | BP10: 0 | BQ10: 0 | BR10: 0 | BS10: 0 | BT10: 0 | BU10: 0 | BV10: 0 | BW10: 0 | BX10: 0 | BY10: 0 | BZ10: 0 | CA10: 0 | CB10: 0 | CC10: 0 | CD10: 0
A11: si | B11: si | C11: si | D11: no | E11: si | F11: si | G11: si | H11: si | I11: si | J11: si | K11: si | L11: si | M11: si | N11: no | U11: =IF(OR(DG!F29="Vivienda en un edificio",DG!F29="Local o parte de un edificio"),0,VLOOKUP(V11,CA!$E$9:$L$132,5,FALSE)) -> 1 | V11: PE 05 | W11: Clasificación de RSU. | X11: 0.01129421428 | Y11: ='Informe resultados'!N31 -> 0 | Z11: 1.615384615 | AA11: 0.01430517711 | AB11: 2 | AC11: 1 | AD11: 1 | AE11: 3 | AF11: 2 | AG11: 1 | AH11: 0.25 | AI11: 0.006722689076 | AL11: 1 | AO11: 1 | AP11: 3 | AZ11: 0 | BA11: 0 | BB11: 0.004235330356 | BC11: 0 | BD11: 0 | BE11: 0.002823553571 | BF11: 0.004235330356 | BG11: 0 | BH11: 0 | BI11: 0 | BJ11: 0 | BK11: 0 | BL11: 0 | BM11: 0 | BN11: 0 | BP11: 0 | BQ11: 0 | BR11: 0 | BS11: 0 | BT11: 0 | BU11: 0 | BV11: 0 | BW11: 0 | BX11: 0 | BY11: 0 | BZ11: 0 | CA11: 0 | CB11: 0 | CC11: 0 | CD11: 0
A12: si | B12: si | C12: si | D12: no | E12: si | F12: si | G12: si | H12: si | I12: si | J12: si | K12: si | L12: si | M12: si | N12: no | U12: =IF(OR(DG!F29="Vivienda en un edificio",DG!F29="Local o parte de un edificio"),0,VLOOKUP(V12,CA!$E$9:$L$132,5,FALSE)) -> 1 | V12: PE 06 | W12: Gestión y Restauración del hábitat. | X12: 0.02281944658 | Y12: ='Informe resultados'!N32 -> 0 | Z12: 2.461538462 | AA12: 0.02179836512 | AB12: 2 | AC12: 3 | AD12: 2 | AE12: 2 | AF12: 3 | AG12: 2 | AH12: 0.90625 | AI12: 0.0243697479 | AJ12: 1 | AK12: 1 | AL12: 3 | AN12: 2 | AO12: 1 | AS12: 1 | AT12: 2 | AW12: 1 | AZ12: 0.002360632405 | BA12: 0.001573754937 | BB12: 0.007081897216 | BC12: 0 | BD12: 0.003147509874 | BE12: 0.001573754937 | BF12: 0 | BG12: 0 | BH12: 0 | BI12: 0 | BJ12: 0.001573754937 | BK12: 0 | BL12: 0 | BM12: 0.001573754937 | BN12: 0 | BP12: 0 | BQ12: 0 | BR12: 0 | BS12: 0 | BT12: 0 | BU12: 0 | BV12: 0 | BW12: 0 | BX12: 0 | BY12: 0 | BZ12: 0 | CA12: 0 | CB12: 0 | CC12: 0 | CD12: 0
A13: si | B13: si | C13: si | D13: no | E13: si | F13: si | G13: si | H13: si | I13: si | J13: si | K13: si | L13: si | M13: si | N13: no | U13: =IF(OR(DG!F29="Vivienda en un edificio",DG!F29="Local o parte de un edificio"),0,VLOOKUP(V13,CA!$E$9:$L$132,5,FALSE)) -> 1 | V13: PE 07 | W13: Uso de plantas para crear sombras. | X13: 0.01812208019 | Y13: ='Informe resultados'!N33 -> 0 | Z13: 1.769230769 | AA13: 0.01566757493 | AB13: 2 | AC13: 1 | AD13: 1 | AE13: 2 | AF13: 3 | AG13: 1 | AH13: 0.8125 | AI13: 0.0218487395 | AJ13: 1 | AK13: 1 | AL13: 3 | AM13: 1 | AN13: 2 | AS13: 1 | AT13: 1 | AZ13: 0.002091009253 | BA13: 0.001394006168 | BB13: 0.006273027758 | BC13: 0.002091009253 | BD13: 0.002788012337 | BE13: 0 | BF13: 0 | BG13: 0 | BH13: 0 | BI13: 0 | BJ13: 0 | BK13: 0 | BL13: 0 | BM13: 0 | BN13: 0 | BP13: 0 | BQ13: 0 | BR13: 0 | BS13: 0 | BT13: 0 | BU13: 0 | BV13: 0 | BW13: 0 | BX13: 0 | BY13: 0 | BZ13: 0 | CA13: 0 | CB13: 0 | CC13: 0 | CD13: 0
A14: si | B14: si | C14: si | D14: no | E14: si | F14: si | G14: si | H14: si | I14: si | J14: si | K14: si | L14: si | M14: si | N14: no | U14: =IF(OR(DG!F29="Vivienda en un edificio",DG!F29="Local o parte de un edificio"),0,VLOOKUP(V14,CA!$E$9:$L$132,5,FALSE)) -> 1 | V14: PE 08 | W14: Efecto isla de calor. | X14: 0.02043226038 | Y14: ='Informe resultados'!N34 -> 0 | Z14: 2.076923077 | AA14: 0.01839237057 | AB14: 2 | AC14: 1 | AD14: 2 | AE14: 3 | AF14: 3 | AG14: 2 | AH14: 0.875 | AI14: 0.02352941176 | AJ14: 2 | AK14: 2 | AL14: 2 | AS14: 2 | AT14: 3 | AZ14: 0.004378341511 | BA14: 0.00291889434 | BB14: 0.004378341511 | BC14: 0 | BD14: 0 | BE14: 0 | BF14: 0 | BG14: 0 | BH14: 0 | BI14: 0 | BJ14: 0 | BK14: 0 | BL14: 0 | BM14: 0 | BN14: 0 | BP14: 0 | BQ14: 0 | BR14: 0 | BS14: 0 | BT14: 0 | BU14: 0 | BV14: 0 | BW14: 0 | BX14: 0 | BY14: 0 | BZ14: 0 | CA14: 0 | CB14: 0 | CC14: 0 | CD14: 0
A15: si | B15: si | C15: si | D15: no | E15: si | F15: si | G15: si | H15: si | I15: si | J15: si | K15: si | L15: si | M15: si | N15: no | U15: =IF(OR(DG!F29="Vivienda en un edificio",DG!F29="Local o parte de un edificio"),0,VLOOKUP(V15,CA!$E$9:$L$132,5,FALSE)) -> 1 | V15: PE 09 | W15: Contaminación lumínica. | X15: 0.01968786899 | Y15: ='Informe resultados'!N35 -> 0 | Z15: 2 | AA15: 0.01771117166 | AB15: 2 | AC15: 1 | AD15: 2 | AE15: 3 | AF15: 3 | AG15: 1 | AH15: 0.84375 | AI15: 0.02268907563 | AK15: 3 | AL15: 3 | AS15: 2 | AT15: 3 | AZ15: 0 | BA15: 0.004375081997 | BB15: 0.006562622996 | BC15: 0 | BD15: 0 | BE15: 0 | BF15: 0 | BG15: 0 | BH15: 0 | BI15: 0 | BJ15: 0 | BK15: 0 | BL15: 0 | BM15: 0 | BN15: 0 | BP15: 0 | BQ15: 0 | BR15: 0 | BS15: 0 | BT15: 0 | BU15: 0 | BV15: 0 | BW15: 0 | BX15: 0 | BY15: 0 | BZ15: 0 | CA15: 0 | CB15: 0 | CC15: 0 | CD15: 0
U16: EA | V16: Energía y atmósfera | X16: =SUM(X17:X22) -> 0.1760100621 | AA16: =SUM(AA17:AA22) -> 0.1873297003 | AI16: =SUM(AI17:AI22) -> 0.1588235294
U17: 0 | V17: EA 00 | W17: Demanda de calefacción y refrigeración | X17: =($Z17+2*$AH17)/($Z$60+2*$AH$60) -> 0 | Z17: =IF($U17=1,SUMPRODUCT(AB17:AG17,AB$5:AG$5),"0") -> 0 | AA17: =IF($Z$60=0,0,$Z17/$Z$60) -> 0 | AB17: 3 | AC17: 3 | AD17: 3 | AE17: 3 | AF17: 3 | AG17: 5 | AH17: =IF($U17=1,SUMPRODUCT(AJ17:AX17,AJ$5:AX$5),"0") -> 0 | AI17: =IF($AH$60=0,0,$AH17/$AH$60) -> 0 | AJ17: 3 | AK17: 3 | AM17: 3 | AS17: 3 | AW17: 3 | AX17: 3 | AZ17: =(AJ17*AJ$5)*$X17/SUMPRODUCT($AJ17:$AX17,$AJ$5:$AX$5) -> 0 | BA17: 0 | BB17: 0 | BC17: 0 | BD17: 0 | BE17: 0 | BF17: 0 | BG17: 0 | BH17: =(AU17*AU$5)*$X17/SUMPRODUCT($AJ17:$AX17,$AJ$5:$AX$5) -> 0 | BI17: 0 | BJ17: 0 | BK17: 0 | BL17: =(AV17*AV$5)*$X17/SUMPRODUCT($AJ17:$AX17,$AJ$5:$AX$5) -> 0 | BM17: 0 | BN17: 0 | BP17: =(AJ17*AJ$5)*$Y17/SUMPRODUCT($AJ17:$AX17,$AJ$5:$AX$5) -> 0 | BQ17: 0 | BR17: 0 | BS17: 0 | BT17: 0 | BU17: 0 | BV17: 0 | BW17: 0 | BX17: =(AO17*AO$5)*$Y17/SUMPRODUCT($AJ17:$AX17,$AJ$5:$AX$5) -> 0 | BY17: 0 | BZ17: 0 | CA17: =(AU17*AU$5)*$Y17/SUMPRODUCT($AJ17:$AX17,$AJ$5:$AX$5) -> 0 | CB17: 0 | CC17: 0 | CD17: 0
A18: si | B18: si | C18: si | D18: si | E18: si | F18: si | G18: si | H18: si | I18: si | J18: si | K18: si | L18: si | M18: si | N18: si | T18: NO | U18: =VLOOKUP(V18,CA!$E$9:$L$132,5,FALSE) -> 1 | V18: EA 01 | W18: Consumo de energía primaria | X18: 0.075414549 | Y18: ='Informe resultados'!N36 -> 0 | Z18: 10 | AA18: 0.08855585831 | AB18: 10 | AC18: 10 | AD18: 10 | AE18: 10 | AF18: 10 | AG18: 10 | AH18: 2.0625 | AI18: 0.05546218487 | AJ18: 10 | AK18: 3 | AL18: 2 | AM18: 3 | AW18: 3 | AX18: 3 | AZ18: 0.03427934046 | BA18: 0.006855868091 | BB18: 0.006855868091 | BC18: 0.01028380214 | BD18: 0 | BE18: 0 | BF18: 0 | BG18: 0 | BH18: 0 | BI18: 0 | BJ18: 0.006855868091 | BK18: 0.01028380214 | BL18: 0 | BM18: 0.006855868091 | BN18: 0.01028380214 | BP18: 0 | BQ18: 0 | BR18: 0 | BS18: 0 | BT18: 0 | BU18: 0 | BV18: 0 | BW18: 0 | BX18: 0 | BY18: 0 | BZ18: 0 | CA18: 0 | CB18: 0 | CC18: 0 | CD18: 0
A19: si | B19: si | C19: si | D19: no | E19: si | F19: si | G19: si | H19: si | I19: si | J19: si | K19: si | L19: si | M19: si | N19: no | U19: =IF(OR(DG!F29="Vivienda en un edificio",DG!F29="Local o parte de un edificio"),0,VLOOKUP(V19,CA!$E$9:$L$132,5,FALSE)) -> 1 | V19: EA 02 | W19: Generación distribuida | X19: 0.04851378408 | Y19: ='Informe resultados'!N37 -> 0 | Z19: 5.461538462 | AA19: 0.04836512262 | AB19: 5 | AC19: 5 | AD19: 3 | AE19: 3 | AF19: 10 | AG19: 2 | AH19: 1.8125 | AI19: 0.0487394958 | AJ19: 10 | AK19: 3 | AL19: 2 | AM19: 2 | AW19: 2 | AX19: 2 | AZ19: 0.02509333659 | BA19: 0.005018667318 | BB19: 0.005018667318 | BC19: 0.005018667318 | BD19: 0 | BE19: 0 | BF19: 0 | BG19: 0 | BH19: 0 | BI19: 0 | BJ19: 0.003345778212 | BK19: 0.005018667318 | BL19: 0 | BM19: 0.003345778212 | BN19: 0.005018667318 | BP19: 0 | BQ19: 0 | BR19: 0 | BS19: 0 | BT19: 0 | BU19: 0 | BV19: 0 | BW19: 0 | BX19: 0 | BY19: 0 | BZ19: 0 | CA19: 0 | CB19: 0 | CC19: 0 | CD19: 0
A20: si | B20: no | C20: no | D20: no | E20: si | F20: si | G20: si | H20: si | I20: si | J20: si | K20: si | L20: si | M20: si | N20: si | U20: =IF(OR(DG!F$29="Vivienda unifamiliar",DG!F$29="Urbanizaciones",DG!F$29="Vivienda en un edificio"),0,VLOOKUP(V20,CA!$E$9:$L$132,5,FALSE)) -> 1 | V20: EA 03 | W20: Consumo en zonas comunes | X20: 0.02541198213 | Y20: ='Informe resultados'!N38 -> 0 | Z20: 2.384615385 | AA20: 0.02111716621 | AB20: 3 | AC20: 3 | AD20: 2 | AE20: 2 | AF20: 2 | AG20: 1 | AH20: 1.1875 | AI20: 0.03193277311 | AJ20: 2 | AK20: 2 | AL20: 2 | AM20: 3 | AW20: 2 | AX20: 3 | AZ20: 0.004012418232 | BA20: 0.002674945488 | BB20: 0.004012418232 | BC20: 0.006018627348 | BD20: 0 | BE20: 0 | BF20: 0 | BG20: 0 | BH20: 0 | BI20: 0 | BJ20: 0.002674945488 | BK20: 0.006018627348 | BL20: 0 | BM20: 0.002674945488 | BN20: 0.006018627348 | BP20: 0 | BQ20: 0 | BR20: 0 | BS20: 0 | BT20: 0 | BU20: 0 | BV20: 0 | BW20: 0 | BX20: 0 | BY20: 0 | BZ20: 0 | CA20: 0 | CB20: 0 | CC20: 0 | CD20: 0
K21: si | L21: si | U21: 0 | V21: EA 05 | W21: Emisión de NOx en calderas de combustión. | X21: 0 | Z21: 0 | AA21: 0 | AB21: 1 | AC21: 2 | AD21: 1 | AE21: 2 | AF21: 3 | AG21: 1 | AH21: 0 | AI21: 0 | AK21: 2 | AS21: 1 | AZ21: 0 | BA21: 0 | BB21: 0 | BC21: 0 | BD21: 0 | BE21: 0 | BF21: 0 | BG21: 0 | BH21: 0 | BI21: 0 | BJ21: 0 | BK21: 0 | BL21: 0 | BM21: 0 | BN21: 0 | BP21: 0 | BQ21: 0 | BR21: 0 | BS21: 0 | BT21: 0 | BU21: 0 | BV21: 0 | BW21: 0 | BX21: 0 | BY21: 0 | BZ21: 0 | CA21: 0 | CB21: 0 | CC21: 0 | CD21: 0
A22: si | B22: si | C22: si | D22: si | E22: si | F22: si | G22: si | H22: si | I22: si | J22: si | K22: si | L22: si | M22: si | N22: si | T22: NO | U22: =VLOOKUP(V22,CA!$E$9:$L$132,5,FALSE) -> 1 | V22: EA 04 | W22: Elección responsable de refrigerantes | X22: 0.02666974691 | Y22: ='Informe resultados'!N39 -> 0 | Z22: 3.307692308 | AA22: 0.02929155313 | AB22: 3 | AC22: 3 | AD22: 3 | AE22: 3 | AF22: 5 | AG22: 1 | AH22: 0.84375 | AI22: 0.02268907563 | AJ22: 5 | AK22: 3 | AL22: 2 | AZ22: 0.01481652606 | BA22: 0.005926610424 | BB22: 0.005926610424 | BC22: 0 | BD22: 0 | BE22: 0 | BF22: 0 | BG22: 0 | BH22: 0 | BI22: 0 | BJ22: 0 | BK22: 0 | BL22: 0 | BM22: 0 | BN22: 0 | BP22: 0 | BQ22: 0 | BR22: 0 | BS22: 0 | BT22: 0 | BU22: 0 | BV22: 0 | BW22: 0 | BX22: 0 | BY22: 0 | BZ22: 0 | CA22: 0 | CB22: 0 | CC22: 0 | CD22: 0
U23: RN | V23: Recursos naturales | X23: =SUM(X24:X35) -> 0.2292212126 | AA23: =SUM(AA24:AA35) -> 0.2506811989 | AI23: =SUM(AI24:AI35) -> 0.1966386555
A24: si | B24: si | C24: si | D24: si | E24: si | F24: si | G24: si | H24: si | I24: si | J24: si | K24: si | L24: si | M24: si | N24: si | T24: NO | U24: =VLOOKUP(V24,CA!$E$9:$L$132,5,FALSE) -> 1 | V24: RN 01 | W24: Consumo de agua en aparatos sanitarios | X24: =($Z24+2*$AH24)/($Z$60+2*$AH$60) -> 0.0214076698 | Y24: ='Informe resultados'!N40 -> 0 | Z24: =IF($U24=1,SUMPRODUCT(AB24:AG24,AB$5:AG$5),"0") -> 2.384615385 | AA24: =IF($Z$60=0,0,$Z24/$Z$60) -> 0.02111716621 | AB24: 3 | AC24: 1 | AD24: 3 | AE24: 3 | AF24: 3 | AG24: 1 | AH24: =IF($U24=1,SUMPRODUCT(AJ24:AX24,AJ$5:AX$5),"0") -> 0.8125 | AI24: =IF($AH$60=0,0,$AH24/$AH$60) -> 0.0218487395 | AK24: 2 | AL24: 1 | AN24: 3 | AW24: 2 | AX24: 3 | AZ24: =(AJ24*AJ$5)*$X24/SUMPRODUCT($AJ24:$AX24,$AJ$5:$AX$5) -> 0 | BA24: 0.003293487661 | BB24: 0.002470115746 | BC24: 0 | BD24: 0.004940231492 | BE24: 0 | BF24: 0 | BG24: 0 | BH24: =(AU24*AU$5)*$X24/SUMPRODUCT($AJ24:$AX24,$AJ$5:$AX$5) -> 0 | BI24: 0 | BJ24: 0.003293487661 | BK24: 0.007410347238 | BL24: =(AV24*AV$5)*$X24/SUMPRODUCT($AJ24:$AX24,$AJ$5:$AX$5) -> 0 | BM24: 0.003293487661 | BN24: 0.007410347238 | BP24: =(AJ24*AJ$5)*$Y24/SUMPRODUCT($AJ24:$AX24,$AJ$5:$AX$5) -> 0 | BQ24: 0 | BR24: 0 | BS24: 0 | BT24: 0 | BU24: 0 | BV24: 0 | BW24: 0 | BX24: =(AO24*AO$5)*$Y24/SUMPRODUCT($AJ24:$AX24,$AJ$5:$AX$5) -> 0 | BY24: 0 | BZ24: 0 | CA24: =(AU24*AU$5)*$Y24/SUMPRODUCT($AJ24:$AX24,$AJ$5:$AX$5) -> 0 | CB24: 0 | CC24: 0 | CD24: 0
A25: si | B25: si | C25: si | D25: no | E25: si | F25: si | G25: si | H25: si | I25: si | J25: si | K25: si | L25: si | M25: si | N25: no | U25: =IF(OR(DG!F29="Vivienda en un edificio",DG!F29="Local o parte de un edificio",DG!F47<=20),0,VLOOKUP(V25,CA!$E$9:$L$132,5,FALSE)) -> 0 | V25: RN 02 | W25: Necesidades de riego en jardines. | X25: 0 | Y25: ='Informe resultados'!N41 -> 0 | Z25: 0 | AA25: 0 | AB25: 3 | AC25: 1 | AD25: 3 | AE25: 3 | AF25: 3 | AG25: 2 | AH25: 0 | AI25: 0 | AK25: 2 | AL25: 1 | AN25: 3 | AW25: 2 | AX25: 3 | AZ25: 0 | BA25: 0 | BB25: 0 | BC25: 0 | BD25: 0 | BE25: 0 | BF25: 0 | BG25: 0 | BH25: 0 | BI25: 0 | BJ25: 0 | BK25: 0 | BL25: 0 | BM25: 0 | BN25: 0 | BP25: 0 | BQ25: 0 | BR25: 0 | BS25: 0 | BT25: 0 | BU25: 0 | BV25: 0 | BW25: 0 | BX25: 0 | BY25: 0 | BZ25: 0 | CA25: 0 | CB25: 0 | CC25: 0 | CD25: 0
A26: si | B26: no | C26: no | D26: no | E26: si | F26: si | G26: si | H26: si | I26: si | J26: si | K26: si | L26: si | M26: si | N26: si | U26: =IF(OR(DG!F$29="Vivienda unifamiliar",DG!F$29="Urbanizaciones",DG!F$29="Vivienda en un edificio"),0,VLOOKUP(V26,CA!$E$9:$L$132,5,FALSE)) -> 1 | V26: RN 03 | W26: Consumos de agua singulares. | X26: 0.01812208019 | Y26: ='Informe resultados'!N42 -> 0 | Z26: 1.769230769 | AA26: 0.01566757493 | AB26: 3 | AC26: 1 | AD26: 1 | AE26: 2 | AF26: 2 | AG26: 1 | AH26: 0.8125 | AI26: 0.0218487395 | AK26: 2 | AL26: 1 | AN26: 3 | AW26: 2 | AX26: 3 | AZ26: 0 | BA26: 0.002788012337 | BB26: 0.002091009253 | BC26: 0 | BD26: 0.004182018505 | BE26: 0 | BF26: 0 | BG26: 0 | BH26: 0 | BI26: 0 | BJ26: 0.002788012337 | BK26: 0.006273027758 | BL26: 0 | BM26: 0.002788012337 | BN26: 0.006273027758 | BP26: 0 | BQ26: 0 | BR26: 0 | BS26: 0 | BT26: 0 | BU26: 0 | BV26: 0 | BW26: 0 | BX26: 0 | BY26: 0 | BZ26: 0 | CA26: 0 | CB26: 0 | CC26: 0 | CD26: 0
A27: si | B27: si | C27: si | D27: no | E27: si | F27: si | G27: si | H27: si | I27: si | J27: si | K27: si | L27: si | M27: si | N27: no | U27: =IF(OR(DG!F$29="Vivienda en un edificio",DG!F$29="Local o parte de un edificio"),0,VLOOKUP(V27,CA!$E$9:$L$132,5,FALSE)) -> 1 | V27: RN 04 | W27: Uso de agua no potable. | X27: 0.02084295908 | Y27: ='Informe resultados'!N43 -> 0 | Z27: 2.153846154 | AA27: 0.01907356948 | AB27: 3 | AC27: 1 | AD27: 1 | AE27: 3 | AF27: 3 | AG27: 2 | AH27: 0.875 | AI27: 0.02352941176 | AK27: 2 | AL27: 1 | AN27: 3 | AW27: 3 | AX27: 3 | AZ27: 0 | BA27: 0.002977565583 | BB27: 0.002233174188 | BC27: 0 | BD27: 0.004466348375 | BE27: 0 | BF27: 0 | BG27: 0 | BH27: 0 | BI27: 0 | BJ27: 0.004466348375 | BK27: 0.006699522563 | BL27: 0 | BM27: 0.004466348375 | BN27: 0.006699522563 | BP27: 0 | BQ27: 0 | BR27: 0 | BS27: 0 | BT27: 0 | BU27: 0 | BV27: 0 | BW27: 0 | BX27: 0 | BY27: 0 | BZ27: 0 | CA27: 0 | CB27: 0 | CC27: 0 | CD27: 0
A28: si | B28: si | C28: si | D28: si | E28: si | F28: si | G28: si | H28: si | I28: si | J28: si | K28: si | L28: si | M28: si | N28: si | R28: no | U28: =IF(DG!F31="Edificio existente",0,VLOOKUP(V28,CA!$E$9:$L$132,5,FALSE)) -> 1 | V28: RN 05 | W28: Uso de materiales reciclados. | X28: 0.01812208019 | Y28: ='Informe resultados'!N44 -> 0 | Z28: 2.769230769 | AA28: 0.02452316076 | AB28: 3 | AC28: 3 | AD28: 2 | AE28: 3 | AF28: 3 | AG28: 2 | AH28: 0.3125 | AI28: 0.008403361345 | AO28: 3 | AP28: 1 | AX28: 1 | AZ28: 0 | BA28: 0 | BB28: 0 | BC28: 0 | BD28: 0 | BE28: 0.01087324811 | BF28: 0.001812208019 | BG28: 0 | BH28: 0 | BI28: 0 | BJ28: 0 | BK28: 0.005436624057 | BL28: 0 | BM28: 0 | BN28: 0.005436624057 | BP28: 0 | BQ28: 0 | BR28: 0 | BS28: 0 | BT28: 0 | BU28: 0 | BV28: 0 | BW28: 0 | BX28: 0 | BY28: 0 | BZ28: 0 | CA28: 0 | CB28: 0 | CC28: 0 | CD28: 0
A29: si | B29: si | C29: si | D29: si | E29: si | F29: si | G29: si | H29: si | I29: si | J29: si | K29: si | L29: si | M29: si | N29: si | R29: no | U29: =IF(DG!F$31="Edificio existente",0,VLOOKUP(V29,CA!$E$9:$L$132,5,FALSE)) -> 1 | V29: RN 06 | W29: Elección responsable de materiales | X29: 0.01878946558 | Y29: ='Informe resultados'!N45 -> 0 | Z29: 2.769230769 | AA29: 0.02452316076 | AB29: 3 | AC29: 3 | AD29: 2 | AE29: 3 | AF29: 3 | AG29: 2 | AH29: 0.375 | AI29: 0.01008403361 | AL29: 1 | AO29: 3 | AS29: 1 | AZ29: 0 | BA29: 0 | BB29: 0.004697366395 | BC29: 0 | BD29: 0 | BE29: 0.009394732789 | BF29: 0 | BG29: 0 | BH29: 0 | BI29: 0 | BJ29: 0 | BK29: 0 | BL29: 0 | BM29: 0 | BN29: 0 | BP29: 0 | BQ29: 0 | BR29: 0 | BS29: 0 | BT29: 0 | BU29: 0 | BV29: 0 | BW29: 0 | BX29: 0 | BY29: 0 | BZ29: 0 | CA29: 0 | CB29: 0 | CC29: 0 | CD29: 0
A30: si | B30: si | C30: si | D30: si | E30: si | F30: si | G30: si | H30: si | I30: si | J30: si | K30: si | L30: si | M30: si | N30: si | R30: no | U30: =IF(DG!F$31="Edificio existente",0,VLOOKUP(V30,CA!$E$9:$L$132,5,FALSE)) -> 1 | V30: RN 07 | W30: Uso de materiales de producción local. | X30: 0.01973920632 | Y30: ='Informe resultados'!N46 -> 0 | Z30: 2.384615385 | AA30: 0.02111716621 | AB30: 3 | AC30: 1 | AD30: 3 | AE30: 3 | AF30: 3 | AG30: 1 | AH30: 0.65625 | AI30: 0.01764705882 | AJ30: 1 | AK30: 1 | AT30: 3 | AW30: 2 | AX30: 2 | AZ30: 0.002819886618 | BA30: 0.001879924412 | BB30: 0 | BC30: 0 | BD30: 0 | BE30: 0 | BF30: 0 | BG30: 0 | BH30: 0 | BI30: 0 | BJ30: 0.003759848824 | BK30: 0.005639773236 | BL30: 0 | BM30: 0.003759848824 | BN30: 0.005639773236 | BP30: 0 | BQ30: 0 | BR30: 0 | BS30: 0 | BT30: 0 | BU30: 0 | BV30: 0 | BW30: 0 | BX30: 0 | BY30: 0 | BZ30: 0 | CA30: 0 | CB30: 0 | CC30: 0 | CD30: 0
A31: si | B31: si | C31: si | D31: si | E31: si | F31: si | G31: si | H31: si | I31: si | J31: si | K31: si | L31: si | M31: si | N31: si | R31: no | U31: =IF(DG!F$31="Edificio existente",0,VLOOKUP(V31,CA!$E$9:$L$132,5,FALSE)) -> 1 | V31: RN 08 | W31: El edificio como banco de materiales | X31: 0.02163868782 | Y31: ='Informe resultados'!N47 -> 0 | Z31: 2.615384615 | AA31: 0.02316076294 | AB31: 3 | AC31: 2 | AD31: 3 | AE31: 2 | AF31: 3 | AG31: 2 | AH31: 0.71875 | AI31: 0.01932773109 | AO31: 3 | AP31: 3 | AR31: 3 | AW31: 1 | AX31: 3 | AZ31: 0 | BA31: 0 | BB31: 0 | BC31: 0 | BD31: 0 | BE31: 0.005644875083 | BF31: 0.002822437541 | BG31: 0 | BH31: 0 | BI31: 0 | BJ31: 0.001881625028 | BK31: 0.008467312624 | BL31: 0 | BM31: 0.001881625028 | BN31: 0.008467312624 | BP31: 0 | BQ31: 0 | BR31: 0 | BS31: 0 | BT31: 0 | BU31: 0 | BV31: 0 | BW31: 0 | BX31: 0 | BY31: 0 | BZ31: 0 | CA31: 0 | CB31: 0 | CC31: 0 | CD31: 0
A32: si | B32: si | C32: si | D32: si | E32: si | F32: si | G32: si | H32: si | I32: si | J32: si | K32: si | L32: si | M32: si | N32: si | R32: no | U32: =IF(DG!F$31="Edificio existente",0,VLOOKUP(V32,CA!$E$9:$L$132,5,FALSE)) -> 1 | V32: RN 09 | W32: Gestión de los residuos de la construcción. | X32: 0.01565788798 | Y32: ='Informe resultados'!N48 -> 0 | Z32: 2.307692308 | AA32: 0.0204359673 | AB32: 3 | AC32: 2 | AD32: 1 | AE32: 3 | AF32: 3 | AG32: 1 | AH32: 0.3125 | AI32: 0.008403361345 | AO32: 2 | AP32: 3 | AX32: 1 | AZ32: 0 | BA32: 0 | BB32: 0 | BC32: 0 | BD32: 0 | BE32: 0.006263155193 | BF32: 0.004697366395 | BG32: 0 | BH32: 0 | BI32: 0 | BJ32: 0 | BK32: 0.004697366395 | BL32: 0 | BM32: 0 | BN32: 0.004697366395 | BP32: 0 | BQ32: 0 | BR32: 0 | BS32: 0 | BT32: 0 | BU32: 0 | BV32: 0 | BW32: 0 | BX32: 0 | BY32: 0 | BZ32: 0 | CA32: 0 | CB32: 0 | CC32: 0 | CD32: 0
A33: si | B33: si | C33: si | D33: si | E33: si | F33: si | G33: si | H33: si | I33: si | J33: si | K33: si | L33: si | M33: si | N33: si | P33: no | R33: no | U33: =IF(DG!F31="Rehabilitación",VLOOKUP(V33,CA!$E$9:$L$132,5,FALSE),0) -> 0 | V33: RN 10 | W33: Nivel de intervención en rehabilitaciones | X33: 0 | Y33: ='Informe resultados'!N49 -> 0 | Z33: 0 | AA33: 0 | AB33: 3 | AC33: 2 | AD33: 2 | AE33: 2 | AF33: 3 | AG33: 2 | AH33: 0 | AI33: 0 | AO33: 3 | AP33: 3 | AR33: 2 | AX33: 3 | AZ33: 0 | BA33: 0 | BB33: 0 | BC33: 0 | BD33: 0 | BE33: 0 | BF33: 0 | BG33: 0 | BH33: 0 | BI33: 0 | BJ33: 0 | BK33: 0 | BL33: 0 | BM33: 0 | BN33: 0 | BP33: 0 | BQ33: 0 | BR33: 0 | BS33: 0 | BT33: 0 | BU33: 0 | BV33: 0 | BW33: 0 | BX33: 0 | BY33: 0 | BZ33: 0 | CA33: 0 | CB33: 0 | CC33: 0 | CD33: 0
A34: si | B34: si | C34: si | D34: si | E34: si | F34: si | G34: si | H34: si | I34: si | J34: si | K34: si | L34: si | M34: si | N34: si | R34: no | U34: =IF(DG!F$31="Edificio existente",0,VLOOKUP(V34,CA!$E$9:$L$132,5,FALSE)) -> 1 | V34: RN 11 | W34: Impacto de los materiales de la construcción. | X34: 0.05485394527 | Y34: ='Informe resultados'!N50 -> 0 | Z34: 6.461538462 | AA34: 0.05722070845 | AB34: 8 | AC34: 3 | AD34: 8 | AE34: 3 | AF34: 8 | AG34: 8 | AH34: 1.90625 | AI34: 0.0512605042 | AJ34: 3 | AK34: 3 | AL34: 1 | AM34: 3 | AN34: 3 | AO34: 3 | AP34: 3 | AR34: 1 | AU34: 3 | AW34: 3 | AX34: 3 | AZ34: 0.00809320504 | BA34: 0.005395470027 | BB34: 0.002697735013 | BC34: 0.00809320504 | BD34: 0.005395470027 | BE34: 0.005395470027 | BF34: 0.002697735013 | BG34: 0 | BH34: 0.002697735013 | BI34: 0 | BJ34: 0.005395470027 | BK34: 0.00809320504 | BL34: 0 | BM34: 0.005395470027 | BN34: 0.00809320504 | BP34: 0 | BQ34: 0 | BR34: 0 | BS34: 0 | BT34: 0 | BU34: 0 | BV34: 0 | BW34: 0 | BX34: 0 | BY34: 0 | BZ34: 0 | CA34: 0 | CB34: 0 | CC34: 0 | CD34: 0
A35: si | B35: si | C35: si | D35: si | E35: si | F35: si | G35: si | H35: si | I35: si | J35: si | K35: si | L35: si | M35: si | N35: si | R35: no | U35: =IF(DG!F$31="Edificio existente",0,VLOOKUP(V35,CA!$E$9:$L$132,5,FALSE)) -> 1 | V35: RN 12 | W35: Ecoetiquetado de producto. | X35: 0.02004723035 | Y35: ='Informe resultados'!N51 -> 0 | Z35: 2.692307692 | AA35: 0.02384196185 | AB35: 3 | AC35: 3 | AD35: 2 | AE35: 3 | AF35: 3 | AG35: 1 | AH35: 0.53125 | AI35: 0.01428571429 | AJ35: 1 | AK35: 1 | AM35: 1 | AN35: 1 | AO35: 1 | AP35: 1 | AW35: 2 | AZ35: 0.003537746532 | BA35: 0.002358497688 | BB35: 0 | BC35: 0.003537746532 | BD35: 0.002358497688 | BE35: 0.002358497688 | BF35: 0.001179248844 | BG35: 0 | BH35: 0 | BI35: 0 | BJ35: 0.004716995377 | BK35: 0 | BL35: 0 | BM35: 0.004716995377 | BN35: 0 | BP35: 0 | BQ35: 0 | BR35: 0 | BS35: 0 | BT35: 0 | BU35: 0 | BV35: 0 | BW35: 0 | BX35: 0 | BY35: 0 | BZ35: 0 | CA35: 0 | CB35: 0 | CC35: 0 | CD35: 0
U36: AI | V36: Ambiente Interior. | X36: =SUM(X37:X41) -> 0.09487139997 | AA36: =SUM(AA37:AA41) -> 0.08651226158 | AI36: =SUM(AI37:AI41) -> 0.1075630252
A37: si | B37: si | C37: si | D37: si | E37: si | F37: si | G37: si | H37: si | I37: si | J37: si | K37: si | L37: si | M37: si | N37: si | R37: no | U37: =IF(DG!F$31="Edificio existente",0,VLOOKUP(V37,CA!$E$9:$L$132,5,FALSE)) -> 1 | V37: AI 01 | W37: Limitación de las emisiones de COVs | X37: =($Z37+2*$AH37)/($Z$60+2*$AH$60) -> 0.0190204836 | Y37: ='Informe resultados'!N52 -> 0 | Z37: =IF($U37=1,SUMPRODUCT(AB37:AG37,AB$5:AG$5),"0") -> 2 | AA37: =IF($Z$60=0,0,$Z37/$Z$60) -> 0.01771117166 | AB37: 1 | AC37: 1 | AD37: 3 | AE37: 3 | AF37: 3 | AG37: 2 | AH37: =IF($U37=1,SUMPRODUCT(AJ37:AX37,AJ$5:AX$5),"0") -> 0.78125 | AI37: =IF($AH$60=0,0,$AH37/$AH$60) -> 0.02100840336 | AS37: 5 | AW37: 5 | AZ37: =(AJ37*AJ$5)*$X37/SUMPRODUCT($AJ37:$AX37,$AJ$5:$AX$5) -> 0 | BA37: 0 | BB37: 0 | BC37: 0 | BD37: 0 | BE37: 0 | BF37: 0 | BG37: 0 | BH37: =(AU37*AU$5)*$X37/SUMPRODUCT($AJ37:$AX37,$AJ$5:$AX$5) -> 0 | BI37: 0 | BJ37: 0.007608193439 | BK37: 0 | BL37: =(AV37*AV$5)*$X37/SUMPRODUCT($AJ37:$AX37,$AJ$5:$AX$5) -> 0 | BM37: 0.007608193439 | BN37: 0 | BP37: =(AJ37*AJ$5)*$Y37/SUMPRODUCT($AJ37:$AX37,$AJ$5:$AX$5) -> 0 | BQ37: 0 | BR37: 0 | BS37: 0 | BT37: 0 | BU37: 0 | BV37: 0 | BW37: 0 | BX37: =(AO37*AO$5)*$Y37/SUMPRODUCT($AJ37:$AX37,$AJ$5:$AX$5) -> 0 | BY37: 0 | BZ37: 0 | CA37: =(AU37*AU$5)*$Y37/SUMPRODUCT($AJ37:$AX37,$AJ$5:$AX$5) -> 0 | CB37: 0 | CC37: 0 | CD37: 0
A38: si | B38: si | C38: si | D38: si | E38: si | F38: si | G38: si | H38: si | I38: si | J38: si | K38: si | L38: si | M38: si | N38: si | T38: NO | U38: =VLOOKUP(V38,CA!$E$9:$L$132,5,FALSE) -> 1 | V38: AI 02 | W38: Control de la calidad del aire | X38: =($Z38+2*$AH38)/($Z$60+2*$AH$60) -> 0.0186097849 | Y38: ='Informe resultados'!N53 -> 0 | Z38: =IF($U38=1,SUMPRODUCT(AB38:AG38,AB$5:AG$5),"0") -> 1.923076923 | AA38: =IF($Z$60=0,0,$Z38/$Z$60) -> 0.01702997275 | AB38: 1 | AC38: 1 | AD38: 3 | AE38: 3 | AF38: 3 | AG38: 1 | AH38: =IF($U38=1,SUMPRODUCT(AJ38:AX38,AJ$5:AX$5),"0") -> 0.78125 | AI38: =IF($AH$60=0,0,$AH38/$AH$60) -> 0.02100840336 | AS38: 5 | AW38: 5 | AZ38: 0 | BA38: 0 | BB38: 0 | BC38: 0 | BD38: 0 | BE38: 0 | BF38: 0 | BG38: 0 | BH38: 0 | BI38: 0 | BJ38: 0.007443913959 | BK38: 0 | BL38: 0 | BM38: 0.007443913959 | BN38: 0 | BP38: 0 | BQ38: 0 | BR38: 0 | BS38: 0 | BT38: 0 | BU38: 0 | BV38: 0 | BW38: 0 | BX38: 0 | BY38: 0 | BZ38: 0 | CA38: 0 | CB38: 0 | CC38: 0 | CD38: 0
A39: si | B39: no | C39: no | D39: si | E39: si | F39: si | G39: si | H39: si | I39: si | J39: si | K39: si | L39: si | M39: si | N39: si | U39: =IF(OR(DG!F29="Unifamiliar",DG!F29="Urbanización"),0,VLOOKUP(V39,CA!$E$9:$L$132,5,FALSE)) -> 1 | V39: AI 03 | W39: Iluminación natural. | X39: =($Z39+2*$AH39)/($Z$60+2*$AH$60) -> 0.0186097849 | Y39: ='Informe resultados'!N54 -> 0 | Z39: =IF($U39=1,SUMPRODUCT(AB39:AG39,AB$5:AG$5),"0") -> 1.923076923 | AA39: =IF($Z$60=0,0,$Z39/$Z$60) -> 0.01702997275 | AB39: 1 | AC39: 1 | AD39: 3 | AE39: 2 | AF39: 3 | AG39: 2 | AH39: =IF($U39=1,SUMPRODUCT(AJ39:AX39,AJ$5:AX$5),"0") -> 0.78125 | AI39: =IF($AH$60=0,0,$AH39/$AH$60) -> 0.02100840336 | AS39: 5 | AW39: 5 | AZ39: 0 | BA39: 0 | BB39: 0 | BC39: 0 | BD39: 0 | BE39: 0 | BF39: 0 | BG39: 0 | BH39: 0 | BI39: 0 | BJ39: 0.007443913959 | BK39: 0 | BL39: 0 | BM39: 0.007443913959 | BN39: 0 | BP39: 0 | BQ39: 0 | BR39: 0 | BS39: 0 | BT39: 0 | BU39: 0 | BV39: 0 | BW39: 0 | BX39: 0 | BY39: 0 | BZ39: 0 | CA39: 0 | CB39: 0 | CC39: 0 | CD39: 0
A40: no | B40: no | C40: no | D40: no | E40: si | F40: si | G40: si | H40: si | I40: si | J40: si | K40: si | L40: si | M40: si | N40: si | U40: =IF(OR(DG!F$29="Residencial colectivo",DG!F$29="unifamiliar",DG!F$29="urbanización",DG!F$29="Vivienda en un edificio"),0,VLOOKUP(V40,CA!$E$9:$L$132,5,FALSE)) -> 1 | V40: AI 04 | W40: Iluminación artificial | X40: =($Z40+2*$AH40)/($Z$60+2*$AH$60) -> 0.02002156168 | Y40: ='Informe resultados'!N55 -> 0 | Z40: =IF($U40=1,SUMPRODUCT(AB40:AG40,AB$5:AG$5),"0") -> 2 | AA40: =IF($Z$60=0,0,$Z40/$Z$60) -> 0.01771117166 | AB40: 1 | AC40: 1 | AD40: 3 | AE40: 3 | AF40: 3 | AG40: 2 | AH40: =IF($U40=1,SUMPRODUCT(AJ40:AX40,AJ$5:AX$5),"0") -> 0.875 | AI40: =IF($AH$60=0,0,$AH40/$AH$60) -> 0.02352941176 | AJ40: 1 | AS40: 5 | AW40: 5 | AZ40: 0.002145167323 | BA40: 0 | BB40: 0 | BC40: 0 | BD40: 0 | BE40: 0 | BF40: 0 | BG40: 0 | BH40: 0 | BI40: 0 | BJ40: 0.007150557744 | BK40: 0 | BL40: 0 | BM40: 0.007150557744 | BN40: 0 | BP40: 0 | BQ40: 0 | BR40: 0 | BS40: 0 | BT40: 0 | BU40: 0 | BV40: 0 | BW40: 0 | BX40: 0 | BY40: 0 | BZ40: 0 | CA40: 0 | CB40: 0 | CC40: 0 | CD40: 0
A41: si | B41: si | C41: si | D41: si | E41: si | F41: si | G41: si | H41: si | I41: si | J41: si | K41: si | L41: si | M41: si | N41: si | T41: NO | U41: =VLOOKUP(V41,CA!$E$9:$L$132,5,FALSE) -> 1 | V41: AI 05 | W41: Protección frente al ruido. | X41: =($Z41+2*$AH41)/($Z$60+2*$AH$60) -> 0.0186097849 | Y41: ='Informe resultados'!N56 -> 0 | Z41: =IF($U41=1,SUMPRODUCT(AB41:AG41,AB$5:AG$5),"0") -> 1.923076923 | AA41: =IF($Z$60=0,0,$Z41/$Z$60) -> 0.01702997275 | AB41: 1 | AC41: 1 | AD41: 3 | AE41: 3 | AF41: 3 | AG41: 1 | AH41: =IF($U41=1,SUMPRODUCT(AJ41:AX41,AJ$5:AX$5),"0") -> 0.78125 | AI41: =IF($AH$60=0,0,$AH41/$AH$60) -> 0.02100840336 | AS41: 5 | AW41: 5 | AZ41: 0 | BA41: 0 | BB41: 0 | BC41: 0 | BD41: 0 | BE41: 0 | BF41: 0 | BG41: 0 | BH41: 0 | BI41: 0 | BJ41: 0.007443913959 | BK41: 0 | BL41: 0 | BM41: 0.007443913959 | BN41: 0 | BP41: 0 | BQ41: 0 | BR41: 0 | BS41: 0 | BT41: 0 | BU41: 0 | BV41: 0 | BW41: 0 | BX41: 0 | BY41: 0 | BZ41: 0 | CA41: 0 | CB41: 0 | CC41: 0 | CD41: 0
U42: AS | V42: Aspectos sociales | X42: =SUM(X43:X51) -> 0.1671543714 | AA42: =SUM(AA43:AA51) -> 0.1709809264 | AI42: =SUM(AI43:AI51) -> 0.1613445378
A43: si | B43: si | C43: si | D43: si | E43: si | F43: si | G43: si | H43: si | I43: si | J43: si | K43: si | L43: si | M43: si | N43: si | T43: NO | U43: =VLOOKUP(V43,CA!$E$9:$L$132,5,FALSE) -> 1 | V43: AS 01 | W43: Espacios para todas las personas | X43: =($Z43+2*$AH43)/($Z$60+2*$AH$60) -> 0.0182760922 | Y43: ='Informe resultados'!N57 -> 0 | Z43: =IF($U43=1,SUMPRODUCT(AB43:AG43,AB$5:AG$5),"0") -> 1.923076923 | AA43: =IF($Z$60=0,0,$Z43/$Z$60) -> 0.01702997275 | AB43: 1 | AC43: 1 | AD43: 3 | AE43: 2 | AF43: 3 | AG43: 2 | AH43: =IF($U43=1,SUMPRODUCT(AJ43:AX43,AJ$5:AX$5),"0") -> 0.75 | AI43: =IF($AH$60=0,0,$AH43/$AH$60) -> 0.02016806723 | AQ43: 3 | AR43: 3 | AS43: 3 | AT43: 1 | AW43: 2 | AZ43: =(AJ43*AJ$5)*$X43/SUMPRODUCT($AJ43:$AX43,$AJ$5:$AX$5) -> 0 | BA43: 0 | BB43: 0 | BC43: 0 | BD43: 0 | BE43: 0 | BF43: 0 | BG43: 0.00456902305 | BH43: =(AU43*AU$5)*$X43/SUMPRODUCT($AJ43:$AX43,$AJ$5:$AX$5) -> 0 | BI43: 0 | BJ43: 0.003046015367 | BK43: 0 | BL43: =(AV43*AV$5)*$X43/SUMPRODUCT($AJ43:$AX43,$AJ$5:$AX$5) -> 0 | BM43: 0.003046015367 | BN43: 0 | BP43: =(AJ43*AJ$5)*$Y43/SUMPRODUCT($AJ43:$AX43,$AJ$5:$AX$5) -> 0 | BQ43: 0 | BR43: 0 | BS43: 0 | BT43: 0 | BU43: 0 | BV43: 0 | BW43: 0 | BX43: =(AO43*AO$5)*$Y43/SUMPRODUCT($AJ43:$AX43,$AJ$5:$AX$5) -> 0 | BY43: 0 | BZ43: 0 | CA43: =(AU43*AU$5)*$Y43/SUMPRODUCT($AJ43:$AX43,$AJ$5:$AX$5) -> 0 | CB43: 0 | CC43: 0 | CD43: 0
A44: si | B44: no | C44: no | D44: no | E44: si | F44: si | G44: si | H44: si | I44: si | J44: no | K44: no | L44: si | M44: si | N44: si | U44: =IF(OR(DG!F$29="unifamiliar",DG!F$29="urbanización",DG!F$29="Vivienda en un edificio",DG!F$29="Servicios de restauración",DG!F$29="Edificios deportivos"),0,VLOOKUP(V44,CA!$E$9:$L$132,5,FALSE)) -> 1 | V44: AS 02 | W44: Espacios para la comunicación | X44: 0.01760870681 | Y44: ='Informe resultados'!N58 -> 0 | Z44: 1.923076923 | AA44: 0.01702997275 | AB44: 1 | AC44: 1 | AD44: 3 | AE44: 2 | AF44: 3 | AG44: 2 | AH44: 0.6875 | AI44: 0.01848739496 | AQ44: 3 | AR44: 3 | AS44: 3 | AW44: 2 | AZ44: 0 | BA44: 0 | BB44: 0 | BC44: 0 | BD44: 0 | BE44: 0 | BF44: 0 | BG44: 0.004802374585 | BH44: 0 | BI44: 0 | BJ44: 0.003201583057 | BK44: 0 | BL44: 0 | BM44: 0.003201583057 | BN44: 0 | BP44: 0 | BQ44: 0 | BR44: 0 | BS44: 0 | BT44: 0 | BU44: 0 | BV44: 0 | BW44: 0 | BX44: 0 | BY44: 0 | BZ44: 0 | CA44: 0 | CB44: 0 | CC44: 0 | CD44: 0
A45: si | B45: si | C45: si | D45: si | E45: no | F45: no | G45: no | H45: no | I45: si | J45: no | K45: no | L45: si | M45: no | N45: si | U45: =IF(OR(DG!F$29="Edificios administrativos",DG!F$29="equipamiento público",DG!F$29="Edificios docentes",DG!F$29="Edificios comerciales",DG!F$29="Servicios de restauración",DG!F$29="Edificios deportivos",DG!F$29="Industria ligera o logística"),0,VLOOKUP(V45,CA!$E$9:$L$132,5,FALSE)) -> 1 | V45: AS 03 | W45: Derecho al sol | X45: 0.01660762873 | Y45: ='Informe resultados'!N59 -> 0 | Z45: 1.923076923 | AA45: 0.01702997275 | AB45: 1 | AC45: 1 | AD45: 3 | AE45: 3 | AF45: 3 | AG45: 1 | AH45: 0.59375 | AI45: 0.01596638655 | AR45: 2 | AS45: 3 | AT45: 1 | AW45: 3 | AZ45: 0 | BA45: 0 | BB45: 0 | BC45: 0 | BD45: 0 | BE45: 0 | BF45: 0 | BG45: 0 | BH45: 0 | BI45: 0 | BJ45: 0.005244514335 | BK45: 0 | BL45: 0 | BM45: 0.005244514335 | BN45: 0 | BP45: 0 | BQ45: 0 | BR45: 0 | BS45: 0 | BT45: 0 | BU45: 0 | BV45: 0 | BW45: 0 | BX45: 0 | BY45: 0 | BZ45: 0 | CA45: 0 | CB45: 0 | CC45: 0 | CD45: 0
A46: si | B46: si | C46: si | D46: si | E46: no | F46: no | G46: no | H46: no | I46: si | J46: no | K46: no | L46: si | M46: no | N46: si | U46: =IF(OR(DG!F$29="Edificios administrativos",DG!F$29="equipamiento público",DG!F$29="Edificios docentes",DG!F$29="Edificios comerciales",DG!F$29="Servicios de restauración",DG!F$29="Edificios deportivos",DG!F$29="Industria ligera o logística"),0,VLOOKUP(V46,CA!$E$9:$L$132,5,FALSE)) -> 1 | V46: AS 04 | W46: Derecho a la intimidad | X46: 0.01601724935 | Y46: ='Informe resultados'!N60 -> 0 | Z46: 2 | AA46: 0.01771117166 | AB46: 1 | AC46: 1 | AD46: 3 | AE46: 3 | AF46: 3 | AG46: 2 | AH46: 0.5 | AI46: 0.01344537815 | AR46: 2 | AS46: 3 | AU46: 1 | AW46: 2 | AZ46: 0 | BA46: 0 | BB46: 0 | BC46: 0 | BD46: 0 | BE46: 0 | BF46: 0 | BG46: 0 | BH46: 0.001001078084 | BI46: 0 | BJ46: 0.004004312336 | BK46: 0 | BL46: 0 | BM46: 0.004004312336 | BN46: 0 | BP46: 0 | BQ46: 0 | BR46: 0 | BS46: 0 | BT46: 0 | BU46: 0 | BV46: 0 | BW46: 0 | BX46: 0 | BY46: 0 | BZ46: 0 | CA46: 0 | CB46: 0 | CC46: 0 | CD46: 0
A47: si | B47: si | C47: si | D47: si | E47: si | F47: no | G47: si | H47: no | I47: si | J47: no | K47: si | L47: si | M47: no | N47: si | U47: =IF(OR(DG!F$29="equipamiento público",DG!F$29="Edificios comerciales",DG!F$29="Servicios de restauración",DG!F$29="Industria ligera o logística"),0,VLOOKUP(V47,CA!$E$9:$L$132,5,FALSE)) -> 1 | V47: AS 05 | W47: Contacto visual con el exterior | X47: 0.01701832743 | Y47: ='Informe resultados'!N61 -> 0 | Z47: 2 | AA47: 0.01771117166 | AB47: 1 | AC47: 1 | AD47: 3 | AE47: 3 | AF47: 3 | AG47: 2 | AH47: 0.59375 | AI47: 0.01596638655 | AR47: 2 | AS47: 3 | AV47: 1 | AW47: 3 | AZ47: 0 | BA47: 0 | BB47: 0 | BC47: 0 | BD47: 0 | BE47: 0 | BF47: 0 | BG47: 0 | BH47: 0 | BI47: 0.001791402887 | BJ47: 0.005374208662 | BK47: 0 | BL47: 0.001791402887 | BM47: 0.005374208662 | BN47: 0 | BP47: 0 | BQ47: 0 | BR47: 0 | BS47: 0 | BT47: 0 | BU47: 0 | BV47: 0 | BW47: 0 | BX47: 0 | BY47: 0 | BZ47: 0 | CA47: 0 | CB47: 0 | CC47: 0 | CD47: 0
A48: si | B48: si | C48: si | D48: si | E48: si | F48: no | G48: no | H48: no | I48: si | J48: no | K48: no | L48: si | M48: no | N48: no | U48: =IF(OR(DG!F$29="equipamiento público",DG!F$29="Edificios docentes",DG!F$29="Edificios comerciales",DG!F$29="Servicios de restauración",DG!F$29="Edificios deportivos",DG!F$29="Industria ligera o logística",DG!F$29="local o parte de un edificio"),0,VLOOKUP(V48,CA!$E$9:$L$132,5,FALSE)) -> 1 | V48: AS 06 | W48: Espacios abiertos privados | X48: 0.01735202012 | Y48: ='Informe resultados'!N62 -> 0 | Z48: 2 | AA48: 0.01771117166 | AB48: 1 | AC48: 1 | AD48: 3 | AE48: 3 | AF48: 3 | AG48: 2 | AH48: 0.625 | AI48: 0.01680672269 | AR48: 3 | AS48: 3 | AV48: 1 | AW48: 3 | AZ48: 0 | BA48: 0 | BB48: 0 | BC48: 0 | BD48: 0 | BE48: 0 | BF48: 0 | BG48: 0 | BH48: 0 | BI48: 0.001735202012 | BJ48: 0.005205606037 | BK48: 0 | BL48: 0.001735202012 | BM48: 0.005205606037 | BN48: 0 | BP48: 0 | BQ48: 0 | BR48: 0 | BS48: 0 | BT48: 0 | BU48: 0 | BV48: 0 | BW48: 0 | BX48: 0 | BY48: 0 | BZ48: 0 | CA48: 0 | CB48: 0 | CC48: 0 | CD48: 0
A49: si | B49: si | C49: si | D49: si | E49: si | F49: si | G49: si | H49: si | I49: si | J49: si | K49: si | L49: si | M49: si | N49: si | T49: NO | U49: =VLOOKUP(V49,CA!$E$9:$L$132,5,FALSE) -> 1 | V49: AS 07 | W49: Diseño inclusivo | X49: 0.01976487499 | Y49: ='Informe resultados'!N63 -> 0 | Z49: 2.076923077 | AA49: 0.01839237057 | AB49: 1 | AC49: 1 | AD49: 3 | AE49: 3 | AF49: 3 | AG49: 3 | AH49: 0.8125 | AI49: 0.0218487395 | AQ49: 3 | AR49: 3 | AS49: 3 | AV49: 1 | AW49: 3 | AZ49: 0 | BA49: 0 | BB49: 0 | BC49: 0 | BD49: 0 | BE49: 0 | BF49: 0 | BG49: 0.004561124999 | BH49: 0 | BI49: 0.001520375 | BJ49: 0.004561124999 | BK49: 0 | BL49: 0.001520375 | BM49: 0.004561124999 | BN49: 0 | BP49: 0 | BQ49: 0 | BR49: 0 | BS49: 0 | BT49: 0 | BU49: 0 | BV49: 0 | BW49: 0 | BX49: 0 | BY49: 0 | BZ49: 0 | CA49: 0 | CB49: 0 | CC49: 0 | CD49: 0
A50: si | B50: si | C50: si | D50: si | E50: si | F50: si | G50: si | H50: si | I50: si | J50: si | K50: si | L50: si | M50: si | N50: si | T50: NO | U50: =VLOOKUP(V50,CA!$E$9:$L$132,5,FALSE) -> 1 | V50: AS 08 | W50: Conexión con la naturaleza | X50: 0.02605369886 | Y50: ='Informe resultados'!N64 -> 0 | Z50: 2.692307692 | AA50: 0.02384196185 | AB50: 2 | AC50: 3 | AD50: 3 | AE50: 2 | AF50: 3 | AG50: 3 | AH50: 1.09375 | AI50: 0.02941176471 | AJ50: 1 | AL50: 3 | AN50: 2 | AR50: 2 | AS50: 3 | AV50: 1 | AW50: 3 | AZ50: 0.002233174188 | BA50: 0 | BB50: 0.006699522563 | BC50: 0 | BD50: 0.002977565583 | BE50: 0 | BF50: 0 | BG50: 0 | BH50: 0 | BI50: 0.001488782792 | BJ50: 0.004466348375 | BK50: 0 | BL50: 0.001488782792 | BM50: 0.004466348375 | BN50: 0 | BP50: 0 | BQ50: 0 | BR50: 0 | BS50: 0 | BT50: 0 | BU50: 0 | BV50: 0 | BW50: 0 | BX50: 0 | BY50: 0 | BZ50: 0 | CA50: 0 | CB50: 0 | CC50: 0 | CD50: 0
A51: si | B51: si | C51: si | D51: si | E51: si | F51: si | G51: si | H51: si | I51: si | J51: si | K51: si | L51: si | M51: si | N51: si | T51: NO | U51: =VLOOKUP(V51,CA!$E$9:$L$132,5,FALSE) -> 1 | V51: AS 09 | W51: El edificio como herramienta de comunicación | X51: 0.01845577288 | Y51: ='Informe resultados'!N65 -> 0 | Z51: 2.769230769 | AA51: 0.02452316076 | AB51: 3 | AC51: 3 | AD51: 2 | AE51: 2 | AF51: 3 | AG51: 3 | AH51: 0.34375 | AI51: 0.009243697479 | AJ51: 1 | AT51: 3 | AV51: 1 | AZ51: 0.005033392605 | BA51: 0 | BB51: 0 | BC51: 0 | BD51: 0 | BE51: 0 | BF51: 0 | BG51: 0 | BH51: 0 | BI51: 0.00335559507 | BJ51: 0 | BK51: 0 | BL51: 0.00335559507 | BM51: 0 | BN51: 0 | BP51: 0 | BQ51: 0 | BR51: 0 | BS51: 0 | BT51: 0 | BU51: 0 | BV51: 0 | BW51: 0 | BX51: 0 | BY51: 0 | BZ51: 0 | CA51: 0 | CB51: 0 | CC51: 0 | CD51: 0
U52: CE | V52: Calidad de la edificación | X52: =SUM(X53:X59) -> 0.1802967298 | AA52: =SUM(AA53:AA59) -> 0.1573569482 | AI52: =SUM(AI53:AI59) -> 0.2151260504
A53: si | B53: si | C53: si | D53: si | E53: si | F53: si | G53: si | H53: si | I53: si | J53: si | K53: si | L53: si | M53: si | N53: si | T53: NO | U53: =VLOOKUP(V53,CA!$E$9:$L$132,5,FALSE) -> 1 | V53: CE 01 | W53: Diseño pasivo | X53: =($Z53+2*$AH53)/($Z$60+2*$AH$60) -> 0.02836387905 | Y53: ='Informe resultados'!N66 -> 0 | Z53: =IF($U53=1,SUMPRODUCT(AB53:AG53,AB$5:AG$5),"0") -> 3 | AA53: =IF($Z$60=0,0,$Z53/$Z$60) -> 0.02656675749 | AB53: 3 | AC53: 3 | AD53: 3 | AE53: 3 | AF53: 3 | AG53: 3 | AH53: =IF($U53=1,SUMPRODUCT(AJ53:AX53,AJ$5:AX$5),"0") -> 1.15625 | AI53: =IF($AH$60=0,0,$AH53/$AH$60) -> 0.03109243697 | AJ53: 3 | AK53: 3 | AM53: 3 | AW53: 2 | AX53: 3 | AZ53: =(AJ53*AJ$5)*$X53/SUMPRODUCT($AJ53:$AX53,$AJ$5:$AX$5) -> 0.006899321931 | BA53: 0.004599547954 | BB53: 0 | BC53: 0.006899321931 | BD53: 0 | BE53: 0 | BF53: 0 | BG53: 0 | BH53: =(AU53*AU$5)*$X53/SUMPRODUCT($AJ53:$AX53,$AJ$5:$AX$5) -> 0 | BI53: 0 | BJ53: 0.003066365303 | BK53: 0.006899321931 | BL53: =(AV53*AV$5)*$X53/SUMPRODUCT($AJ53:$AX53,$AJ$5:$AX$5) -> 0 | BM53: 0.003066365303 | BN53: 0.006899321931 | BP53: =(AJ53*AJ$5)*$Y53/SUMPRODUCT($AJ53:$AX53,$AJ$5:$AX$5) -> 0 | BQ53: 0 | BR53: 0 | BS53: 0 | BT53: 0 | BU53: 0 | BV53: 0 | BW53: 0 | BX53: =(AO53*AO$5)*$Y53/SUMPRODUCT($AJ53:$AX53,$AJ$5:$AX$5) -> 0 | BY53: 0 | BZ53: 0 | CA53: =(AU53*AU$5)*$Y53/SUMPRODUCT($AJ53:$AX53,$AJ$5:$AX$5) -> 0 | CB53: 0 | CC53: 0 | CD53: 0
A54: no | B54: no | C54: no | D54: no | E54: si | F54: si | G54: si | H54: si | I54: si | J54: si | K54: si | L54: si | M54: si | N54: si | U54: =IF(OR(DG!F$29="Residencial colectivo",DG!F$29="unifamiliar",DG!F$29="urbanización",DG!F$29="Vivienda en un edificio"),0,VLOOKUP(V54,CA!$E$9:$L$132,5,FALSE)) -> 1 | V54: CE 02 | W54: Control parcial de los sistemas de clima (HVAC) | X54: =($Z54+2*$AH54)/($Z$60+2*$AH$60) -> 0.02669541558 | Y54: ='Informe resultados'!N67 -> 0 | Z54: 3 | AA54: 0.02656675749 | AB54: 3 | AC54: 3 | AD54: 3 | AE54: 3 | AF54: 3 | AG54: 3 | AH54: 1 | AI54: 0.0268907563 | AJ54: 2 | AK54: 2 | AM54: 2 | AU54: 3 | AW54: 2 | AX54: 3 | AZ54: 0.00500539042 | BA54: 0.003336926947 | BB54: 0 | BC54: 0.00500539042 | BD54: 0 | BE54: 0 | BF54: 0 | BG54: 0 | BH54: 0.00250269521 | BI54: 0 | BJ54: 0.003336926947 | BK54: 0.007508085631 | BL54: 0 | BM54: 0.003336926947 | BN54: 0.007508085631 | BP54: 0 | BQ54: 0 | BR54: 0 | BS54: 0 | BT54: 0 | BU54: 0 | BV54: 0 | BW54: 0 | BX54: 0 | BY54: 0 | BZ54: 0 | CA54: 0 | CB54: 0 | CC54: 0 | CD54: 0
A55: no | B55: no | C55: no | D55: no | E55: si | F55: si | G55: si | H55: si | I55: si | J55: si | K55: si | L55: si | M55: si | N55: si | U55: =IF(OR(DG!F$29="Residencial colectivo",DG!F$29="unifamiliar",DG!F$29="urbanización",DG!F$29="Vivienda en un edificio"),0,VLOOKUP(V55,CA!$E$9:$L$132,5,FALSE)) -> 1 | V55: CE 03 | W55: Control local de la iluminación | X55: =($Z55+2*$AH55)/($Z$60+2*$AH$60) -> 0.0222290672 | Y55: ='Informe resultados'!N68 -> 0 | Z55: 2.538461538 | AA55: 0.02247956403 | AB55: 3 | AC55: 3 | AD55: 2 | AE55: 1 | AF55: 3 | AG55: 1 | AH55: 0.8125 | AI55: 0.0218487395 | AJ55: 1 | AK55: 1 | AM55: 1 | AU55: 3 | AW55: 3 | AX55: 3 | AZ55: 0.002564892369 | BA55: 0.001709928246 | BB55: 0 | BC55: 0.002564892369 | BD55: 0 | BE55: 0 | BF55: 0 | BG55: 0 | BH55: 0.002564892369 | BI55: 0 | BJ55: 0.005129784739 | BK55: 0.007694677108 | BL55: 0 | BM55: 0.005129784739 | BN55: 0.007694677108 | BP55: 0 | BQ55: 0 | BR55: 0 | BS55: 0 | BT55: 0 | BU55: 0 | BV55: 0 | BW55: 0 | BX55: 0 | BY55: 0 | BZ55: 0 | CA55: 0 | CB55: 0 | CC55: 0 | CD55: 0
A56: si | B56: si | C56: si | D56: si | E56: si | F56: si | G56: si | H56: si | I56: si | J56: si | K56: si | L56: si | M56: si | N56: si | T56: NO | U56: =VLOOKUP(V56,CA!$E$9:$L$132,5,FALSE) -> 1 | V56: CE 04 | W56: Calidad en la construcción | X56: =($Z56+(2*$AH56))/($Z$60+(2*$AH$60)) -> 0.03478104625 | Y56: ='Informe resultados'!N69 -> 0 | Z56: 3.076923077 | AA56: 0.0272479564 | AB56: 2 | AC56: 2 | AD56: 3 | AE56: 2 | AF56: 5 | AG56: 5 | AH56: 1.71875 | AI56: 0.04621848739 | AJ56: 3 | AK56: 3 | AM56: 3 | AS56: 3 | AU56: 3 | AV56: 2 | AW56: 3 | AX56: 3 | AZ56: 0.005691443933 | BA56: 0.003794295955 | BB56: 0 | BC56: 0.005691443933 | BD56: 0 | BE56: 0 | BF56: 0 | BG56: 0 | BH56: 0.001897147978 | BI56: 0.002529530637 | BJ56: 0.003794295955 | BK56: 0.005691443933 | BL56: 0.002529530637 | BM56: 0.003794295955 | BN56: 0.005691443933 | BP56: 0 | BQ56: 0 | BR56: 0 | BS56: 0 | BT56: 0 | BU56: 0 | BV56: 0 | BW56: 0 | BX56: 0 | BY56: 0 | BZ56: 0 | CA56: 0 | CB56: 0 | CC56: 0 | CD56: 0
A57: si | B57: si | C57: si | D57: si | E57: si | F57: si | G57: si | H57: si | I57: si | J57: si | K57: si | L57: si | M57: si | N57: si | T57: NO | U57: =VLOOKUP(V57,CA!$E$9:$L$132,5,FALSE) -> 1 | V57: CE 05 | W57: Puesta en marcha sistemática | X57: =($Z57+(2*$AH57))/($Z$60+(2*$AH$60)) -> 0.03611581703 | Y57: ='Informe resultados'!N70 -> 0 | Z57: 3.076923077 | AA57: 0.0272479564 | AB57: 2 | AC57: 2 | AD57: 3 | AE57: 2 | AF57: 5 | AG57: 5 | AH57: 1.84375 | AI57: 0.04957983193 | AJ57: 3 | AK57: 3 | AM57: 3 | AN57: 2 | AS57: 3 | AU57: 3 | AV57: 2 | AW57: 3 | AX57: 3 | AZ57: 0.005509192429 | BA57: 0.003672794953 | BB57: 0 | BC57: 0.005509192429 | BD57: 0.002448529968 | BE57: 0 | BF57: 0 | BG57: 0 | BH57: 0.001836397476 | BI57: 0.002448529968 | BJ57: 0.003672794953 | BK57: 0.005509192429 | BL57: 0.002448529968 | BM57: 0.003672794953 | BN57: 0.005509192429 | BP57: 0 | BQ57: 0 | BR57: 0 | BS57: 0 | BT57: 0 | BU57: 0 | BV57: 0 | BW57: 0 | BX57: 0 | BY57: 0 | BZ57: 0 | CA57: 0 | CB57: 0 | CC57: 0 | CD57: 0
A58: si | B58: si | C58: si | D58: si | E58: si | F58: si | G58: si | H58: si | I58: si | J58: si | K58: si | L58: si | M58: si | N58: si | T58: NO | U58: =VLOOKUP(V58,CA!$E$9:$L$132,5,FALSE) -> 1 | V58: CE 06 | W58: Custodia de la documentación del proyecto | X58: =($Z58+(2*$AH58))/($Z$60+(2*$AH$60)) -> 0.0321115047 | Y58: ='Informe resultados'!N71 -> 0 | Z58: 3.076923077 | AA58: 0.0272479564 | AB58: 2 | AC58: 2 | AD58: 3 | AE58: 2 | AF58: 5 | AG58: 5 | AH58: 1.46875 | AI58: 0.03949579832 | AJ58: 2 | AK58: 2 | AM58: 2 | AS58: 3 | AU58: 3 | AV58: 2 | AW58: 3 | AX58: 3 | AZ58: 0.004099341025 | BA58: 0.002732894017 | BB58: 0 | BC58: 0.004099341025 | BD58: 0 | BE58: 0 | BF58: 0 | BG58: 0 | BH58: 0.002049670513 | BI58: 0.002732894017 | BJ58: 0.004099341025 | BK58: 0.006149011538 | BL58: 0.002732894017 | BM58: 0.004099341025 | BN58: 0.006149011538 | BP58: 0 | BQ58: 0 | BR58: 0 | BS58: 0 | BT58: 0 | BU58: 0 | BV58: 0 | BW58: 0 | BX58: 0 | BY58: 0 | BZ58: 0 | CA58: 0 | CB58: 0 | CC58: 0 | CD58: 0
A59: no | B59: no | C59: no | D59: si | E59: no | F59: no | G59: no | H59: no | I59: no | J59: no | K59: no | L59: no | M59: no | N59: si | U59: =IF(OR(DG!F$29="Vivienda en un edificio",DG!F$29="Local o parte de un edificio"),VLOOKUP(V59,CA!$E$9:$L$132,5,FALSE),0) -> 0 | V59: CE 07 | W59: Certificaciones voluntarias de edificios | X59: =($Z59+(2*$AH59))/($Z$60+(2*$AH$60)) -> 0 | Y59: ='Informe resultados'!N72 -> 0 | Z59: 0 | AA59: 0 | AB59: 3 | AC59: 3 | AD59: 5 | AE59: 2 | AF59: 5 | AG59: 1 | AH59: 0 | AI59: 0 | AJ59: 3 | AK59: 3 | AM59: 2 | AS59: 3 | AU59: 2 | AV59: 2 | AW59: 3 | AX59: 1 | AZ59: 0 | BA59: 0 | BB59: 0 | BC59: 0 | BD59: 0 | BE59: 0 | BF59: 0 | BG59: 0 | BH59: 0 | BI59: 0 | BJ59: 0 | BK59: 0 | BL59: 0 | BM59: 0 | BN59: 0 | BP59: 0 | BQ59: 0 | BR59: 0 | BS59: 0 | BT59: 0 | BU59: 0 | BV59: 0 | BW59: 0 | BX59: 0 | BY59: 0 | BZ59: 0 | CA59: 0 | CB59: 0 | CC59: 0 | CD59: 0
X60: =SUM(X6:X59) -> 2 | Z60: =SUM(Z7:Z59) -> 112.9230769 | AA60: =SUM(AA6:AA59) -> 2 | AH60: =SUM(AH7:AH59) -> 37.1875 | AI60: =SUM(AI6:AI59) -> 2 | AJ60: =SUM(AJ7:AJ59) -> 63 | AK60: 57 | AL60: 29 | AM60: 32 | AN60: 24 | AO60: 20 | AP60: 17 | AQ60: 19 | AR60: 34 | AS60: 74 | AT60: 17 | AU60: 21 | AV60: 13 | AW60: 101 | AX60: 56 | AZ60: =SUM(AZ7:AZ59) -> 0.1506942344 | BA60: =SUM(BA7:BA59) -> 0.07596415819 | BB60: 0.07123370706 | BC60: 0.06481263974 | BD60: 0.03270418385 | BE60: 0.0443272874 | BF60: 0.01744432617 | BG60: 0.02998916124 | BH60: 0.01454961664 | BI60: 0.01760231238 | BJ60: 0.1494198168 | BK60: 0.1164932425 | BL60: 0.01760231238 | BM60: 0.1494198168 | BN60: 0.1164932425 | BP60: =SUM(BP7:BP59) -> 0 | BQ60: =SUM(BQ7:BQ59) -> 0 | BR60: 0 | BS60: 0 | BT60: 0 | BU60: 0 | BV60: 0 | BW60: 0 | BX60: 0 | BY60: 0 | BZ60: 0 | CA60: 0 | CB60: 0 | CC60: 0 | CD60: 0 | CF60: =SUM(AZ60:BN60) -> 1.068750058
AJ61: =SUM(AJ7:AJ59)*AJ5 -> 5.90625 | AK61: 3.5625 | AL61: 2.71875 | AM61: 3 | AN61: 1.5 | AO61: 1.25 | AP61: 0.53125 | AQ61: 1.1875 | AR61: 1.0625 | AS61: 6.9375 | AT61: 1.0625 | AU61: 0.65625 | AV61: 0.8125 | AW61: 6.3125 | AX61: 5.25 | AZ61: 0.01412758447 | BA61: 0.004747759887 | BB61: 0.006678160037 | BC61: 0.006076184975 | BD61: 0.002044011491 | BE61: 0.002770455463 | BF61: 0.0005451351928 | BG61: 0.001874322578 | BH61: 0.0004546755201 | BI61: 0.001650216786 | BJ61: 0.00933873855 | BK61: 0.003640413829 | BL61: 0.001100144524 | BM61: 0.00933873855 | BN61: 0.01092124149 | BP61: 0 | BQ61: 0 | BR61: 0 | BS61: 0 | BT61: 0 | BU61: 0 | BV61: 0 | BW61: 0 | BX61: 0 | BY61: 0 | BZ61: 0 | CA61: 0 | CB61: 0 | CC61: 0 | CD61: 0

Sheet Revisión (hidden)
B2: VERDE W Residencial | Y2: SEGURO
B3: REVISIÓN | Y3: EN REVISIÓN
B4: ='Matriz VERDE-GBCe'!U6 -> PE | D4: =VLOOKUP($B4,'Matriz VERDE-GBCe'!$U$6:$V$53,2,FALSE) -> Parcela y emplazamiento | E4: =VLOOKUP($D4,'Matriz VERDE-GBCe'!$V$6:$Y$53,2,FALSE) -> 0 | Y4: NO CUMPLE
D7: ='Matriz VERDE-GBCe'!V7 -> PE 01 | E7: =VLOOKUP($D7,'Matriz VERDE-GBCe'!$V$6:$Y$53,2,FALSE) -> Proximidad al transporte publico. | F7: =VLOOKUP($D7,'Matriz VERDE-GBCe'!$V$6:$Z$53,5,FALSE) -> 1.615384615 | Y7: Target | Z7: SEGURO | AB7: EN REVISIÓN | AD7: NO CUMPLE | AF7: NO APLICA
D9: D.J | E9: Fecha de entrega del archivo
D11: AA 01.1 | E11: Mantenimiento de corredores naturales | Y11: =IF(AF11=0,1,0) -> 1 | Z11: =+IF($H11="seguro",$Y11,0) -> 0 | AB11: =+IF($H11="EN REVISIÓN",$Y11,0) -> 0 | AD11: =+IF($H11="NO CUMPLE",$Y11,0) -> 0 | AF11: =+IF($H11="no aplica",2,0) -> 0
D14: AA 01.2 | E14: Medidas de protección de la biodiversidad | Y14: =IF(AF14=0,1,0) -> 1 | Z14: =+IF($H14="seguro",$Y14,0) -> 0 | AB14: =+IF($H14="EN REVISIÓN",$Y14,0) -> 0 | AD14: =+IF($H14="NO CUMPLE",$Y14,0) -> 0 | AF14: =+IF($H14="no aplica",2,0) -> 0
Y16: =SUM(Y11:Y14) -> 2 | Z16: =IF($F7="",0,SUM(Z11:Z14)*$F7/$Y16) -> 0 | AB16: =IF($F7="",0,SUM(AB11:AB14)*$F7/$Y16) -> 0 | AD16: =IF($F7="",0,SUM(AD11:AD14)*$F7/$Y16) -> 0
D19: ='Matriz VERDE-GBCe'!V11 -> PE 05 | E19: =VLOOKUP($D19,'Matriz VERDE-GBCe'!$V$6:$Y$53,2,FALSE) -> Clasificación de RSU. | F19: 0.04159733777 | L19: NOTAS | Y19: Target | Z19: SEGURO | AB19: EN REVISIÓN | AD19: NO CUMPLE | AF19: NO APLICA
D21: D.J | E21: Fecha del archivo
D23: AA 02.1 | E23: 20% de superficie ajardinada con plantas autóctonas o adaptadas | Y23: =IF(AF23=0,0.4,0) -> 0.4 | Z23: =+IF($H23="seguro",$Y23,0) -> 0 | AB23: =+IF($H23="EN REVISIÓN",$Y23,0) -> 0 | AD23: =+IF($H23="NO CUMPLE",$Y23,0) -> 0 | AF23: =+IF($H23="no aplica",2,0) -> 0
D26: AA 02.2 | E26: Existe un estudio previo del terreno | Y26: =IF(AF26=0,0.3,0) -> 0.3 | Z26: =+IF($H26="seguro",$Y26,0) -> 0 | AB26: =+IF($H26="EN REVISIÓN",$Y26,0) -> 0 | AD26: =+IF($H26="NO CUMPLE",$Y26,0) -> 0 | AF26: =+IF($H26="no aplica",2,0) -> 0
D29: AA 02.3 | E29: Se supera en un 10% las superficies ajardinadas fijadas por normativa | Y29: =IF(AF29=0,0.3,0) -> 0.3 | Z29: =+IF($H29="seguro",$Y29,0) -> 0 | AB29: =+IF($H29="EN REVISIÓN",$Y29,0) -> 0 | AD29: =+IF($H29="NO CUMPLE",$Y29,0) -> 0 | AF29: =+IF($H29="no aplica",2,0) -> 0
Y31: =SUM(Y23:Y29) -> 1 | Z31: =IF($F19="",0,SUM(Z22:Z29)*$F19/$Y31) -> 0 | AB31: =IF($F19="",0,SUM(AB22:AB29)*$F19/$Y31) -> 0 | AD31: =IF($F19="",0,SUM(AD22:AD29)*$F19/$Y31) -> 0
D34: ='Matriz VERDE-GBCe'!V15 -> PE 09 | E34: =VLOOKUP($D34,'Matriz VERDE-GBCe'!$V$6:$Y$53,2,FALSE) -> Contaminación lumínica. | F34: =VLOOKUP($D34,'Matriz VERDE-GBCe'!$V$6:$Y$53,6,FALSE) ->  | L34: NOTAS | Y34: Target | Z34: SEGURO | AB34: EN REVISIÓN | AD34: NO CUMPLE | AF34: NO APLICA
D36: D.J | E36: Fecha del archivo
D38: AA 03.1 | E38: Valor ecológico previo de la zona | Y38: =IF(AF38=0,0.4,0) -> 0.4 | Z38: =+IF($H38="seguro",$Y38,0) -> 0 | AB38: =+IF($H38="EN REVISIÓN",$Y38,0) -> 0 | AD38: =+IF($H38="NO CUMPLE",$Y38,0) -> 0 | AF38: =+IF($H38="no aplica",2,0) -> 0
D41: AA 03.2 | E41: Implantación sobre terrenos ya urbanizados | Y41: =IF(AF41=0,0.3,0) -> 0.3 | Z41: =+IF($H41="seguro",$Y41,0) -> 0 | AB41: =+IF($H41="EN REVISIÓN",$Y41,0) -> 0 | AD41: =+IF($H41="NO CUMPLE",$Y41,0) -> 0 | AF41: =+IF($H41="no aplica",2,0) -> 0
D44: AA 03.3 | E44: Estudio previo de la contaminación del suelo | Y44: =IF(AF44=0,0.3,0) -> 0.3 | Z44: =+IF($H44="seguro",$Y44,0) -> 0 | AB44: =+IF($H44="EN REVISIÓN",$Y44,0) -> 0 | AD44: =+IF($H44="NO CUMPLE",$Y44,0) -> 0 | AF44: =+IF($H44="no aplica",2,0) -> 0
Y46: =SUM(Y38:Y44) -> 1 | Z46: =IF($F34="",0,SUM(Z37:Z44)*$F34/$Y46) ->  | AB46: =IF($F34="",0,SUM(AB37:AB44)*$F34/$Y46) ->  | AD46: =IF($F34="",0,SUM(AD37:AD44)*$F34/$Y46) -> 
D48: ='Matriz VERDE-GBCe'!V16 -> Energía y atmósfera
D51: ='Matriz VERDE-GBCe'!V17 -> EA 00 | E51: =VLOOKUP($D51,'Matriz VERDE-GBCe'!$V$6:$Y$53,2,FALSE) -> Demanda de calefacción y refrigeración | F51: =VLOOKUP($D51,'Matriz VERDE-GBCe'!$V$6:$Y$53,6,FALSE) ->  | L51: NOTAS | Y51: Target | Z51: SEGURO | AB51: EN REVISIÓN | AD51: NO CUMPLE | AF51: NO APLICA
D53: D.J | E53: Fecha del archivo
D55: AA 05.1 | E55: El Índice de calificación energética es D | Y55: =IF(AF55=0,0.1,0) -> 0.1 | Z55: =+IF($H55="seguro",$Y55,0) -> 0 | AB55: =+IF($H55="EN REVISIÓN",$Y55,0) -> 0 | AD55: =+IF($H55="NO CUMPLE",$Y55,0) -> 0 | AF55: =+IF($H55="no aplica",2,0) -> 0
D58: AA 05.2 | E58: El Índice de calificación energética es C | Y58: =IF(AF58=0,0.2,0) -> 0.2 | Z58: =+IF($H58="seguro",$Y58,0) -> 0 | AB58: =+IF($H58="EN REVISIÓN",$Y58,0) -> 0 | AD58: =+IF($H58="NO CUMPLE",$Y58,0) -> 0 | AF58: =+IF($H58="no aplica",2,0) -> 0
D61: AA 05.3 | E61: El Índice de calificación energética es B | Y61: 0.5 | Z61: =+IF($H61="seguro",$Y61,0) -> 0 | AB61: =+IF($H61="EN REVISIÓN",$Y61,0) -> 0 | AD61: =+IF($H61="NO CUMPLE",$Y61,0) -> 0 | AF61: =+IF($H61="no aplica",2,0) -> 0
D64: AA 05.4 | E64: El Índice de calificación energética es A | Y64: 0.7 | Z64: =+IF($H64="seguro",$Y64,0) -> 0 | AB64: =+IF($H64="EN REVISIÓN",$Y64,0) -> 0 | AD64: =+IF($H64="NO CUMPLE",$Y64,0) -> 0 | AF64: =+IF($H64="no aplica",2,0) -> 0
D67: AA 05.5 | E67: Se utilizan equipos de bombeo eficientes | Y67: =IF(AF67=0,0.2,0) -> 0.2 | Z67: =+IF($H67="seguro",$Y67,0) -> 0 | AB67: =+IF($H67="EN REVISIÓN",$Y67,0) -> 0 | AD67: =+IF($H67="NO CUMPLE",$Y67,0) -> 0 | AF67: =+IF($H67="no aplica",2,0) -> 0
D70: AA 05.6 | E70: Medidas de telecontrol para gestionart los sistemas de bombeo | Y70: =IF(AF70=0,0.1,0) -> 0.1 | Z70: =+IF($H70="seguro",$Y70,0) -> 0 | AB70: =+IF($H70="EN REVISIÓN",$Y70,0) -> 0 | AD70: =+IF($H70="NO CUMPLE",$Y70,0) -> 0 | AF70: =+IF($H70="no aplica",2,0) -> 0
Y72: =SUM(Y63:Y70) -> 1 | Z72: =IF($F51="",0,SUM(Z55:Z70)*$F51/$Y72) ->  | AB72: =IF($F51="",0,SUM(AB55:AB70)*$F51/$Y72) ->  | AD72: =IF($F51="",0,SUM(AD55:AD70)*$F51/$Y72) -> 
D75: ='Matriz VERDE-GBCe'!V21 -> EA 05 | E75: =VLOOKUP($D75,'Matriz VERDE-GBCe'!$V$6:$Y$53,2,FALSE) -> Emisión de NOx en calderas de combustión. | F75: =VLOOKUP($D75,'Matriz VERDE-GBCe'!$V$6:$Y$53,6,FALSE) ->  | L75: NOTAS | Y75: Target | Z75: SEGURO | AB75: EN REVISIÓN | AD75: NO CUMPLE | AF75: NO APLICA
D77: D.J | E77: Fecha del archivo
D79: AA 06.1 | E79: Estudio previo de implantación de renovables | Y79: 0.4 | Z79: =+IF($H79="seguro",$Y79,0) -> 0 | AB79: =+IF($H79="EN REVISIÓN",$Y79,0) -> 0 | AD79: =+IF($H79="NO CUMPLE",$Y79,0) -> 0 | AF79: =+IF($H79="no aplica",2,0) -> 0
D82: AA 06.2 | E82: Sistema de producción y distribución de energía cumunitario | Y82: 0.6 | Z82: =+IF($H82="seguro",$Y82,0) -> 0 | AB82: =+IF($H82="EN REVISIÓN",$Y82,0) -> 0 | AD82: =+IF($H82="NO CUMPLE",$Y82,0) -> 0 | AF82: =+IF($H82="no aplica",2,0) -> 0
Y84: =SUM(Y79:Y82) -> 1 | Z84: =IF($F75="",0,SUM(Z79:Z82)*$F75/$Y84) ->  | AB84: =IF($F75="",0,SUM(AB79:AB82)*$F75/$Y84) ->  | AD84: =IF($F75="",0,SUM(AD79:AD82)*$F75/$Y84) -> 
D86: ='Matriz VERDE-GBCe'!V23 -> Recursos naturales
D89: ='Matriz VERDE-GBCe'!V24 -> RN 01 | E89: =VLOOKUP($D89,'Matriz VERDE-GBCe'!$V$6:$Y$53,2,FALSE) -> Consumo de agua en aparatos sanitarios | F89: =VLOOKUP($D89,'Matriz VERDE-GBCe'!$V$6:$Y$53,6,FALSE) ->  | L89: NOTAS | Y89: Target | Z89: SEGURO | AB89: EN REVISIÓN | AD89: NO CUMPLE | AF89: NO APLICA
D91: D.J | E91: Fecha del archivo
D93: AA 07.1 | E93: Las necesidades de riego se reducen en un 20% | Y93: =IF(AF93=0,0.15,0) -> 0.15 | Z93: =+IF($H93="seguro",$Y93,0) -> 0 | AB93: =+IF($H93="EN REVISIÓN",$Y93,0) -> 0 | AD93: =+IF($H93="NO CUMPLE",$Y93,0) -> 0 | AF93: =+IF($H93="no aplica",2,0) -> 0
D96: AA 07.2 | E96: Las necesidades de riego se reducen en un 50% | Y96: =IF(AF96=0,0.25,0) -> 0.25 | Z96: =+IF($H96="seguro",$Y96,0) -> 0 | AB96: =+IF($H96="EN REVISIÓN",$Y96,0) -> 0 | AD96: =+IF($H96="NO CUMPLE",$Y96,0) -> 0 | AF96: =+IF($H96="no aplica",2,0) -> 0
D99: AA 07.3 | E99: Sistema de monitorización para gestionar el consumo de agua | Y99: =IF(AF99=0,0.3,0) -> 0.3 | Z99: =+IF($H99="seguro",$Y99,0) -> 0 | AB99: =+IF($H99="EN REVISIÓN",$Y99,0) -> 0 | AD99: =+IF($H99="NO CUMPLE",$Y99,0) -> 0 | AF99: =+IF($H99="no aplica",2,0) -> 0
D102: AA 07.4 | E102: Se reaprovechas las aguas pluviales y/o grises | Y102: =IF(AF102=0,0.3,0) -> 0.3 | Z102: =+IF($H102="seguro",$Y102,0) -> 0 | AB102: =+IF($H102="EN REVISIÓN",$Y102,0) -> 0 | AD102: =+IF($H102="NO CUMPLE",$Y102,0) -> 0 | AF102: =+IF($H102="no aplica",2,0) -> 0
Y104: =SUM(Y93:Y102) -> 1 | Z104: =IF($F89="",0,SUM(Z93:Z102)*$F89/$Y104) ->  | AB104: =IF($F89="",0,SUM(AB93:AB102)*$F89/$Y104) ->  | AD104: =IF($F89="",0,SUM(AD93:AD102)*$F89/$Y104) -> 
D107: ='Matriz VERDE-GBCe'!V34 -> RN 11 | E107: =VLOOKUP($D107,'Matriz VERDE-GBCe'!$V$6:$Y$53,2,FALSE) -> Impacto de los materiales de la construcción. | F107: =VLOOKUP($D107,'Matriz VERDE-GBCe'!$V$6:$Y$53,6,FALSE) ->  | L107: NOTAS | Y107: Target | Z107: SEGURO | AB107: EN REVISIÓN | AD107: NO CUMPLE | AF107: NO APLICA
D109: D.J | E109: Fecha del archivo
D111: AA 06.1 | E111: Estudio previo de implantación de renovables | Y111: 0.4 | Z111: =+IF($H111="seguro",$Y111,0) -> 0 | AB111: =+IF($H111="EN REVISIÓN",$Y111,0) -> 0 | AD111: =+IF($H111="NO CUMPLE",$Y111,0) -> 0 | AF111: =+IF($H111="no aplica",2,0) -> 0
D114: AA 06.2 | E114: Sistema de producción y distribución de energía cumunitario | Y114: 0.6 | Z114: =+IF($H114="seguro",$Y114,0) -> 0 | AB114: =+IF($H114="EN REVISIÓN",$Y114,0) -> 0 | AD114: =+IF($H114="NO CUMPLE",$Y114,0) -> 0 | AF114: =+IF($H114="no aplica",2,0) -> 0
Y116: =SUM(Y111:Y114) -> 1 | Z116: =IF($F107="",0,SUM(Z111:Z114)*$F107/$Y116) ->  | AB116: =IF($F107="",0,SUM(AB111:AB114)*$F107/$Y116) ->  | AD116: =IF($F107="",0,SUM(AD111:AD114)*$F107/$Y116) -> 
D118: ='Matriz VERDE-GBCe'!V35 -> RN 12
D122: ='Matriz VERDE-GBCe'!V36 -> Ambiente Interior. | E122: =VLOOKUP($D122,'Matriz VERDE-GBCe'!$V$6:$Y$53,2,FALSE) -> 0 | F122: =VLOOKUP($D122,'Matriz VERDE-GBCe'!$V$6:$Y$53,6,FALSE) ->  | L122: NOTAS | Y122: Target | Z122: SEGURO | AB122: EN REVISIÓN | AD122: NO CUMPLE | AF122: NO APLICA
D124: D.J | E124: Fecha del archivo
D126: AA 09.1 | E126: Se ha reutilizado, al menos, un 5% del material | Y126: =IF(AF126=0,0.25,0) -> 0.25 | Z126: =+IF($H126="seguro",$Y126,0) -> 0 | AB126: =+IF($H126="EN REVISIÓN",$Y126,0) -> 0 | AD126: =+IF($H126="NO CUMPLE",$Y126,0) -> 0 | AF126: =+IF($H126="no aplica",2,0) -> 0
D129: AA 09.2 | E129: Los materiles reciclados alcanzan, al menos, un 40% del total | Y129: =IF(AF129=0,0.25,0) -> 0.25 | Z129: =+IF($H129="seguro",$Y129,0) -> 0 | AB129: =+IF($H129="EN REVISIÓN",$Y129,0) -> 0 | AD129: =+IF($H129="NO CUMPLE",$Y129,0) -> 0 | AF129: =+IF($H129="no aplica",2,0) -> 0
D132: AA 09.3 | E132: Se alcanza, al menos, un 15% de materiales de origen sostenible | Y132: =IF(AF132=0,0.25,0) -> 0.25 | Z132: =+IF($H132="seguro",$Y132,0) -> 0 | AB132: =+IF($H132="EN REVISIÓN",$Y132,0) -> 0 | AD132: =+IF($H132="NO CUMPLE",$Y132,0) -> 0 | AF132: =+IF($H132="no aplica",2,0) -> 0
D135: AA 09.4 | E135: Se disponene de, al menos, 5 materiales con ecoetiqueta tipo I o III | Y135: =IF(AF135=0,0.25,0) -> 0.25 | Z135: =+IF($H135="seguro",$Y135,0) -> 0 | AB135: =+IF($H135="EN REVISIÓN",$Y135,0) -> 0 | AD135: =+IF($H135="NO CUMPLE",$Y135,0) -> 0 | AF135: =+IF($H135="no aplica",2,0) -> 0
Y137: =SUM(Y126:Y135) -> 1 | Z137: =IF($F122="",0,SUM(Z126:Z135)*$F122/$Y137) ->  | AB137: =IF($F122="",0,SUM(AB126:AB135)*$F122/$Y137) ->  | AD137: =IF($F122="",0,SUM(AD126:AD135)*$F122/$Y137) -> 
D140: ='Matriz VERDE-GBCe'!#REF! ->  | E140: =VLOOKUP($D140,'Matriz VERDE-GBCe'!$V$6:$Y$53,2,FALSE) ->  | F140: 0.08874098724 | L140: NOTAS | Y140: Target | Z140: SEGURO | AB140: EN REVISIÓN | AD140: NO CUMPLE | AF140: NO APLICA
D142: D.J | E142: Fecha del archivo
D144: AA 10.1 | E144: Se ha desarrollado un ACV de los materiales empleados | Y144: =IF(AF144=0,1,0) -> 1 | Z144: =+IF($H144="seguro",$Y144,0) -> 0 | AB144: =+IF($H144="EN REVISIÓN",$Y144,0) -> 0 | AD144: =+IF($H144="NO CUMPLE",$Y144,0) -> 0 | AF144: =+IF($H144="no aplica",2,0) -> 0
Y146: =Y144 -> 1 | Z146: =IF($F140="",0,Z144*$F140) -> 0 | AB146: =IF($F140="",0,AB144*$F140) -> 0 | AD146: =IF($F140="",0,AD144*$F140) -> 0
D148: ='Matriz VERDE-GBCe'!V44 -> AS 02
D151: ='Matriz VERDE-GBCe'!V45 -> AS 03 | E151: =VLOOKUP($D151,'Matriz VERDE-GBCe'!$V$6:$Y$53,2,FALSE) -> Derecho al sol | F151: =VLOOKUP($D151,'Matriz VERDE-GBCe'!$V$6:$Y$53,6,FALSE) ->  | L151: NOTAS | Y151: Target | Z151: SEGURO | AB151: EN REVISIÓN | AD151: NO CUMPLE | AF151: NO APLICA
D153: D.J | E153: Fecha del archivo
D155: AA 11.1 | E155: Instalación de contenedores por fracciones para residuos NO peligrosos | Y155: 0.25 | Z155: =+IF($H155="seguro",$Y155,0) -> 0 | AB155: =+IF($H155="EN REVISIÓN",$Y155,0) -> 0 | AD155: =+IF($H155="NO CUMPLE",$Y155,0) -> 0 | AF155: =+IF($H155="no aplica",2,0) -> 0
D158: AA 11.2 | E158: Instalacción de contenedores para residuos peligrosos | Y158: 0.25 | Z158: =+IF($H158="seguro",$Y158,0) -> 0 | AB158: =+IF($H158="EN REVISIÓN",$Y158,0) -> 0 | AD158: =+IF($H158="NO CUMPLE",$Y158,0) -> 0 | AF158: =+IF($H158="no aplica",2,0) -> 0
D161: AA 11.3 | E161: Compromiso de retirada selectiva de residuos | Y161: 0.25 | Z161: =+IF($H161="seguro",$Y161,0) -> 0 | AB161: =+IF($H161="EN REVISIÓN",$Y161,0) -> 0 | AD161: =+IF($H161="NO CUMPLE",$Y161,0) -> 0 | AF161: =+IF($H161="no aplica",2,0) -> 0
D164: AA 11.4 | E164: Mejora sustancial en la gestión de residuos | Y164: 0.25 | Z164: =+IF($H164="seguro",$Y164,0) -> 0 | AB164: =+IF($H164="EN REVISIÓN",$Y164,0) -> 0 | AD164: =+IF($H164="NO CUMPLE",$Y164,0) -> 0 | AF164: =+IF($H164="no aplica",2,0) -> 0
Y166: =SUM(Y155:Y164) -> 1 | Z166: =IF($F151="",0,SUM(Z154:Z164)*$F151/$Y166) ->  | AB166: =IF($F151="",0,SUM(AB154:AB164)*$F151/$Y166) ->  | AD166: =IF($F151="",0,SUM(AD154:AD164)*$F151/$Y166) -> 
D169: ='Matriz VERDE-GBCe'!V46 -> AS 04 | E169: =VLOOKUP($D169,'Matriz VERDE-GBCe'!$V$6:$Y$53,2,FALSE) -> Derecho a la intimidad | F169: =VLOOKUP($D169,'Matriz VERDE-GBCe'!$V$6:$Y$53,6,FALSE) ->  | L169: NOTAS | Y169: Target | Z169: SEGURO | AB169: EN REVISIÓN | AD169: NO CUMPLE | AF169: NO APLICA
D171: D.J | E171: Fecha del archivo
D173: AA 12.1 | E173: Existe un plan de prevención de las actividades de la construcción | Y173: =IF(AF173=0,1,0) -> 1 | Z173: =+IF($H173="seguro",$Y173,0) -> 0 | AB173: =+IF($H173="EN REVISIÓN",$Y173,0) -> 0 | AD173: =+IF($H173="NO CUMPLE",$Y173,0) -> 0 | AF173: =+IF($H173="no aplica",2,0) -> 0
Y175: =Y173 -> 1 | Z175: =IF($F169="",0,Z173*$F169) ->  | AB175: =IF($F169="",0,AB173*$F169) ->  | AD175: =IF($F169="",0,AD173*$F169) -> 
D178: ='Matriz VERDE-GBCe'!#REF! ->  | E178: =VLOOKUP($D178,'Matriz VERDE-GBCe'!$V$6:$Y$53,2,FALSE) ->  | F178: =VLOOKUP($D178,'Matriz VERDE-GBCe'!$V$6:$Y$53,6,FALSE) ->  | L178: NOTAS | Y178: Target | Z178: SEGURO | AB178: EN REVISIÓN | AD178: NO CUMPLE | AF178: NO APLICA
D180: D.J | E180: Fecha del archivo
D182: AA 13.1 | E182: Red separativa de pluviales | Y182: 0.6 | Z182: =+IF($H182="seguro",$Y182,0) -> 0 | AB182: =+IF($H182="EN REVISIÓN",$Y182,0) -> 0 | AD182: =+IF($H182="NO CUMPLE",$Y182,0) -> 0 | AF182: =+IF($H182="no aplica",2,0) -> 0
D185: AA 13.2 | E185: Separadores de contaminantes (hidrocarburos y otros) | Y185: 0.2 | Z185: =+IF($H185="seguro",$Y185,0) -> 0 | AB185: =+IF($H185="EN REVISIÓN",$Y185,0) -> 0 | AD185: =+IF($H185="NO CUMPLE",$Y185,0) -> 0 | AF185: =+IF($H185="no aplica",2,0) -> 0
D188: AA 13.3 | E188: Gestión de escorrentías | Y188: 0.2 | Z188: =+IF($H188="seguro",$Y188,0) -> 0 | AB188: =+IF($H188="EN REVISIÓN",$Y188,0) -> 0 | AD188: =+IF($H188="NO CUMPLE",$Y188,0) -> 0 | AF188: =+IF($H188="no aplica",2,0) -> 0
Y190: =SUM(Y182:Y189) -> 1 | Z190: =IF($F178="",0,SUM(Z181:Z188)*$F178/$Y190) ->  | AB190: =IF($F178="",0,SUM(AB181:AB188)*$F178/$Y190) ->  | AD190: =IF($F178="",0,SUM(AD181:AD188)*$F178/$Y190) -> 
D193: ='Matriz VERDE-GBCe'!#REF! ->  | E193: =VLOOKUP($D193,'Matriz VERDE-GBCe'!$V$6:$Y$53,2,FALSE) ->  | F193: =VLOOKUP($D193,'Matriz VERDE-GBCe'!$V$6:$Y$53,6,FALSE) ->  | L193: NOTAS | Y193: Target | Z193: SEGURO | AB193: EN REVISIÓN | AD193: NO CUMPLE | AF193: NO APLICA
D195: D.J | E195: Fecha del archivo
D197: AA 14.1 | E197: El FHS reduce el exigido por normativa en un 50% | Y197: =IF(AF197=0,1,0) -> 1 | Z197: =+IF($H197="seguro",$Y197,0) -> 0 | AB197: =+IF($H197="EN REVISIÓN",$Y197,0) -> 0 | AD197: =+IF($H197="NO CUMPLE",$Y197,0) -> 0 | AF197: =+IF($H197="no aplica",2,0) -> 0
Y199: =Y197 -> 1 | Z199: =IF($F193="",0,Z197*$F193) ->  | AB199: =IF($F193="",0,AB197*$F193) ->  | AD199: =IF($F193="",0,AD197*$F193) -> 
D202: ='Matriz VERDE-GBCe'!#REF! ->  | E202: =VLOOKUP($D202,'Matriz VERDE-GBCe'!$V$6:$Y$53,2,FALSE) ->  | F202: =VLOOKUP($D202,'Matriz VERDE-GBCe'!$V$6:$Y$53,6,FALSE) ->  | L202: NOTAS | Y202: Target | Z202: SEGURO | AB202: EN REVISIÓN | AD202: NO CUMPLE | AF202: NO APLICA
D203: ='Matriz VERDE-GBCe'!#REF! -> 
D204: D.J | E204: Fecha del archivo
D206: AA 15.1 | E206: Las superficies tratadas para evitar la isla de calor supera el 25% | Y206: =IF(AF206=0,1,0) -> 1 | Z206: =+IF($H206="seguro",$Y206,0) -> 0 | AB206: =+IF($H206="EN REVISIÓN",$Y206,0) -> 0 | AD206: =+IF($H206="NO CUMPLE",$Y206,0) -> 0 | AF206: =+IF($H206="no aplica",2,0) -> 0
Y208: =Y206 -> 1 | Z208: =IF($F202="",0,Z206*$F202) ->  | AB208: =IF($F202="",0,AB206*$F202) ->  | AD208: =IF($F202="",0,AD206*$F202) -> 
D211: ='Matriz VERDE-GBCe'!#REF! ->  | E211: =VLOOKUP($D211,'Matriz VERDE-GBCe'!$V$6:$Y$53,2,FALSE) ->  | F211: =VLOOKUP($D211,'Matriz VERDE-GBCe'!$V$6:$Y$53,6,FALSE) ->  | L211: NOTAS | Y211: Target | Z211: SEGURO | AB211: EN REVISIÓN | AD211: NO CUMPLE | AF211: NO APLICA
D213: D.J | E213: Fecha del archivo
X214: =D211 -> 
D215: AA 16.1 | E215: Se emplea asfalto fonoabsorvente (solo cerca de poblaciones) | Y215: =IF(AF215=0,1,0) -> 1 | Z215: =+IF($H215="seguro",$Y215,0) -> 0 | AB215: =+IF($H215="EN REVISIÓN",$Y215,0) -> 0 | AD215: =+IF($H215="NO CUMPLE",$Y215,0) -> 0 | AF215: =+IF($H215="no aplica",2,0) -> 0
Y217: =Y215 -> 1 | Z217: =IF($F211="",0,Z215*$F211) ->  | AB217: =IF($F211="",0,AB215*$F211) ->  | AD217: =IF($F211="",0,AD215*$F211) -> 
B220: ='Matriz VERDE-GBCe'!U41 -> 1 | D220: ='Matriz VERDE-GBCe'!V41 -> AI 05
D223: ='Matriz VERDE-GBCe'!V42 -> Aspectos sociales | E223: =VLOOKUP($D223,'Matriz VERDE-GBCe'!$V$6:$Y$53,2,FALSE) -> 0 | F223: =VLOOKUP($D223,'Matriz VERDE-GBCe'!$V$6:$Y$53,6,FALSE) ->  | L223: NOTAS | Y223: Target | Z223: SEGURO | AB223: EN REVISIÓN | AD223: NO CUMPLE | AF223: NO APLICA
D225: D.J | E225: Fecha del archivo
D227: AS 01.1 | E227: Existe una estación que mide la calidad del aire | Y227: =IF(AF227=0,1,0) -> 1 | Z227: =+IF($H227="seguro",$Y227,0) -> 0 | AB227: =+IF($H227="EN REVISIÓN",$Y227,0) -> 0 | AD227: =+IF($H227="NO CUMPLE",$Y227,0) -> 0 | AF227: =+IF($H227="no aplica",2,0) -> 0
D230: AS 01.2 | E230: Los datos de dicha estación se comparten con los servicios municipales | Y230: =IF(AF230=0,1,0) -> 1 | Z230: =+IF($H230="seguro",$Y230,0) -> 0 | AB230: =+IF($H230="EN REVISIÓN",$Y230,0) -> 0 | AD230: =+IF($H230="NO CUMPLE",$Y230,0) -> 0 | AF230: =+IF($H230="no aplica",2,0) -> 0
D233: AS 01.3 | E233: Los datos de la estación son públicos | Y233: =IF(AF233=0,1,0) -> 1 | Z233: =+IF($H233="seguro",$Y233,0) -> 0 | AB233: =+IF($H233="EN REVISIÓN",$Y233,0) -> 0 | AD233: =+IF($H233="NO CUMPLE",$Y233,0) -> 0 | AF233: =+IF($H233="no aplica",2,0) -> 0
Y235: =SUM(Y226:Y233) -> 3 | Z235: =IF($F223="",0,SUM(Z227:Z233)*$F223/$Y235) ->  | AB235: =IF($F223="",0,SUM(AB227:AB233)*$F223/$Y235) ->  | AD235: =IF($F223="",0,SUM(AD227:AD233)*$F223/$Y235) -> 
D238: ='Matriz VERDE-GBCe'!#REF! ->  | E238: =VLOOKUP($D238,'Matriz VERDE-GBCe'!$V$6:$Y$53,2,FALSE) ->  | F238: =VLOOKUP($D238,'Matriz VERDE-GBCe'!$V$6:$Y$53,6,FALSE) ->  | L238: NOTAS | Y238: Target | Z238: SEGURO | AB238: EN REVISIÓN | AD238: NO CUMPLE | AF238: NO APLICA
D240: D.J | E240: Fecha del archivo
D242: AS 02.1 | E242: El 70% tienen acceso a equipamientos a menos de 1,000 m | Y242: =IF(AF242=0,0.4,0) -> 0.4 | Z242: =+IF($H242="seguro",$Y242,0) -> 0 | AB242: =+IF($H242="EN REVISIÓN",$Y242,0) -> 0 | AD242: =+IF($H242="NO CUMPLE",$Y242,0) -> 0 | AF242: =+IF($H242="no aplica",2,0) -> 0
D245: AS 02.2 | E245: Las zonas verdes están dotadas de, al menos, 3 equipaciones | Y245: =IF(AF245=0,0.3,0) -> 0.3 | Z245: =+IF($H245="seguro",$Y245,0) -> 0 | AB245: =+IF($H245="EN REVISIÓN",$Y245,0) -> 0 | AD245: =+IF($H245="NO CUMPLE",$Y245,0) -> 0 | AF245: =+IF($H245="no aplica",2,0) -> 0
D248: AS 02.3 | E248: Existen, al menos, dos usos complementarios al de nave logística. | Y248: =IF(AF248=0,0.3,0) -> 0.3 | Z248: =+IF($H248="seguro",$Y248,0) -> 0 | AB248: =+IF($H248="EN REVISIÓN",$Y248,0) -> 0 | AD248: =+IF($H248="NO CUMPLE",$Y248,0) -> 0 | AF248: =+IF($H248="no aplica",2,0) -> 0
Y250: =SUM(Y242:Y248) -> 1 | Z250: =IF($F238="",0,SUM(Z242:Z248)*$F238/$Y250) ->  | AB250: =IF($F238="",0,SUM(AB242:AB248)*$F238/$Y250) ->  | AD250: =IF($F238="",0,SUM(AD242:AD248)*$F238/$Y250) -> 
D253: ='Matriz VERDE-GBCe'!#REF! ->  | E253: =VLOOKUP($D253,'Matriz VERDE-GBCe'!$V$6:$Y$53,2,FALSE) ->  | F253: =VLOOKUP($D253,'Matriz VERDE-GBCe'!$V$6:$Y$53,6,FALSE) ->  | L253: NOTAS | Y253: Target | Z253: SEGURO | AB253: EN REVISIÓN | AD253: NO CUMPLE | AF253: NO APLICA
D255: D.J | E255: Fecha del archivo
D257: AS 02.1 | E257: El 70% tienen acceso a equipamientos a menos de 1,000 m | Y257: =IF(AF257=0,0.4,0) -> 0.4 | Z257: =+IF($H257="seguro",$Y257,0) -> 0 | AB257: =+IF($H257="EN REVISIÓN",$Y257,0) -> 0 | AD257: =+IF($H257="NO CUMPLE",$Y257,0) -> 0 | AF257: =+IF($H257="no aplica",2,0) -> 0
D260: AS 02.2 | E260: Las zonas verdes están dotadas de, al menos, 3 equipaciones | Y260: =IF(AF260=0,0.3,0) -> 0.3 | Z260: =+IF($H260="seguro",$Y260,0) -> 0 | AB260: =+IF($H260="EN REVISIÓN",$Y260,0) -> 0 | AD260: =+IF($H260="NO CUMPLE",$Y260,0) -> 0 | AF260: =+IF($H260="no aplica",2,0) -> 0
D263: AS 02.3 | E263: Existen, al menos, dos usos complementarios al de nave logística. | Y263: =IF(AF263=0,0.3,0) -> 0.3 | Z263: =+IF($H263="seguro",$Y263,0) -> 0 | AB263: =+IF($H263="EN REVISIÓN",$Y263,0) -> 0 | AD263: =+IF($H263="NO CUMPLE",$Y263,0) -> 0 | AF263: =+IF($H263="no aplica",2,0) -> 0
Y265: =SUM(Y257:Y263) -> 1 | Z265: =IF($F253="",0,SUM(Z257:Z263)*$F253/$Y265) ->  | AB265: =IF($F253="",0,SUM(AB257:AB263)*$F253/$Y265) ->  | AD265: =IF($F253="",0,SUM(AD257:AD263)*$F253/$Y265) -> 
D268: ='Matriz VERDE-GBCe'!#REF! ->  | E268: =VLOOKUP($D268,'Matriz VERDE-GBCe'!$V$6:$Y$53,2,FALSE) ->  | F268: =VLOOKUP($D268,'Matriz VERDE-GBCe'!$V$6:$Y$53,6,FALSE) ->  | L268: NOTAS | Y268: Target | Z268: SEGURO | AB268: EN REVISIÓN | AD268: NO CUMPLE | AF268: NO APLICA
D270: D.J | E270: Fecha del archivo
D272: AS 03.1 | E272: Existe un núcleo que cumple con el criterio a menos de 15,000 m | Y272: 0.25 | Z272: =+IF($H272="seguro",$Y272,0) -> 0 | AB272: =+IF($H272="EN REVISIÓN",$Y272,0) -> 0 | AD272: =+IF($H272="NO CUMPLE",$Y272,0) -> 0 | AF272: =+IF($H272="no aplica",2,0) -> 0
D275: AS 03.2 | E275: Existe un núcleo que cumple con el criterio a menos de 10,000 m | Y275: 0.25 | Z275: =+IF($H275="seguro",$Y275,0) -> 0 | AB275: =+IF($H275="EN REVISIÓN",$Y275,0) -> 0 | AD275: =+IF($H275="NO CUMPLE",$Y275,0) -> 0 | AF275: =+IF($H275="no aplica",2,0) -> 0
D278: AS 03.3 | E278: Existe un núcleo que cumple con el criterio a menos de 5,000 m | Y278: 0.25 | Z278: =+IF($H278="seguro",$Y278,0) -> 0 | AB278: =+IF($H278="EN REVISIÓN",$Y278,0) -> 0 | AD278: =+IF($H278="NO CUMPLE",$Y278,0) -> 0 | AF278: =+IF($H278="no aplica",2,0) -> 0
D281: AS 03.4 | E281: Existe un núcleo que cumple con el criterio a menos de 2,000 m | Y281: 0.25 | Z281: =+IF($H281="seguro",$Y281,0) -> 0 | AB281: =+IF($H281="EN REVISIÓN",$Y281,0) -> 0 | AD281: =+IF($H281="NO CUMPLE",$Y281,0) -> 0 | AF281: =+IF($H281="no aplica",2,0) -> 0
Y283: =SUM(Y271:Y281) -> 1 | Z283: =IF($F268="",0,SUM(Z271:Z281)*$F268/$Y283) ->  | AB283: =IF($F268="",0,SUM(AB271:AB281)*$F268/$Y283) ->  | AD283: =IF($F268="",0,SUM(AD271:AD281)*$F268/$Y283) -> 
D286: ='Matriz VERDE-GBCe'!#REF! ->  | E286: =VLOOKUP($D286,'Matriz VERDE-GBCe'!$V$6:$Y$53,2,FALSE) ->  | F286: =VLOOKUP($D286,'Matriz VERDE-GBCe'!$V$6:$Y$53,6,FALSE) ->  | L286: NOTAS | Y286: Target | Z286: SEGURO | AB286: EN REVISIÓN | AD286: NO CUMPLE | AF286: NO APLICA
D288: D.J | E288: Fecha del archivo
D290: AS 04.1 | E290: Existe un Plan de Movilidad Sostenible | Y290: 1 | Z290: =+IF($H290="seguro",$Y290,0) -> 0 | AB290: =+IF($H290="EN REVISIÓN",$Y290,0) -> 0 | AD290: =+IF($H290="NO CUMPLE",$Y290,0) -> 0 | AF290: =+IF($H290="no aplica",2,0) -> 0
Y292: =SUM(Y289:Y290) -> 1 | Z292: =IF($F286="",0,SUM(Z289:Z290)*$F286/$Y292) ->  | AB292: =IF($F286="",0,SUM(AB289:AB290)*$F286/$Y292) ->  | AD292: =IF($F286="",0,SUM(AD289:AD290)*$F286/$Y292) -> 
D295: ='Matriz VERDE-GBCe'!#REF! ->  | E295: =VLOOKUP($D295,'Matriz VERDE-GBCe'!$V$6:$Y$53,2,FALSE) ->  | F295: =VLOOKUP($D295,'Matriz VERDE-GBCe'!$V$6:$Y$53,6,FALSE) ->  | L295: NOTAS | Y295: Target | Z295: SEGURO | AB295: EN REVISIÓN | AD295: NO CUMPLE | AF295: NO APLICA
D297: D.J | E297: Fecha del archivo
D299: AS 05.1 | E299: El diseño de los viales garantizan la accesibilidad | Y299: =IF(AF299=0,0.7,0) -> 0.7 | Z299: =+IF($H299="seguro",$Y299,0) -> 0 | AB299: =+IF($H299="EN REVISIÓN",$Y299,0) -> 0 | AD299: =+IF($H299="NO CUMPLE",$Y299,0) -> 0 | AF299: =+IF($H299="no aplica",2,0) -> 0
D302: AS 05.2 | E302: La señalización del parque es adecuada | Y302: =IF(AF302=0,0.3,0) -> 0.3 | Z302: =+IF($H302="seguro",$Y302,0) -> 0 | AB302: =+IF($H302="EN REVISIÓN",$Y302,0) -> 0 | AD302: =+IF($H302="NO CUMPLE",$Y302,0) -> 0 | AF302: =+IF($H302="no aplica",2,0) -> 0
Y304: =SUM(Y299:Y302) -> 1 | Z304: =IF($F295="",0,SUM(Z299:Z302)*$F295/$Y304) ->  | AB304: =IF($F295="",0,SUM(AB299:AB302)*$F295/$Y304) ->  | AD304: =IF($F295="",0,SUM(AD299:AD302)*$F295/$Y304) -> 
D307: ='Matriz VERDE-GBCe'!#REF! ->  | E307: =VLOOKUP($D307,'Matriz VERDE-GBCe'!$V$6:$Y$53,2,FALSE) ->  | F307: =VLOOKUP($D307,'Matriz VERDE-GBCe'!$V$6:$Y$53,6,FALSE) ->  | L307: NOTAS | Y307: Target | Z307: SEGURO | AB307: EN REVISIÓN | AD307: NO CUMPLE | AF307: NO APLICA
D309: D.J | E309: Fecha del archivo
D311: AS 06.1 | E311: Existe aparcamiento de bicicletas | Y311: 0.5 | Z311: =+IF($H311="seguro",$Y311,0) -> 0 | AB311: =+IF($H311="EN REVISIÓN",$Y311,0) -> 0 | AD311: =+IF($H311="NO CUMPLE",$Y311,0) -> 0 | AF311: =+IF($H311="no aplica",2,0) -> 0
D314: AS 06.2 | E314: Se ha diseñado una red viaria para bicicletas | Y314: 0.5 | Z314: =+IF($H314="seguro",$Y314,0) -> 0 | AB314: =+IF($H314="EN REVISIÓN",$Y314,0) -> 0 | AD314: =+IF($H314="NO CUMPLE",$Y314,0) -> 0 | AF314: =+IF($H314="no aplica",2,0) -> 0
Y316: =SUM(Y311:Y314) -> 1 | Z316: =IF($F307="",0,SUM(Z311:Z314)*$F307/$Y316) ->  | AB316: =IF($F307="",0,SUM(AB311:AB314)*$F307/$Y316) ->  | AD316: =IF($F307="",0,SUM(AD311:AD314)*$F307/$Y316) -> 
D319: ='Matriz VERDE-GBCe'!#REF! ->  | E319: =VLOOKUP($D319,'Matriz VERDE-GBCe'!$V$6:$Y$53,2,FALSE) ->  | F319: =VLOOKUP($D319,'Matriz VERDE-GBCe'!$V$6:$Y$53,6,FALSE) ->  | L319: NOTAS | Y319: Target | Z319: SEGURO | AB319: EN REVISIÓN | AD319: NO CUMPLE | AF319: NO APLICA
D321: D.J | E321: Fecha del archivo
D323: AS 07.1 | E323: El 70% de las parcelas tienen un nodo de trasnporte a menos de 1.000 m | Y323: =IF(AF323=0,0.7,0) -> 0.7 | Z323: =+IF($H323="seguro",$Y323,0) -> 0 | AB323: =+IF($H323="EN REVISIÓN",$Y323,0) -> 0 | AD323: =+IF($H323="NO CUMPLE",$Y323,0) -> 0 | AF323: =+IF($H323="no aplica",2,0) -> 0
D326: AS 07.2 | E326: El parque tiene conexión con al menos, dos lineas de trasnporte | Y326: =IF(AF326=0,0.3,0) -> 0.3 | Z326: =+IF($H326="seguro",$Y326,0) -> 0 | AB326: =+IF($H326="EN REVISIÓN",$Y326,0) -> 0 | AD326: =+IF($H326="NO CUMPLE",$Y326,0) -> 0 | AF326: =+IF($H326="no aplica",2,0) -> 0
Y328: =SUM(Y323:Y326) -> 1 | Z328: =IF($F319="",0,SUM(Z323:Z326)*$F319/$Y328) ->  | AB328: =IF($F319="",0,SUM(AB323:AB326)*$F319/$Y328) ->  | AD328: =IF($F319="",0,SUM(AD323:AD326)*$F319/$Y328) -> 
D331: ='Matriz VERDE-GBCe'!#REF! ->  | E331: =VLOOKUP($D331,'Matriz VERDE-GBCe'!$V$6:$Y$53,2,FALSE) ->  | F331: =VLOOKUP($D331,'Matriz VERDE-GBCe'!$V$6:$Y$53,6,FALSE) ->  | L331: NOTAS | Y331: Target | Z331: SEGURO | AB331: EN REVISIÓN | AD331: NO CUMPLE | AF331: NO APLICA
D333: D.J | E333: Fecha del archivo
D335: AS 08.1 | E335: Las plazas de aparcamiento no superan las exigencias normativas | Y335: =IF(AF335=0,0.7,0) -> 0.7 | Z335: =+IF($H335="seguro",$Y335,0) -> 0 | AB335: =+IF($H335="EN REVISIÓN",$Y335,0) -> 0 | AD335: =+IF($H335="NO CUMPLE",$Y335,0) -> 0 | AF335: =+IF($H335="no aplica",2,0) -> 0
D338: AS 08.2 | E338: Se cumple con la reserva de plazas para vehículos eléctricos | Y338: =IF(AF338=0,0.3,0) -> 0.3 | Z338: =+IF($H338="seguro",$Y338,0) -> 0 | AB338: =+IF($H338="EN REVISIÓN",$Y338,0) -> 0 | AD338: =+IF($H338="NO CUMPLE",$Y338,0) -> 0 | AF338: =+IF($H338="no aplica",2,0) -> 0
Y340: =SUM(Y335:Y338) -> 1 | Z340: =IF($F331="",0,SUM(Z335:Z338)*$F331/$Y340) ->  | AB340: =IF($F331="",0,SUM(AB335:AB338)*$F331/$Y340) ->  | AD340: =IF($F331="",0,SUM(AD335:AD338)*$F331/$Y340) -> 
D343: ='Matriz VERDE-GBCe'!#REF! ->  | E343: =VLOOKUP($D343,'Matriz VERDE-GBCe'!$V$6:$Y$53,2,FALSE) ->  | F343: =VLOOKUP($D343,'Matriz VERDE-GBCe'!$V$6:$Y$53,6,FALSE) ->  | L343: NOTAS | Y343: Target | Z343: SEGURO | AB343: EN REVISIÓN | AD343: NO CUMPLE | AF343: NO APLICA
D345: D.J | E345: Fecha del archivo
D347: AS 09.1 | E347: Se cumple con una de las medidas propuestas | Y347: =IF(AF347=0,0.2,0) -> 0.2 | Z347: =+IF($H347="seguro",$Y347,0) -> 0 | AB347: =+IF($H347="EN REVISIÓN",$Y347,0) -> 0 | AD347: =+IF($H347="NO CUMPLE",$Y347,0) -> 0 | AF347: =+IF($H347="no aplica",2,0) -> 0
D350: AS 09.2 | E350: Se cumple con dos de las medidas propuestas | Y350: =IF(AF350=0,0.2,0) -> 0.2 | Z350: =+IF($H350="seguro",$Y350,0) -> 0 | AB350: =+IF($H350="EN REVISIÓN",$Y350,0) -> 0 | AD350: =+IF($H350="NO CUMPLE",$Y350,0) -> 0 | AF350: =+IF($H350="no aplica",2,0) -> 0
D353: AS 09.3 | E353: Se cumple con tres de las medidas propuestas | Y353: =IF(AF353=0,0.2,0) -> 0.2 | Z353: =+IF($H353="seguro",$Y353,0) -> 0 | AB353: =+IF($H353="EN REVISIÓN",$Y353,0) -> 0 | AD353: =+IF($H353="NO CUMPLE",$Y353,0) -> 0 | AF353: =+IF($H353="no aplica",2,0) -> 0
D356: AS 09.4 | E356: Se cumple con cuatro de las medidas propuestas | Y356: =IF(AF356=0,0.2,0) -> 0.2 | Z356: =+IF($H356="seguro",$Y356,0) -> 0 | AB356: =+IF($H356="EN REVISIÓN",$Y356,0) -> 0 | AD356: =+IF($H356="NO CUMPLE",$Y356,0) -> 0 | AF356: =+IF($H356="no aplica",2,0) -> 0
D359: AS 09.5 | E359: Se cumplen con cinco de las medidas propuestas | Y359: =IF(AF359=0,0.2,0) -> 0.2 | Z359: =+IF($H359="seguro",$Y359,0) -> 0 | AB359: =+IF($H359="EN REVISIÓN",$Y359,0) -> 0 | AD359: =+IF($H359="NO CUMPLE",$Y359,0) -> 0 | AF359: =+IF($H359="no aplica",2,0) -> 0
Y361: =SUM(Y347:Y359) -> 1 | Z361: =IF($F343="",0,SUM(Z347:Z359)*$F343/$Y361) ->  | AB361: =IF($F343="",0,SUM(AB347:AB359)*$F343/$Y361) ->  | AD361: =IF($F343="",0,SUM(AD347:AD359)*$F343/$Y361) -> 
D364: ='Matriz VERDE-GBCe'!#REF! ->  | E364: =VLOOKUP($D364,'Matriz VERDE-GBCe'!$V$6:$Y$53,2,FALSE) ->  | F364: =VLOOKUP($D364,'Matriz VERDE-GBCe'!$V$6:$Y$53,6,FALSE) ->  | L364: NOTAS | Y364: Target | Z364: SEGURO | AB364: EN REVISIÓN | AD364: NO CUMPLE | AF364: NO APLICA
D366: D.J | E366: Fecha del archivo
D368: AS 10.1 | E368: Control de acceso | Y368: 0.5 | Z368: =+IF($H368="seguro",$Y368,0) -> 0 | AB368: =+IF($H368="EN REVISIÓN",$Y368,0) -> 0 | AD368: =+IF($H368="NO CUMPLE",$Y368,0) -> 0 | AF368: =+IF($H368="no aplica",2,0) -> 0
D371: AS 10.2 | E371: Estudio de seguridad | Y371: 0.25 | Z371: =+IF($H371="seguro",$Y371,0) -> 0 | AB371: =+IF($H371="EN REVISIÓN",$Y371,0) -> 0 | AD371: =+IF($H371="NO CUMPLE",$Y371,0) -> 0 | AF371: =+IF($H371="no aplica",2,0) -> 0
D374: AS 10.3 | E374: Medidas extraordinarias de seguridad | Y374: 0.25 | Z374: =+IF($H374="seguro",$Y374,0) -> 0 | AB374: =+IF($H374="EN REVISIÓN",$Y374,0) -> 0 | AD374: =+IF($H374="NO CUMPLE",$Y374,0) -> 0 | AF374: =+IF($H374="no aplica",2,0) -> 0
Y376: =SUM(Y368:Y374) -> 1 | Z376: =IF($F364="",0,SUM(Z368:Z374)*$F364/$Y376) ->  | AB376: =IF($F364="",0,SUM(AB368:AB374)*$F364/$Y376) ->  | AD376: =IF($F364="",0,SUM(AD368:AD374)*$F364/$Y376) -> 
B378: ='Matriz VERDE-GBCe'!#REF! ->  | D378: ='Matriz VERDE-GBCe'!#REF! -> 
D381: ='Matriz VERDE-GBCe'!#REF! ->  | E381: =VLOOKUP($D381,'Matriz VERDE-GBCe'!$V$6:$Y$53,2,FALSE) ->  | F381: =VLOOKUP($D381,'Matriz VERDE-GBCe'!$V$6:$Y$53,6,FALSE) ->  | L381: NOTAS | Y381: Target | Z381: SEGURO | AB381: EN REVISIÓN | AD381: NO CUMPLE | AF381: NO APLICA
D383: D.J | E383: Fecha del archivo
D385: AE 01.1 | E385: Existe un estudio de viabilidad económica del polígono | Y385: 0.5 | Z385: =+IF($H385="seguro",$Y385,0) -> 0 | AB385: =+IF($H385="EN REVISIÓN",$Y385,0) -> 0 | AD385: =+IF($H385="NO CUMPLE",$Y385,0) -> 0 | AF385: =+IF($H385="no aplica",2,0) -> 0
D388: AE 01.2 | E388: Se han adoptado medidas para mejorar la viabilidad económica | Y388: 0.5 | Z388: =+IF($H388="seguro",$Y388,0) -> 0 | AB388: =+IF($H388="EN REVISIÓN",$Y388,0) -> 0 | AD388: =+IF($H388="NO CUMPLE",$Y388,0) -> 0 | AF388: =+IF($H388="no aplica",2,0) -> 0
Y390: =SUM(Y385:Y388) -> 1 | Z390: =IF($F381="",0,SUM(Z385:Z388)*$F381/$Y390) ->  | AB390: =IF($F381="",0,SUM(AB385:AB388)*$F381/$Y390) ->  | AD390: =IF($F381="",0,SUM(AD385:AD388)*$F381/$Y390) -> 
D393: ='Matriz VERDE-GBCe'!#REF! ->  | E393: =VLOOKUP($D393,'Matriz VERDE-GBCe'!$V$6:$Y$53,2,FALSE) ->  | F393: =VLOOKUP($D393,'Matriz VERDE-GBCe'!$V$6:$Y$53,6,FALSE) ->  | L393: NOTAS | Y393: Target | Z393: SEGURO | AB393: EN REVISIÓN | AD393: NO CUMPLE | AF393: NO APLICA
D395: D.J | E395: Fecha del archivo
D397: AE 02.1 | E397: No hay coste de iluminación para el municipio | Y397: 0.2 | Z397: =+IF($H397="seguro",$Y397,0) -> 0 | AB397: =+IF($H397="EN REVISIÓN",$Y397,0) -> 0 | AD397: =+IF($H397="NO CUMPLE",$Y397,0) -> 0 | AF397: =+IF($H397="no aplica",2,0) -> 0
D400: AE 02.2 | E400: No hay coste de depuración de aguas para el municipio | Y400: 0.2 | Z400: =+IF($H400="seguro",$Y400,0) -> 0 | AB400: =+IF($H400="EN REVISIÓN",$Y400,0) -> 0 | AD400: =+IF($H400="NO CUMPLE",$Y400,0) -> 0 | AF400: =+IF($H400="no aplica",2,0) -> 0
D403: AE 02.3 | E403: No hay coste de recogida de residuos para el municipio | Y403: 0.2 | Z403: =+IF($H403="seguro",$Y403,0) -> 0 | AB403: =+IF($H403="EN REVISIÓN",$Y403,0) -> 0 | AD403: =+IF($H403="NO CUMPLE",$Y403,0) -> 0 | AF403: =+IF($H403="no aplica",2,0) -> 0
D406: AE 02.4 | E406: No hay coste de limpieza del viario para el municipio | Y406: 0.2 | Z406: =+IF($H406="seguro",$Y406,0) -> 0 | AB406: =+IF($H406="EN REVISIÓN",$Y406,0) -> 0 | AD406: =+IF($H406="NO CUMPLE",$Y406,0) -> 0 | AF406: =+IF($H406="no aplica",2,0) -> 0
D409: AE 02.5 | E409: No hay coste de mantenimiento para el municipio | Y409: 0.2 | Z409: =+IF($H409="seguro",$Y409,0) -> 0 | AB409: =+IF($H409="EN REVISIÓN",$Y409,0) -> 0 | AD409: =+IF($H409="NO CUMPLE",$Y409,0) -> 0 | AF409: =+IF($H409="no aplica",2,0) -> 0
Y411: =SUM(Y397:Y409) -> 1 | Z411: =IF($F393="",0,SUM(Z397:Z409)*$F393) ->  | AB411: =IF($F393="",0,SUM(AB397:AB409)*$F393) ->  | AD411: =IF($F393="",0,SUM(AD397:AD409)*$F393) -> 
D414: ='Matriz VERDE-GBCe'!#REF! ->  | E414: =VLOOKUP($D414,'Matriz VERDE-GBCe'!$V$6:$Y$53,2,FALSE) ->  | F414: =VLOOKUP($D414,'Matriz VERDE-GBCe'!$V$6:$Y$53,6,FALSE) ->  | L414: NOTAS | Y414: Target | Z414: SEGURO | AB414: EN REVISIÓN | AD414: NO CUMPLE | AF414: NO APLICA
D416: D.J | E416: Fecha del archivo
D418: AE 03.1 | E418: El 30% de las parcelas están reservadas | Y418: 0.5 | Z418: =+IF($H418="seguro",$Y418,0) -> 0 | AB418: =+IF($H418="EN REVISIÓN",$Y418,0) -> 0 | AD418: =+IF($H418="NO CUMPLE",$Y418,0) -> 0 | AF418: =+IF($H418="no aplica",2,0) -> 0
D421: AE 03.2 | E421: El 70% de las parcelas están reservadas | Y421: 0.5 | Z421: =+IF($H421="seguro",$Y421,0) -> 0 | AB421: =+IF($H421="EN REVISIÓN",$Y421,0) -> 0 | AD421: =+IF($H421="NO CUMPLE",$Y421,0) -> 0 | AF421: =+IF($H421="no aplica",2,0) -> 0
Y423: =SUM(Y418:Y421) -> 1 | Z423: =IF($F414="",0,SUM(Z418:Z421)*$F414/$Y423) ->  | AB423: =IF($F414="",0,SUM(AB418:AB421)*$F414/$Y423) ->  | AD423: =IF($F414="",0,SUM(AD418:AD421)*$F414/$Y423) -> 
D426: ='Matriz VERDE-GBCe'!#REF! ->  | E426: =VLOOKUP($D426,'Matriz VERDE-GBCe'!$V$6:$Y$53,2,FALSE) ->  | F426: =VLOOKUP($D426,'Matriz VERDE-GBCe'!$V$6:$Y$53,6,FALSE) ->  | L426: NOTAS | Y426: Target | Z426: SEGURO | AB426: EN REVISIÓN | AD426: NO CUMPLE | AF426: NO APLICA
D428: D.J | E428: Fecha del archivo
D430: AE 04.1 | E430: Incentivar las certificaciones sostenibles de los edificios | Y430: 0.4 | Z430: =+IF($H430="seguro",$Y430,0) -> 0 | AB430: =+IF($H430="EN REVISIÓN",$Y430,0) -> 0 | AD430: =+IF($H430="NO CUMPLE",$Y430,0) -> 0 | AF430: =+IF($H430="no aplica",2,0) -> 0
D433: AE 04.1 | E433: Existe infraestructura de uso comunitario | Y433: 0.3 | Z433: =+IF($H433="seguro",$Y433,0) -> 0 | AB433: =+IF($H433="EN REVISIÓN",$Y433,0) -> 0 | AD433: =+IF($H433="NO CUMPLE",$Y433,0) -> 0 | AF433: =+IF($H433="no aplica",2,0) -> 0
D436: AE 04.1 | E436: Fondo de formación y bolsa de trabajo para empleo local | Y436: 0.3 | Z436: =+IF($H436="seguro",$Y436,0) -> 0 | AB436: =+IF($H436="EN REVISIÓN",$Y436,0) -> 0 | AD436: =+IF($H436="NO CUMPLE",$Y436,0) -> 0 | AF436: =+IF($H436="no aplica",2,0) -> 0
Y438: =SUM(Y430:Y436) -> 1 | Z438: =IF($F426="",0,Z430*$F426) ->  | AB438: =IF($F426="",0,AB430*$F426) ->  | AD438: =IF($F426="",0,AD430*$F426) -> 
D441: ='Matriz VERDE-GBCe'!#REF! ->  | E441: =VLOOKUP($D441,'Matriz VERDE-GBCe'!$V$6:$Y$53,2,FALSE) ->  | F441: =VLOOKUP($D441,'Matriz VERDE-GBCe'!$V$6:$Y$53,6,FALSE) ->  | L441: NOTAS | Y441: Target | Z441: SEGURO | AB441: EN REVISIÓN | AD441: NO CUMPLE | AF441: NO APLICA
D443: D.J | E443: Fecha del archivo
D445: AE 05.1 | E445: El acceso a una vía rápida rodada está a menos de 1.500 m | Y445: =IF(AF445=0,0.7,0) -> 0.7 | Z445: =+IF($H445="seguro",$Y445,0) -> 0 | AB445: =+IF($H445="EN REVISIÓN",$Y445,0) -> 0 | AD445: =+IF($H445="NO CUMPLE",$Y445,0) -> 0 | AF445: =+IF($H445="no aplica",2,0) -> 0
D448: AE 05.2 | E448: El acceso a otras infraestructuras de transporte a menos de 5.000 m | Y448: =IF(AF448=0,0.3,0) -> 0.3 | Z448: =+IF($H448="seguro",$Y448,0) -> 0 | AB448: =+IF($H448="EN REVISIÓN",$Y448,0) -> 0 | AD448: =+IF($H448="NO CUMPLE",$Y448,0) -> 0 | AF448: =+IF($H448="no aplica",2,0) -> 0
Y450: =SUM(Y445:Y448) -> 1 | Z450: =IF($F441="",0,SUM(Z445:Z448)*$F441/$Y450) ->  | AB450: =IF($F441="",0,SUM(AB445:AB448)*$F441/$Y450) ->  | AD450: =IF($F441="",0,SUM(AD445:AD448)*$F441/$Y450) -> 
D453: ='Matriz VERDE-GBCe'!#REF! ->  | E453: =VLOOKUP($D453,'Matriz VERDE-GBCe'!$V$6:$Y$53,2,FALSE) ->  | F453: =VLOOKUP($D453,'Matriz VERDE-GBCe'!$V$6:$Y$53,6,FALSE) ->  | L453: NOTAS | Y453: Target | Z453: SEGURO | AB453: EN REVISIÓN | AD453: NO CUMPLE | AF453: NO APLICA
D455: D.J | E455: Fecha del archivo
D457: AE 06.1 | E457: Toma de medidas de consumo energético por usos | Y457: 0.35 | Z457: =+IF($H457="seguro",$Y457,0) -> 0 | AB457: =+IF($H457="EN REVISIÓN",$Y457,0) -> 0 | AD457: =+IF($H457="NO CUMPLE",$Y457,0) -> 0 | AF457: =+IF($H457="no aplica",2,0) -> 0
D460: AE 06.2 | E460: Toma de medidas de consumo de agua por usos | Y460: 0.15 | Z460: =+IF($H460="seguro",$Y460,0) -> 0 | AB460: =+IF($H460="EN REVISIÓN",$Y460,0) -> 0 | AD460: =+IF($H460="NO CUMPLE",$Y460,0) -> 0 | AF460: =+IF($H460="no aplica",2,0) -> 0
D463: AE 06.3 | E463: Sistemas de monitorización y telemedida por usos | Y463: 0.2 | Z463: =+IF($H463="seguro",$Y463,0) -> 0 | AB463: =+IF($H463="EN REVISIÓN",$Y463,0) -> 0 | AD463: =+IF($H463="NO CUMPLE",$Y463,0) -> 0 | AF463: =+IF($H463="no aplica",2,0) -> 0
D466: AE 06.4 | E466: Sistemas de monitorización y telemedida sectorizado | Y466: 0.2 | Z466: =+IF($H466="seguro",$Y466,0) -> 0 | AB466: =+IF($H466="EN REVISIÓN",$Y466,0) -> 0 | AD466: =+IF($H466="NO CUMPLE",$Y466,0) -> 0 | AF466: =+IF($H466="no aplica",2,0) -> 0
D469: AE 06.5 | E469: Archivo de registro de medidas | Y469: 0.1 | Z469: =+IF($H469="seguro",$Y469,0) -> 0 | AB469: =+IF($H469="EN REVISIÓN",$Y469,0) -> 0 | AD469: =+IF($H469="NO CUMPLE",$Y469,0) -> 0 | AF469: =+IF($H469="no aplica",2,0) -> 0
Y471: =SUM(Y457:Y469) -> 1 | Z471: =IF($F453="",0,SUM(Z456:Z469)*$F453/$Y471) ->  | AB471: =IF($F453="",0,SUM(AB456:AB469)*$F453/$Y471) ->  | AD471: =IF($F453="",0,SUM(AD457:AD469)*$F453/$Y471) -> 
B473: ='Matriz VERDE-GBCe'!#REF! ->  | D473: ='Matriz VERDE-GBCe'!#REF! -> 
D476: ='Matriz VERDE-GBCe'!#REF! ->  | E476: =VLOOKUP($D476,'Matriz VERDE-GBCe'!$V$6:$Y$53,2,FALSE) ->  | F476: =VLOOKUP($D476,'Matriz VERDE-GBCe'!$V$6:$Y$53,6,FALSE) ->  | L476: NOTAS | Y476: Target | Z476: SEGURO | AB476: EN REVISIÓN | AD476: NO CUMPLE | AF476: NO APLICA
D478: D.J | E478: Fecha del archivo
D480: CC 01.1 | E480: Documento de requisitos previo al proyecto | Y480: 0.2 | Z480: =+IF($H480="seguro",$Y480,0) -> 0 | AB480: =+IF($H480="EN REVISIÓN",$Y480,0) -> 0 | AD480: =+IF($H480="NO CUMPLE",$Y480,0) -> 0 | AF480: =+IF($H480="no aplica",2,0) -> 0
D483: CC 01.2 | E483: Análisis de alternativas constructivas y de diseño | Y483: 0.2 | Z483: =+IF($H483="seguro",$Y483,0) -> 0 | AB483: =+IF($H483="EN REVISIÓN",$Y483,0) -> 0 | AD483: =+IF($H483="NO CUMPLE",$Y483,0) -> 0 | AF483: =+IF($H483="no aplica",2,0) -> 0
D486: CC 01.3 | E486: Guías de diseño que se han tenido en cuenta | Y486: 0.2 | Z486: =+IF($H486="seguro",$Y486,0) -> 0 | AB486: =+IF($H486="EN REVISIÓN",$Y486,0) -> 0 | AD486: =+IF($H486="NO CUMPLE",$Y486,0) -> 0 | AF486: =+IF($H486="no aplica",2,0) -> 0
... 35 more rows

Sheet portada
E3: VERDE Edificios 2020
E4: Evaluación de la sostenibilidad en edificios
E5: Usos distintos del Residencial privado
E6: Nueva Edificación, ReHabilitación, Edificios Existentes y Mixtos
E8: VERDE Edificios 2020
E9: Revisión julio de 2022

Sheet Instrucciones
B2: VERDE Edificios 2020
D3: Instrucciones de uso
C5: Celdas a rellenar
D6: Solo se rellenan las celdas sombreadas.
C9: Pestañas
D11: Para navegar por la herramienta existen una serie de pestañas que se pueden ver en el margen inferior de la ventana, a continación se describen los contenidos de cada una de ellas:
D13: DG (datos generales): En ella se introducirán los datos del edificio, el proyecto y el EA VERDE que realiza la evaluación.
D15: CA (criterios aplicables): En esta pestaña se pueden personalizar los criterios que serán de aplicación para una evaluación. De cara a una certificación, deberán estar todos los criterios activos a menos que se haya justificado la no aplicabilidad de alguno de ellos y se haya aprobado por GBCe.
D17: PE (pre-evaluación): En esta pestaña se puede hacer una preevaluación del edificio. En el listado de criterios, se indicará qué criterios es seguro (s) que se van a cumplir, cuáles son probables (p), difícil (d) o cuáles no se van a cumplir (n). En función de los datos introducidos, la herramienta informará de las posibles valoraciones del edificio.
D19: Pestañas de certificación: por cada una de las áreas de evaluación, tenemos una pestaña donde se introducirán los datos generales para la evaluación y los resultados criterio a criterio. Al final de la hoja, aparece la valoración que se ha obtenido en la misma.
D21: Informe resultados: en esta hoja aparecen los resultados de la evaluación, con la calificación de la certificación y un resumen de los resultados por criterios
D23: Resultados por impactos: en esta hoja se ofrece la mejora alcanzada por el edificio en los distintos impactos evaluados sobre la referencia establecida.
D25: Indicadores: en esta hoja se ofrecen los datos cuantitativos de los indicadores correspondientes a cada impacto de forma cualitativa y referido a la referencia establecida. Se indica a qué fase del ciclo de vida se hace referencia y cuál es el alcance del cálculo.
C27: Celdas Documento Justificativos
D29: Estas celdas aparecen, tanto en la pestaña de datos generales, como en las pestañas de certificación, en cada uno de los criterios. En ellas habrá que indicar si se han incluido, no se han incluido o no son de aplicación, en los archivos de evaluación los Documentos Justificativos (D.J.) correspondientes.
D30: Los D.J. solicitados para justificar la evaluación de cara a una certificación con VERDE, se describen en la guía de la herramienta.
C33: ¿Cómo hacer la evaluación de los criterios?
D35: El método de evaluación de cada uno de los criterios, aparece definido en la guía de evaluación de la herramienta que se puede descargar en la página web.

Sheet DG
C2: VERDE Edificios 2020 Usos distintos del Residencial privado Nueva Edificación, Rehabilitación, Edificio Existente y Mixtos
E3: DATOS GENERALES | S3: Ejemplo 1
D5: Datos de edificio
E8: Nombre del edificio | L8: Intensidad baja 8 h
L9: Intensidad media 8 h
E10: Localidad | L10: Intensidad alta 8 h | S10: Guadalajara
L11: Intensidad baja 12 h
E12: Comunidad/Ciudad Autónoma | L12: Intensidad media 12 h | S12: Guadalajara
L13: Intensidad baja 12 h
E14: Capital de Provincia | L14: Intensidad media 12 h | S14: Guadalajara
L15: Intensidad alta 12 h
E16: Altura sobre el nivel del mar | L16: Intensidad baja 16 h | S16: 708
L17: Intensidad media 16 h
E18: Zona climática de la localidad | F18: =CONCATENATE('zona clima'!C10,'zona clima'!C11) ->  | L18: Intensidad alta 16 h
L19: Intensidad baja 24 h | S19: 950
E20: Superficie construida total (m2) | L20: Intensidad media 24 h | S20: 950
E21: *Descontando plantas bajo rasante y aparcamientos | L21: Intensidad alta 24 h
L22: Otros
E23: Superficie útil de los espacios habitables del edificio (m2) | S23: 700
E25: Años de vida útil (por defecto 50)
E27: Perfil de uso en horas
L28: Edificios administrativos
E29: Perfil de uso | L29: Equipamiento público | S29: Multi-residencial
L30: Edificios docentes
E31: Tipo de actuación | L31: Edificios comerciales | S31: Nueva Edificación
L32: Alojamiento y hospedaje
E33: Superficie de ampliación (equiparable a nueva edificación): | F33: 45 | L33: Servicios de restauración
L34: Industria ligera o logística
E35: Superficie rehabilitada | F35: 10 | L35: Local o parte de un edificio
L36: Edificios sanitarios
E37: Superficie de edificio existente sobre el que no se interviene: | F37: 30 | L37: Edificios deportivos
L38: Mixtos
L39: Nueva Edificación
D40: Ajuste de la herramienta | L40: Rehabilitación
L41: Edificio existente
L42: Mixto
E43: ¿El edificio dispone de plazas de aparcamiento?
E45: Superficie libre de parcela
E47: Superficie ajardinada | L47: Sí
L48: No
E49: Número de ocupantes | S49: 45
L50: No
E51: ¿Existen en el edificio o parcela elementos singulares consumidores de agua como fuentes, piscinas, jakuzzis, etc.? | L51: No aplica
L53: No
E54: ¿Se emplean gases refrigerantes en la climatización? | L54: No aplica
E56: ¿Existen elementos mecánicos de comunicación vertical u horizontal?
E58: ¿Existen sistemas frigoríficos? | L58: Sí
L59: No
E60: ¿Se realizan tareas de tipo administrativo, trabajo sedentario sobre mesa? | L60: No aplica
E63: ¿Existen espacios de alta densidad y de ocupación y uso variable? Para más información ver CAI 02 en la guía | L63: Sí
L65: No
E66: ¿Los espacios habitables, según la definición del CTE DB-HE superan los 50 m2? | L66: No aplica
E69: ¿El edificio se sitúa en una isla?
L71: Nueva Edificación
D72: Datos del promotor y equipo de proyecto | L72: Rehabilitación
L73: Edificio existente
L74: Mixto
E75: Promotor
E77: Contacto promotor
E79: Equipo redactor | L79: Sí
L80: No
E81: Fecha de proyecto | L81: No aplica
L82: No
E83: Fecha de construcción | L83: No aplica
D86: Datos del Evaluador Acreditado
E89: Nombre
E91: Apellidos
E93: Email
E95: Teléfono de contacto
D98: Datos de la certificación
E101: Código de la certificación
L102: Comercial
E103: Fase de la certificación | M103: Proyecto de ejecución
M104: Obra construida
E105: Fecha de entrega de la evaluación
E107: Dirección postal de entrega de la certificación
D112: Documentos Justificativos
N113: r
E115: DG 01
E117: DG 02
E119: DG 03
E121: DG 04
E123: DG 05
E125: DG 06
E127: DG 07
E129: DG 08
H414: a

Sheet zona clima (hidden)
I1: A | J1: B | K1: C | L1: D | M1: E
I2: 1 | J2: 2 | K2: 3 | L2: 4
E4: CAPITAL | F4: Z.C. INVIERNO | G4: Z.C. VERANO | H4: ALTITUD | I4: 0-50 | K4: 50-100 | M4: 100-150 | O4: 150-200 | Q4: 200-250 | S4: 250-300 | U4: 300-350 | W4: 350-400 | Y4: 400-450 | AA4: 450-500 | AC4: 500-550 | AE4: 550-600 | AG4: 600-650 | AI4: 650-700 | AK4: 700-750 | AM4: 750-800 | AO4: 800-850 | AQ4: 850-900 | AS4: 900-950 | AU4: 950-1000 | AW4: 1000-1050 | AY4: 1100-1150 | BA4: 1150-1200 | BC4: 1200-1250 | BE4: 1250-1300 | BG4: >=1300 | BJ4: A4 | BK4: A3 | BL4: A2 | BM4: A1 | BN4: B4 | BO4: B3 | BP4: B2 | BQ4: B1 | BR4: C4 | BS4: C3 | BT4: C2 | BU4: C1 | BV4: D3 | BW4: D2 | BX4: D1 | BY4: E1
B5: capital de provincia | C5: =IF(DG!F14=0,"",DG!F14) ->  | E5: Albacete | F5: =$L$1 -> D | G5: =$K$2 -> 3 | H5: 677 | I5: =$K$1 -> C | J5: =$K$2 -> 3 | K5: =$K$1 -> C | L5: =$K$2 -> 3 | M5: =$K$1 -> C | N5: =$K$2 -> 3 | O5: =$K$1 -> C | P5: =$K$2 -> 3 | Q5: =$K$1 -> C | R5: =$K$2 -> 3 | S5: =$K$1 -> C | T5: =$K$2 -> 3 | U5: =$K$1 -> C | V5: =$K$2 -> 3 | W5: =$K$1 -> C | X5: =$K$2 -> 3 | Y5: =$K$1 -> C | Z5: =$K$2 -> 3 | AA5: =$L$1 -> D | AB5: =$K$2 -> 3 | AC5: =$L$1 -> D | AD5: =$K$2 -> 3 | AE5: =$L$1 -> D | AF5: =$K$2 -> 3 | AG5: =$L$1 -> D | AH5: =$K$2 -> 3 | AI5: =$L$1 -> D | AJ5: =$K$2 -> 3 | AK5: =$L$1 -> D | AL5: =$K$2 -> 3 | AM5: =$L$1 -> D | AN5: =$K$2 -> 3 | AO5: =$L$1 -> D | AP5: =$K$2 -> 3 | AQ5: =$L$1 -> D | AR5: =$K$2 -> 3 | AS5: =$L$1 -> D | AT5: =$K$2 -> 3 | AU5: =$M$1 -> E | AV5: =$I$2 -> 1 | AW5: E | AX5: 1 | AY5: E | AZ5: 1 | BA5: E | BB5: 1 | BC5: E | BD5: 1 | BE5: E | BF5: 1 | BG5: E | BH5: 1 | BS5: <450 | BV5: <950 | BY5: >=950
B6: altura capital | C6: =IF(C5="","",VLOOKUP(C5,E5:BJ55,3,FALSE)) ->  | E6: Alicante | F6: =$J$1 -> B | G6: =$L$2 -> 4 | H6: 7 | I6: =$J$1 -> B | J6: =$L$2 -> 4 | K6: =$J$1 -> B | L6: =$L$2 -> 4 | M6: =$J$1 -> B | N6: =$L$2 -> 4 | O6: =$J$1 -> B | P6: =$L$2 -> 4 | Q6: =$J$1 -> B | R6: =$L$2 -> 4 | S6: =$K$1 -> C | T6: =$K$2 -> 3 | U6: =$K$1 -> C | V6: =$K$2 -> 3 | W6: =$K$1 -> C | X6: =$K$2 -> 3 | Y6: =$K$1 -> C | Z6: =$K$2 -> 3 | AA6: =$K$1 -> C | AB6: =$K$2 -> 3 | AC6: =$K$1 -> C | AD6: =$K$2 -> 3 | AE6: =$K$1 -> C | AF6: =$K$2 -> 3 | AG6: =$K$1 -> C | AH6: =$K$2 -> 3 | AI6: =$K$1 -> C | AJ6: =$K$2 -> 3 | AK6: =$L$1 -> D | AL6: =$K$2 -> 3 | AM6: =$L$1 -> D | AN6: =$K$2 -> 3 | AO6: =$L$1 -> D | AP6: =$K$2 -> 3 | AQ6: =$L$1 -> D | AR6: =$K$2 -> 3 | AS6: =$L$1 -> D | AT6: =$K$2 -> 3 | AU6: =$L$1 -> D | AV6: =$K$2 -> 3 | AW6: =$L$1 -> D | AX6: =$K$2 -> 3 | AY6: =$L$1 -> D | AZ6: =$K$2 -> 3 | BA6: =$L$1 -> D | BB6: =$K$2 -> 3 | BC6: =$L$1 -> D | BD6: =$K$2 -> 3 | BE6: =$L$1 -> D | BF6: =$K$2 -> 3 | BG6: =$L$1 -> D | BH6: =$K$2 -> 3 | BN6: <250 | BS6: <700 | BV6: >=700
B7: altura localidad | C7: =IF(DG!F16="","",DG!F16) ->  | E7: Almería | F7: =$I$1 -> A | G7: =$L$2 -> 4 | H7: 0 | I7: A | J7: =$L$2 -> 4 | K7: A | L7: =$L$2 -> 4 | M7: =$J$1 -> B | N7: =$L$2 -> 4 | O7: =$J$1 -> B | P7: =$L$2 -> 4 | Q7: =$J$1 -> B | R7: =$L$2 -> 4 | S7: =$J$1 -> B | T7: =$K$2 -> 3 | U7: =$J$1 -> B | V7: =$K$2 -> 3 | W7: =$J$1 -> B | X7: =$K$2 -> 3 | Y7: =$K$1 -> C | Z7: =$K$2 -> 3 | AA7: =$K$1 -> C | AB7: =$K$2 -> 3 | AC7: =$K$1 -> C | AD7: =$K$2 -> 3 | AE7: =$K$1 -> C | AF7: =$K$2 -> 3 | AG7: =$K$1 -> C | AH7: =$K$2 -> 3 | AI7: =$K$1 -> C | AJ7: =$K$2 -> 3 | AK7: =$K$1 -> C | AL7: =$K$2 -> 3 | AM7: =$K$1 -> C | AN7: =$K$2 -> 3 | AO7: =$L$1 -> D | AP7: =$K$2 -> 3 | AQ7: =$L$1 -> D | AR7: =$K$2 -> 3 | AS7: =$L$1 -> D | AT7: =$K$2 -> 3 | AU7: =$L$1 -> D | AV7: =$K$2 -> 3 | AW7: =$L$1 -> D | AX7: =$K$2 -> 3 | AY7: =$L$1 -> D | AZ7: =$K$2 -> 3 | BA7: =$L$1 -> D | BB7: =$K$2 -> 3 | BC7: =$L$1 -> D | BD7: =$K$2 -> 3 | BE7: =$L$1 -> D | BF7: =$K$2 -> 3 | BG7: =$L$1 -> D | BH7: =$K$2 -> 3 | BJ7: <100 | BN7: <250 | BO7: <400 | BS7: <800 | BV7: >=800
B8: REDONDEO ALTITUD | C8: =IF(C7>=1300,1300,IF(AND(C7>=1250,C7<1300),1250,ROUND((C7+25)/50,0)*50)) -> 1300 | E8: Ávila | F8: =$M$1 -> E | G8: =$I$2 -> 1 | H8: 1054 | I8: =$L$1 -> D | J8: =$J$2 -> 2 | K8: =$L$1 -> D | L8: =$J$2 -> 2 | M8: =$L$1 -> D | N8: =$J$2 -> 2 | O8: =$L$1 -> D | P8: =$J$2 -> 2 | Q8: =$L$1 -> D | R8: =$J$2 -> 2 | S8: =$L$1 -> D | T8: =$J$2 -> 2 | U8: =$L$1 -> D | V8: =$J$2 -> 2 | W8: =$L$1 -> D | X8: =$J$2 -> 2 | Y8: =$L$1 -> D | Z8: =$J$2 -> 2 | AA8: =$L$1 -> D | AB8: =$J$2 -> 2 | AC8: =$L$1 -> D | AD8: =$J$2 -> 2 | AE8: =$L$1 -> D | AF8: =$I$2 -> 1 | AG8: =$L$1 -> D | AH8: =$I$2 -> 1 | AI8: =$L$1 -> D | AJ8: =$I$2 -> 1 | AK8: =$L$1 -> D | AL8: =$I$2 -> 1 | AM8: =$L$1 -> D | AN8: =$I$2 -> 1 | AO8: =$L$1 -> D | AP8: =$I$2 -> 1 | AQ8: =$M$1 -> E | AR8: =$I$2 -> 1 | AS8: =$M$1 -> E | AT8: =$I$2 -> 1 | AU8: =$M$1 -> E | AV8: =$I$2 -> 1 | AW8: =$M$1 -> E | AX8: =$I$2 -> 1 | AY8: =$M$1 -> E | AZ8: =$I$2 -> 1 | BA8: =$M$1 -> E | BB8: =$I$2 -> 1 | BC8: =$M$1 -> E | BD8: =$I$2 -> 1 | BE8: =$M$1 -> E | BF8: =$I$2 -> 1 | BG8: =$M$1 -> E | BH8: =$I$2 -> 1 | BU8: <50 | BX8: <550 | BY8: >=550
B9: Nº DE COLUMNA | C9: =(C8/50)*2 -> 52 | E9: Badajoz | F9: =$K$1 -> C | G9: =$L$2 -> 4 | H9: 168 | I9: =$K$1 -> C | J9: =$L$2 -> 4 | K9: =$K$1 -> C | L9: =$L$2 -> 4 | M9: =$K$1 -> C | N9: =$L$2 -> 4 | O9: =$K$1 -> C | P9: =$L$2 -> 4 | Q9: =$K$1 -> C | R9: =$L$2 -> 4 | S9: =$K$1 -> C | T9: =$L$2 -> 4 | U9: =$K$1 -> C | V9: =$L$2 -> 4 | W9: =$K$1 -> C | X9: =$L$2 -> 4 | Y9: =$K$1 -> C | Z9: =$K$2 -> 3 | AA9: =$L$1 -> D | AB9: =$K$2 -> 3 | AC9: =$L$1 -> D | AD9: =$K$2 -> 3 | AE9: =$L$1 -> D | AF9: =$K$2 -> 3 | AG9: =$L$1 -> D | AH9: =$K$2 -> 3 | AI9: =$L$1 -> D | AJ9: =$K$2 -> 3 | AK9: =$L$1 -> D | AL9: =$K$2 -> 3 | AM9: =$L$1 -> D | AN9: =$K$2 -> 3 | AO9: =$L$1 -> D | AP9: =$K$2 -> 3 | AQ9: =$L$1 -> D | AR9: =$K$2 -> 3 | AS9: =$L$1 -> D | AT9: =$K$2 -> 3 | AU9: =$L$1 -> D | AV9: =$K$2 -> 3 | AW9: =$L$1 -> D | AX9: =$K$2 -> 3 | AY9: =$L$1 -> D | AZ9: =$K$2 -> 3 | BA9: =$L$1 -> D | BB9: =$K$2 -> 3 | BC9: =$L$1 -> D | BD9: =$K$2 -> 3 | BE9: =$L$1 -> D | BF9: =$K$2 -> 3 | BG9: =$L$1 -> D | BH9: =$K$2 -> 3 | BW9: <550 | BX9: <850 | BY9: >=850
B10: ZC Invierno localidad | C10: =IF(C5="","",VLOOKUP(C$5,$E:$BH,C$9+3,FALSE)) ->  | E10: Barcelona | F10: =$K$1 -> C | G10: =$J$2 -> 2 | H10: 1 | I10: =$K$1 -> C | J10: =$J$2 -> 2 | K10: =$K$1 -> C | L10: =$J$2 -> 2 | M10: =$K$1 -> C | N10: =$J$2 -> 2 | O10: =$K$1 -> C | P10: =$J$2 -> 2 | Q10: =$K$1 -> C | R10: =$J$2 -> 2 | S10: =$L$1 -> D | T10: =$J$2 -> 2 | U10: =$L$1 -> D | V10: =$J$2 -> 2 | W10: =$L$1 -> D | X10: =$J$2 -> 2 | Y10: =$L$1 -> D | Z10: =$J$2 -> 2 | AA10: =$L$1 -> D | AB10: =$I$2 -> 1 | AC10: =$L$1 -> D | AD10: =$I$2 -> 1 | AE10: =$L$1 -> D | AF10: =$I$2 -> 1 | AG10: =$L$1 -> D | AH10: =$I$2 -> 1 | AI10: =$L$1 -> D | AJ10: =$I$2 -> 1 | AK10: =$L$1 -> D | AL10: =$I$2 -> 1 | AM10: =$M$1 -> E | AN10: =$I$2 -> 1 | AO10: =$M$1 -> E | AP10: =$I$2 -> 1 | AQ10: =$M$1 -> E | AR10: =$I$2 -> 1 | AS10: =$M$1 -> E | AT10: =$I$2 -> 1 | AU10: =$M$1 -> E | AV10: =$I$2 -> 1 | AW10: =$M$1 -> E | AX10: =$I$2 -> 1 | AY10: =$M$1 -> E | AZ10: =$I$2 -> 1 | BA10: =$M$1 -> E | BB10: =$I$2 -> 1 | BC10: =$M$1 -> E | BD10: =$I$2 -> 1 | BE10: =$M$1 -> E | BF10: =$I$2 -> 1 | BG10: =$M$1 -> E | BH10: =$I$2 -> 1 | BR10: <400 | BS10: <450 | BV10: >=450
B11: ZC Verano localidad | C11: =IF(C5="","",VLOOKUP(C$5,$E:$BH,C$9+4,FALSE)) ->  | E11: Bilbao | F11: =$K$1 -> C | G11: =$I$2 -> 1 | H11: 214 | I11: =$K$1 -> C | J11: =$I$2 -> 1 | K11: =$K$1 -> C | L11: =$I$2 -> 1 | M11: =$K$1 -> C | N11: =$I$2 -> 1 | O11: =$K$1 -> C | P11: =$I$2 -> 1 | Q11: =$K$1 -> C | R11: =$I$2 -> 1 | S11: =$L$1 -> D | T11: =$I$2 -> 1 | U11: =$L$1 -> D | V11: =$I$2 -> 1 | W11: =$L$1 -> D | X11: =$I$2 -> 1 | Y11: =$L$1 -> D | Z11: =$I$2 -> 1 | AA11: =$L$1 -> D | AB11: =$I$2 -> 1 | AC11: =$L$1 -> D | AD11: =$I$2 -> 1 | AE11: =$L$1 -> D | AF11: =$I$2 -> 1 | AG11: =$L$1 -> D | AH11: =$I$2 -> 1 | AI11: =$L$1 -> D | AJ11: =$I$2 -> 1 | AK11: =$L$1 -> D | AL11: =$I$2 -> 1 | AM11: =$L$1 -> D | AN11: =$I$2 -> 1 | AO11: =$L$1 -> D | AP11: =$I$2 -> 1 | AQ11: =$L$1 -> D | AR11: =$I$2 -> 1 | AS11: =$L$1 -> D | AT11: =$I$2 -> 1 | AU11: =$L$1 -> D | AV11: =$I$2 -> 1 | AW11: =$L$1 -> D | AX11: =$I$2 -> 1 | AY11: =$L$1 -> D | AZ11: =$I$2 -> 1 | BA11: =$L$1 -> D | BB11: =$I$2 -> 1 | BC11: =$L$1 -> D | BD11: =$I$2 -> 1 | BE11: =$L$1 -> D | BF11: =$I$2 -> 1 | BG11: =$L$1 -> D | BH11: =$I$2 -> 1 | BT11: <250 | BW11: <450 | BX11: <750 | BY11: >=750
B12: ZONA CLIMATICA PROVINCIA | C12: =IF(C5="","",VLOOKUP(C$5,E$5:H$56,2,FALSE)) ->  | E12: Burgos | F12: E | G12: =$I$2 -> 1 | H12: 861 | I12: =$L$1 -> D | J12: =$I$2 -> 1 | K12: D | L12: =$I$2 -> 1 | M12: D | N12: =$I$2 -> 1 | O12: D | P12: =$I$2 -> 1 | Q12: D | R12: =$I$2 -> 1 | S12: D | T12: =$I$2 -> 1 | U12: D | V12: =$I$2 -> 1 | W12: D | X12: =$I$2 -> 1 | Y12: D | Z12: =$I$2 -> 1 | AA12: =$L$1 -> D | AB12: =$I$2 -> 1 | AC12: =$L$1 -> D | AD12: =$I$2 -> 1 | AE12: =$L$1 -> D | AF12: =$I$2 -> 1 | AG12: =$M$1 -> E | AH12: =$I$2 -> 1 | AI12: =$M$1 -> E | AJ12: =$I$2 -> 1 | AK12: =$M$1 -> E | AL12: =$I$2 -> 1 | AM12: =$M$1 -> E | AN12: =$I$2 -> 1 | AO12: =$M$1 -> E | AP12: =$I$2 -> 1 | AQ12: =$M$1 -> E | AR12: =$I$2 -> 1 | AS12: =$M$1 -> E | AT12: =$I$2 -> 1 | AU12: =$M$1 -> E | AV12: =$I$2 -> 1 | AW12: =$M$1 -> E | AX12: =$I$2 -> 1 | AY12: =$M$1 -> E | AZ12: =$I$2 -> 1 | BA12: =$M$1 -> E | BB12: =$I$2 -> 1 | BC12: =$M$1 -> E | BD12: =$I$2 -> 1 | BE12: =$M$1 -> E | BF12: =$I$2 -> 1 | BG12: =$M$1 -> E | BH12: =$I$2 -> 1
B13: ZONA CLIMATICA PROVINCIA | C13: =IF(C5="","",VLOOKUP(C$5,E$5:H$56,3,FALSE)) ->  | E13: Cáceres | F13: =$K$1 -> C | G13: =$L$2 -> 4 | H13: 385 | I13: =$K$1 -> C | J13: =$L$2 -> 4 | K13: =$K$1 -> C | L13: =$L$2 -> 4 | M13: =$K$1 -> C | N13: =$L$2 -> 4 | O13: =$K$1 -> C | P13: =$L$2 -> 4 | Q13: =$K$1 -> C | R13: =$L$2 -> 4 | S13: =$K$1 -> C | T13: =$L$2 -> 4 | U13: =$K$1 -> C | V13: =$L$2 -> 4 | W13: =$K$1 -> C | X13: =$L$2 -> 4 | Y13: =$K$1 -> C | Z13: =$L$2 -> 4 | AA13: =$K$1 -> C | AB13: =$L$2 -> 4 | AC13: =$K$1 -> C | AD13: =$L$2 -> 4 | AE13: =$K$1 -> C | AF13: =$L$2 -> 4 | AG13: =$L$1 -> D | AH13: =$K$2 -> 3 | AI13: =$L$1 -> D | AJ13: 3 | AK13: =$L$1 -> D | AL13: 3 | AM13: =$L$1 -> D | AN13: 3 | AO13: =$L$1 -> D | AP13: 3 | AQ13: =$L$1 -> D | AR13: 3 | AS13: =$L$1 -> D | AT13: 3 | AU13: =$L$1 -> D | AV13: 3 | AW13: =$L$1 -> D | AX13: 3 | AY13: =$M$1 -> E | AZ13: =$I$2 -> 1 | BA13: =$M$1 -> E | BB13: =$I$2 -> 1 | BC13: =$M$1 -> E | BD13: =$I$2 -> 1 | BE13: =$M$1 -> E | BF13: =$I$2 -> 1 | BG13: =$M$1 -> E | BH13: =$I$2 -> 1 | BX13: <600 | BY13: >=600
E14: Cádiz | F14: =$I$1 -> A | G14: =$K$2 -> 3 | H14: 0 | I14: =$I$1 -> A | J14: =$K$2 -> 3 | K14: =$I$1 -> A | L14: =$K$2 -> 3 | M14: =$I$1 -> A | N14: =$K$2 -> 3 | O14: =$J$1 -> B | P14: =$K$2 -> 3 | Q14: B | R14: =$K$2 -> 3 | S14: B | T14: =$K$2 -> 3 | U14: B | V14: =$K$2 -> 3 | W14: B | X14: =$K$2 -> 3 | Y14: B | Z14: =$K$2 -> 3 | AA14: =$K$1 -> C | AB14: =$K$2 -> 3 | AC14: =$K$1 -> C | AD14: =$K$2 -> 3 | AE14: =$K$1 -> C | AF14: =$K$2 -> 3 | AG14: =$K$1 -> C | AH14: =$J$2 -> 2 | AI14: C | AJ14: 2 | AK14: C | AL14: 2 | AM14: C | AN14: 2 | AO14: C | AP14: 2 | AQ14: =$L$1 -> D | AR14: =$J$2 -> 2 | AS14: =$L$1 -> D | AT14: =$J$2 -> 2 | AU14: =$L$1 -> D | AV14: =$J$2 -> 2 | AW14: =$L$1 -> D | AX14: =$J$2 -> 2 | AY14: =$L$1 -> D | AZ14: =$J$2 -> 2 | BA14: =$L$1 -> D | BB14: =$J$2 -> 2 | BC14: =$L$1 -> D | BD14: =$J$2 -> 2 | BE14: =$L$1 -> D | BF14: =$J$2 -> 2 | BG14: =$L$1 -> D | BH14: =$J$2 -> 2 | BR14: <600 | BV14: <1050 | BY14: >=1050
E15: Castellón | F15: =$J$1 -> B | G15: =$K$2 -> 3 | H15: 18 | I15: =$J$1 -> B | J15: =$K$2 -> 3 | K15: =$K$1 -> C | L15: =$K$2 -> 3 | M15: =$K$1 -> C | N15: =$K$2 -> 3 | O15: =$K$1 -> C | P15: =$K$2 -> 3 | Q15: =$K$1 -> C | R15: =$K$2 -> 3 | S15: =$K$1 -> C | T15: =$K$2 -> 3 | U15: =$K$1 -> C | V15: =$K$2 -> 3 | W15: =$K$1 -> C | X15: =$K$2 -> 3 | Y15: =$K$1 -> C | Z15: =$K$2 -> 3 | AA15: =$K$1 -> C | AB15: =$K$2 -> 3 | AC15: =$L$1 -> D | AD15: =$K$2 -> 3 | AE15: =$L$1 -> D | AF15: =$K$2 -> 3 | AG15: =$L$1 -> D | AH15: 2 | AI15: =$L$1 -> D | AJ15: 2 | AK15: =$L$1 -> D | AL15: 2 | AM15: =$L$1 -> D | AN15: 2 | AO15: =$L$1 -> D | AP15: 2 | AQ15: =$L$1 -> D | AR15: =$J$2 -> 2 | AS15: =$L$1 -> D | AT15: =$J$2 -> 2 | AU15: =$L$1 -> D | AV15: =$J$2 -> 2 | AW15: =$M$1 -> E | AX15: =$I$2 -> 1 | AY15: =$M$1 -> E | AZ15: =$I$2 -> 1 | BA15: =$M$1 -> E | BB15: =$I$2 -> 1 | BC15: =$M$1 -> E | BD15: =$I$2 -> 1 | BE15: =$M$1 -> E | BF15: =$I$2 -> 1 | BG15: =$M$1 -> E | BH15: =$I$2 -> 1 | BU15: <150 | BX15: <650
E16: Ceuta | F16: =$J$1 -> B | G16: =$K$2 -> 3 | H16: 0 | I16: =$J$1 -> B | J16: =$K$2 -> 3 | K16: =$J$1 -> B | L16: =$K$2 -> 3 | M16: =$J$1 -> B | N16: =$K$2 -> 3 | O16: =$J$1 -> B | P16: =$K$2 -> 3 | Q16: =$J$1 -> B | R16: =$K$2 -> 3 | S16: =$J$1 -> B | T16: =$K$2 -> 3 | U16: =$J$1 -> B | V16: =$K$2 -> 3 | W16: =$J$1 -> B | X16: =$K$2 -> 3 | Y16: =$J$1 -> B | Z16: =$K$2 -> 3 | AA16: B | AB16: =$K$2 -> 3 | AC16: B | AD16: =$K$2 -> 3 | AE16: B | AF16: =$K$2 -> 3 | AG16: B | AH16: =$K$2 -> 3 | AI16: B | AJ16: =$K$2 -> 3 | AK16: B | AL16: =$K$2 -> 3 | AM16: B | AN16: =$K$2 -> 3 | AO16: B | AP16: =$K$2 -> 3 | AQ16: B | AR16: =$K$2 -> 3 | AS16: B | AT16: =$K$2 -> 3 | AU16: B | AV16: 3 | AW16: B | AX16: 3 | AY16: B | AZ16: 3 | BA16: B | BB16: 3 | BC16: B | BD16: 3 | BE16: B | BF16: 3 | BG16: B | BH16: 3 | BO16: <50 | BS16: <500 | BV16: <600 | BW16: <1000 | BY16: >=1000
E17: Ciudad_Real | F17: =$L$1 -> D | G17: =$K$2 -> 3 | H17: 630 | I17: =$K$1 -> C | J17: =$L$2 -> 4 | K17: =$K$1 -> C | L17: =$L$2 -> 4 | M17: =$K$1 -> C | N17: =$L$2 -> 4 | O17: =$K$1 -> C | P17: =$L$2 -> 4 | Q17: =$K$1 -> C | R17: =$L$2 -> 4 | S17: =$K$1 -> C | T17: =$L$2 -> 4 | U17: =$K$1 -> C | V17: =$L$2 -> 4 | W17: =$K$1 -> C | X17: =$L$2 -> 4 | Y17: =$K$1 -> C | Z17: =$L$2 -> 4 | AA17: =$K$1 -> C | AB17: =$K$2 -> 3 | AC17: =$L$1 -> D | AD17: =$K$2 -> 3 | AE17: =$L$1 -> D | AF17: =$K$2 -> 3 | AG17: =$L$1 -> D | AH17: =$K$2 -> 3 | AI17: =$L$1 -> D | AJ17: =$K$2 -> 3 | AK17: =$L$1 -> D | AL17: =$K$2 -> 3 | AM17: =$L$1 -> D | AN17: =$K$2 -> 3 | AO17: =$L$1 -> D | AP17: =$K$2 -> 3 | AQ17: =$L$1 -> D | AR17: =$K$2 -> 3 | AS17: =$L$1 -> D | AT17: 3 | AU17: =$L$1 -> D | AV17: 3 | AW17: =$L$1 -> D | AX17: 3 | AY17: =$L$1 -> D | AZ17: 3 | BA17: =$L$1 -> D | BB17: 3 | BC17: =$L$1 -> D | BD17: 3 | BE17: =$L$1 -> D | BF17: 3 | BG17: =$L$1 -> D | BH17: 3
E18: Córdoba | F18: =$J$1 -> B | G18: =$L$2 -> 4 | H18: 113 | I18: =$J$1 -> B | J18: =$L$2 -> 4 | K18: =$J$1 -> B | L18: =$L$2 -> 4 | M18: =$J$1 -> B | N18: =$L$2 -> 4 | O18: =$K$1 -> C | P18: =$L$2 -> 4 | Q18: =$K$1 -> C | R18: =$L$2 -> 4 | S18: =$K$1 -> C | T18: =$L$2 -> 4 | U18: =$K$1 -> C | V18: =$L$2 -> 4 | W18: =$K$1 -> C | X18: =$L$2 -> 4 | Y18: =$K$1 -> C | Z18: =$L$2 -> 4 | AA18: =$K$1 -> C | AB18: =$L$2 -> 4 | AC18: =$K$1 -> C | AD18: =$L$2 -> 4 | AE18: =$L$1 -> D | AF18: =$K$2 -> 3 | AG18: =$L$1 -> D | AH18: =$K$2 -> 3 | AI18: =$L$1 -> D | AJ18: =$K$2 -> 3 | AK18: =$L$1 -> D | AL18: =$K$2 -> 3 | AM18: =$L$1 -> D | AN18: =$K$2 -> 3 | AO18: =$L$1 -> D | AP18: =$K$2 -> 3 | AQ18: =$L$1 -> D | AR18: =$K$2 -> 3 | AS18: =$L$1 -> D | AT18: 3 | AU18: =$L$1 -> D | AV18: 3 | AW18: =$L$1 -> D | AX18: 3 | AY18: =$L$1 -> D | AZ18: 3 | BA18: =$L$1 -> D | BB18: 3 | BC18: =$L$1 -> D | BD18: 3 | BE18: =$L$1 -> D | BF18: 3 | BG18: =$L$1 -> D | BH18: 3 | BR18: <450 | BS18: <500 | BV18: >=500
B19: DESNIVEL | C19: =ROUNDUP((C7-C6)/100,0) ->  | E19: La_Coruña | F19: =$K$1 -> C | G19: =$I$2 -> 1 | H19: 0 | I19: =$K$1 -> C | J19: =$I$2 -> 1 | K19: =$K$1 -> C | L19: =$I$2 -> 1 | M19: =$K$1 -> C | N19: =$I$2 -> 1 | O19: =$K$1 -> C | P19: =$I$2 -> 1 | Q19: =$L$1 -> D | R19: =$I$2 -> 1 | S19: =$L$1 -> D | T19: =$I$2 -> 1 | U19: =$L$1 -> D | V19: =$I$2 -> 1 | W19: =$L$1 -> D | X19: =$I$2 -> 1 | Y19: =$L$1 -> D | Z19: =$I$2 -> 1 | AA19: =$L$1 -> D | AB19: =$I$2 -> 1 | AC19: =$L$1 -> D | AD19: =$I$2 -> 1 | AE19: =$L$1 -> D | AF19: =$I$2 -> 1 | AG19: =$L$1 -> D | AH19: =$I$2 -> 1 | AI19: =$L$1 -> D | AJ19: =$I$2 -> 1 | AK19: =$L$1 -> D | AL19: =$I$2 -> 1 | AM19: =$L$1 -> D | AN19: =$I$2 -> 1 | AO19: =$L$1 -> D | AP19: =$I$2 -> 1 | AQ19: =$L$1 -> D | AR19: =$I$2 -> 1 | AS19: =$L$1 -> D | AT19: =$I$2 -> 1 | AU19: =$L$1 -> D | AV19: =$I$2 -> 1 | AW19: =$L$1 -> D | AX19: =$I$2 -> 1 | AY19: =$L$1 -> D | AZ19: =$I$2 -> 1 | BA19: =$L$1 -> D | BB19: =$I$2 -> 1 | BC19: =$L$1 -> D | BD19: =$I$2 -> 1 | BE19: =$L$1 -> D | BF19: =$I$2 -> 1 | BG19: =$L$1 -> D | BH19: =$I$2 -> 1 | BN19: <150 | BR19: <550 | BV19: >=550
B20: CORRECCION ZONA CLIMATICA | C20: =3+IF(C19>10,5,IF(C19>8,4,IF(C19>6,3,IF(C19>4,2,IF(C19>2,1,IF(C19>0,0,0)))))) ->  | E20: Cuenca | F20: =$L$1 -> D | G20: =$J$2 -> 2 | H20: 975 | I20: =$L$1 -> D | J20: =$K$2 -> 3 | K20: =$L$1 -> D | L20: 3 | M20: =$L$1 -> D | N20: 3 | O20: =$L$1 -> D | P20: 3 | Q20: =$L$1 -> D | R20: 3 | S20: =$L$1 -> D | T20: 3 | U20: =$L$1 -> D | V20: 3 | W20: =$L$1 -> D | X20: 3 | Y20: =$L$1 -> D | Z20: 3 | AA20: =$L$1 -> D | AB20: 3 | AC20: =$L$1 -> D | AD20: 3 | AE20: =$L$1 -> D | AF20: 3 | AG20: =$L$1 -> D | AH20: 3 | AI20: =$L$1 -> D | AJ20: 3 | AK20: =$L$1 -> D | AL20: 3 | AM20: =$L$1 -> D | AN20: 3 | AO20: =$L$1 -> D | AP20: =$J$2 -> 2 | AQ20: =$L$1 -> D | AR20: 2 | AS20: =$L$1 -> D | AT20: 2 | AU20: =$L$1 -> D | AV20: 2 | AW20: =$L$1 -> D | AX20: 2 | AY20: =$M$1 -> E | AZ20: =$I$2 -> 1 | BA20: E | BB20: =$I$2 -> 1 | BC20: E | BD20: =$I$2 -> 1 | BE20: E | BF20: =$I$2 -> 1 | BG20: E | BH20: =$I$2 -> 1
E21: Gerona | F21: =$L$1 -> D | G21: =$J$2 -> 2 | H21: 143 | I21: =$K$1 -> C | J21: =$J$2 -> 2 | K21: =$K$1 -> C | L21: =$J$2 -> 2 | M21: =$L$1 -> D | N21: =$J$2 -> 2 | O21: =$L$1 -> D | P21: =$J$2 -> 2 | Q21: =$L$1 -> D | R21: =$J$2 -> 2 | S21: =$L$1 -> D | T21: =$J$2 -> 2 | U21: =$L$1 -> D | V21: =$J$2 -> 2 | W21: =$L$1 -> D | X21: =$J$2 -> 2 | Y21: =$L$1 -> D | Z21: =$J$2 -> 2 | AA21: =$L$1 -> D | AB21: =$J$2 -> 2 | AC21: =$L$1 -> D | AD21: =$J$2 -> 2 | AE21: =$L$1 -> D | AF21: =$J$2 -> 2 | AG21: =$M$1 -> E | AH21: =$I$2 -> 1 | AI21: =$M$1 -> E | AJ21: =$I$2 -> 1 | AK21: =$M$1 -> E | AL21: =$I$2 -> 1 | AM21: =$M$1 -> E | AN21: =$I$2 -> 1 | AO21: =$M$1 -> E | AP21: =$I$2 -> 1 | AQ21: =$M$1 -> E | AR21: =$I$2 -> 1 | AS21: =$M$1 -> E | AT21: =$I$2 -> 1 | AU21: =$M$1 -> E | AV21: =$I$2 -> 1 | AW21: =$M$1 -> E | AX21: =$I$2 -> 1 | AY21: =$M$1 -> E | AZ21: =$I$2 -> 1 | BA21: =$M$1 -> E | BB21: =$I$2 -> 1 | BC21: =$M$1 -> E | BD21: =$I$2 -> 1 | BE21: =$M$1 -> E | BF21: =$I$2 -> 1 | BG21: =$M$1 -> E | BH21: =$I$2 -> 1 | BU21: <200 | BX21: >=200
E22: Granada | F22: =$K$1 -> C | G22: =$K$2 -> 3 | H22: 754 | I22: =$I$1 -> A | J22: =$L$2 -> 4 | K22: =$J$1 -> B | L22: =$L$2 -> 4 | M22: =$J$1 -> B | N22: =$L$2 -> 4 | O22: =$J$1 -> B | P22: =$L$2 -> 4 | Q22: =$J$1 -> B | R22: =$L$2 -> 4 | S22: =$J$1 -> B | T22: =$L$2 -> 4 | U22: =$J$1 -> B | V22: =$L$2 -> 4 | W22: =$K$1 -> C | X22: =$L$2 -> 4 | Y22: C | Z22: 4 | AA22: C | AB22: 4 | AC22: C | AD22: 4 | AE22: C | AF22: 4 | AG22: =$K$1 -> C | AH22: =$K$2 -> 3 | AI22: C | AJ22: 3 | AK22: C | AL22: 3 | AM22: C | AN22: 3 | AO22: =$L$1 -> D | AP22: =$K$2 -> 3 | AQ22: =$L$1 -> D | AR22: 3 | AS22: =$L$1 -> D | AT22: 3 | AU22: =$L$1 -> D | AV22: 3 | AW22: =$L$1 -> D | AX22: 3 | AY22: =$L$1 -> D | AZ22: 3 | BA22: =$L$1 -> D | BB22: 3 | BC22: =$L$1 -> D | BD22: 3 | BE22: =$L$1 -> D | BF22: 3 | BG22: =$M$1 -> E | BH22: =$I$2 -> 1 | BV22: <800 | BW22: <1050 | BY22: >=1050
E23: Guadalajara | F23: =$L$1 -> D | G23: =$K$2 -> 3 | H23: 708 | I23: =$L$1 -> D | J23: =$K$2 -> 3 | K23: =$L$1 -> D | L23: =$K$2 -> 3 | M23: =$L$1 -> D | N23: =$K$2 -> 3 | O23: =$L$1 -> D | P23: =$K$2 -> 3 | Q23: =$L$1 -> D | R23: =$K$2 -> 3 | S23: =$L$1 -> D | T23: =$K$2 -> 3 | U23: =$L$1 -> D | V23: =$K$2 -> 3 | W23: =$L$1 -> D | X23: =$K$2 -> 3 | Y23: =$L$1 -> D | Z23: =$K$2 -> 3 | AA23: =$L$1 -> D | AB23: =$K$2 -> 3 | AC23: =$L$1 -> D | AD23: =$K$2 -> 3 | AE23: =$L$1 -> D | AF23: =$K$2 -> 3 | AG23: =$L$1 -> D | AH23: =$K$2 -> 3 | AI23: =$L$1 -> D | AJ23: =$K$2 -> 3 | AK23: =$L$1 -> D | AL23: =$K$2 -> 3 | AM23: =$L$1 -> D | AN23: =$K$2 -> 3 | AO23: =$L$1 -> D | AP23: =$K$2 -> 3 | AQ23: =$L$1 -> D | AR23: =$K$2 -> 3 | AS23: =$L$1 -> D | AT23: =$K$2 -> 3 | AU23: =$L$1 -> D | AV23: =$J$2 -> 2 | AW23: =$M$1 -> E | AX23: =$I$2 -> 1 | AY23: =$M$1 -> E | AZ23: =$I$2 -> 1 | BA23: =$M$1 -> E | BB23: =$I$2 -> 1 | BC23: =$M$1 -> E | BD23: =$I$2 -> 1 | BE23: =$M$1 -> E | BF23: =$I$2 -> 1 | BG23: =$M$1 -> E | BH23: =$I$2 -> 1 | BT23: <100 | BW23: <600 | BY23: >=600
E24: Huelva | F24: =$I$1 -> A | G24: =$L$2 -> 4 | H24: 50 | I24: =$I$1 -> A | J24: =$L$2 -> 4 | K24: =$J$1 -> B | L24: =$L$2 -> 4 | M24: =$J$1 -> B | N24: =$L$2 -> 4 | O24: =$J$1 -> B | P24: =$K$2 -> 3 | Q24: B | R24: =$K$2 -> 3 | S24: B | T24: =$K$2 -> 3 | U24: B | V24: =$K$2 -> 3 | W24: =$K$1 -> C | X24: =$K$2 -> 3 | Y24: C | Z24: =$K$2 -> 3 | AA24: C | AB24: =$K$2 -> 3 | AC24: C | AD24: =$K$2 -> 3 | AE24: C | AF24: =$K$2 -> 3 | AG24: C | AH24: =$K$2 -> 3 | AI24: C | AJ24: =$K$2 -> 3 | AK24: C | AL24: =$K$2 -> 3 | AM24: C | AN24: =$K$2 -> 3 | AO24: =$L$1 -> D | AP24: =$K$2 -> 3 | AQ24: =$L$1 -> D | AR24: =$K$2 -> 3 | AS24: =$L$1 -> D | AT24: =$K$2 -> 3 | AU24: =$L$1 -> D | AV24: =$K$2 -> 3 | AW24: =$L$1 -> D | AX24: 3 | AY24: =$L$1 -> D | AZ24: 3 | BA24: =$L$1 -> D | BB24: 3 | BC24: =$L$1 -> D | BD24: 3 | BE24: =$L$1 -> D | BF24: 3 | BG24: =$L$1 -> D | BH24: 3 | BV24: <950 | BW24: <1000 | BY24: >=1000
E25: Huesca | F25: =$L$1 -> D | G25: =$J$2 -> 2 | H25: 432 | I25: =$K$1 -> C | J25: =$K$2 -> 3 | K25: C | L25: 3 | M25: C | N25: 3 | O25: C | P25: 3 | Q25: =$L$1 -> D | R25: =$K$2 -> 3 | S25: =$L$1 -> D | T25: =$K$2 -> 3 | U25: =$L$1 -> D | V25: =$K$2 -> 3 | W25: =$L$1 -> D | X25: =$K$2 -> 3 | Y25: =$L$1 -> D | Z25: =$J$2 -> 2 | AA25: D | AB25: 2 | AC25: D | AD25: 2 | AE25: D | AF25: 2 | AG25: D | AH25: 2 | AI25: D | AJ25: 2 | AK25: =$M$1 -> E | AL25: =$I$2 -> 1 | AM25: =$M$1 -> E | AN25: =$I$2 -> 1 | AO25: =$M$1 -> E | AP25: =$I$2 -> 1 | AQ25: =$M$1 -> E | AR25: =$I$2 -> 1 | AS25: =$M$1 -> E | AT25: =$I$2 -> 1 | AU25: =$M$1 -> E | AV25: =$I$2 -> 1 | AW25: =$M$1 -> E | AX25: =$I$2 -> 1 | AY25: =$M$1 -> E | AZ25: =$I$2 -> 1 | BA25: =$M$1 -> E | BB25: =$I$2 -> 1 | BC25: =$M$1 -> E | BD25: =$I$2 -> 1 | BE25: =$M$1 -> E | BF25: =$I$2 -> 1 | BG25: =$M$1 -> E | BH25: =$I$2 -> 1 | BX25: <400 | BY25: >=400
E26: Jaén | F26: =$K$1 -> C | G26: =$L$2 -> 4 | H26: 436 | I26: =$J$1 -> B | J26: =$L$2 -> 4 | K26: =$J$1 -> B | L26: =$L$2 -> 4 | M26: =$J$1 -> B | N26: =$L$2 -> 4 | O26: =$J$1 -> B | P26: =$L$2 -> 4 | Q26: =$J$1 -> B | R26: =$L$2 -> 4 | S26: =$J$1 -> B | T26: =$L$2 -> 4 | U26: =$J$1 -> B | V26: =$L$2 -> 4 | W26: =$K$1 -> C | X26: =$L$2 -> 4 | Y26: C | Z26: 4 | AA26: C | AB26: 4 | AC26: C | AD26: 4 | AE26: C | AF26: 4 | AG26: C | AH26: 4 | AI26: C | AJ26: 4 | AK26: C | AL26: 4 | AM26: =$L$1 -> D | AN26: =$K$2 -> 3 | AO26: D | AP26: 3 | AQ26: D | AR26: 3 | AS26: D | AT26: 3 | AU26: D | AV26: 3 | AW26: D | AX26: 3 | AY26: D | AZ26: 3 | BA26: D | BB26: 3 | BC26: D | BD26: 3 | BE26: =$M$1 -> E | BF26: =$I$2 -> 1 | BG26: =$M$1 -> E | BH26: =$I$2 -> 1 | BS26: <200 | BV26: <400 | BW26: <700 | BY26: >=700
E27: León | F27: =$M$1 -> E | G27: =$I$2 -> 1 | H27: 346 | I27: =$M$1 -> E | J27: =$I$2 -> 1 | K27: =$M$1 -> E | L27: =$I$2 -> 1 | M27: =$M$1 -> E | N27: =$I$2 -> 1 | O27: =$M$1 -> E | P27: =$I$2 -> 1 | Q27: =$M$1 -> E | R27: =$I$2 -> 1 | S27: =$M$1 -> E | T27: =$I$2 -> 1 | U27: =$M$1 -> E | V27: =$I$2 -> 1 | W27: =$M$1 -> E | X27: =$I$2 -> 1 | Y27: =$M$1 -> E | Z27: =$I$2 -> 1 | AA27: =$M$1 -> E | AB27: =$I$2 -> 1 | AC27: =$M$1 -> E | AD27: =$I$2 -> 1 | AE27: =$M$1 -> E | AF27: =$I$2 -> 1 | AG27: =$M$1 -> E | AH27: =$I$2 -> 1 | AI27: =$M$1 -> E | AJ27: =$I$2 -> 1 | AK27: =$M$1 -> E | AL27: =$I$2 -> 1 | AM27: =$M$1 -> E | AN27: =$I$2 -> 1 | AO27: =$M$1 -> E | AP27: =$I$2 -> 1 | AQ27: =$M$1 -> E | AR27: =$I$2 -> 1 | AS27: =$M$1 -> E | AT27: =$I$2 -> 1 | AU27: =$M$1 -> E | AV27: =$I$2 -> 1 | AW27: =$M$1 -> E | AX27: =$I$2 -> 1 | AY27: =$M$1 -> E | AZ27: =$I$2 -> 1 | BA27: =$M$1 -> E | BB27: =$I$2 -> 1 | BC27: =$M$1 -> E | BD27: =$I$2 -> 1 | BE27: =$M$1 -> E | BF27: =$I$2 -> 1 | BG27: =$M$1 -> E | BH27: =$I$2 -> 1 | BK27: <350 | BL27: <750 | BP27: <1000 | BT27: >=1000
E28: Lérida | F28: =$L$1 -> D | G28: =$K$2 -> 3 | H28: 131 | I28: =$K$1 -> C | J28: =$K$2 -> 3 | K28: =$K$1 -> C | L28: =$K$2 -> 3 | M28: =$L$1 -> D | N28: =$K$2 -> 3 | O28: =$L$1 -> D | P28: 3 | Q28: =$L$1 -> D | R28: 3 | S28: =$L$1 -> D | T28: 3 | U28: =$L$1 -> D | V28: 3 | W28: =$L$1 -> D | X28: 3 | Y28: =$L$1 -> D | Z28: 3 | AA28: =$L$1 -> D | AB28: 3 | AC28: =$L$1 -> D | AD28: 3 | AE28: =$L$1 -> D | AF28: 3 | AG28: =$M$1 -> E | AH28: =$I$2 -> 1 | AI28: =$M$1 -> E | AJ28: =$I$2 -> 1 | AK28: =$M$1 -> E | AL28: =$I$2 -> 1 | AM28: =$M$1 -> E | AN28: =$I$2 -> 1 | AO28: =$M$1 -> E | AP28: =$I$2 -> 1 | AQ28: =$M$1 -> E | AR28: =$I$2 -> 1 | AS28: =$M$1 -> E | AT28: =$I$2 -> 1 | AU28: =$M$1 -> E | AV28: =$I$2 -> 1 | AW28: =$M$1 -> E | AX28: =$I$2 -> 1 | AY28: =$M$1 -> E | AZ28: =$I$2 -> 1 | BA28: =$M$1 -> E | BB28: =$I$2 -> 1 | BC28: =$M$1 -> E | BD28: =$I$2 -> 1 | BE28: =$M$1 -> E | BF28: =$I$2 -> 1 | BG28: =$M$1 -> E | BH28: =$I$2 -> 1 | BY28: <1250
E29: Logroño | F29: =$L$1 -> D | G29: =$J$2 -> 2 | H29: 379 | I29: =$K$1 -> C | J29: =$J$2 -> 2 | K29: =$K$1 -> C | L29: 2 | M29: =$K$1 -> C | N29: 2 | O29: =$K$1 -> C | P29: 2 | Q29: =$L$1 -> D | R29: =$J$2 -> 2 | S29: =$L$1 -> D | T29: 2 | U29: =$L$1 -> D | V29: 2 | W29: =$L$1 -> D | X29: 2 | Y29: =$L$1 -> D | Z29: 2 | AA29: =$L$1 -> D | AB29: 2 | AC29: =$L$1 -> D | AD29: 2 | AE29: =$L$1 -> D | AF29: 2 | AG29: =$L$1 -> D | AH29: 2 | AI29: =$L$1 -> D | AJ29: 2 | AK29: =$M$1 -> E | AL29: =$I$2 -> 1 | AM29: =$M$1 -> E | AN29: =$I$2 -> 1 | AO29: =$M$1 -> E | AP29: =$I$2 -> 1 | AQ29: =$M$1 -> E | AR29: =$I$2 -> 1 | AS29: =$M$1 -> E | AT29: =$I$2 -> 1 | AU29: =$M$1 -> E | AV29: =$I$2 -> 1 | AW29: =$M$1 -> E | AX29: =$I$2 -> 1 | AY29: =$M$1 -> E | AZ29: =$I$2 -> 1 | BA29: =$M$1 -> E | BB29: =$I$2 -> 1 | BC29: =$M$1 -> E | BD29: =$I$2 -> 1 | BE29: =$M$1 -> E | BF29: =$I$2 -> 1 | BG29: =$M$1 -> E | BH29: =$I$2 -> 1 | BS29: <100 | BV29: <600 | BY29: >=600
E30: Lugo | F30: =$L$1 -> D | G30: =$I$2 -> 1 | H30: 412 | I30: =$L$1 -> D | J30: =$I$2 -> 1 | K30: D | L30: 1 | M30: D | N30: 1 | O30: D | P30: 1 | Q30: D | R30: 1 | S30: D | T30: 1 | U30: D | V30: 1 | W30: D | X30: 1 | Y30: D | Z30: 1 | AA30: D | AB30: 1 | AC30: =$M$1 -> E | AD30: =$I$2 -> 1 | AE30: E | AF30: 1 | AG30: E | AH30: 1 | AI30: E | AJ30: 1 | AK30: E | AL30: 1 | AM30: E | AN30: 1 | AO30: E | AP30: 1 | AQ30: E | AR30: 1 | AS30: E | AT30: 1 | AU30: E | AV30: 1 | AW30: E | AX30: 1 | AY30: E | AZ30: 1 | BA30: E | BB30: 1 | BC30: E | BD30: 1 | BE30: E | BF30: 1 | BG30: E | BH30: 1
E31: Madrid | F31: =$L$1 -> D | G31: =$K$2 -> 3 | H31: 589 | I31: =$K$1 -> C | J31: =$K$2 -> 3 | K31: =$K$1 -> C | L31: =$K$2 -> 3 | M31: =$K$1 -> C | N31: =$K$2 -> 3 | O31: =$K$1 -> C | P31: =$K$2 -> 3 | Q31: =$K$1 -> C | R31: =$K$2 -> 3 | S31: =$K$1 -> C | T31: =$K$2 -> 3 | U31: =$K$1 -> C | V31: =$K$2 -> 3 | W31: =$K$1 -> C | X31: =$K$2 -> 3 | Y31: =$K$1 -> C | Z31: =$K$2 -> 3 | AA31: =$K$1 -> C | AB31: =$K$2 -> 3 | AC31: =$L$1 -> D | AD31: =$K$2 -> 3 | AE31: =$L$1 -> D | AF31: 3 | AG31: =$L$1 -> D | AH31: 3 | AI31: =$L$1 -> D | AJ31: 3 | AK31: =$L$1 -> D | AL31: 3 | AM31: =$L$1 -> D | AN31: 3 | AO31: =$L$1 -> D | AP31: 3 | AQ31: =$L$1 -> D | AR31: 3 | AS31: =$L$1 -> D | AT31: 3 | AU31: =$L$1 -> D | AV31: =$J$2 -> 2 | AW31: =$M$1 -> E | AX31: =$I$2 -> 1 | AY31: =$M$1 -> E | AZ31: =$I$2 -> 1 | BA31: =$M$1 -> E | BB31: =$I$2 -> 1 | BC31: =$M$1 -> E | BD31: =$I$2 -> 1 | BE31: =$M$1 -> E | BF31: =$I$2 -> 1 | BG31: =$M$1 -> E | BH31: =$I$2 -> 1 | BX31: <500 | BY31: >=500
E32: Málaga | F32: =$I$1 -> A | G32: =$K$2 -> 3 | H32: 0 | I32: =$J$1 -> B | J32: =$K$2 -> 3 | K32: B | L32: =$K$2 -> 3 | M32: B | N32: =$K$2 -> 3 | O32: B | P32: =$K$2 -> 3 | Q32: B | R32: =$K$2 -> 3 | S32: B | T32: =$K$2 -> 3 | U32: =$K$1 -> C | V32: =$K$2 -> 3 | W32: =$K$1 -> C | X32: =$K$2 -> 3 | Y32: =$K$1 -> C | Z32: =$K$2 -> 3 | AA32: =$K$1 -> C | AB32: =$K$2 -> 3 | AC32: =$K$1 -> C | AD32: 3 | AE32: C | AF32: 3 | AG32: C | AH32: 3 | AI32: C | AJ32: 3 | AK32: =$L$1 -> D | AL32: 3 | AM32: =$L$1 -> D | AN32: 3 | AO32: =$L$1 -> D | AP32: 3 | AQ32: =$L$1 -> D | AR32: 3 | AS32: =$L$1 -> D | AT32: 3 | AU32: =$L$1 -> D | AV32: =$K$2 -> 3 | AW32: =$L$1 -> D | AX32: 3 | AY32: =$L$1 -> D | AZ32: 3 | BA32: =$L$1 -> D | BB32: 3 | BC32: D | BD32: 3 | BE32: D | BF32: 3 | BG32: D | BH32: 3 | BS32: <500 | BV32: <950 | BW32: <1000 | BY32: >=1000
E33: Melilla | F33: =$I$1 -> A | G33: =$K$2 -> 3 | H33: 130 | I33: =$I$1 -> A | J33: =$K$2 -> 3 | K33: A | L33: =$K$2 -> 3 | M33: A | N33: =$K$2 -> 3 | O33: A | P33: =$K$2 -> 3 | Q33: A | R33: =$K$2 -> 3 | S33: A | T33: =$K$2 -> 3 | U33: A | V33: =$K$2 -> 3 | W33: A | X33: =$K$2 -> 3 | Y33: A | Z33: =$K$2 -> 3 | AA33: A | AB33: =$K$2 -> 3 | AC33: A | AD33: 3 | AE33: A | AF33: 3 | AG33: A | AH33: 3 | AI33: A | AJ33: 3 | AK33: A | AL33: 3 | AM33: A | AN33: 3 | AO33: A | AP33: 3 | AQ33: A | AR33: 3 | AS33: A | AT33: 3 | AU33: A | AV33: 3 | AW33: A | AX33: 3 | AY33: A | AZ33: 3 | BA33: A | BB33: 3 | BC33: A | BD33: 3 | BE33: A | BF33: 3 | BG33: A | BH33: 3 | BO33: <300 | BS33: <700 | BV33: >=700
E34: Murcia | F34: =$J$1 -> B | G34: =$K$2 -> 3 | H34: 25 | I34: =$J$1 -> B | J34: =$K$2 -> 3 | K34: =$J$1 -> B | L34: =$K$2 -> 3 | M34: =$K$1 -> C | N34: =$K$2 -> 3 | O34: =$K$1 -> C | P34: =$K$2 -> 3 | Q34: =$K$1 -> C | R34: =$K$2 -> 3 | S34: =$K$1 -> C | T34: =$K$2 -> 3 | U34: =$K$1 -> C | V34: =$K$2 -> 3 | W34: =$K$1 -> C | X34: =$K$2 -> 3 | Y34: =$K$1 -> C | Z34: =$K$2 -> 3 | AA34: =$K$1 -> C | AB34: =$K$2 -> 3 | AC34: =$K$1 -> C | AD34: 3 | AE34: =$L$1 -> D | AF34: 3 | AG34: D | AH34: 3 | AI34: D | AJ34: 3 | AK34: D | AL34: 3 | AM34: D | AN34: 3 | AO34: D | AP34: 3 | AQ34: D | AR34: 3 | AS34: D | AT34: 3 | AU34: D | AV34: 3 | AW34: D | AX34: 3 | AY34: D | AZ34: 3 | BA34: D | BB34: 3 | BC34: D | BD34: 3 | BE34: D | BF34: 3 | BG34: D | BH34: 3
E35: Orense | F35: =$L$1 -> D | G35: =$J$2 -> 2 | H35: 327 | I35: =$K$1 -> C | J35: =$K$2 -> 3 | K35: =$K$1 -> C | L35: =$K$2 -> 3 | M35: =$K$1 -> C | N35: =$K$2 -> 3 | O35: =$K$1 -> C | P35: =$J$2 -> 2 | Q35: =$K$1 -> C | R35: =$J$2 -> 2 | S35: =$K$1 -> C | T35: =$J$2 -> 2 | U35: =$L$1 -> D | V35: =$J$2 -> 2 | W35: D | X35: 2 | Y35: D | Z35: 2 | AA35: D | AB35: 2 | AC35: D | AD35: 2 | AE35: D | AF35: 2 | AG35: D | AH35: 2 | AI35: D | AJ35: 2 | AK35: D | AL35: 2 | AM35: D | AN35: 2 | AO35: =$M$1 -> E | AP35: =$I$2 -> 1 | AQ35: E | AR35: 1 | AS35: E | AT35: 1 | AU35: E | AV35: 1 | AW35: E | AX35: 1 | AY35: E | AZ35: 1 | BA35: E | BB35: 1 | BC35: E | BD35: 1 | BE35: E | BF35: 1 | BG35: E | BH35: 1 | BT35: <100 | BW35: <300 | BX35: <600 | BY35: >=600
E36: Oviedo | F36: =$L$1 -> D | G36: =$I$2 -> 1 | H36: 214 | I36: =$K$1 -> C | J36: =$I$2 -> 1 | K36: =$L$1 -> D | L36: =$I$2 -> 1 | M36: =$L$1 -> D | N36: =$I$2 -> 1 | O36: =$L$1 -> D | P36: =$I$2 -> 1 | Q36: =$L$1 -> D | R36: =$I$2 -> 1 | S36: =$L$1 -> D | T36: =$I$2 -> 1 | U36: =$L$1 -> D | V36: =$I$2 -> 1 | W36: =$L$1 -> D | X36: =$I$2 -> 1 | Y36: =$L$1 -> D | Z36: =$I$2 -> 1 | AA36: =$L$1 -> D | AB36: =$I$2 -> 1 | AC36: =$L$1 -> D | AD36: =$I$2 -> 1 | AE36: =$M$1 -> E | AF36: =$I$2 -> 1 | AG36: =$M$1 -> E | AH36: =$I$2 -> 1 | AI36: =$M$1 -> E | AJ36: =$I$2 -> 1 | AK36: =$M$1 -> E | AL36: =$I$2 -> 1 | AM36: =$M$1 -> E | AN36: =$I$2 -> 1 | AO36: =$M$1 -> E | AP36: =$I$2 -> 1 | AQ36: =$M$1 -> E | AR36: =$I$2 -> 1 | AS36: =$M$1 -> E | AT36: =$I$2 -> 1 | AU36: =$M$1 -> E | AV36: =$I$2 -> 1 | AW36: =$M$1 -> E | AX36: =$I$2 -> 1 | AY36: =$M$1 -> E | AZ36: =$I$2 -> 1 | BA36: =$M$1 -> E | BB36: =$I$2 -> 1 | BC36: =$M$1 -> E | BD36: =$I$2 -> 1 | BE36: =$M$1 -> E | BF36: =$I$2 -> 1 | BG36: =$M$1 -> E | BH36: =$I$2 -> 1 | BS36: <150 | BT36: <300 | BW36: <800 | BY36: >=800
E37: Palencia | F37: =$L$1 -> D | G37: =$I$2 -> 1 | H37: 722 | I37: =$L$1 -> D | J37: =$I$2 -> 1 | K37: =$L$1 -> D | L37: =$I$2 -> 1 | M37: =$L$1 -> D | N37: =$I$2 -> 1 | O37: =$L$1 -> D | P37: =$I$2 -> 1 | Q37: =$L$1 -> D | R37: =$I$2 -> 1 | S37: =$L$1 -> D | T37: =$I$2 -> 1 | U37: =$L$1 -> D | V37: =$I$2 -> 1 | W37: =$L$1 -> D | X37: =$I$2 -> 1 | Y37: =$L$1 -> D | Z37: =$I$2 -> 1 | AA37: =$L$1 -> D | AB37: =$I$2 -> 1 | AC37: =$L$1 -> D | AD37: =$I$2 -> 1 | AE37: =$L$1 -> D | AF37: =$I$2 -> 1 | AG37: D | AH37: =$I$2 -> 1 | AI37: D | AJ37: =$I$2 -> 1 | AK37: D | AL37: =$I$2 -> 1 | AM37: D | AN37: =$I$2 -> 1 | AO37: =$M$1 -> E | AP37: =$I$2 -> 1 | AQ37: =$M$1 -> E | AR37: =$I$2 -> 1 | AS37: =$M$1 -> E | AT37: =$I$2 -> 1 | AU37: =$M$1 -> E | AV37: =$I$2 -> 1 | AW37: =$M$1 -> E | AX37: =$I$2 -> 1 | AY37: =$M$1 -> E | AZ37: =$I$2 -> 1 | BA37: =$M$1 -> E | BB37: =$I$2 -> 1 | BC37: =$M$1 -> E | BD37: =$I$2 -> 1 | BE37: =$M$1 -> E | BF37: =$I$2 -> 1 | BG37: =$M$1 -> E | BH37: =$I$2 -> 1
E38: Las_Palmas_de_Gran_Canaria | F38: Alfa | G38: =$K$2 -> 3 | H38: 114 | I38: =$F$59 -> Alfa | J38: =$K$2 -> 3 | K38: =$F$59 -> Alfa | L38: =$K$2 -> 3 | M38: =$F$59 -> Alfa | N38: =$K$2 -> 3 | O38: =$F$59 -> Alfa | P38: =$K$2 -> 3 | Q38: =$F$59 -> Alfa | R38: =$K$2 -> 3 | S38: =$F$59 -> Alfa | T38: =$K$2 -> 3 | U38: =$F$59 -> Alfa | V38: =$K$2 -> 3 | W38: =$I$1 -> A | X38: =$J$2 -> 2 | Y38: A | Z38: 2 | AA38: A | AB38: 2 | AC38: A | AD38: 2 | AE38: A | AF38: 2 | AG38: A | AH38: 2 | AI38: A | AJ38: 2 | AK38: A | AL38: 2 | AM38: =$J$1 -> B | AN38: =$J$2 -> 2 | AO38: =$J$1 -> B | AP38: 2 | AQ38: =$J$1 -> B | AR38: 2 | AS38: =$J$1 -> B | AT38: 2 | AU38: =$J$1 -> B | AV38: 2 | AW38: =$K$1 -> C | AX38: =$J$2 -> 2 | AY38: C | AZ38: =$J$2 -> 2 | BA38: C | BB38: =$J$2 -> 2 | BC38: C | BD38: =$J$2 -> 2 | BE38: C | BF38: =$J$2 -> 2 | BG38: C | BH38: =$J$2 -> 2 | BX38: <800 | BY38: >=800
E39: Palma_de_Mallorca | F39: =$J$1 -> B | G39: =$K$2 -> 3 | H39: 1 | I39: =$J$1 -> B | J39: =$K$2 -> 3 | K39: B | L39: 3 | M39: B | N39: 3 | O39: B | P39: 3 | Q39: B | R39: 3 | S39: =$K$1 -> C | T39: =$K$2 -> 3 | U39: =$K$1 -> C | V39: 3 | W39: =$K$1 -> C | X39: 3 | Y39: =$K$1 -> C | Z39: 3 | AA39: =$K$1 -> C | AB39: 3 | AC39: =$K$1 -> C | AD39: 3 | AE39: C | AF39: 3 | AG39: C | AH39: 3 | AI39: C | AJ39: 3 | AK39: C | AL39: 3 | AM39: C | AN39: 3 | AO39: C | AP39: 3 | AQ39: C | AR39: 3 | AS39: C | AT39: 3 | AU39: C | AV39: 3 | AW39: C | AX39: 3 | AY39: C | AZ39: 3 | BA39: C | BB39: 3 | BC39: C | BD39: 3 | BE39: C | BF39: 3 | BG39: C | BH39: 3
E40: Pamplona | F40: =$L$1 -> D | G40: =$I$2 -> 1 | H40: 456 | I40: =$K$1 -> C | J40: =$J$2 -> 2 | K40: =$K$1 -> C | L40: =$J$2 -> 2 | M40: =$L$1 -> D | N40: =$J$2 -> 2 | O40: D | P40: 2 | Q40: D | R40: 2 | S40: D | T40: 2 | U40: =$L$1 -> D | V40: =$I$2 -> 1 | W40: =$L$1 -> D | X40: =$I$2 -> 1 | Y40: =$L$1 -> D | Z40: =$I$2 -> 1 | AA40: =$L$1 -> D | AB40: =$I$2 -> 1 | AC40: =$L$1 -> D | AD40: =$I$2 -> 1 | AE40: =$L$1 -> D | AF40: =$I$2 -> 1 | AG40: =$M$1 -> E | AH40: =$I$2 -> 1 | AI40: =$M$1 -> E | AJ40: =$I$2 -> 1 | AK40: =$M$1 -> E | AL40: =$I$2 -> 1 | AM40: =$M$1 -> E | AN40: =$I$2 -> 1 | AO40: =$M$1 -> E | AP40: =$I$2 -> 1 | AQ40: =$M$1 -> E | AR40: =$I$2 -> 1 | AS40: =$M$1 -> E | AT40: =$I$2 -> 1 | AU40: =$M$1 -> E | AV40: =$I$2 -> 1 | AW40: =$M$1 -> E | AX40: =$I$2 -> 1 | AY40: =$M$1 -> E | AZ40: =$I$2 -> 1 | BA40: =$M$1 -> E | BB40: =$I$2 -> 1 | BC40: =$M$1 -> E | BD40: =$I$2 -> 1 | BE40: =$M$1 -> E | BF40: =$I$2 -> 1 | BG40: =$M$1 -> E | BH40: =$I$2 -> 1
E41: Pontevedra | F41: =$K$1 -> C | G41: =$I$2 -> 1 | H41: 77 | I41: =$K$1 -> C | J41: =$I$2 -> 1 | K41: =$K$1 -> C | L41: 1 | M41: =$K$1 -> C | N41: 1 | O41: =$K$1 -> C | P41: 1 | Q41: =$K$1 -> C | R41: 1 | S41: =$K$1 -> C | T41: 1 | U41: =$K$1 -> C | V41: 1 | W41: =$L$1 -> D | X41: =$I$2 -> 1 | Y41: =$L$1 -> D | Z41: =$I$2 -> 1 | AA41: =$L$1 -> D | AB41: =$I$2 -> 1 | AC41: =$L$1 -> D | AD41: =$I$2 -> 1 | AE41: =$L$1 -> D | AF41: =$I$2 -> 1 | AG41: =$L$1 -> D | AH41: =$I$2 -> 1 | AI41: =$L$1 -> D | AJ41: =$I$2 -> 1 | AK41: =$L$1 -> D | AL41: =$I$2 -> 1 | AM41: =$L$1 -> D | AN41: =$I$2 -> 1 | AO41: =$L$1 -> D | AP41: =$I$2 -> 1 | AQ41: =$L$1 -> D | AR41: =$I$2 -> 1 | AS41: =$L$1 -> D | AT41: =$I$2 -> 1 | AU41: =$L$1 -> D | AV41: =$I$2 -> 1 | AW41: D | AX41: =$I$2 -> 1 | AY41: D | AZ41: =$I$2 -> 1 | BA41: D | BB41: =$I$2 -> 1 | BC41: D | BD41: =$I$2 -> 1 | BE41: D | BF41: =$I$2 -> 1 | BG41: D | BH41: =$I$2 -> 1 | BU41: <350 | BX41: >=350
E42: Salamanca | F42: =$L$1 -> D | G42: =$J$2 -> 2 | H42: 770 | I42: =$L$1 -> D | J42: =$J$2 -> 2 | K42: D | L42: 2 | M42: D | N42: 2 | O42: D | P42: 2 | Q42: D | R42: 2 | S42: D | T42: 2 | U42: D | V42: 2 | W42: D | X42: 2 | Y42: D | Z42: 2 | AA42: D | AB42: 2 | AC42: D | AD42: 2 | AE42: D | AF42: 2 | AG42: D | AH42: 2 | AI42: D | AJ42: 2 | AK42: D | AL42: 2 | AM42: D | AN42: 2 | AO42: =$M$1 -> E | AP42: =$I$2 -> 1 | AQ42: =$M$1 -> E | AR42: =$I$2 -> 1 | AS42: =$M$1 -> E | AT42: =$I$2 -> 1 | AU42: =$M$1 -> E | AV42: =$I$2 -> 1 | AW42: =$M$1 -> E | AX42: =$I$2 -> 1 | AY42: =$M$1 -> E | AZ42: =$I$2 -> 1 | BA42: =$M$1 -> E | BB42: =$I$2 -> 1 | BC42: =$M$1 -> E | BD42: =$I$2 -> 1 | BE42: =$M$1 -> E | BF42: =$I$2 -> 1 | BG42: =$M$1 -> E | BH42: =$I$2 -> 1 | BW42: <800 | BY42: >=800
E43: San_Sebastián | F43: =$L$1 -> D | G43: =$I$2 -> 1 | H43: 5 | I43: =$L$1 -> D | J43: =$I$2 -> 1 | K43: =$L$1 -> D | L43: =$I$2 -> 1 | M43: =$L$1 -> D | N43: =$I$2 -> 1 | O43: =$L$1 -> D | P43: =$I$2 -> 1 | Q43: =$L$1 -> D | R43: =$I$2 -> 1 | S43: =$L$1 -> D | T43: =$I$2 -> 1 | U43: =$L$1 -> D | V43: =$I$2 -> 1 | W43: =$L$1 -> D | X43: =$I$2 -> 1 | Y43: =$M$1 -> E | Z43: =$I$2 -> 1 | AA43: =$M$1 -> E | AB43: =$I$2 -> 1 | AC43: =$M$1 -> E | AD43: =$I$2 -> 1 | AE43: =$M$1 -> E | AF43: =$I$2 -> 1 | AG43: =$M$1 -> E | AH43: =$I$2 -> 1 | AI43: =$M$1 -> E | AJ43: =$I$2 -> 1 | AK43: =$M$1 -> E | AL43: =$I$2 -> 1 | AM43: =$M$1 -> E | AN43: =$I$2 -> 1 | AO43: =$M$1 -> E | AP43: =$I$2 -> 1 | AQ43: =$M$1 -> E | AR43: =$I$2 -> 1 | AS43: =$M$1 -> E | AT43: =$I$2 -> 1 | AU43: =$M$1 -> E | AV43: =$I$2 -> 1 | AW43: =$M$1 -> E | AX43: =$I$2 -> 1 | AY43: =$M$1 -> E | AZ43: =$I$2 -> 1 | BA43: =$M$1 -> E | BB43: =$I$2 -> 1 | BC43: =$M$1 -> E | BD43: =$I$2 -> 1 | BE43: =$M$1 -> E | BF43: =$I$2 -> 1 | BG43: =$M$1 -> E | BH43: =$I$2 -> 1
E44: Santa_Cruz_de_Tenerife | F44: Alfa | G44: =$K$2 -> 3 | H44: 0 | I44: =$F$59 -> Alfa | J44: =$K$2 -> 3 | K44: =$F$59 -> Alfa | L44: =$K$2 -> 3 | M44: =$F$59 -> Alfa | N44: =$K$2 -> 3 | O44: =$F$59 -> Alfa | P44: =$K$2 -> 3 | Q44: =$F$59 -> Alfa | R44: =$K$2 -> 3 | S44: =$F$59 -> Alfa | T44: =$K$2 -> 3 | U44: =$F$59 -> Alfa | V44: =$K$2 -> 3 | W44: =$I$1 -> A | X44: =$J$2 -> 2 | Y44: A | Z44: 2 | AA44: A | AB44: 2 | AC44: A | AD44: 2 | AE44: A | AF44: 2 | AG44: A | AH44: 2 | AI44: A | AJ44: 2 | AK44: A | AL44: 2 | AM44: =$J$1 -> B | AN44: =$J$2 -> 2 | AO44: =$J$1 -> B | AP44: 2 | AQ44: =$J$1 -> B | AR44: 2 | AS44: =$J$1 -> B | AT44: 2 | AU44: =$J$1 -> B | AV44: 2 | AW44: =$K$1 -> C | AX44: =$J$2 -> 2 | AY44: C | AZ44: =$J$2 -> 2 | BA44: C | BB44: =$J$2 -> 2 | BC44: C | BD44: =$J$2 -> 2 | BE44: C | BF44: =$J$2 -> 2 | BG44: C | BH44: =$J$2 -> 2
E45: Santander | F45: =$K$1 -> C | G45: =$I$2 -> 1 | H45: 1 | I45: =$K$1 -> C | J45: =$I$2 -> 1 | K45: =$K$1 -> C | L45: =$I$2 -> 1 | M45: =$K$1 -> C | N45: =$I$2 -> 1 | O45: =$L$1 -> D | P45: =$I$2 -> 1 | Q45: =$L$1 -> D | R45: =$I$2 -> 1 | S45: =$L$1 -> D | T45: =$I$2 -> 1 | U45: =$L$1 -> D | V45: =$I$2 -> 1 | W45: =$L$1 -> D | X45: =$I$2 -> 1 | Y45: =$L$1 -> D | Z45: =$I$2 -> 1 | AA45: =$L$1 -> D | AB45: =$I$2 -> 1 | AC45: =$L$1 -> D | AD45: =$I$2 -> 1 | AE45: =$L$1 -> D | AF45: =$I$2 -> 1 | AG45: =$L$1 -> D | AH45: =$I$2 -> 1 | AI45: =$M$1 -> E | AJ45: =$I$2 -> 1 | AK45: =$M$1 -> E | AL45: =$I$2 -> 1 | AM45: =$M$1 -> E | AN45: =$I$2 -> 1 | AO45: =$M$1 -> E | AP45: =$I$2 -> 1 | AQ45: =$M$1 -> E | AR45: =$I$2 -> 1 | AS45: =$M$1 -> E | AT45: =$I$2 -> 1 | AU45: =$M$1 -> E | AV45: =$I$2 -> 1 | AW45: =$M$1 -> E | AX45: =$I$2 -> 1 | AY45: =$M$1 -> E | AZ45: =$I$2 -> 1 | BA45: =$M$1 -> E | BB45: =$I$2 -> 1 | BC45: =$M$1 -> E | BD45: =$I$2 -> 1 | BE45: =$M$1 -> E | BF45: =$I$2 -> 1 | BG45: =$M$1 -> E | BH45: =$I$2 -> 1 | BW45: <1000 | BY45: >=1000
E46: Segovia | F46: =$L$1 -> D | G46: =$J$2 -> 2 | H46: 1013 | I46: =$L$1 -> D | J46: =$J$2 -> 2 | K46: =$L$1 -> D | L46: =$J$2 -> 2 | M46: =$L$1 -> D | N46: =$J$2 -> 2 | O46: =$L$1 -> D | P46: =$J$2 -> 2 | Q46: =$L$1 -> D | R46: =$J$2 -> 2 | S46: =$L$1 -> D | T46: =$J$2 -> 2 | U46: =$L$1 -> D | V46: =$J$2 -> 2 | W46: =$L$1 -> D | X46: =$J$2 -> 2 | Y46: =$L$1 -> D | Z46: =$J$2 -> 2 | AA46: =$L$1 -> D | AB46: =$J$2 -> 2 | AC46: =$L$1 -> D | AD46: =$J$2 -> 2 | AE46: =$L$1 -> D | AF46: =$J$2 -> 2 | AG46: =$L$1 -> D | AH46: =$J$2 -> 2 | AI46: =$L$1 -> D | AJ46: =$J$2 -> 2 | AK46: =$L$1 -> D | AL46: =$J$2 -> 2 | AM46: =$L$1 -> D | AN46: =$J$2 -> 2 | AO46: =$L$1 -> D | AP46: =$J$2 -> 2 | AQ46: =$L$1 -> D | AR46: =$J$2 -> 2 | AS46: =$L$1 -> D | AT46: =$J$2 -> 2 | AU46: =$L$1 -> D | AV46: =$J$2 -> 2 | AW46: =$M$1 -> E | AX46: =$I$2 -> 1 | AY46: =$M$1 -> E | AZ46: =$I$2 -> 1 | BA46: =$M$1 -> E | BB46: =$I$2 -> 1 | BC46: =$M$1 -> E | BD46: =$I$2 -> 1 | BE46: =$M$1 -> E | BF46: =$I$2 -> 1 | BG46: =$M$1 -> E | BH46: =$I$2 -> 1 | BN46: <200 | BR46: >=200
E47: Sevilla | F47: =$J$1 -> B | G47: =$L$2 -> 4 | H47: 9 | I47: =$J$1 -> B | J47: =$L$2 -> 4 | K47: =$J$1 -> B | L47: =$L$2 -> 4 | M47: =$J$1 -> B | N47: =$L$2 -> 4 | O47: =$J$1 -> B | P47: =$L$2 -> 4 | Q47: =$K$1 -> C | R47: =$L$2 -> 4 | S47: =$K$1 -> C | T47: =$L$2 -> 4 | U47: =$K$1 -> C | V47: =$L$2 -> 4 | W47: =$K$1 -> C | X47: =$L$2 -> 4 | Y47: =$K$1 -> C | Z47: =$L$2 -> 4 | AA47: =$K$1 -> C | AB47: =$L$2 -> 4 | AC47: =$K$1 -> C | AD47: =$L$2 -> 4 | AE47: =$K$1 -> C | AF47: =$L$2 -> 4 | AG47: =$K$1 -> C | AH47: =$L$2 -> 4 | AI47: =$K$1 -> C | AJ47: =$L$2 -> 4 | AK47: =$K$1 -> C | AL47: =$L$2 -> 4 | AM47: =$K$1 -> C | AN47: =$L$2 -> 4 | AO47: =$K$1 -> C | AP47: =$L$2 -> 4 | AQ47: =$K$1 -> C | AR47: =$L$2 -> 4 | AS47: =$K$1 -> C | AT47: =$L$2 -> 4 | AU47: =$K$1 -> C | AV47: =$L$2 -> 4 | AW47: =$K$1 -> C | AX47: =$L$2 -> 4 | AY47: =$K$1 -> C | AZ47: =$L$2 -> 4 | BA47: =$K$1 -> C | BB47: =$L$2 -> 4 | BC47: =$K$1 -> C | BD47: =$L$2 -> 4 | BE47: =$K$1 -> C | BF47: =$L$2 -> 4 | BG47: =$K$1 -> C | BH47: =$L$2 -> 4 | BW47: <750 | BX47: <800 | BY47: >=800
E48: Soria | F48: =$M$1 -> E | G48: =$I$2 -> 1 | H48: 984 | I48: =$L$1 -> D | J48: =$J$2 -> 2 | K48: =$L$1 -> D | L48: =$J$2 -> 2 | M48: =$L$1 -> D | N48: =$J$2 -> 2 | O48: =$L$1 -> D | P48: =$J$2 -> 2 | Q48: =$L$1 -> D | R48: =$J$2 -> 2 | S48: =$L$1 -> D | T48: =$J$2 -> 2 | U48: =$L$1 -> D | V48: =$J$2 -> 2 | W48: =$L$1 -> D | X48: =$J$2 -> 2 | Y48: =$L$1 -> D | Z48: =$J$2 -> 2 | AA48: =$L$1 -> D | AB48: =$J$2 -> 2 | AC48: =$L$1 -> D | AD48: =$J$2 -> 2 | AE48: =$L$1 -> D | AF48: =$J$2 -> 2 | AG48: =$L$1 -> D | AH48: =$J$2 -> 2 | AI48: =$L$1 -> D | AJ48: =$J$2 -> 2 | AK48: =$L$1 -> D | AL48: =$J$2 -> 2 | AM48: =$L$1 -> D | AN48: =$I$2 -> 1 | AO48: =$M$1 -> E | AP48: =$I$2 -> 1 | AQ48: =$M$1 -> E | AR48: =$I$2 -> 1 | AS48: =$M$1 -> E | AT48: =$I$2 -> 1 | AU48: =$M$1 -> E | AV48: =$I$2 -> 1 | AW48: =$M$1 -> E | AX48: =$I$2 -> 1 | AY48: =$M$1 -> E | AZ48: =$I$2 -> 1 | BA48: =$M$1 -> E | BB48: =$I$2 -> 1 | BC48: =$M$1 -> E | BD48: =$I$2 -> 1 | BE48: =$M$1 -> E | BF48: =$I$2 -> 1 | BG48: =$M$1 -> E | BH48: =$I$2 -> 1 | BO48: <50 | BS48: <500 | BV48: >=500
E49: Tarragona | F49: =$J$1 -> B | G49: =$K$2 -> 3 | H49: 1 | I49: =$J$1 -> B | J49: =$K$2 -> 3 | K49: =$K$1 -> C | L49: =$K$2 -> 3 | M49: C | N49: =$K$2 -> 3 | O49: C | P49: =$K$2 -> 3 | Q49: C | R49: =$K$2 -> 3 | S49: C | T49: =$K$2 -> 3 | U49: C | V49: =$K$2 -> 3 | W49: C | X49: =$K$2 -> 3 | Y49: C | Z49: =$K$2 -> 3 | AA49: C | AB49: =$K$2 -> 3 | AC49: D | AD49: =$K$2 -> 3 | AE49: D | AF49: 3 | AG49: D | AH49: 3 | AI49: D | AJ49: 3 | AK49: D | AL49: 3 | AM49: D | AN49: 3 | AO49: =$L$1 -> D | AP49: 3 | AQ49: =$L$1 -> D | AR49: 3 | AS49: =$L$1 -> D | AT49: 3 | AU49: =$L$1 -> D | AV49: 3 | AW49: =$L$1 -> D | AX49: 3 | AY49: D | AZ49: 3 | BA49: D | BB49: 3 | BC49: D | BD49: 3 | BE49: D | BF49: 3 | BG49: D | BH49: 3 | BS49: <450 | BT49: <500 | BW49: <1000 | BY49: >=1000
E50: Teruel | F50: =$L$1 -> D | G50: =$J$2 -> 2 | H50: 995 | I50: C | J50: =$K$2 -> 3 | K50: C | L50: =$K$2 -> 3 | M50: C | N50: =$K$2 -> 3 | O50: C | P50: =$K$2 -> 3 | Q50: C | R50: =$K$2 -> 3 | S50: C | T50: =$K$2 -> 3 | U50: C | V50: =$K$2 -> 3 | W50: C | X50: =$K$2 -> 3 | Y50: C | Z50: =$K$2 -> 3 | AA50: C | AB50: =$J$2 -> 2 | AC50: D | AD50: =$J$2 -> 2 | AE50: D | AF50: =$J$2 -> 2 | AG50: D | AH50: =$J$2 -> 2 | AI50: D | AJ50: =$J$2 -> 2 | AK50: D | AL50: =$J$2 -> 2 | AM50: D | AN50: =$J$2 -> 2 | AO50: =$L$1 -> D | AP50: =$J$2 -> 2 | AQ50: =$L$1 -> D | AR50: =$J$2 -> 2 | AS50: =$L$1 -> D | AT50: =$J$2 -> 2 | AU50: =$L$1 -> D | AV50: =$J$2 -> 2 | AW50: =$M$1 -> E | AX50: =$I$2 -> 1 | AY50: =$M$1 -> E | AZ50: =$I$2 -> 1 | BA50: =$M$1 -> E | BB50: =$I$2 -> 1 | BC50: =$M$1 -> E | BD50: =$I$2 -> 1 | BE50: =$M$1 -> E | BF50: =$I$2 -> 1 | BG50: =$M$1 -> E | BH50: =$I$2 -> 1 | BR50: <500 | BV50: >=500
E51: Toledo | F51: =$K$1 -> C | G51: =$L$2 -> 4 | H51: 445 | I51: C | J51: =$L$2 -> 4 | K51: C | L51: =$L$2 -> 4 | M51: C | N51: =$L$2 -> 4 | O51: C | P51: =$L$2 -> 4 | Q51: C | R51: =$L$2 -> 4 | S51: C | T51: =$L$2 -> 4 | U51: C | V51: =$L$2 -> 4 | W51: C | X51: =$L$2 -> 4 | Y51: C | Z51: =$L$2 -> 4 | AA51: C | AB51: =$L$2 -> 4 | AC51: D | AD51: =$K$2 -> 3 | AE51: D | AF51: 3 | AG51: D | AH51: 3 | AI51: D | AJ51: 3 | AK51: D | AL51: 3 | AM51: D | AN51: 3 | AO51: =$L$1 -> D | AP51: 3 | AQ51: =$L$1 -> D | AR51: 3 | AS51: =$L$1 -> D | AT51: 3 | AU51: =$L$1 -> D | AV51: 3 | AW51: =$L$1 -> D | AX51: 3 | AY51: D | AZ51: 3 | BA51: D | BB51: 3 | BC51: D | BD51: 3 | BE51: D | BF51: 3 | BG51: D | BH51: 3 | BO51: <50 | BS51: <500 | BW51: <950 | BY51: >=950
E52: Valencia | F52: =$J$1 -> B | G52: =$K$2 -> 3 | H52: 8 | I52: =$J$1 -> B | J52: =$K$2 -> 3 | K52: C | L52: =$K$2 -> 3 | M52: C | N52: =$K$2 -> 3 | O52: C | P52: =$K$2 -> 3 | Q52: C | R52: =$K$2 -> 3 | S52: C | T52: =$K$2 -> 3 | U52: C | V52: =$K$2 -> 3 | W52: C | X52: =$K$2 -> 3 | Y52: C | Z52: =$K$2 -> 3 | AA52: C | AB52: =$K$2 -> 3 | AC52: D | AD52: =$J$2 -> 2 | AE52: D | AF52: =$J$2 -> 2 | AG52: D | AH52: =$J$2 -> 2 | AI52: D | AJ52: =$J$2 -> 2 | AK52: D | AL52: =$J$2 -> 2 | AM52: D | AN52: =$J$2 -> 2 | AO52: =$L$1 -> D | AP52: =$J$2 -> 2 | AQ52: =$L$1 -> D | AR52: =$J$2 -> 2 | AS52: =$L$1 -> D | AT52: =$J$2 -> 2 | AU52: =$M$1 -> E | AV52: =$I$2 -> 1 | AW52: =$M$1 -> E | AX52: =$I$2 -> 1 | AY52: =$M$1 -> E | AZ52: =$I$2 -> 1 | BA52: =$M$1 -> E | BB52: =$I$2 -> 1 | BC52: =$M$1 -> E | BD52: =$I$2 -> 1 | BE52: =$M$1 -> E | BF52: =$I$2 -> 1 | BG52: =$M$1 -> E | BH52: =$I$2 -> 1 | BW52: <800 | BY52: >=800
E53: Valladolid | F53: =$L$1 -> D | G53: =$J$2 -> 2 | H53: 704 | I53: =$L$1 -> D | J53: =$J$2 -> 2 | K53: =$L$1 -> D | L53: =$J$2 -> 2 | M53: =$L$1 -> D | N53: =$J$2 -> 2 | O53: =$L$1 -> D | P53: =$J$2 -> 2 | Q53: =$L$1 -> D | R53: =$J$2 -> 2 | S53: =$L$1 -> D | T53: =$J$2 -> 2 | U53: =$L$1 -> D | V53: =$J$2 -> 2 | W53: =$L$1 -> D | X53: =$J$2 -> 2 | Y53: =$L$1 -> D | Z53: =$J$2 -> 2 | AA53: =$L$1 -> D | AB53: =$J$2 -> 2 | AC53: D | AD53: =$J$2 -> 2 | AE53: D | AF53: =$J$2 -> 2 | AG53: D | AH53: =$J$2 -> 2 | AI53: D | AJ53: =$J$2 -> 2 | AK53: D | AL53: =$J$2 -> 2 | AM53: D | AN53: =$J$2 -> 2 | AO53: =$M$1 -> E | AP53: =$I$2 -> 1 | AQ53: =$M$1 -> E | AR53: =$I$2 -> 1 | AS53: =$M$1 -> E | AT53: =$I$2 -> 1 | AU53: =$M$1 -> E | AV53: =$I$2 -> 1 | AW53: =$M$1 -> E | AX53: =$I$2 -> 1 | AY53: =$M$1 -> E | AZ53: =$I$2 -> 1 | BA53: =$M$1 -> E | BB53: =$I$2 -> 1 | BC53: =$M$1 -> E | BD53: =$I$2 -> 1 | BE53: =$M$1 -> E | BF53: =$I$2 -> 1 | BG53: =$M$1 -> E | BH53: =$I$2 -> 1
E54: Vitoria | F54: =$L$1 -> D | G54: =$I$2 -> 1 | H54: 512 | I54: =$L$1 -> D | J54: =$I$2 -> 1 | K54: =$L$1 -> D | L54: 1 | M54: =$L$1 -> D | N54: 1 | O54: =$L$1 -> D | P54: 1 | Q54: =$L$1 -> D | R54: 1 | S54: =$L$1 -> D | T54: 1 | U54: =$L$1 -> D | V54: 1 | W54: =$L$1 -> D | X54: 1 | Y54: =$L$1 -> D | Z54: 1 | AA54: =$L$1 -> D | AB54: 1 | AC54: =$M$1 -> E | AD54: =$I$2 -> 1 | AE54: =$M$1 -> E | AF54: =$I$2 -> 1 | AG54: =$M$1 -> E | AH54: =$I$2 -> 1 | AI54: =$M$1 -> E | AJ54: =$I$2 -> 1 | AK54: =$M$1 -> E | AL54: =$I$2 -> 1 | AM54: =$M$1 -> E | AN54: =$I$2 -> 1 | AO54: =$M$1 -> E | AP54: =$I$2 -> 1 | AQ54: =$M$1 -> E | AR54: =$I$2 -> 1 | AS54: =$M$1 -> E | AT54: =$I$2 -> 1 | AU54: =$M$1 -> E | AV54: =$I$2 -> 1 | AW54: =$M$1 -> E | AX54: =$I$2 -> 1 | AY54: =$M$1 -> E | AZ54: =$I$2 -> 1 | BA54: =$M$1 -> E | BB54: =$I$2 -> 1 | BC54: =$M$1 -> E | BD54: =$I$2 -> 1 | BE54: =$M$1 -> E | BF54: =$I$2 -> 1 | BG54: =$M$1 -> E | BH54: =$I$2 -> 1 | BW54: <800 | BY54: >=800
E55: Zamora | F55: =$L$1 -> D | G55: =$J$2 -> 2 | H55: 617 | I55: =$L$1 -> D | J55: =$J$2 -> 2 | K55: =$L$1 -> D | L55: =$J$2 -> 2 | M55: =$L$1 -> D | N55: =$J$2 -> 2 | O55: =$L$1 -> D | P55: =$J$2 -> 2 | Q55: =$L$1 -> D | R55: =$J$2 -> 2 | S55: =$L$1 -> D | T55: =$J$2 -> 2 | U55: =$L$1 -> D | V55: =$J$2 -> 2 | W55: =$L$1 -> D | X55: =$J$2 -> 2 | Y55: =$L$1 -> D | Z55: =$J$2 -> 2 | AA55: =$L$1 -> D | AB55: =$J$2 -> 2 | AC55: =$L$1 -> D | AD55: =$J$2 -> 2 | AE55: =$L$1 -> D | AF55: =$J$2 -> 2 | AG55: =$L$1 -> D | AH55: =$J$2 -> 2 | AI55: =$L$1 -> D | AJ55: =$J$2 -> 2 | AK55: =$L$1 -> D | AL55: =$J$2 -> 2 | AM55: =$L$1 -> D | AN55: =$J$2 -> 2 | AO55: =$M$1 -> E | AP55: =$I$2 -> 1 | AQ55: =$M$1 -> E | AR55: =$I$2 -> 1 | AS55: =$M$1 -> E | AT55: =$I$2 -> 1 | AU55: =$M$1 -> E | AV55: =$I$2 -> 1 | AW55: =$M$1 -> E | AX55: =$I$2 -> 1 | AY55: =$M$1 -> E | AZ55: =$I$2 -> 1 | BA55: =$M$1 -> E | BB55: =$I$2 -> 1 | BC55: =$M$1 -> E | BD55: =$I$2 -> 1 | BE55: =$M$1 -> E | BF55: =$I$2 -> 1 | BG55: =$M$1 -> E | BH55: =$I$2 -> 1 | BS55: <200 | BV55: <650 | BY55: >=650
E56: Zaragoza | F56: =$L$1 -> D | G56: =$K$2 -> 3 | H56: 207 | I56: =$K$1 -> C | J56: =$K$2 -> 3 | K56: C | L56: 3 | M56: C | N56: 3 | O56: C | P56: 3 | Q56: =$L$1 -> D | R56: =$K$2 -> 3 | S56: =$L$1 -> D | T56: 3 | U56: =$L$1 -> D | V56: 3 | W56: =$L$1 -> D | X56: 3 | Y56: =$L$1 -> D | Z56: 3 | AA56: =$L$1 -> D | AB56: 3 | AC56: =$L$1 -> D | AD56: 3 | AE56: =$L$1 -> D | AF56: 3 | AG56: =$L$1 -> D | AH56: 3 | AI56: =$M$1 -> E | AJ56: =$I$2 -> 1 | AK56: =$M$1 -> E | AL56: =$I$2 -> 1 | AM56: =$M$1 -> E | AN56: =$I$2 -> 1 | AO56: =$M$1 -> E | AP56: =$I$2 -> 1 | AQ56: =$M$1 -> E | AR56: =$I$2 -> 1 | AS56: =$M$1 -> E | AT56: =$I$2 -> 1 | AU56: =$M$1 -> E | AV56: =$I$2 -> 1 | AW56: =$M$1 -> E | AX56: =$I$2 -> 1 | AY56: =$M$1 -> E | AZ56: =$I$2 -> 1 | BA56: =$M$1 -> E | BB56: =$I$2 -> 1 | BC56: =$M$1 -> E | BD56: =$I$2 -> 1 | BE56: =$M$1 -> E | BF56: =$I$2 -> 1 | BG56: =$M$1 -> E | BH56: =$I$2 -> 1
E58: CAPITAL | F58: Z.C. INVIERNO | G58: Z.C. VERANO | H58: ALTITUD | I58: 0-50 | K58: 50-100 | M58: 100-150 | O58: 150-200 | Q58: 200-250 | S58: 250-300 | U58: 300-350 | W58: 350-400 | Y58: 400-450 | AA58: 450-500 | AC58: 500-550 | AE58: 550-600 | AG58: 600-650 | AI58: 650-700 | AK58: 700-750 | AM58: 750-800 | AO58: 800-850 | AQ58: 850-900 | AS58: 900-950 | AU58: 950-1000 | AW58: 1000-1050 | AY58: 1100-1150 | BA58: 1150-1200 | BC58: 1200-1250 | BE58: 1250-1300 | BG58: >=1300
E59: Palmas de Gran Canaria, Las | F59: Alfa | G59: =$K$2 -> 3 | H59: 114 | I59: =$F$59 -> Alfa | J59: =$K$2 -> 3 | K59: =$F$59 -> Alfa | L59: =$K$2 -> 3 | M59: =$F$59 -> Alfa | N59: =$K$2 -> 3 | O59: =$F$59 -> Alfa | P59: =$K$2 -> 3 | Q59: =$F$59 -> Alfa | R59: =$K$2 -> 3 | S59: =$F$59 -> Alfa | T59: =$K$2 -> 3 | U59: =$F$59 -> Alfa | V59: =$K$2 -> 3 | W59: =$I$1 -> A | X59: =$J$2 -> 2 | Y59: A | Z59: 2 | AA59: A | AB59: 2 | AC59: A | AD59: 2 | AE59: A | AF59: 2 | AG59: A | AH59: 2 | AI59: A | AJ59: 2 | AK59: A | AL59: 2 | AM59: =$J$1 -> B | AN59: =$J$2 -> 2 | AO59: =$J$1 -> B | AP59: 2 | AQ59: =$J$1 -> B | AR59: 2 | AS59: =$J$1 -> B | AT59: 2 | AU59: =$J$1 -> B | AV59: 2 | AW59: =$K$1 -> C | AX59: =$J$2 -> 2 | AY59: C | AZ59: =$J$2 -> 2 | BA59: C | BB59: =$J$2 -> 2 | BC59: C | BD59: =$J$2 -> 2 | BE59: C | BF59: =$J$2 -> 2 | BG59: C | BH59: =$J$2 -> 2
E60: Santa Cruz de Tenerife | F60: Alfa | G60: =$K$2 -> 3 | H60: 0 | I60: =$F$59 -> Alfa | J60: =$K$2 -> 3 | K60: =$F$59 -> Alfa | L60: =$K$2 -> 3 | M60: =$F$59 -> Alfa | N60: =$K$2 -> 3 | O60: =$F$59 -> Alfa | P60: =$K$2 -> 3 | Q60: =$F$59 -> Alfa | R60: =$K$2 -> 3 | S60: =$F$59 -> Alfa | T60: =$K$2 -> 3 | U60: =$F$59 -> Alfa | V60: =$K$2 -> 3 | W60: A | X60: 2 | Y60: A | Z60: 2 | AA60: A | AB60: 2 | AC60: A | AD60: 2 | AE60: A | AF60: 2 | AG60: A | AH60: 2 | AI60: A | AJ60: 2 | AK60: A | AL60: 2 | AM60: =$J$1 -> B | AN60: 2 | AO60: =$J$1 -> B | AP60: 2 | AQ60: =$J$1 -> B | AR60: 2 | AS60: =$J$1 -> B | AT60: 2 | AU60: =$J$1 -> B | AV60: 2 | AW60: C | AX60: =$J$2 -> 2 | AY60: C | AZ60: =$J$2 -> 2 | BA60: C | BB60: =$J$2 -> 2 | BC60: C | BD60: =$J$2 -> 2 | BE60: C | BF60: =$J$2 -> 2 | BG60: C | BH60: =$J$2 -> 2

Sheet BD GRAL (hidden)
A1: Comunidad autónoma | B1: Comunidad autónoma | C1: Provincia | D1: Capital de provincia | E1: Otras poblaciones
A2: Andalucía | B2: Andalucía | C2: Almería | D2: Almería
A3: Aragón | C3: Cádiz | D3: Cádiz | E3: Cádiz/Tarifa | F3: Jerez de la Frontera
A4: Asturias | C4: Córdoba | D4: Córdoba
A5: Canarias | C5: Granada | D5: Granada
A6: Cantabria | C6: Huelva | D6: Huelva
A7: Castilla_y_León | C7: Jaén | D7: Jaén
A8: Castilla_la_Mancha | C8: Málaga | D8: Málaga
A9: Cataluña | C9: Sevilla | D9: Sevilla | E9: Sevilla Aeropuerto | F9: Sevilla Morón de la Frontera | G9: Sevilla/Tablada
A10: Ceuta | B10: Aragón | C10: Huesca | D10: Huesca
A11: Extremadura | C11: Teruel | D11: Teruel
A12: Galicia | C12: Zaragoza | D12: Zaragoza
A13: Comunidad_de_Madrid | B13: Asturias | C13: Asturias | D13: Oviedo | E13: Asturias/Aeropuerto
A14: Comunidad_Valenciana | B14: Canarias | C14: LasPalmas | D14: Las_Palmas_de_Gran_Canaria | E14: Lanzarote | F14: Fuerteventura
A15: Región_de_Murcia | C15: SantaCruzdeTenerife | D15: Santa_Cruz_de_Tenerife | E15: Aeropuerto Tenerife Sur | F15: Tenerife/Izaña | G15: Tenerife Norte | H15: Hierro
A16: La_Rioja | B16: Cantabria | C16: Cantabria | D16: Santander
A17: Islas_Baleares | B17: Castilla_y_León | C17: Ávila | D17: Ávila
A18: Melilla | C18: Burgos | D18: Burgos
A19: Navarra | C19: León | D19: León | E19: León/Virgen del Camino
A20: País_Vasco | C20: Palencia | D20: Palencia
C21: Salamanca | D21: Salamanca
C22: Segovia | D22: Segovia
C23: Soria | D23: Soria
C24: Valladolid | D24: Valladolid | E24: Valladolid/Aeropuerto
C25: Zamora | D25: Zamora
B26: Castilla_la_Mancha | C26: Albacete | D26: Albacete
C27: CiudadReal | D27: Ciudad_Real
C28: Cuenca | D28: Cuenca
C29: Guadalajara | D29: Guadalajara
C30: Toledo | D30: Toledo
B31: Cataluña | C31: Barcelona | D31: Barcelona | E31: Barcelona/Fabra
C32: Girona | D32: Gerona
C33: Lleida | D33: Lérida
C34: Tarragona | D34: Tarragona | E34: Tarragona/Reus
B35: Ceuta | C35: Ceuta | D35: Ceuta
B36: Extremadura | C36: Cáceres | D36: Cáceres
C37: Badajoz | D37: Badajoz
B38: Galicia | C38: ACoruña | D38: La_Coruña | E38: Santiago de Compostela
C39: Lugo | D39: Lugo
C40: Ourense | D40: Orense
C41: Pontevedra | D41: Pontevedra | E41: Vigo
B42: Comunidad_de_Madrid | C42: Madrid | D42: Madrid | E42: Colmenar Viejo | F42: Barajas | G42: Cuatro Vientos | H42: Getafe | I42: Puerto de Navacerrada | J42: Torrejón de Ardoz
B43: Comunidad_Valenciana | C43: Alicante | D43: Alicante
C44: Castellón | D44: Castellón
C45: Valencia | D45: Valencia | E45: Valencia/Manises
B46: Región_de_Murcia | C46: Murcia | D46: Murcia | E46: Alcantarilla | F46: San Javier
B47: La_Rioja | C47: LaRioja | D47: Logroño
B48: Islas_Baleares | C48: IllesBalears | D48: Palma_de_Mallorca | E48: Palma de Mallorca/Aeropuerto | F48: Ibiza | G48: Menorca
B49: Melilla | C49: Melilla | D49: Melilla
B50: Navarra | C50: Navarra | D50: Pamplona
B51: País_Vasco | C51: Araba-Álava | D51: Vitoria
C52: Gipuzkoa | D52: San_Sebastián | E52: San Sebastián/Aeropuerto | F52: San Sebastián/Igueldo
C53: Bizkaia | D53: Bilbao
A55: Capital provincia | B55: Andalucía | C55: Aragón | D55: Asturias | E55: Canarias | F55: Cantabria | G55: Castilla_y_León | H55: Castilla_la_Mancha | I55: Cataluña | J55: Ceuta | K55: Extremadura | L55: Galicia | M55: Comunidad_de_Madrid | N55: Comunidad_Valenciana | O55: Región_de_Murcia | P55: La_Rioja | Q55: Islas_Baleares | R55: Melilla | S55: Navarra | T55: País_Vasco
B56: Almería | C56: Huesca | D56: Oviedo | E56: Las_Palmas_de_Gran_Canaria | F56: Santander | G56: Ávila | H56: Albacete | I56: Barcelona | J56: Ceuta | K56: Cáceres | L56: La_Coruña | M56: Madrid | N56: Alicante | O56: Murcia | P56: Logroño | Q56: Palma_de_Mallorca | R56: Melilla | S56: Pamplona | T56: Vitoria
B57: Cádiz | C57: Teruel | E57: Santa_Cruz_de_Tenerife | G57: Burgos | H57: Ciudad_Real | I57: Gerona | K57: Badajoz | L57: Lugo | N57: Castellón | T57: San_Sebastián
B58: Córdoba | C58: Zaragoza | G58: León | H58: Cuenca | I58: Lérida | L58: Orense | N58: Valencia | T58: Bilbao
B59: Granada | G59: Palencia | H59: Guadalajara | I59: Tarragona | L59: Pontevedra
B60: Huelva | G60: Salamanca | H60: Toledo
B61: Jaén | G61: Segovia
B62: Málaga | G62: Soria
B63: Sevilla | G63: Valladolid
G64: Zamora
A66: Estaciones meteorológicas | B66: Albacete | C66: Alicante | D66: Almería | E66: Ávila | F66: Badajoz | G66: Barcelona | H66: Bilbao | I66: Burgos | J66: Cáceres | K66: Cádiz | L66: Castellón | M66: Ceuta | N66: Ciudad_Real | O66: Córdoba | P66: Cuenca | Q66: Gerona | R66: Granada | S66: Guadalajara | T66: Huelva | U66: Huesca | V66: Jaén | W66: La_Coruña | X66: Las_Palmas_de_Gran_Canaria | Y66: León | Z66: Lérida | AA66: Logroño | AB66: Lugo | AC66: Madrid | AD66: Málaga | AE66: Melilla | AF66: Murcia | AG66: Orense | AH66: Oviedo | AI66: Palencia | AJ66: Palma_de_Mallorca | AK66: Pamplona | AL66: Pontevedra | AM66: Salamanca | AN66: San_Sebastián | AO66: Santa_Cruz_de_Tenerife | AP66: Santander | AQ66: Segovia | AR66: Sevilla | AS66: Soria | AT66: Tarragona | AU66: Teruel | AV66: Toledo | AW66: Valencia | AX66: Valladolid | AY66: Vitoria | AZ66: Zamora | BA66: Zaragoza
B67: Albacete | C67: Alicante | D67: Almería | E67: Ávila | F67: Badajoz | G67: Barcelona | H67: Bilbao | I67: Burgos | J67: Cáceres | K67: Cádiz | L67: Castellón | M67: Ceuta | N67: Ciudad_Real | O67: Córdoba | P67: Cuenca | Q67: Gerona | R67: Granada | S67: Guadalajara | T67: Huelva | U67: Huesca | V67: Jaén | W67: La_Coruña | X67: Las_Palmas_de_Gran_Canaria | Y67: León | Z67: Lérida | AA67: Logroño | AB67: Lugo | AC67: Colmenar_Viejo | AD67: Málaga | AE67: Melilla | AF67: Alcantarilla | AG67: Orense | AH67: Asturias/Aeropuerto | AI67: Palencia | AJ67: Ibiza | AK67: Pamplona | AL67: Pontevedra | AM67: Salamanca | AN67: San_Sebastián/Aeropuerto | AO67: Hierro | AP67: Santander | AQ67: Segovia | AR67: Aeropuerto | AS67: Soria | AT67: Tarragona | AU67: Teruel | AV67: Toledo | AW67: Valencia | AX67: Valladolid | AY67: Vitoria | AZ67: Zamora | BA67: Zaragoza
G68: Barcelona/Fabra | K68: Cádiz/Tarifa | W68: Santiago_de_Compostela | X68: Lanzarote | Y68: Virgen_del_Camino | AC68: Madrid | AF68: Murcia | AJ68: Menorca/Mahón | AL68: Vigo | AN68: San_Sebastián/Igueldo | AO68: Santa_Cruz_De_Tenerife | AR68: Morón_de_la_Frontera | AT68: Reus | AW68: Manises | AX68: Aeropuerto
K69: Jerez_de_la_Frontera | X69: Fuerteventura | AC69: Barajas | AF69: San_Javier | AJ69: Palma_de_Mallorca | AO69: Aeropuerto_Tenerife_Sur | AR69: Tablada
AC70: Cuatro_Vientos | AJ70: Palma_de_Mallorca/Aeropuerto | AO70: Tenerife/Izaña
AC71: Getafe | AO71: Tenerife/Norte
AC72: Puerto_Navacerrada
AC73: Torrejón_De_Ardoz

Sheet CA
C2: VERDE Edificios 2020 Usos distintos del Residencial privado Nueva Edificación, Rehabilitación, Edificio Existente y Mixto
F3: CRITERIOS APLICABLES
D4: NOTA: Cuando la celda de marcado aparece en blanco, el criterio no aplica por la tipología del edificio o el tipo de actuación indicados en la pestaña de Datos Generales.
C5: ='Matriz VERDE-GBCe'!U6 -> PE | E5: ='Matriz VERDE-GBCe'!V6 -> Parcela y emplazamiento | G5: =SUM(G9:G25) -> 0.1524462241
D7: Criterios
E9: ='Matriz VERDE-GBCe'!V7 -> PE 01 | F9: =VLOOKUP(E9,'Matriz VERDE-GBCe'!$V$6:W$59,2,FALSE) -> Proximidad al transporte publico. | G9: =VLOOKUP(E9,'Matriz VERDE-GBCe'!$V$6:AL$59,3,FALSE) -> 0.01429744853 | I9: 1 | N9: 1 | P9: =VLOOKUP(E9,CA!$E$9:$L$132,5,FALSE) -> 1 | Q9: -1
N10: -1
E11: ='Matriz VERDE-GBCe'!V8 -> PE 02 | F11: =VLOOKUP(E11,'Matriz VERDE-GBCe'!$V$6:W$59,2,FALSE) -> Proximidad a equipamiento y servicios. | G11: =VLOOKUP(E11,'Matriz VERDE-GBCe'!$V$6:AL$59,3,FALSE) -> 0.01347605113 | I11: 1 | P11: =VLOOKUP(E11,CA!$E$9:$L$132,5,FALSE) -> 1
E13: ='Matriz VERDE-GBCe'!V9 -> PE 03 | F13: =VLOOKUP(E13,'Matriz VERDE-GBCe'!$V$6:W$59,2,FALSE) -> Facilidades para la bicicleta. | G13: =VLOOKUP(E13,'Matriz VERDE-GBCe'!$V$6:AL$59,3,FALSE) -> 0.0162996047 | I13: 1
E15: ='Matriz VERDE-GBCe'!V10 -> PE 04 | F15: =VLOOKUP(E15,'Matriz VERDE-GBCe'!$V$6:W$59,2,FALSE) -> Capacidad de carga de vehículos eléctricos. | G15: =VLOOKUP(E15,'Matriz VERDE-GBCe'!$V$6:AL$59,3,FALSE) -> 0.01601724935 | I15: 1
E17: ='Matriz VERDE-GBCe'!V11 -> PE 05 | F17: =VLOOKUP(E17,'Matriz VERDE-GBCe'!$V$6:W$59,2,FALSE) -> Clasificación de RSU. | G17: =VLOOKUP(E17,'Matriz VERDE-GBCe'!$V$6:AL$59,3,FALSE) -> 0.01129421428 | I17: 1
E19: ='Matriz VERDE-GBCe'!V12 -> PE 06 | F19: =VLOOKUP(E19,'Matriz VERDE-GBCe'!$V$6:W$59,2,FALSE) -> Gestión y Restauración del hábitat. | G19: =VLOOKUP(E19,'Matriz VERDE-GBCe'!$V$6:AL$59,3,FALSE) -> 0.02281944658 | I19: 1
E21: ='Matriz VERDE-GBCe'!V13 -> PE 07 | F21: =VLOOKUP(E21,'Matriz VERDE-GBCe'!$V$6:W$59,2,FALSE) -> Uso de plantas para crear sombras. | G21: =VLOOKUP(E21,'Matriz VERDE-GBCe'!$V$6:AL$59,3,FALSE) -> 0.01812208019 | I21: 1
E23: ='Matriz VERDE-GBCe'!V14 -> PE 08 | F23: =VLOOKUP(E23,'Matriz VERDE-GBCe'!$V$6:W$59,2,FALSE) -> Efecto isla de calor. | G23: =VLOOKUP(E23,'Matriz VERDE-GBCe'!$V$6:AL$59,3,FALSE) -> 0.02043226038 | I23: 1
G24: +
E25: ='Matriz VERDE-GBCe'!V15 -> PE 09 | F25: =VLOOKUP(E25,'Matriz VERDE-GBCe'!$V$6:W$59,2,FALSE) -> Contaminación lumínica. | G25: =VLOOKUP(E25,'Matriz VERDE-GBCe'!$V$6:AL$59,3,FALSE) -> 0.01968786899 | I25: 1
C28: ='Matriz VERDE-GBCe'!U16 -> EA | E28: ='Matriz VERDE-GBCe'!V16 -> Energía y atmósfera | G28: =SUM(G32:G38) -> 0.1760100621
D30: Criterios
E32: ='Matriz VERDE-GBCe'!V18 -> EA 01 | F32: =VLOOKUP(E32,'Matriz VERDE-GBCe'!$V$6:W$59,2,FALSE) -> Consumo de energía primaria | G32: =VLOOKUP(E32,'Matriz VERDE-GBCe'!$V$6:AL$59,3,FALSE) -> 0.075414549 | I32: 1
E34: ='Matriz VERDE-GBCe'!V19 -> EA 02 | F34: =VLOOKUP(E34,'Matriz VERDE-GBCe'!$V$6:W$59,2,FALSE) -> Generación distribuida | G34: =VLOOKUP(E34,'Matriz VERDE-GBCe'!$V$6:AL$59,3,FALSE) -> 0.04851378408 | I34: 1
E36: ='Matriz VERDE-GBCe'!V20 -> EA 03 | F36: =VLOOKUP(E36,'Matriz VERDE-GBCe'!$V$6:W$59,2,FALSE) -> Consumo en zonas comunes | G36: =VLOOKUP(E36,'Matriz VERDE-GBCe'!$V$6:AL$59,3,FALSE) -> 0.02541198213 | I36: 1
E38: ='Matriz VERDE-GBCe'!V22 -> EA 04 | F38: =VLOOKUP(E38,'Matriz VERDE-GBCe'!$V$6:W$59,2,FALSE) -> Elección responsable de refrigerantes | G38: =VLOOKUP(E38,'Matriz VERDE-GBCe'!$V$6:AL$59,3,FALSE) -> 0.02666974691 | I38: 1
C41: ='Matriz VERDE-GBCe'!U23 -> RN | E41: ='Matriz VERDE-GBCe'!V23 -> Recursos naturales | G41: =SUM(G45:G67) -> 0.2292212126
D43: Criterios
E45: ='Matriz VERDE-GBCe'!V24 -> RN 01 | F45: =VLOOKUP(E45,'Matriz VERDE-GBCe'!$V$6:W$59,2,FALSE) -> Consumo de agua en aparatos sanitarios | G45: =VLOOKUP(E45,'Matriz VERDE-GBCe'!$V$6:AL$59,3,FALSE) -> 0.0214076698 | I45: 1
E47: ='Matriz VERDE-GBCe'!V25 -> RN 02 | F47: =VLOOKUP(E47,'Matriz VERDE-GBCe'!$V$6:W$59,2,FALSE) -> Necesidades de riego en jardines. | G47: =VLOOKUP(E47,'Matriz VERDE-GBCe'!$V$6:AL$59,3,FALSE) -> 0 | I47: 1
E49: ='Matriz VERDE-GBCe'!V26 -> RN 03 | F49: =VLOOKUP(E49,'Matriz VERDE-GBCe'!$V$6:W$59,2,FALSE) -> Consumos de agua singulares. | G49: =VLOOKUP(E49,'Matriz VERDE-GBCe'!$V$6:AL$59,3,FALSE) -> 0.01812208019 | I49: 1
E51: ='Matriz VERDE-GBCe'!V27 -> RN 04 | F51: =VLOOKUP(E51,'Matriz VERDE-GBCe'!$V$6:W$59,2,FALSE) -> Uso de agua no potable. | G51: =VLOOKUP(E51,'Matriz VERDE-GBCe'!$V$6:AL$59,3,FALSE) -> 0.02084295908 | I51: 1
E53: ='Matriz VERDE-GBCe'!V28 -> RN 05 | F53: =VLOOKUP(E53,'Matriz VERDE-GBCe'!$V$6:W$59,2,FALSE) -> Uso de materiales reciclados. | G53: =VLOOKUP(E53,'Matriz VERDE-GBCe'!$V$6:AL$59,3,FALSE) -> 0.01812208019 | I53: 1
E55: ='Matriz VERDE-GBCe'!V29 -> RN 06 | F55: =VLOOKUP(E55,'Matriz VERDE-GBCe'!$V$6:W$59,2,FALSE) -> Elección responsable de materiales | G55: =VLOOKUP(E55,'Matriz VERDE-GBCe'!$V$6:AL$59,3,FALSE) -> 0.01878946558 | I55: 1
E57: ='Matriz VERDE-GBCe'!V30 -> RN 07 | F57: =VLOOKUP(E57,'Matriz VERDE-GBCe'!$V$6:W$59,2,FALSE) -> Uso de materiales de producción local. | G57: =VLOOKUP(E57,'Matriz VERDE-GBCe'!$V$6:AL$59,3,FALSE) -> 0.01973920632 | I57: 1
E59: ='Matriz VERDE-GBCe'!V31 -> RN 08 | F59: =VLOOKUP(E59,'Matriz VERDE-GBCe'!$V$6:W$59,2,FALSE) -> El edificio como banco de materiales | G59: =VLOOKUP(E59,'Matriz VERDE-GBCe'!$V$6:AL$59,3,FALSE) -> 0.02163868782 | I59: 1
E61: ='Matriz VERDE-GBCe'!V32 -> RN 09 | F61: =VLOOKUP(E61,'Matriz VERDE-GBCe'!$V$6:W$59,2,FALSE) -> Gestión de los residuos de la construcción. | G61: =VLOOKUP(E61,'Matriz VERDE-GBCe'!$V$6:AL$59,3,FALSE) -> 0.01565788798 | I61: 1
E63: ='Matriz VERDE-GBCe'!V33 -> RN 10 | F63: =VLOOKUP(E63,'Matriz VERDE-GBCe'!$V$6:W$59,2,FALSE) -> Nivel de intervención en rehabilitaciones | G63: =VLOOKUP(E63,'Matriz VERDE-GBCe'!$V$6:AL$59,3,FALSE) -> 0 | I63: 1
E65: ='Matriz VERDE-GBCe'!V34 -> RN 11 | F65: =VLOOKUP(E65,'Matriz VERDE-GBCe'!$V$6:W$59,2,FALSE) -> Impacto de los materiales de la construcción. | G65: =VLOOKUP(E65,'Matriz VERDE-GBCe'!$V$6:AL$59,3,FALSE) -> 0.05485394527 | I65: 1
E67: ='Matriz VERDE-GBCe'!V35 -> RN 12 | F67: =VLOOKUP(E67,'Matriz VERDE-GBCe'!$V$6:W$59,2,FALSE) -> Ecoetiquetado de producto. | G67: =VLOOKUP(E67,'Matriz VERDE-GBCe'!$V$6:AL$59,3,FALSE) -> 0.02004723035 | I67: 1
C70: ='Matriz VERDE-GBCe'!U36 -> AI | E70: ='Matriz VERDE-GBCe'!V36 -> Ambiente Interior. | G70: =SUM(G74:G82) -> 0.09487139997
D72: Medidas
E74: ='Matriz VERDE-GBCe'!V37 -> AI 01 | F74: =VLOOKUP(E74,'Matriz VERDE-GBCe'!$V$6:W$59,2,FALSE) -> Limitación de las emisiones de COVs | G74: =VLOOKUP(E74,'Matriz VERDE-GBCe'!$V$6:AL$59,3,FALSE) -> 0.0190204836 | I74: 1
E76: ='Matriz VERDE-GBCe'!V38 -> AI 02 | F76: =VLOOKUP(E76,'Matriz VERDE-GBCe'!$V$6:W$59,2,FALSE) -> Control de la calidad del aire | G76: =VLOOKUP(E76,'Matriz VERDE-GBCe'!$V$6:AL$59,3,FALSE) -> 0.0186097849 | I76: 1
E78: ='Matriz VERDE-GBCe'!V39 -> AI 03 | F78: =VLOOKUP(E78,'Matriz VERDE-GBCe'!$V$6:W$59,2,FALSE) -> Iluminación natural. | G78: =VLOOKUP(E78,'Matriz VERDE-GBCe'!$V$6:AL$59,3,FALSE) -> 0.0186097849 | I78: 1
E80: ='Matriz VERDE-GBCe'!V40 -> AI 04 | F80: =VLOOKUP(E80,'Matriz VERDE-GBCe'!$V$6:W$59,2,FALSE) -> Iluminación artificial | G80: =VLOOKUP(E80,'Matriz VERDE-GBCe'!$V$6:AL$59,3,FALSE) -> 0.02002156168 | I80: 1
E82: ='Matriz VERDE-GBCe'!V41 -> AI 05 | F82: =VLOOKUP(E82,'Matriz VERDE-GBCe'!$V$6:W$59,2,FALSE) -> Protección frente al ruido. | G82: =VLOOKUP(E82,'Matriz VERDE-GBCe'!$V$6:AL$59,3,FALSE) -> 0.0186097849 | I82: 1
C85: ='Matriz VERDE-GBCe'!U42 -> AS | E85: ='Matriz VERDE-GBCe'!V42 -> Aspectos sociales | G85: =SUM(G90:G106) -> 0.1671543714
D87: Medidas
E90: ='Matriz VERDE-GBCe'!V43 -> AS 01 | F90: =VLOOKUP(E90,'Matriz VERDE-GBCe'!$V$6:W$59,2,FALSE) -> Espacios para todas las personas | G90: =VLOOKUP(E90,'Matriz VERDE-GBCe'!$V$6:AL$59,3,FALSE) -> 0.0182760922 | I90: 1
E92: ='Matriz VERDE-GBCe'!V44 -> AS 02 | F92: =VLOOKUP(E92,'Matriz VERDE-GBCe'!$V$6:W$59,2,FALSE) -> Espacios para la comunicación | G92: =VLOOKUP(E92,'Matriz VERDE-GBCe'!$V$6:AL$59,3,FALSE) -> 0.01760870681 | I92: 1
E94: ='Matriz VERDE-GBCe'!V45 -> AS 03 | F94: =VLOOKUP(E94,'Matriz VERDE-GBCe'!$V$6:W$59,2,FALSE) -> Derecho al sol | G94: =VLOOKUP(E94,'Matriz VERDE-GBCe'!$V$6:AL$59,3,FALSE) -> 0.01660762873 | I94: 1
E96: ='Matriz VERDE-GBCe'!V46 -> AS 04 | F96: =VLOOKUP(E96,'Matriz VERDE-GBCe'!$V$6:W$59,2,FALSE) -> Derecho a la intimidad | G96: =VLOOKUP(E96,'Matriz VERDE-GBCe'!$V$6:AL$59,3,FALSE) -> 0.01601724935 | I96: 1
E98: ='Matriz VERDE-GBCe'!V47 -> AS 05 | F98: =VLOOKUP(E98,'Matriz VERDE-GBCe'!$V$6:W$59,2,FALSE) -> Contacto visual con el exterior | G98: =VLOOKUP(E98,'Matriz VERDE-GBCe'!$V$6:AL$59,3,FALSE) -> 0.01701832743 | I98: 1
E100: ='Matriz VERDE-GBCe'!V48 -> AS 06 | F100: =VLOOKUP(E100,'Matriz VERDE-GBCe'!$V$6:W$59,2,FALSE) -> Espacios abiertos privados | G100: =VLOOKUP(E100,'Matriz VERDE-GBCe'!$V$6:AL$59,3,FALSE) -> 0.01735202012 | I100: 1
E102: ='Matriz VERDE-GBCe'!V49 -> AS 07 | F102: =VLOOKUP(E102,'Matriz VERDE-GBCe'!$V$6:W$59,2,FALSE) -> Diseño inclusivo | G102: =VLOOKUP(E102,'Matriz VERDE-GBCe'!$V$6:AL$59,3,FALSE) -> 0.01976487499 | I102: 1
E104: ='Matriz VERDE-GBCe'!V50 -> AS 08 | F104: =VLOOKUP(E104,'Matriz VERDE-GBCe'!$V$6:W$59,2,FALSE) -> Conexión con la naturaleza | G104: =VLOOKUP(E104,'Matriz VERDE-GBCe'!$V$6:AL$59,3,FALSE) -> 0.02605369886 | I104: 1
E106: ='Matriz VERDE-GBCe'!V51 -> AS 09 | F106: =VLOOKUP(E106,'Matriz VERDE-GBCe'!$V$6:W$59,2,FALSE) -> El edificio como herramienta de comunicación | G106: =VLOOKUP(E106,'Matriz VERDE-GBCe'!$V$6:AL$59,3,FALSE) -> 0.01845577288 | I106: 1
C109: ='Matriz VERDE-GBCe'!U52 -> CE | E109: ='Matriz VERDE-GBCe'!V52 -> Calidad de la edificación | G109: =SUM(G113:G125) -> 0.1802967298
D111: Medidas
E113: ='Matriz VERDE-GBCe'!V53 -> CE 01 | F113: =VLOOKUP(E113,'Matriz VERDE-GBCe'!$V$6:W$59,2,FALSE) -> Diseño pasivo | G113: =VLOOKUP(E113,'Matriz VERDE-GBCe'!$V$6:AL$59,3,FALSE) -> 0.02836387905 | I113: 1
E115: ='Matriz VERDE-GBCe'!V54 -> CE 02 | F115: =VLOOKUP(E115,'Matriz VERDE-GBCe'!$V$6:W$59,2,FALSE) -> Control parcial de los sistemas de clima (HVAC) | G115: =VLOOKUP(E115,'Matriz VERDE-GBCe'!$V$6:AL$59,3,FALSE) -> 0.02669541558 | I115: 1
E117: ='Matriz VERDE-GBCe'!V55 -> CE 03 | F117: =VLOOKUP(E117,'Matriz VERDE-GBCe'!$V$6:W$59,2,FALSE) -> Control local de la iluminación | G117: =VLOOKUP(E117,'Matriz VERDE-GBCe'!$V$6:AL$59,3,FALSE) -> 0.0222290672 | I117: 1
E119: ='Matriz VERDE-GBCe'!V56 -> CE 04 | F119: =VLOOKUP(E119,'Matriz VERDE-GBCe'!$V$6:W$59,2,FALSE) -> Calidad en la construcción | G119: =VLOOKUP(E119,'Matriz VERDE-GBCe'!$V$6:AL$59,3,FALSE) -> 0.03478104625 | I119: 1
E121: ='Matriz VERDE-GBCe'!V57 -> CE 05 | F121: =VLOOKUP(E121,'Matriz VERDE-GBCe'!$V$6:W$59,2,FALSE) -> Puesta en marcha sistemática | G121: =VLOOKUP(E121,'Matriz VERDE-GBCe'!$V$6:AL$59,3,FALSE) -> 0.03611581703 | I121: 1
E123: ='Matriz VERDE-GBCe'!V58 -> CE 06 | F123: =VLOOKUP(E123,'Matriz VERDE-GBCe'!$V$6:W$59,2,FALSE) -> Custodia de la documentación del proyecto | G123: =VLOOKUP(E123,'Matriz VERDE-GBCe'!$V$6:AL$59,3,FALSE) -> 0.0321115047 | I123: 1
E125: ='Matriz VERDE-GBCe'!V59 -> CE 07 | F125: =VLOOKUP(E125,'Matriz VERDE-GBCe'!$V$6:W$59,2,FALSE) -> Certificaciones voluntarias de edificios | G125: =VLOOKUP(E125,'Matriz VERDE-GBCe'!$V$6:AL$59,3,FALSE) -> 0
G131: =G5+G28+G41+G70+G85+G109 -> 1
G132: =SUM(G5:G128)/2 -> 1
G133: 1
G137: 1

Sheet PRE
B2: VERDE Edificios 2020 Usos distintos del Residencial privado Nueva Edificación, Rehabilitación, Edificio Existente y Parte en un edificio | Y2: SEGURO | Z2: SÍ
B3: PRE-EVALUACIÓN | Y3: PROBABLE | Z3: NO
Y4: DUDOSO
B5: ='Matriz VERDE-GBCe'!U6 -> PE | D5: ='Matriz VERDE-GBCe'!V6 -> Parcela y emplazamiento | O5: Valoración total | Q5: ='Matriz VERDE-GBCe'!X6 -> 0.1524462241 | Y5: NO CUMPLE
Y6: NO APLICA
D8: ='Matriz VERDE-GBCe'!V7 -> PE 01 | E8: =VLOOKUP($D8,'Matriz VERDE-GBCe'!$V$6:$Y$59,2,FALSE) -> Proximidad al transporte publico. | O8: =VLOOKUP($D8,'Matriz VERDE-GBCe'!$V$6:$Y$59,3,FALSE) -> 0.01429744853 | Y8: Target | Z8: SEGURO | AB8: PROBABLE | AD8: DUDOSO | AF8: NO CUMPLE | AH8: NO APLICA
D10: Se cumple con el número de líneas determinado en el radio correspondiente | Y10: 1 | Z10: =+IF($Q10="seguro",$Y10,0) -> 0 | AB10: =+IF($Q10="probable",$Y10,0) -> 0 | AD10: =+IF($Q10="dudoso",$Y10,0) -> 0 | AF10: =+IF($Q10="NO CUMPLE",$Y10,0) -> 0 | AH10: =+IF($Q10="no aplica",2,0) -> 0
D12: Valoración obtenida: | H12: SEGURO | J12: PROBABLE | L12: DUDOSO | Y12: =SUM(Y9:Y10) -> 1 | Z12: =IF($O8="",0,SUM(Z9:Z10)*$O8/$Y12) -> 0 | AB12: =IF($O8="",0,SUM(AB9:AB10)*$O8/$Y12) -> 0 | AD12: =IF($O8="",0,SUM(AD9:AD10)*$O8/$Y12) -> 0 | AF12: =IF($O8="",0,SUM(AF9:AF10)*$O8/$Y12) -> 0
H13: =Z12 -> 0 | J13: =AB12 -> 0 | L13: =AD12 -> 0
D16: ='Matriz VERDE-GBCe'!V8 -> PE 02 | E16: =VLOOKUP($D16,'Matriz VERDE-GBCe'!$V$6:$Y$59,2,FALSE) -> Proximidad a equipamiento y servicios. | O16: =VLOOKUP($D16,'Matriz VERDE-GBCe'!$V$6:$Y$59,3,FALSE) -> 0.01347605113 | Y16: Target | Z16: SEGURO | AB16: PROBABLE | AD16: DUDOSO | AF16: NO CUMPLE | AH16: NO APLICA
D18: Se cumple con el número de equipamientos determinados en el radio correspondiente | Y18: 1 | Z18: =+IF($Q18="seguro",$Y18,0) -> 0 | AB18: =+IF($Q18="probable",$Y18,0) -> 0 | AD18: =+IF($Q18="dudoso",$Y18,0) -> 0 | AF18: =+IF($Q18="NO CUMPLE",$Y18,0) -> 0 | AH18: =+IF($Q18="no aplica",2,0) -> 0
D20: Valoración obtenida: | H20: SEGURO | J20: PROBABLE | L20: DUDOSO | Y20: =SUM(Y18:Y18) -> 1 | Z20: =IF($O16="",0,SUM(Z17:Z18)*$O16/$Y20) -> 0 | AB20: =IF($O16="",0,SUM(AB17:AB18)*$O16/$Y20) -> 0 | AD20: =IF($O16="",0,SUM(AD17:AD18)*$O16/$Y20) -> 0 | AF20: =IF($O16="",0,SUM(AF17:AF18)*$O16/$Y20) -> 0
H21: =Z20 -> 0 | J21: =AB20 -> 0 | L21: =AD20 -> 0
D24: ='Matriz VERDE-GBCe'!V9 -> PE 03 | E24: =VLOOKUP($D24,'Matriz VERDE-GBCe'!$V$6:$Y$59,2,FALSE) -> Facilidades para la bicicleta. | O24: =VLOOKUP($D24,'Matriz VERDE-GBCe'!$V$6:$Y$59,3,FALSE) -> 0.0162996047
D26: =IF(DG!$F$31="","",DG!$F$31) ->  | Y26: Target | Z26: SEGURO | AB26: PROBABLE | AD26: DUDOSO | AF26: NO CUMPLE | AH26: NO APLICA
D28: Se cumple con el número de aparcabicis determinado y las medidas de seguridad para los elementos y el emplazamiento de los mismos | Y28: =IF(N26="Unifamiliar",0,1) -> 1 | Z28: =+IF($Q28="seguro",$Y28,0) -> 0 | AB28: =+IF($Q28="probable",$Y28,0) -> 0 | AD28: =+IF($Q28="dudoso",$Y28,0) -> 0 | AF28: =+IF($Q28="NO CUMPLE",$Y28,0) -> 0 | AH28: =+IF($Q28="no aplica",2,0) -> 0
D31: No se dispone espacio libre en la parcela o espacio de aparcamiento pero existe un aparcamiento para bicicletas en vía pública a menos de 300 m | Y31: =IF(D26="Nueva Edificación",0,0.5) -> 0.5 | Z31: =+IF($Q31="seguro",$Y31,0) -> 0 | AB31: =+IF($Q31="probable",$Y31,0) -> 0 | AD31: =+IF($Q31="dudoso",$Y31,0) -> 0 | AF31: =+IF($Q31="NO CUMPLE",$Y31,0) -> 0
D33: Valoración obtenida: | H33: SEGURO | J33: PROBABLE | L33: DUDOSO
H34: =Z34 -> 0 | J34: =AB34 -> 0 | L34: =AD34 -> 0 | Y34: =SUM(Y28:Y28) -> 1 | Z34: =IF($O24="",0,MAX(Z27:Z33)*$O24) -> 0 | AB34: =IF($O24="",0,MAX(AB27:AB33)*$O24) -> 0 | AD34: =IF($O24="",0,MAX(AD27:AD33)*$O24) -> 0 | AF34: =IF($O24="",0,MAX(AF27:AF33)*$O24) -> 0
D37: ='Matriz VERDE-GBCe'!V10 -> PE 04 | E37: =VLOOKUP($D37,'Matriz VERDE-GBCe'!$V$6:$Y$59,2,FALSE) -> Capacidad de carga de vehículos eléctricos. | O37: =VLOOKUP($D37,'Matriz VERDE-GBCe'!$V$6:$Y$59,3,FALSE) -> 0.01601724935
D39: =IF(DG!$F$29=0,"",DG!$F$29) -> 
D41: NOTA: Este criterio se evalúa por fórmulas lineales, la puntuación puede variar en la evaluación final. Ver la guía. | Y41: Target | Z41: SEGURO | AB41: PROBABLE | AD41: DUDOSO | AF41: NO CUMPLE | AH41: NO APLICA
D43: ¿Todas las plazas de aparcamiento sin carga cuentan con una preinstalación de carga para vehículos? | AH43: =+IF($Q43="no aplica",2,0) -> 0
D46: El porcentaje de plazas con carga para vehículos eléctricos es superior al 35% con,al menos, 2 plazas. | Y46: 0.5 | Z46: =+IF($Q46="seguro",$Y46,0) -> 0 | AB46: =+IF($Q46="probable",$Y46,0) -> 0 | AD46: =+IF($Q46="dudoso",$Y46,0) -> 0 | AF46: =+IF($Q46="NO CUMPLE",$Y46,0) -> 0
D49: El porcentaje de plazas con carga para vehículos eléctricos es superior al 50% con,al menos, 2 plazas. | Y49: 0.5 | Z49: =+IF($Q49="seguro",$Y49,0) -> 0 | AB49: =+IF($Q49="probable",$Y49,0) -> 0 | AD49: =+IF($Q49="dudoso",$Y49,0) -> 0 | AF49: =+IF($Q49="NO CUMPLE",$Y49,0) -> 0 | AH49: =+IF($Q49="no aplica",2,0) -> 0
D51: Valoración obtenida: | H51: SEGURO | J51: PROBABLE | L51: DUDOSO | Y51: =SUM(Y43:Y49) -> 1 | Z51: =IF($O37="",0,SUM(Z45:Z49)*$O37/$Y51) -> 0 | AB51: =IF($O37="",0,SUM(AB43:AB49)*$O37/$Y51) -> 0 | AD51: =IF($O37="",0,SUM(AD43:AD49)*$O37/$Y51) -> 0 | AF51: =IF($O37="",0,SUM(AF43:AF49)*$O37/$Y51) -> 0
H52: =IF(Q43="Seguro",Z51,0) -> 0 | J52: =IF(Q43="Seguro",AB51,0) -> 0 | L52: =IF(Q43="Seguro",AD51,0) -> 0
D55: ='Matriz VERDE-GBCe'!V11 -> PE 05 | E55: =VLOOKUP($D55,'Matriz VERDE-GBCe'!$V$6:$Y$59,2,FALSE) -> Clasificación de RSU. | O55: =VLOOKUP($D55,'Matriz VERDE-GBCe'!$V$6:$Y$59,3,FALSE) -> 0.01129421428 | W55: =IF(DG!F29="Unifamiliar","Uni",IF(DG!F29="Multi-residencial","Res","")) ->  | AJ55: =IF(DG!F31="","",IF(DG!F31="rehabilitación","RH","NE")) ->  | AK55: =IF(DG!F29="unifamiliar","Uni", "Res") -> Res
D57: =IF(DG!$F$29=0,"",DG!$F$29) ->  | Y57: Target | Z57: SEGURO | AB57: PROBABLE | AD57: DUDOSO | AF57: NO CUMPLE | AH57: NO APLICA
D59: Hay contenedores en cada planta para, al menos, papel y cartón, vidrio, envases y resto. | Y59: 0.25 | Z59: =+IF($Q59="seguro",$Y59,0) -> 0 | AB59: =+IF($Q59="probable",$Y59,0) -> 0 | AD59: =+IF($Q59="dudoso",$Y59,0) -> 0 | AF59: =+IF($Q59="NO CUMPLE",$Y59,0) -> 0 | AH59: =+IF($Q59="no aplica",2,0) -> 0 | AK59: =IF(AK55="uni",0.35,IF(AJ55="ne",0.3,IF(AJ55="rh",0.4,0))) -> 0
AK61: =IF(AK55="uni",0.35,IF(AJ55="ne",0.2,IF(AJ55="rh",0.2,0))) -> 0
D62: Existe un espacio en la planta baja para almaenar trastos. | Y62: 0.25 | Z62: =+IF($Q62="seguro",$Y62,0) -> 0 | AB62: =+IF($Q62="probable",$Y62,0) -> 0 | AD62: =+IF($Q62="dudoso",$Y62,0) -> 0 | AF62: =+IF($Q62="NO CUMPLE",$Y62,0) -> 0 | AH62: =+IF($Q62="no aplica",2,0) -> 0 | AK62: =IF(AK55="uni",0,IF(AJ55="ne",0.3,IF(AJ55="rh",0.2,0))) -> 0
D65: Existe un sistema de revalorización de residuos en la parcela. | Y65: 0.25 | Z65: =+IF($Q65="seguro",$Y65,0) -> 0 | AB65: =+IF($Q65="probable",$Y65,0) -> 0 | AD65: =+IF($Q65="dudoso",$Y65,0) -> 0 | AF65: =+IF($Q65="NO CUMPLE",$Y65,0) -> 0 | AH65: =+IF($Q65="no aplica",2,0) -> 0
D68: Se cumplen otras medidas de reducción, clasificación o gestión de residuos | Y68: 0.25 | Z68: =+IF($Q68="seguro",$Y68,0) -> 0 | AB68: =+IF($Q68="probable",$Y68,0) -> 0 | AD68: =+IF($Q68="dudoso",$Y68,0) -> 0 | AF68: =+IF($Q68="NO CUMPLE",$Y68,0) -> 0 | AH68: =+IF($Q68="no aplica",2,0) -> 0
D70: Valoración obtenida: | H70: SEGURO | J70: PROBABLE | L70: DUDOSO | Y70: =SUM(Y59:Y68) -> 1 | Z70: =IF($O55="",0,SUM(Z59:Z68)*$O55/Y70) -> 0 | AB70: =IF($O55="",0,SUM(AB59:AB68)*$O55/$Y70) -> 0 | AD70: =IF($O55="",0,SUM(AD59:AD68)*$O55/$Y70) -> 0 | AF70: =IF($O55="",0,SUM(AF59:AF68)*$O55/$Y70) -> 0
H71: =Z70 -> 0 | J71: =AB70 -> 0 | L71: =AD70 -> 0
D74: ='Matriz VERDE-GBCe'!V12 -> PE 06 | E74: =VLOOKUP($D74,'Matriz VERDE-GBCe'!$V$6:$Y$59,2,FALSE) -> Gestión y Restauración del hábitat. | O74: =VLOOKUP($D74,'Matriz VERDE-GBCe'!$V$6:$Y$59,3,FALSE) -> 0.02281944658 | Y74: Target | Z74: SEGURO | AB74: PROBABLE | AD74: DUDOSO | AF74: NO CUMPLE | AH74: NO APLICA
D76: NOTA: Este criterio se evalúa por fórmulas lineales, la puntuación puede variar en la evaluación final. Ver la guía.
D78: El porcentaje de superficie ajardinada ocupado por plantas autóctonas es superior al 50% | Y78: 0.5 | Z78: =+IF($Q78="seguro",$Y78,0) -> 0 | AB78: =+IF($Q78="probable",$Y78,0) -> 0 | AD78: =+IF($Q78="dudoso",$Y78,0) -> 0 | AF78: =+IF($Q78="NO CUMPLE",$Y78,0) -> 0 | AH78: =+IF($Q78="no aplica",2,0) -> 0
D81: El porcentaje de superficie ajardinada ocupado por plantas autóctonas es superior al 75% | Y81: 0.5 | Z81: =+IF($Q81="seguro",$Y81,0) -> 0 | AB81: =+IF($Q81="probable",$Y81,0) -> 0 | AD81: =+IF($Q81="dudoso",$Y81,0) -> 0 | AF81: =+IF($Q81="NO CUMPLE",$Y81,0) -> 0 | AH81: =+IF($Q81="no aplica",2,0) -> 0
D83: Valoración obtenida: | H83: SEGURO | J83: PROBABLE | L83: DUDOSO | Y83: =SUM(Y75:Y81) -> 1 | Z83: =IF($O74="",0,SUM(Z78:Z81)*$O74/$Y83) -> 0 | AB83: =IF($O74="",0,SUM(AB78:AB81)*$O74/$Y83) -> 0 | AD83: =IF($O74="",0,SUM(AD78:AD81)*$O74/$Y83) -> 0 | AF83: =IF($O74="",0,SUM(AF78:AF81)*$O74/$Y83) -> 0
H84: =Z83 -> 0 | J84: =AB83 -> 0 | L84: =AD83 -> 0
D87: ='Matriz VERDE-GBCe'!V13 -> PE 07 | F87: =VLOOKUP($D87,'Matriz VERDE-GBCe'!$V$6:$Y$59,2,FALSE) -> Uso de plantas para crear sombras. | O87: =VLOOKUP($D87,'Matriz VERDE-GBCe'!$V$6:$Y$59,3,FALSE) -> 0.01812208019 | P87: =VLOOKUP($D87,'Matriz VERDE-GBCe'!$V$6:$Y$59,3,FALSE) -> 0.01812208019 | Y87: Target | Z87: SEGURO | AB87: PROBABLE | AD87: DUDOSO | AF87: NO CUMPLE | AH87: NO APLICA
D89: NOTA: Este criterio se evalúa por fórmulas lineales, la puntuación puede variar en la evaluación final. Ver la guía.
D91: Se cumplen los requisitos de sombreamiento para la fachada oeste | Y91: 0.4 | Z91: =+IF($Q91="seguro",$Y91,0) -> 0 | AB91: =+IF($Q91="probable",$Y91,0) -> 0 | AD91: =+IF($Q91="dudoso",$Y91,0) -> 0 | AF91: =+IF($Q91="NO CUMPLE",$Y91,0) -> 0 | AH91: =+IF($Q91="no aplica",2,0) -> 0
D94: Se cumplen los requisitos de sombreamiento de la fachada este | Y94: 0.3 | Z94: =+IF($Q94="seguro",$Y94,0) -> 0 | AB94: =+IF($Q94="probable",$Y94,0) -> 0 | AD94: =+IF($Q94="dudoso",$Y94,0) -> 0 | AF94: =+IF($Q94="NO CUMPLE",$Y94,0) -> 0 | AH94: =+IF($Q94="no aplica",2,0) -> 0
D97: Se cumplen los requisitos de sombreamiento de la fachada sur | Y97: 0.3 | Z97: =+IF($Q97="seguro",$Y97,0) -> 0 | AB97: =+IF($Q97="probable",$Y97,0) -> 0 | AD97: =+IF($Q97="dudoso",$Y97,0) -> 0 | AF97: =+IF($Q97="NO CUMPLE",$Y97,0) -> 0
D99: Valoración obtenida: | H99: SEGURO | J99: PROBABLE | L99: DUDOSO | Y99: =SUM(Y91:Y97) -> 1 | Z99: =IF($O87="",0,SUM(Z91:Z97)*$O87/$Y99) -> 0 | AB99: =IF($O87="",0,SUM(AB91:AB97)*$O87/$Y99) -> 0 | AD99: =IF($O87="",0,SUM(AD91:AD97)*$O87/$Y99) -> 0 | AF99: =IF($O87="",0,SUM(AF91:AF97)*$O87/$Y99) -> 0
H100: =Z99 -> 0 | J100: =AB99 -> 0 | L100: =AD99 -> 0
D103: ='Matriz VERDE-GBCe'!V14 -> PE 08 | E103: =VLOOKUP($D103,'Matriz VERDE-GBCe'!$V$6:$Y$59,2,FALSE) -> Efecto isla de calor. | O103: =VLOOKUP($D103,'Matriz VERDE-GBCe'!$V$6:$Y$59,3,FALSE) -> 0.02043226038 | Y103: Target | Z103: SEGURO | AB103: PROBABLE | AD103: DUDOSO | AF103: NO CUMPLE | AH103: NO APLICA
D105: NOTA: Este criterio se evalúa por fórmulas lineales, la puntuación puede variar en la evaluación final. Ver la guía.
D107: El porcentaje de superficie libre de parcela más cubierta, que evita la isla de calor es superior al 70% | Y107: 0.7 | Z107: =+IF($Q107="seguro",$Y107,0) -> 0 | AB107: =+IF($Q107="probable",$Y107,0) -> 0 | AD107: =+IF($Q107="dudoso",$Y107,0) -> 0 | AF107: =+IF($Q107="NO CUMPLE",$Y107,0) -> 0 | AH107: =+IF($Q107="no aplica",2,0) -> 0
D110: El porcentaje de superficie de fachadas este, sur y oeste que evita la isla de calor es superior al 70% | Y110: 0.3 | Z110: =+IF($Q110="seguro",$Y110,0) -> 0 | AB110: =+IF($Q110="probable",$Y110,0) -> 0 | AD110: =+IF($Q110="dudoso",$Y110,0) -> 0 | AF110: =+IF($Q110="NO CUMPLE",$Y110,0) -> 0 | AH110: =+IF($Q110="no aplica",2,0) -> 0
D113: Valoración obtenida: | H113: SEGURO | J113: PROBABLE | L113: DUDOSO | Y113: =SUM(Y107:Y112) -> 1 | Z113: =IF($O103="",0,SUM(Z107:Z112)*$O103/$Y113) -> 0 | AB113: =IF($O103="",0,SUM(AB107:AB112)*$O103/$Y113) -> 0 | AD113: =IF($O103="",0,SUM(AD107:AD112)*$O103/$Y113) -> 0 | AF113: =IF($O103="",0,SUM(AF107:AF112)*$O103/$Y113) -> 0
H114: =Z113 -> 0 | J114: =AB113 -> 0 | L114: =AD113 -> 0
D117: ='Matriz VERDE-GBCe'!V15 -> PE 09 | E117: =VLOOKUP($D117,'Matriz VERDE-GBCe'!$V$6:$Y$59,2,FALSE) -> Contaminación lumínica. | O117: =VLOOKUP($D117,'Matriz VERDE-GBCe'!$V$6:$Y$59,3,FALSE) -> 0.01968786899 | Y117: Target | Z117: SEGURO | AB117: PROBABLE | AD117: DUDOSO | AF117: NO CUMPLE | AH117: NO APLICA
D119: El FHS mayor de las luminarias instaladas reduce en más de un 55 % el de la zona de protección lumínica del proyecto | Y119: 1 | Z119: =+IF($Q119="seguro",$Y119,0) -> 0 | AB119: =+IF($Q119="probable",$Y119,0) -> 0 | AD119: =+IF($Q119="dudoso",$Y119,0) -> 0 | AF119: =+IF($Q119="NO CUMPLE",$Y119,0) -> 0 | AH119: =+IF($Q119="no aplica",2,0) -> 0
D121: Valoración obtenida: | H121: SEGURO | J121: PROBABLE | L121: DUDOSO | Y121: =SUM(Y119:Y119) -> 1 | Z121: =IF($O117="",0,SUM(Z119:Z119)*$O117/$Y121) -> 0 | AB121: =IF($O117="",0,SUM(AB119:AB119)*$O117/$Y121) -> 0 | AD121: =IF($O117="",0,SUM(AD119:AD119)*$O117/$Y121) -> 0 | AF121: =IF($O117="",0,SUM(AF119:AF119)*$O117/$Y121) -> 0
H122: =Z121 -> 0 | J122: =AB121 -> 0 | L122: =AD121 -> 0
F124: SEGURO | H124: PROBABLE | J124: DUDOSO | L124: NO CUMPLE
D126: SUBTOTAL | F126: =H13+H21+H34+H52+H71+H84+H100+H114+H122 -> 0 | G126: =I13+I21+I34+I52+I71+I84+I100+I114+I122 -> 0 | H126: =J13+J21+J34+J52+J71+J84+J100+J114+J122 -> 0 | J126: =L13+L21+L34+L52+L71+L84+L100+L114+L122 -> 0 | L126: =AF12+AF20+AF34+AF51+AF70+AF83+AF99+AF113+AF121 -> 0 | X126: =F126+H126+J126+L126 -> 0
B130: ='Matriz VERDE-GBCe'!U16 -> EA | D130: ='Matriz VERDE-GBCe'!V16 -> Energía y atmósfera | O130: Valoración total | Q130: ='Matriz VERDE-GBCe'!X16 -> 0.1760100621
D133: ='Matriz VERDE-GBCe'!V18 -> EA 01 | E133: =VLOOKUP($D133,'Matriz VERDE-GBCe'!$V$6:$Y$59,2,FALSE) -> Consumo de energía primaria | O133: =VLOOKUP($D133,'Matriz VERDE-GBCe'!$V$6:$Y$59,3,FALSE) -> 0.075414549 | W133: =IF(D135="Nueva Edificación","NE","RH") -> RH
D135: =IF(DG!$F$31=0,"",DG!$F$31) ->  | Y135: Target | Z135: SEGURO | AB135: PROBABLE | AD135: DUDOSO | AF135: NO CUMPLE | AH135: NO APLICA
D137: Consumo límite de enrgía primaria no renovable | Y137: 0.1 | Z137: =+IF($Q139="seguro",$Y137,0) -> 0 | AB137: =+IF($Q139="probable",$Y137,0) -> 0 | AD137: =+IF($Q139="dudoso",$Y137,0) -> 0 | AF137: =+IF($Q139="NO CUMPLE",$Y137,0) -> 0 | AH137: =+IF($Q139="no aplica",2,0) -> 0
D139: =IF($W133="NE","El consumo de energía primaria no renovable previsto en el proyecto reduce en mas de un 30 % al consumo energía primaria no renovable límite fijado por el DB HE 0 para una carga interna de 9 W/m2","El consumo de energía primaria no renovable previsto en el proyecto reduce en mas de un 15 % al consumo energía primaria no renovable del edificio de referencia") -> El consumo de energía primaria no renovable previsto en el proyecto reduce en mas de un 15 % al consumo energía primaria no renovable del edificio de referencia | Y139: 0.3 | Z139: =+IF($Q142="seguro",$Y139,0) -> 0 | AB139: =+IF($Q142="probable",$Y139,0) -> 0 | AD139: =+IF($Q142="dudoso",$Y139,0) -> 0 | AF139: =+IF($Q142="NO CUMPLE",$Y139,0) -> 0 | AH139: =+IF($Q142="no aplica",2,0) -> 0
D142: =IF($W133="NE","El consumo de energía primaria no renovable previsto en el proyecto reduce en mas de un 60 % al consumo energía primaria no renovable límite fijado por el DB HE 0 para una carga interna de 9 W/m2","El consumo de energía primaria no renovable previsto en el proyecto reduce en mas de un 30 % al consumo energía primaria no renovable del edificio de referencia") -> El consumo de energía primaria no renovable previsto en el proyecto reduce en mas de un 30 % al consumo energía primaria no renovable del edificio de referencia | Y142: 0.6 | Z142: =+IF($Q145="seguro",$Y142,0) -> 0 | AB142: =+IF($Q145="probable",$Y142,0) -> 0 | AD142: =+IF($Q145="dudoso",$Y142,0) -> 0 | AF142: =+IF($Q145="NO CUMPLE",$Y142,0) -> 0 | AH142: =+IF($Q145="no aplica",2,0) -> 0
D145: =IF($W133="NE","El consumo de energía primaria no renovable previsto en el proyecto reduce en mas de un 90 % al consumo energía primaria no renovable límite fijado por el DB HE 0 para una carga interna de 9 W/m2","El consumo de energía primaria no renovable previsto en el proyecto reduce en mas de un 45 % al consumo energía primaria no renovable del edificio de referencia") -> El consumo de energía primaria no renovable previsto en el proyecto reduce en mas de un 45 % al consumo energía primaria no renovable del edificio de referencia | Y145: =SUM(Y136:Y144) -> 1 | Z145: =IF($O133="",0,SUM(Z136:Z144)*$O133*0.5) -> 0 | AB145: =IF($O133="",0,SUM(AB136:AB144)*$O133*0.5) -> 0 | AD145: =IF($O133="",0,SUM(AD136:AD144)*$O133*0.5) -> 0 | AF145: =IF($O133="",0,SUM(AF136:AF144)*$O133*0.5) -> 0
D148: Consumo límite de enrgía primaria total | Y148: Target | Z148: SEGURO | AB148: PROBABLE | AD148: DUDOSO | AF148: NO CUMPLE | AH148: NO APLICA
D150: =IF($W133="NE","El consumo de energía primaria total previsto en el proyecto reduce en mas de un 15 % al consumo energía primaria total límite fijado por el DB HE 0 para una carga interna de 9 W/m2","El consumo de energía primaria no renovable previsto en el proyecto reduce en mas de un 15 % al consumo energía primaria total del edificio de referencia") -> El consumo de energía primaria no renovable previsto en el proyecto reduce en mas de un 15 % al consumo energía primaria total del edificio de referencia | Y150: 0.1 | Z150: =+IF($Q150="seguro",$Y150,0) -> 0 | AB150: =+IF($Q150="probable",$Y150,0) -> 0 | AD150: =+IF($Q150="dudoso",$Y150,0) -> 0 | AF150: =+IF($Q150="NO CUMPLE",$Y150,0) -> 0 | AH150: =+IF($Q150="no aplica",2,0) -> 0
D153: =IF($W133="NE","El consumo de energía primaria total previsto en el proyecto reduce en mas de un 40 % al consumo energía primaria total límite fijado por el DB HE 0 para una carga interna de 9 W/m2","El consumo de energía primaria no renovable previsto en el proyecto reduce en mas de un 30 % al consumo energía primaria total del edificio de referencia") -> El consumo de energía primaria no renovable previsto en el proyecto reduce en mas de un 30 % al consumo energía primaria total del edificio de referencia | Y153: 0.3 | Z153: =+IF($Q153="seguro",$Y153,0) -> 0 | AB153: =+IF($Q153="probable",$Y153,0) -> 0 | AD153: =+IF($Q153="dudoso",$Y153,0) -> 0 | AF153: =+IF($Q153="NO CUMPLE",$Y153,0) -> 0 | AH153: =+IF($Q153="no aplica",2,0) -> 0
D156: =IF($W133="NE","El consumo de energía primaria total previsto en el proyecto reduce en mas de un 65 % al consumo energía primaria total límite fijado por el DB HE 0 para una carga interna de 9 W/m2","El consumo de energía primaria no renovable previsto en el proyecto reduce en mas de un 45 % al consumo energía primaria total del edificio de referencia") -> El consumo de energía primaria no renovable previsto en el proyecto reduce en mas de un 45 % al consumo energía primaria total del edificio de referencia | Y156: 0.6 | Z156: =+IF($Q156="seguro",$Y156,0) -> 0 | AB156: =+IF($Q156="probable",$Y156,0) -> 0 | AD156: =+IF($Q156="dudoso",$Y156,0) -> 0 | AF156: =+IF($Q156="NO CUMPLE",$Y156,0) -> 0 | AH156: =+IF($Q156="no aplica",2,0) -> 0
D159: El consumo de energía primaria total de calefacción y/o refrigeración es inferior a 15kWh/m2, se aporta ensayo Blower door cumpliendo las especificaciones ddel criterio | Y159: =SUM(Y150:Y157) -> 1 | Z159: =IF($O133="",0,SUM(Z149:Z158)*$O133*0.5) -> 0 | AB159: =IF($O133="",0,SUM(AB149:AB158)*$O133*0.5) -> 0 | AD159: =IF($O133="",0,SUM(AD149:AD158)*$O133*0.5) -> 0 | AF159: =IF($O133="",0,SUM(AF149:AF158)*$O133*0.5) -> 0
Y161: =Z161+AB161+AD161+AF161 -> 0 | Z161: =Z145+Z159 -> 0 | AB161: =AB145+AB159 -> 0 | AD161: 0 | AF161: 0
D162: Valoración obtenida: | H162: SEGURO | J162: PROBABLE | L162: DUDOSO | Z162: =+IF($Q159="seguro",$Z161,IF(Q159="",(Z145+Z159)*0.9,Z161)) -> 0 | AB162: =+IF($Q159="seguro",$AB161,IF(Q159="",(AB145+AB159)*0.9,AB161)) -> 0 | AD162: =+IF($Q159="seguro",$AD161,IF(Q159="",(AD145+AD159)*0.9,AD161)) -> 0 | AF162: =+IF($Q159="seguro",$AF161,IF(Q159="",(AF145+AF159)*0.9,AF161)) -> 0
H163: =Z161 -> 0 | J163: =AB161 -> 0 | L163: =AD161 -> 0
D166: ='Matriz VERDE-GBCe'!V19 -> EA 02 | E166: =VLOOKUP($D166,'Matriz VERDE-GBCe'!$V$6:$Y$59,2,FALSE) -> Generación distribuida | O166: =VLOOKUP($D166,'Matriz VERDE-GBCe'!$V$6:$Y$59,3,FALSE) -> 0.04851378408 | W166: =IF(OR(D168="Nueva Edificación",D168="Rehabilitación"),"NE","EE") -> EE
D168: =IF(DG!$F$31=0,"",DG!$F$31) ->  | Y168: Target | Z168: SEGURO | AB168: PROBABLE | AD168: DUDOSO | AF168: NO CUMPLE | AH168: NO APLICA
D170: =IF(W166="NE","La producción de energía renovable en la parcela es mas de un 30 % respecto de los límites fijados en el criterio", "La producción de energía renovable en la parcela, es mas de un 70 % respecto del estudio de potencial de renovables del edificio") -> La producción de energía renovable en la parcela, es mas de un 70 % respecto del estudio de potencial de renovables del edificio | Y170: 0.1 | Z170: =+IF($Q170="seguro",$Y170,0) -> 0 | AB170: =+IF($Q170="probable",$Y170,0) -> 0 | AD170: =+IF($Q170="dudoso",$Y170,0) -> 0 | AF170: =+IF($Q170="NO CUMPLE",$Y170,0) -> 0 | AH170: =+IF($Q170="no aplica",2,0) -> 0
D173: =IF(W166="NE","La producción de energía renovable en la parcela es mas de un 60 % respecto de los límites fijados en el criterio", "La producción de energía renovable en la parcela, es mas de un 80 % respecto del estudio de potencial de renovables del edificio") -> La producción de energía renovable en la parcela, es mas de un 80 % respecto del estudio de potencial de renovables del edificio | Y173: 0.3 | Z173: =+IF($Q173="seguro",$Y173,0) -> 0 | AB173: =+IF($Q173="probable",$Y173,0) -> 0 | AD173: =+IF($Q173="dudoso",$Y173,0) -> 0 | AF173: =+IF($Q173="NO CUMPLE",$Y173,0) -> 0 | AH173: =+IF($Q173="no aplica",2,0) -> 0
D176: =IF(W166="NE","La producción de energía renovable en la parcela es mas de un 90 % respecto de los límites fijados en el criterio", "La producción de energía renovable en la parcela, es mas de un 90 % respecto del estudio de potencial de renovables del edificio") -> La producción de energía renovable en la parcela, es mas de un 90 % respecto del estudio de potencial de renovables del edificio | Y176: 0.6 | Z176: =+IF($Q176="seguro",$Y176,0) -> 0 | AB176: =+IF($Q176="probable",$Y176,0) -> 0 | AD176: =+IF($Q176="dudoso",$Y176,0) -> 0 | AF176: =+IF($Q176="NO CUMPLE",$Y176,0) -> 0 | AH176: =+IF($Q176="no aplica",2,0) -> 0
D179: Se prevée que la generación de energía renovable en la parcela sea superior al consumo de energía primaria total del edificio | Y179: =SUM(Y169:Y178) -> 1 | Z179: =IF($O166="",0,IF(W166="NE",(SUM(Z169:Z176)*$O166*0.8),(SUM(Z169:Z176)*$O166))) -> 0 | AB179: =IF($O166="",0,SUM(AB169:AB176)*$O166*0.8) -> 0 | AD179: =IF($O166="",0,SUM(AD169:AD176)*$O166*0.8) -> 0 | AF179: =IF($O166="",0,SUM(AF169:AF176)*$O166*0.8) -> 0
Z180: =+IF(AND($Q179="seguro",W166="NE"),$O166*0.2,0) -> 0 | AB180: =+IF($Q179="probable",$O166*0.2,0) -> 0 | AD180: =+IF($Q179="dudoso",$O166*0.2,0) -> 0 | AF180: =+IF($Q179="no cumple",$O166*0.2,0) -> 0
Z181: =IF((Z179+Z180)>O166,O166,(Z179+Z180)) -> 0 | AB181: =IF((AB179+AB180)>O166,O166,(AB179+AB180)) -> 0 | AD181: =IF((AD179+AD180)>O166,O166,(AD179+AD180)) -> 0 | AF181: =IF((AF179+AF180)>O166,O166,(AF179+AF180)) -> 0
D182: Valoración obtenida: | H182: SEGURO | J182: PROBABLE | L182: DUDOSO
H183: =Z181 -> 0 | J183: =AB181 -> 0 | L183: =AD181 -> 0
D186: ='Matriz VERDE-GBCe'!V20 -> EA 03 | E186: =VLOOKUP($D186,'Matriz VERDE-GBCe'!$V$6:$Y$59,2,FALSE) -> Consumo en zonas comunes | O186: =VLOOKUP($D186,'Matriz VERDE-GBCe'!$V$6:$Y$59,3,FALSE) -> 0.02541198213 | Y186: Target | Z186: SEGURO | AB186: PROBABLE | AD186: DUDOSO | AF186: NO CUMPLE | AH186: NO APLICA
D188: Los elementos de comunicación mecánicos disponen de una clasificación energética B o superior según la UNE 25745-2 | Y188: 1 | Z188: =+IF($Q188="seguro",$Y188,0) -> 0 | AB188: =+IF($Q188="probable",$Y188,0) -> 0 | AD188: =+IF($Q188="dudoso",$Y188,0) -> 0 | AF188: =+IF($Q188="NO CUMPLE",$Y188,0) -> 0 | AH188: =+IF($Q188="no aplica",2,0) -> 0
D191: Los elementos de comunicación existentes tendrán implementadas, al menos 3 de las medidas descritas en el criterio. | Y191: =IF(Q188="",0.5,0) -> 0.5 | Z191: =+IF($Q191="seguro",$Y191,0) -> 0 | AB191: =+IF($Q191="probable",$Y191,0) -> 0 | AD191: =+IF($Q191="dudoso",$Y191,0) -> 0 | AF191: =+IF($Q191="NO CUMPLE",$Y191,0) -> 0 | AH191: =+IF($Q191="no aplica",2,0) -> 0
Y192: =SUM(Y187:Y191) -> 1.5 | Z192: =IF($O186="",0,MAX(Z187:Z191)*$O186) -> 0 | AB192: =IF($O186="",0,MAX(AB187:AB191)*$O186) -> 0 | AD192: =IF($O186="",0,MAX(AD187:AD191)*$O186) -> 0 | AF192: =IF($O186="",0,MAX(AF187:AF191)*$O186) -> 0
D193: Valoración obtenida: | H193: SEGURO | J193: PROBABLE | L193: DUDOSO
H194: =Z192 -> 0 | J194: =AB192 -> 0 | L194: =AD192 -> 0
D197: ='Matriz VERDE-GBCe'!V22 -> EA 04 | E197: =VLOOKUP($D197,'Matriz VERDE-GBCe'!$V$6:$Y$59,2,FALSE) -> Elección responsable de refrigerantes | O197: =VLOOKUP($D197,'Matriz VERDE-GBCe'!$V$6:$Y$59,3,FALSE) -> 0.02666974691 | Y197: Target | Z197: SEGURO | AB197: PROBABLE | AD197: DUDOSO | AF197: NO CUMPLE | AH197: NO APLICA
D199: Todos los refrigerantes empleados tienen un potencial de calentamiento entre 700 y 450 | Y199: =IF(OR(Q205="",Q208="",Q211="",Q214=""),0.4,0) -> 0.4 | Z199: =+IF($Q199="seguro",$Y199,0) -> 0 | AB199: =+IF($Q199="probable",$Y199,0) -> 0 | AD199: =+IF($Q199="dudoso",$Y199,0) -> 0 | AF199: =+IF($Q199="NO CUMPLE",$Y199,0) -> 0 | AH199: =+IF($Q199="no aplica",2,0) -> 0
D202: Todos los refrigerantes empleados tienen un potencial de calentamiento entre 450 y 150 o inferior | Y202: =IF(OR(Q205="",Q208="",Q211="",Q214=""),0.4,0) -> 0.4 | Z202: =+IF($Q202="seguro",$Y202,0) -> 0 | AB202: =+IF($Q202="probable",$Y202,0) -> 0 | AD202: =+IF($Q202="dudoso",$Y202,0) -> 0 | AF202: =+IF($Q202="NO CUMPLE",$Y202,0) -> 0 | AH202: =+IF($Q202="no aplica",2,0) -> 0
D205: El TEWI de los equipos instalados es un 30% superior al TEWI de referencia | Y205: =IF(OR(Q199="",Q202=""),0.2,0) -> 0.2 | Z205: =+IF(Z199=0,IF($Q205="seguro",$Y205,0),0) -> 0 | AB205: =+IF($Q205="probable",$Y205,0) -> 0 | AD205: =+IF($Q205="dudoso",$Y205,0) -> 0 | AF205: =+IF($Q205="NO CUMPLE",$Y205,0) -> 0 | AH205: =+IF($Q205="no aplica",2,0) -> 0
D208: El TEWI de los equipos instalados es un 20% superior al TEWI de referencia | Y208: =IF(OR(Q199="",Q202=""),0.3,0) -> 0.3 | Z208: =+IF(Z199=0,IF($Q208="seguro",$Y208,0),0) -> 0 | AB208: =+IF($Q208="probable",$Y208,0) -> 0 | AD208: =+IF($Q208="dudoso",$Y208,0) -> 0 | AF208: =+IF($Q208="NO CUMPLE",$Y208,0) -> 0 | AH208: =+IF($Q208="no aplica",2,0) -> 0
D211: El TEWI de los equipos instalados es un 10% superior al TEWI de referencia | Y211: =IF(OR(Q199="",Q202=""),0.3,0) -> 0.3 | Z211: =+IF(Z199=0,IF($Q211="seguro",$Y211,0),0) -> 0 | AB211: =+IF($Q211="probable",$Y211,0) -> 0 | AD211: =+IF($Q211="dudoso",$Y211,0) -> 0 | AF211: =+IF($Q211="NO CUMPLE",$Y211,0) -> 0 | AH211: =+IF($Q211="no aplica",2,0) -> 0
D214: Existe un protocolo de actuación en caso de fugas | Y214: 0.2 | Z214: =+IF($Q214="seguro",$Y214,0) -> 0 | AB214: =+IF($Q214="probable",$Y214,0) -> 0 | AD214: =+IF($Q214="dudoso",$Y214,0) -> 0 | AF214: =+IF($Q214="NO CUMPLE",$Y214,0) -> 0 | AH214: =+IF($Q214="no aplica",2,0) -> 0
D216: Valoración obtenida: | H216: SEGURO | J216: PROBABLE | L216: DUDOSO
H217: =Z217 -> 0 | J217: =AB217 -> 0 | L217: =AD217 -> 0 | Y217: =SUM(Y205:Y214) -> 1 | Z217: =IF($O197="",0,(SUM(Z199:Z214)*$O197)) -> 0 | AB217: =IF($O197="",0,(SUM(AB199:AB214)*$O197)) -> 0 | AD217: =IF($O197="",0,(SUM(AD199:AD214)*$O197)) -> 0 | AF217: =IF($O197="",0,(SUM(AF199:AF214)*$O197)) -> 0
F220: SEGURO | H220: PROBABLE | J220: DUDOSO | L220: NO CUMPLE
D222: SUBTOTAL | F222: =H163+H183+H194+H217 -> 0 | H222: =J163+J183+J194+J217+J21 -> 0 | J222: =L163+L183+L194+L217+L21 -> 0 | L222: =AF161+AF181+AF192+AF217 -> 0 | X222: =F222+H222+J222+L222 -> 0
B226: ='Matriz VERDE-GBCe'!U23 -> RN | D226: ='Matriz VERDE-GBCe'!V23 -> Recursos naturales | O226: Valoración total | Q226: ='Matriz VERDE-GBCe'!X23 -> 0.2292212126
D229: ='Matriz VERDE-GBCe'!V24 -> RN 01 | E229: =VLOOKUP($D229,'Matriz VERDE-GBCe'!$V$6:$Y$59,2,FALSE) -> Consumo de agua en aparatos sanitarios | O229: =VLOOKUP($D229,'Matriz VERDE-GBCe'!$V$6:$Y$59,3,FALSE) -> 0.0214076698 | Y229: Target | Z229: SEGURO | AB229: PROBABLE | AD229: DUDOSO | AF229: NO CUMPLE | AH229: NO APLICA
D231: El consumo de agua en sanitarios se reduce en un 20% | Y231: 0.5 | Z231: =+IF($Q231="seguro",$Y231,0) -> 0 | AB231: =+IF($Q231="probable",$Y231,0) -> 0 | AD231: =+IF($Q231="dudoso",$Y231,0) -> 0 | AF231: =+IF($Q231="NO CUMPLE",$Y231,0) -> 0 | AH231: =+IF($Q231="no aplica",2,0) -> 0
D234: El consumo de agua en sanitarios se reduce en un 30% | Y234: 0.5 | Z234: =+IF($Q234="seguro",$Y234,0) -> 0 | AB234: =+IF($Q234="probable",$Y234,0) -> 0 | AD234: =+IF($Q234="dudoso",$Y234,0) -> 0 | AF234: =+IF($Q234="NO CUMPLE",$Y234,0) -> 0 | AH234: =+IF($Q234="no aplica",2,0) -> 0
D236: Valoración obtenida: | H236: SEGURO | J236: PROBABLE | L236: DUDOSO | Y236: =SUM(Y231:Y234) -> 1 | Z236: =IF($O229="",0,SUM(Z231:Z234)*$O229/$Y236) -> 0 | AB236: =IF($O229="",0,SUM(AB231:AB234)*$O229/$Y236) -> 0 | AD236: =IF($O229="",0,SUM(AD231:AD234)*$O229/$Y236) -> 0 | AF236: =IF($O229="",0,SUM(AF231:AF234)*$O229/$Y236) -> 0
H237: =Z236 -> 0 | J237: =AB236 -> 0 | L237: =AD236 -> 0
D240: ='Matriz VERDE-GBCe'!V25 -> RN 02 | E240: =VLOOKUP($D240,'Matriz VERDE-GBCe'!$V$6:$Y$59,2,FALSE) -> Necesidades de riego en jardines. | O240: =VLOOKUP($D240,'Matriz VERDE-GBCe'!$V$6:$Y$59,3,FALSE) -> 0 | Y240: Target | Z240: SEGURO | AB240: PROBABLE | AD240: DUDOSO | AF240: NO CUMPLE | AH240: NO APLICA
D242: Las necesidades de riego en jardines se reducen en un 40 % | Y242: 0.35 | Z242: =+IF($Q242="seguro",$Y242,0) -> 0 | AB242: =+IF($Q242="probable",$Y242,0) -> 0 | AD242: =+IF($Q242="dudoso",$Y242,0) -> 0 | AF242: =+IF($Q242="NO CUMPLE",$Y242,0) -> 0 | AH242: =+IF($Q242="no aplica",2,0) -> 0
D245: Las necesidades de riego en jardines se reducen en un 60 % | Y245: 0.35 | Z245: =+IF($Q245="seguro",$Y245,0) -> 0 | AB245: =+IF($Q245="probable",$Y245,0) -> 0 | AD245: =+IF($Q245="dudoso",$Y245,0) -> 0 | AF245: =+IF($Q245="NO CUMPLE",$Y245,0) -> 0 | AH245: =+IF($Q245="no aplica",2,0) -> 0
D248: Las necesidades de riego en jardines se reducen en un 80 % | Y248: 0.3 | Z248: =+IF($Q248="seguro",$Y248,0) -> 0 | AB248: =+IF($Q248="probable",$Y248,0) -> 0 | AD248: =+IF($Q248="dudoso",$Y248,0) -> 0 | AF248: =+IF($Q248="NO CUMPLE",$Y248,0) -> 0 | AH248: =+IF($Q248="no aplica",2,0) -> 0
D250: Valoración obtenida: | H250: SEGURO | J250: PROBABLE | L250: DUDOSO | Y250: =SUM(Y241:Y248) -> 1 | Z250: =IF($O240="",0,SUM(Z241:Z248)*$O240/$Y250) -> 0 | AB250: =IF($O240="",0,SUM(AB241:AB248)*$O240/$Y250) -> 0 | AD250: =IF($O240="",0,SUM(AD241:AD248)*$O240/$Y250) -> 0 | AF250: =IF($O240="",0,SUM(AF241:AF248)*$O240/$Y250) -> 0
H251: =Z250 -> 0 | J251: =AB250 -> 0 | L251: =AD250 -> 0
D254: ='Matriz VERDE-GBCe'!V26 -> RN 03 | E254: =VLOOKUP($D254,'Matriz VERDE-GBCe'!$V$6:$Y$59,2,FALSE) -> Consumos de agua singulares. | O254: =VLOOKUP($D254,'Matriz VERDE-GBCe'!$V$6:$Y$59,3,FALSE) -> 0.01812208019 | Y254: Target | Z254: SEGURO | AB254: PROBABLE | AD254: DUDOSO | AF254: NO CUMPLE | AH254: NO APLICA
D256: Se reutiliza el 80 % de las aguas grises producidas | Y256: 1 | Z256: =+IF($Q256="seguro",$Y256,0) -> 0 | AB256: =+IF($Q256="probable",$Y256,0) -> 0 | AD256: =+IF($Q256="dudoso",$Y256,0) -> 0 | AF256: =+IF($Q256="NO CUMPLE",$Y256,0) -> 0 | AH256: =+IF($Q256="no aplica",2,0) -> 0
D258: Valoración obtenida: | H258: SEGURO | J258: PROBABLE | L258: DUDOSO | Y258: =SUM(Y255:Y256) -> 1 | Z258: =IF($O254="",0,SUM(Z255:Z256)*$O254/$Y258) -> 0 | AB258: =IF($O254="",0,SUM(AB255:AB256)*$O254/$Y258) -> 0 | AD258: =IF($O254="",0,SUM(AD255:AD256)*$O254/$Y258) -> 0 | AF258: =IF($O254="",0,SUM(AF255:AF256)*$O254/$Y258) -> 0
H259: =Z258 -> 0 | J259: =AB258 -> 0 | L259: =AD258 -> 0
D262: ='Matriz VERDE-GBCe'!V27 -> RN 04 | E262: =VLOOKUP($D262,'Matriz VERDE-GBCe'!$V$6:$Y$59,2,FALSE) -> Uso de agua no potable. | O262: =VLOOKUP($D262,'Matriz VERDE-GBCe'!$V$6:$Y$59,3,FALSE) -> 0.02084295908 | Y262: Target | Z262: SEGURO | AB262: PROBABLE | AD262: DUDOSO | AF262: NO CUMPLE | AH262: NO APLICA
D264: Las aguas recuperadas cubren el 30 % de las necesidades | Y264: 0.35 | Z264: =+IF($Q264="seguro",$Y264,0) -> 0 | AB264: =+IF($Q264="probable",$Y264,0) -> 0 | AD264: =+IF($Q264="dudoso",$Y264,0) -> 0 | AF264: =+IF($Q264="NO CUMPLE",$Y264,0) -> 0 | AH264: =+IF($Q264="no aplica",2,0) -> 0
D267: Las aguas recuperadas cubren el 60 % de las necesidades | Y267: 0.35 | Z267: =+IF($Q267="seguro",$Y267,0) -> 0 | AB267: =+IF($Q267="probable",$Y267,0) -> 0 | AD267: =+IF($Q267="dudoso",$Y267,0) -> 0 | AF267: =+IF($Q267="NO CUMPLE",$Y267,0) -> 0 | AH267: =+IF($Q267="no aplica",2,0) -> 0
D270: Las aguas recuperadas cubren el 90 % de las necesidades | Y270: 0.3 | Z270: =+IF($Q270="seguro",$Y270,0) -> 0 | AB270: =+IF($Q270="probable",$Y270,0) -> 0 | AD270: =+IF($Q270="dudoso",$Y270,0) -> 0 | AF270: =+IF($Q270="NO CUMPLE",$Y270,0) -> 0 | AH270: =+IF($Q270="no aplica",2,0) -> 0
D272: Valoración obtenida: | H272: SEGURO | J272: PROBABLE | L272: DUDOSO | Y272: =SUM(Y263:Y270) -> 1 | Z272: =IF($O262="",0,SUM(Z263:Z270)*$O262/$Y272) -> 0 | AB272: =IF($O262="",0,SUM(AB263:AB270)*$O262/$Y272) -> 0 | AD272: =IF($O262="",0,SUM(AD263:AD270)*$O262/$Y272) -> 0 | AF272: =IF($O262="",0,SUM(AF263:AF270)*$O262/$Y272) -> 0
H273: =Z272 -> 0 | J273: =AB272 -> 0 | L273: =AD272 -> 0
D276: ='Matriz VERDE-GBCe'!V28 -> RN 05 | E276: =VLOOKUP($D276,'Matriz VERDE-GBCe'!$V$6:$Y$59,2,FALSE) -> Uso de materiales reciclados. | O276: =VLOOKUP($D276,'Matriz VERDE-GBCe'!$V$6:$Y$59,3,FALSE) -> 0.01812208019 | Y276: Target | Z276: SEGURO | AB276: PROBABLE | AD276: DUDOSO | AF276: NO CUMPLE | AH276: NO APLICA
D278: Se ha instalado un 70 % de los elementos cerámicos, áridos, étreos y hormigones reciclados | Y278: 0.25 | Z278: =+IF($Q278="seguro",$Y278,0) -> 0 | AB278: =+IF($Q278="probable",$Y278,0) -> 0 | AD278: =+IF($Q278="dudoso",$Y278,0) -> 0 | AF278: =+IF($Q278="NO CUMPLE",$Y278,0) -> 0 | AH278: =+IF($Q278="no aplica",2,0) -> 0
D281: Se ha instalado un 90 % de los elementos cerámicos, áridos, étreos y hormigones reciclados | Y281: 0.5 | Z281: =+IF($Q281="seguro",$Y281,0) -> 0 | AB281: =+IF(AND($Q281="probable",AB278=0),$Y281/2,IF($Q281="probable",Y281,0)) -> 0 | AD281: =+IF(AND($Q281="dudoso",AD278=0),$Y281/2,IF($Q281="dudoso",Y281,0)) -> 0 | AF281: =+IF(AND($Q281="No cumple",AF278=0),$Y281/2,IF($Q281="No cumple",Y281,0)) -> 0 | AH281: =+IF($Q281="no aplica",2,0) -> 0
D284: Se ha instalado un 20 % de resto de materiales reciclados | Y284: 0.25 | Z284: =+IF($Q284="seguro",$Y284,0) -> 0 | AB284: =+IF($Q284="probable",$Y284,0) -> 0 | AD284: =+IF($Q284="dudoso",$Y284,0) -> 0 | AF284: =+IF($Q284="NO CUMPLE",$Y284,0) -> 0 | AH284: =+IF($Q284="no aplica",2,0) -> 0
D287: Se ha instalado un 30 % de resto de materiales reciclados | Y287: 0.5 | Z287: =+IF($Q287="seguro",$Y287,0) -> 0 | AB287: =+IF(AND($Q287="probable",AB284=0),$Y287/2,IF($Q287="probable",Y287,0)) -> 0 | AD287: =+IF(AND($Q287="dudoso",AD284=0),$Y287/2,IF($Q287="dudoso",Y287,0)) -> 0 | AF287: =+IF(AND($Q287="No cumple",AF284=0),$Y287/2,IF($Q287="No cumple",Y287,0)) -> 0 | AH287: =+IF($Q287="no aplica",2,0) -> 0
D289: Valoración obtenida: | H289: SEGURO | J289: PROBABLE | L289: DUDOSO
H290: =Z290 -> 0 | J290: =AB290 -> 0 | L290: =AD290 -> 0 | Y290: =MAX(Y277:Y281)+MAX(Y283:Y287) -> 1 | Z290: =IF($O276="",0,(MAX(Z278:Z283)+MAX(Z284:Z289))*$O276/$Y290) -> 0 | AB290: =IF($O276="",0,(MAX(AB277:AB283)+MAX(AB284:AB289))*$O276/$Y290) -> 0 | AD290: =IF($O276="",0,(MAX(AD277:AD283)+MAX(AD284:AD289))*$O276/$Y290) -> 0 | AF290: =IF($O276="",0,(MAX(AF277:AF283)+MAX(AF284:AF289))*$O276/$Y290) -> 0
D293: ='Matriz VERDE-GBCe'!V29 -> RN 06 | E293: =VLOOKUP($D293,'Matriz VERDE-GBCe'!$V$6:$Y$59,2,FALSE) -> Elección responsable de materiales | O293: =VLOOKUP($D293,'Matriz VERDE-GBCe'!$V$6:$Y$59,3,FALSE) -> 0.01878946558 | Y293: Target | Z293: SEGURO | AB293: PROBABLE | AD293: DUDOSO | AF293: NO CUMPLE | AH293: NO APLICA
D295: Al menos el 30 % de la maderas tienen certificado de origen en cadena de custodia | Y295: 0.3 | Z295: =+IF($Q295="seguro",$Y295,0) -> 0 | AB295: =+IF($Q295="probable",$Y295,0) -> 0 | AD295: =+IF($Q295="dudoso",$Y295,0) -> 0 | AF295: =+IF($Q295="NO CUMPLE",$Y295,0) -> 0 | AH295: =+IF($Q295="no aplica",2,0) -> 0
D298: Al menos el 50 % de la maderas tienen certificado de origen en cadena de custodia | Y298: 0.4 | Z298: =+IF($Q298="seguro",$Y298,0) -> 0 | AB298: =+IF($Q298="probable",$Y298,0) -> 0 | AD298: =+IF($Q298="dudoso",$Y298,0) -> 0 | AF298: =+IF($Q298="NO CUMPLE",$Y298,0) -> 0 | AH298: =+IF($Q298="no aplica",2,0) -> 0
D301: Al menos el 10 % de los materiales disponen de un documento de procedencia de materias primas | Y301: 0.3 | Z301: =+IF($Q301="seguro",$Y301,0) -> 0 | AB301: =+IF($Q301="probable",$Y301,0) -> 0 | AD301: =+IF($Q301="dudoso",$Y301,0) -> 0 | AF301: =+IF($Q301="NO CUMPLE",$Y301,0) -> 0 | AH301: =+IF($Q301="no aplica",2,0) -> 0
D303: Valoración obtenida: | H303: SEGURO | J303: PROBABLE | L303: DUDOSO
H304: =Z304 -> 0 | J304: =AB304 -> 0 | L304: =AD304 -> 0 | Y304: =Y295+Y298+Y301 -> 1 | Z304: =IF($O293="",0,(Z295+Z298+Z301)*O293/$Y304) -> 0 | AB304: =IF($O293="",0,(AB295+AB298+AB301)*O293/$Y304) -> 0 | AD304: =IF($O293="",0,(AD295+AD298+AD301)*O293/$Y304) -> 0 | AF304: =IF($O293="",0,(AF295+AF298+AF301)*O293/$Y304) -> 0
D307: ='Matriz VERDE-GBCe'!V30 -> RN 07 | E307: =VLOOKUP($D307,'Matriz VERDE-GBCe'!$V$6:$Y$59,2,FALSE) -> Uso de materiales de producción local. | O307: =VLOOKUP($D307,'Matriz VERDE-GBCe'!$V$6:$Y$59,3,FALSE) -> 0.01973920632 | Y307: Target | Z307: SEGURO | AB307: PROBABLE | AD307: DUDOSO | AF307: NO CUMPLE | AH307: NO APLICA
D309: El 60% de los elementos cerámicos, áridos, étreos y hormigones reciclados son de origen local | Y309: 0.2 | Z309: =+IF($Q309="seguro",$Y309,0) -> 0 | AB309: =+IF($Q309="probable",$Y309,0) -> 0 | AD309: =+IF($Q309="dudoso",$Y309,0) -> 0 | AF309: =+IF($Q309="NO CUMPLE",$Y309,0) -> 0 | AH309: =+IF($Q309="no aplica",2,0) -> 0
D312: El 80% de los elementos cerámicos, áridos, étreos y hormigones reciclados son de origen local | Y312: 0.2 | Z312: =+IF($Q312="seguro",$Y312,0) -> 0 | AB312: =+IF($Q312="probable",$Y312,0) -> 0 | AD312: =+IF($Q312="dudoso",$Y312,0) -> 0 | AF312: =+IF($Q312="NO CUMPLE",$Y312,0) -> 0 | AH312: =+IF($Q312="no aplica",2,0) -> 0
D315: El 60% de resto de materiales son de origen local | Y315: 0.3 | Z315: =+IF($Q315="seguro",$Y315,0) -> 0 | AB315: =+IF($Q315="probable",$Y315,0) -> 0 | AD315: =+IF($Q315="dudoso",$Y315,0) -> 0 | AF315: =+IF($Q315="NO CUMPLE",$Y315,0) -> 0 | AH315: =+IF($Q315="no aplica",2,0) -> 0
D318: El 80% de resto de materiales son de origen local | Y318: 0.3 | Z318: =+IF($Q318="seguro",$Y318,0) -> 0 | AB318: =+IF($Q318="probable",$Y318,0) -> 0 | AD318: =+IF($Q318="dudoso",$Y318,0) -> 0 | AF318: =+IF($Q318="NO CUMPLE",$Y318,0) -> 0 | AH318: =+IF($Q318="no aplica",2,0) -> 0
D320: Valoración obtenida: | H320: SEGURO | J320: PROBABLE | L320: DUDOSO
H321: =Z321 -> 0 | J321: =AB321 -> 0 | L321: =AD321 -> 0 | Y321: =Y309+Y312+Y315+Y318 -> 1 | Z321: =IF($O307="",0,(Z309+Z312+Z315+Z318))*$O307/$Y321 -> 0 | AB321: =IF($O307="",0,(AB309+AB312+AB315+AB318))*$O307/$Y321 -> 0 | AD321: 0 | AF321: 0
D324: ='Matriz VERDE-GBCe'!V31 -> RN 08 | E324: =VLOOKUP($D324,'Matriz VERDE-GBCe'!$V$6:$Y$59,2,FALSE) -> El edificio como banco de materiales | O324: =VLOOKUP($D324,'Matriz VERDE-GBCe'!$V$6:$Y$59,3,FALSE) -> 0.02163868782 | Y324: Target | Z324: SEGURO | AB324: PROBABLE | AD324: DUDOSO | AF324: NO CUMPLE | AH324: NO APLICA
D326: El 50% de los favorecen el reciclaje al final de su ciclo de vida del edificio | Y326: 0.2 | Z326: =+IF($Q326="seguro",$Y326,0) -> 0 | AB326: =+IF($Q326="probable",$Y326,0) -> 0 | AD326: =+IF($Q326="dudoso",$Y326,0) -> 0 | AF326: =+IF($Q326="NO CUMPLE",$Y326,0) -> 0 | AH326: =+IF($Q326="no aplica",2,0) -> 0
D329: El 60% de los favorecen el reciclaje al final de su ciclo de vida del edificio | Y329: 0.2 | Z329: =+IF($Q329="seguro",$Y329,0) -> 0 | AB329: =+IF($Q329="probable",$Y329,0) -> 0 | AD329: =+IF($Q329="dudoso",$Y329,0) -> 0 | AF329: =+IF($Q329="NO CUMPLE",$Y329,0) -> 0 | AH329: =+IF($Q329="no aplica",2,0) -> 0
D332: EL 60% de los elementos de los cerramientos exteriores garantizan su recuperación al fin de vida del edificio | Y332: 0.1 | Z332: 0 | AB332: 0 | AD332: =+IF($Q332="dudoso",$Y332,0) -> 0 | AF332: 0 | AH332: 0
D335: EL 60% de los elementos de la cubierta garantizan su recuperación al fin de vida del edificio | Y335: 0.1 | Z335: 0 | AB335: 0 | AD335: 0 | AF335: 0 | AH335: 0
D338: EL 60% de los elementos de la extructura garantizan su recuperación al fin de vida del edificio | Y338: 0.1 | Z338: 0 | AB338: 0 | AD338: 0 | AF338: 0 | AH338: 0
D341: EL 60% de los elementos de lal divisiones interiores garantizan su rrecuperación al fin de vida del edificio | Y341: 0.1 | Z341: 0 | AB341: 0 | AD341: 0 | AF341: 0 | AH341: 0
D344: Existe un estudio del posible uso de los materiales después de su desmontaje al final de la vida del edificio | Y344: 0.2 | Z344: 0 | AB344: 0 | AD344: 0 | AF344: 0 | AH344: 0
D346: Valoración obtenida: | H346: SEGURO | J346: PROBABLE | L346: DUDOSO
H347: =Z347 -> 0 | J347: =AB347 -> 0 | L347: =AD347 -> 0 | Y347: =Y326+Y329+Y332+Y335+Y338+Y341+Y344 -> 1 | Z347: =IF($O324="",0,(Z326+Z329+Z332+Z335+Z338+Z341+Z344)*$O324/$Y347) -> 0 | AB347: =IF($O324="",0,(AB326+AB329+AB332+AB335+AB338+AB341+AB344)*$O324/$Y347) -> 0 | AD347: 0 | AF347: 0
D350: ='Matriz VERDE-GBCe'!V32 -> RN 09 | E350: =VLOOKUP($D350,'Matriz VERDE-GBCe'!$V$6:$Y$59,2,FALSE) -> Gestión de los residuos de la construcción. | O350: =VLOOKUP($D350,'Matriz VERDE-GBCe'!$V$6:$Y$59,3,FALSE) -> 0.01565788798 | Y350: Target | Z350: SEGURO | AB350: PROBABLE | AD350: DUDOSO | AF350: NO CUMPLE | AH350: NO APLICA
D352: Se garantiza la revalorización del 65% de los residuos de la construcción | Y352: 0.25 | Z352: =+IF($Q352="seguro",$Y352,0) -> 0 | AB352: =+IF($Q352="probable",$Y352,0) -> 0 | AD352: =+IF($Q352="dudoso",$Y352,0) -> 0 | AF352: =+IF($Q352="NO CUMPLE",$Y352,0) -> 0 | AH352: =+IF($Q352="no aplica",2,0) -> 0
D355: Se garantiza la revalorización del 75% de los residuos de la construcción | Y355: 0.25 | Z355: =+IF($Q355="seguro",$Y355,0) -> 0 | AB355: =+IF($Q355="probable",$Y355,0) -> 0 | AD355: =+IF($Q355="dudoso",$Y355,0) -> 0 | AF355: =+IF($Q355="NO CUMPLE",$Y355,0) -> 0 | AH355: =+IF($Q355="no aplica",2,0) -> 0
D358: Se ha realizadoo unanálisis de posibles alternativas en la utilización de sistemas o materiales para minimizar los residuos de obra | Y358: 0.5 | Z358: =+IF($Q358="seguro",$Y358,0) -> 0 | AB358: =+IF($Q358="probable",$Y358,0) -> 0 | AD358: =+IF($Q358="dudoso",$Y358,0) -> 0 | AF358: =+IF($Q358="NO CUMPLE",$Y358,0) -> 0 | AH358: =+IF($Q358="no aplica",2,0) -> 0
D360: Valoración obtenida: | H360: SEGURO | J360: PROBABLE | L360: DUDOSO
H361: =Z361 -> 0 | J361: =AB361 -> 0 | L361: =AD361 -> 0 | Y361: =Y352+Y355+Y358 -> 1 | Z361: =IF($O350="",0,(Z352+Z355+Z358)*$O350/$Y361) -> 0 | AB361: =IF($O350="",0,(AB352+AB355+AB358)*$O350/$Y361) -> 0 | AD361: 0 | AF361: 0
D364: ='Matriz VERDE-GBCe'!V33 -> RN 10 | E364: =VLOOKUP($D364,'Matriz VERDE-GBCe'!$V$6:$Y$59,2,FALSE) -> Nivel de intervención en rehabilitaciones | O364: =VLOOKUP($D364,'Matriz VERDE-GBCe'!$V$6:$Y$59,3,FALSE) -> 0
D365: =IF(DG!$F$31=0,"",DG!$F$31) ->  | Y365: Target | Z365: SEGURO | AB365: PROBABLE | AD365: DUDOSO | AF365: NO CUMPLE | AH365: NO APLICA
D367: Se conservan mas del 80% de los elementos de los cerramientos exteriores verticales. | Y367: 0.2 | Z367: =+IF($Q367="seguro",$Y367,0) -> 0 | AB367: =+IF($Q367="probable",$Y367,0) -> 0 | AD367: =+IF($Q367="dudoso",$Y367,0) -> 0 | AF367: =+IF($Q367="NO CUMPLE",$Y367,0) -> 0 | AH367: =+IF($Q367="no aplica",2,0) -> 0
D370: Se conservan mas del 80% de la cubierta. | Y370: 0.2 | Z370: 0 | AB370: 0 | AD370: 0 | AF370: 0 | AH370: 0
D373: Se conservan mas del 80% de los elementos de la estructura. | Y373: 0.2 | Z373: 0 | AB373: 0 | AD373: 0 | AF373: 0 | AH373: 0
D376: Se conservan mas del 80% de los elementos de las particiones interiores. | Y376: 0.2 | Z376: 0 | AB376: 0 | AD376: 0 | AF376: 0 | AH376: 0
D379: Se conservan mas del 80% de los elementos de las cajas de escalera y huecos de ascensores. | Y379: 0.2 | Z379: 0 | AB379: 0 | AD379: 0 | AF379: 0 | AH379: 0
D381: Valoración obtenida: | H381: SEGURO | J381: PROBABLE | L381: DUDOSO
H382: =IF(D365="Rehabilitación",Z382,0) -> 0 | J382: =IF(D365="Rehabilitación",AB382,0) -> 0 | L382: =IF(D365="Rehabilitación",AD382,0) -> 0 | Y382: =SUM(Y367:Y379) -> 1 | Z382: =IF($O364="",0,SUM(Z367:Z381)*$O364/$Y382) -> 0 | AB382: =IF($O364="",0,SUM(AB367:AB381)*$O364/$Y382) -> 0 | AD382: =IF($O364="",0,SUM(AD367:AD381)*$O364/$Y382) -> 0 | AF382: =IF($O364="",0,SUM(AF367:AF381)*$O364/$Y382) -> 0
D385: ='Matriz VERDE-GBCe'!V34 -> RN 11 | E385: =VLOOKUP($D385,'Matriz VERDE-GBCe'!$V$6:$Y$59,2,FALSE) -> Impacto de los materiales de la construcción. | O385: =VLOOKUP($D385,'Matriz VERDE-GBCe'!$V$6:$Y$59,3,FALSE) -> 0.05485394527 | Y385: Target | Z385: SEGURO | AB385: PROBABLE | AD385: DUDOSO | AF385: NO CUMPLE | AH385: NO APLICA
D387: Existe un ACV parcial en las etapas A1, A2, A3 según la EN 15978 que contempla los indicadores GWP (kg CO2 eq) y ADP (MJ). | Y387: 0.5 | Z387: =+IF($Q387="seguro",$Y387,0) -> 0 | AB387: =+IF($Q387="probable",$Y387,0) -> 0 | AD387: =+IF($Q387="dudoso",$Y387,0) -> 0 | AF387: =+IF($Q387="NO CUMPLE",$Y387,0) -> 0 | AH387: =+IF($Q387="no aplica",2,0) -> 0
D390: Existe un ACV completo en las etapas A1, A2, A3, A4, A5, B4, C3 y C4 según la EN 15978 que contempla los indicadores GWP(kg CO2 eq) y ADP (MJ). | Y390: 0.3 | Z390: =+IF($Q390="seguro",$Y390,0) -> 0 | AB390: =+IF($Q390="probable",$Y390,0) -> 0 | AD390: =+IF($Q390="dudoso",$Y390,0) -> 0 | AF390: =+IF($Q390="NO CUMPLE",$Y390,0) -> 0 | AH390: =+IF($Q390="no aplica",2,0) -> 0
D393: El ACV que demuestra una reducción del 15% en los indicadores GWP (kg CO2 eq) y/o ADP (MJ). | Y393: 0.1 | Z393: =+IF($Q393="seguro",$Y393,0) -> 0 | AB393: =+IF($Q393="probable",$Y393,0) -> 0 | AD393: =+IF($Q393="dudoso",$Y393,0) -> 0 | AF393: =+IF($Q393="NO CUMPLE",$Y393,0) -> 0 | AH393: =+IF($Q393="no aplica",2,0) -> 0
D396: Existe un ACV parcial o completo que contempla todos los indicadores establecidos en la norma EN 15978 | Y396: 0.1 | Z396: =+IF($Q396="seguro",$Y396,0) -> 0 | AB396: =+IF($Q396="probable",$Y396,0) -> 0 | AD396: =+IF($Q396="dudoso",$Y396,0) -> 0 | AF396: =+IF($Q396="NO CUMPLE",$Y396,0) -> 0 | AH396: =+IF($Q396="no aplica",2,0) -> 0
D398: Valoración obtenida: | H398: SEGURO | J398: PROBABLE | L398: DUDOSO
H399: =Z399 -> 0 | J399: =AB399 -> 0 | L399: =AD399 -> 0 | Y399: =SUM(Y387:Y396) -> 1 | Z399: =IF($O385="",0,SUM(Z387:Z396)*$O385/$Y399) -> 0 | AB399: =IF($O385="",0,SUM(AB387:AB396)*$O385/$Y399) -> 0 | AD399: =IF($O385="",0,SUM(AD387:AD396)*$O385/$Y399) -> 0 | AF399: =IF($O385="",0,SUM(AF387:AF396)*$O385/$Y399) -> 0
D402: ='Matriz VERDE-GBCe'!V35 -> RN 12 | E402: =VLOOKUP($D402,'Matriz VERDE-GBCe'!$V$6:$Y$59,2,FALSE) -> Ecoetiquetado de producto. | O402: =VLOOKUP($D402,'Matriz VERDE-GBCe'!$V$6:$Y$59,3,FALSE) -> 0.02004723035 | Y402: Target | Z402: SEGURO | AB402: PROBABLE | AD402: DUDOSO | AF402: NO CUMPLE | AH402: NO APLICA
D404: El porcentaje en masa de los materiales con ecoetiqueta tipo I está por encima del 15% | Y404: 0.2 | Z404: =+IF($Q404="seguro",$Y404,0) -> 0 | AB404: =+IF($Q404="probable",$Y404,0) -> 0 | AD404: =+IF($Q404="dudoso",$Y404,0) -> 0 | AF404: =+IF($Q404="NO CUMPLE",$Y404,0) -> 0 | AH404: =+IF($Q404="no aplica",2,0) -> 0
D407: El porcentaje en masa de los elementos cerámicos, áridos, pétreos y hormigones con DAP está por encima del 90% | Y407: 0.3 | Z407: =+IF($Q407="seguro",$Y407,0) -> 0 | AB407: =+IF($Q407="probable",$Y407,0) -> 0 | AD407: =+IF($Q407="dudoso",$Y407,0) -> 0 | AF407: =+IF($Q407="NO CUMPLE",$Y407,0) -> 0 | AH407: =+IF($Q407="no aplica",2,0) -> 0
D410: El porcentaje en masa del resto de materiales con DAP está por encima del 30% | Y410: 0.5 | Z410: =+IF($Q410="seguro",$Y410,0) -> 0 | AB410: =+IF($Q410="probable",$Y410,0) -> 0 | AD410: =+IF($Q410="dudoso",$Y410,0) -> 0 | AF410: =+IF($Q410="NO CUMPLE",$Y410,0) -> 0 | AH410: =+IF($Q410="no aplica",2,0) -> 0
D413: Entre los materiales con DAPs se encuentran, al menos, las siguientes familias: elementos estructurales, aislamientos y revestimientos. | Y413: 0.2 | Z413: =+IF($Q413="seguro",$Y413,0) -> 0 | AB413: =+IF($Q413="probable",$Y413,0) -> 0 | AD413: =+IF($Q413="dudoso",$Y413,0) -> 0 | AF413: =+IF($Q413="NO CUMPLE",$Y413,0) -> 0 | AH413: =+IF($Q413="no aplica",2,0) -> 0
D416: El 50% de las DAPs cuentan con un ACV en todas las fases del ciclo de vida | Y416: 0.2 | Z416: =+IF($Q416="seguro",$Y416,0) -> 0 | AB416: =+IF($Q416="probable",$Y416,0) -> 0 | AD416: =+IF($Q416="dudoso",$Y416,0) -> 0 | AF416: =+IF($Q416="NO CUMPLE",$Y416,0) -> 0 | AH416: =+IF($Q416="no aplica",2,0) -> 0
D418: Valoración obtenida: | H418: SEGURO | J418: PROBABLE | L418: DUDOSO
H419: =Z419 -> 0 | J419: =AB419 -> 0 | L419: =AD419 -> 0 | Y419: =IF((SUM(Y403:Y412))=1,1,SUM(Y404:Y416)) -> 1 | Z419: =IF((SUM(Z404:Z417))>=1,O402,(SUM(Z404:Z417))*O402) -> 0 | AB419: =IF((Z419=O402),0,IF((SUM(AB403:AB417))>=1,(O402-Z419),IF(((SUM(AB403:AB417))*O402)+Z419>=O402,O402-Z419,(SUM(AB403:AB417))*O402))) -> 0 | AD419: =IF(((AB419+Z419)=O402),0,IF((SUM(AD403:AD417))>=1,(O402-AB419-Z419),IF(((SUM(AD403:AD417))*O402)+AB419+Z419>=O402,O402-AB419-Z419,(SUM(AD403:AD417))*O402))) -> 0 | AF419: =IF(OR(Z419=O402,AB419=O402,AD419=O402),0,IF((SUM(AF403:AF412))=1,O402,SUM(AF404:AF416)*O402)) -> 0
F421: SEGURO | H421: PROBABLE | J421: DUDOSO | L421: NO CUMPLE
D423: SUBTOTAL | F423: =H237+H251+H259+H273+H290+H304+H321+H347+H361+H382+H399+H419 -> 0 | H423: =J237+J251+J259+J273+J290+J304+J321+J347+J361+J382+J399+J419 -> 0 | J423: =L237+L251+L259+L273+L290+L304+L321+L347+L361+L382+L399+L419 -> 0 | L423: =AF236+AF250+AF258+AF272+AF290+AF304+AF321+AF347+AF361+AF399+AF419+AF382 -> 0 | X423: =F423+H423+J423+L423 -> 0
B427: ='Matriz VERDE-GBCe'!U36 -> AI | D427: ='Matriz VERDE-GBCe'!V36 -> Ambiente Interior. | O427: Valoración total | Q427: ='Matriz VERDE-GBCe'!X36 -> 0.09487139997
D430: ='Matriz VERDE-GBCe'!V37 -> AI 01 | E430: =VLOOKUP($D430,'Matriz VERDE-GBCe'!$V$6:$Y$59,2,FALSE) -> Limitación de las emisiones de COVs | O430: =VLOOKUP($D430,'Matriz VERDE-GBCe'!$V$6:$Y$59,3,FALSE) -> 0.0190204836 | Y430: Target | Z430: SEGURO | AB430: PROBABLE | AD430: DUDOSO | AF430: NO CUMPLE | AH430: NO APLICA
D432: Se ha realizado un ensayo tal y cómo se describe en la guía, también en cuanto a sus resultados | Y432: 1 | Z432: =+IF($Q432="seguro",$Y432,0) -> 0 | AB432: =+IF($Q432="probable",$Y432,0) -> 0 | AD432: =+IF($Q432="dudoso",$Y432,0) -> 0 | AF432: =+IF($Q432="NO CUMPLE",$Y432,0) -> 0 | AH432: =+IF($Q432="no aplica",2,0) -> 0
D435: Las pinturas, barnices, adhesivos, sellantes y derivados de la madera, tienen emisiones de COVs nulas | Y435: 0.6 | Z435: =+IF($Q435="seguro",$Y435,0) -> 0 | AB435: =+IF($Q435="probable",$Y435,0) -> 0 | AD435: =+IF($Q435="dudoso",$Y435,0) -> 0 | AF435: =+IF($Q435="NO CUMPLE",$Y435,0) -> 0 | AH435: =+IF($Q435="no aplica",2,0) -> 0
D438: Las pinturas, barnices, adhesivos, sellantes y derivados de la madera, tienen emisiones de COVs por debajo de las indicadas en la guía | Y438: 0.4 | Z438: =+IF($Q438="seguro",$Y438,0) -> 0 | AB438: =+IF($Q438="probable",$Y438,0) -> 0 | AD438: =+IF($Q438="dudoso",$Y438,0) -> 0 | AF438: =+IF($Q438="NO CUMPLE",$Y438,0) -> 0 | AH438: =+IF($Q438="no aplica",2,0) -> 0
D440: Valoración obtenida: | H440: SEGURO | J440: PROBABLE | L440: DUDOSO
H441: =Z441 -> 0 | J441: =AB441 -> 0 | L441: =AD441 -> 0 | Y441: =MAX(Y432:Y439) -> 1 | Z441: =IF(Z432=1,$O430,SUM(Z435:Z439)*$O430) -> 0 | AB441: =IF(AB432=1,($O430-Z441),SUM(AB435:AB439)*$O430) -> 0 | AD441: =IF(AD432=1,$O430-AB441-Z441,SUM(AD435:AD439)*$O430) -> 0 | AF441: =IF(AF432=1,$O430-AD441-AB441-Z441,SUM(AF435:AF439)*$O430) -> 0
D444: ='Matriz VERDE-GBCe'!V38 -> AI 02 | E444: =VLOOKUP($D444,'Matriz VERDE-GBCe'!$V$6:$Y$59,2,FALSE) -> Control de la calidad del aire | O444: =VLOOKUP($D444,'Matriz VERDE-GBCe'!$V$6:$Y$59,3,FALSE) -> 0.0186097849 | Y444: Target | Z444: SEGURO | AB444: PROBABLE | AD444: DUDOSO | AF444: NO CUMPLE | AH444: NO APLICA
D446: Se cuenta con detectores de CO2 en salas de alta ocupación y uso esporádico | Y446: 1 | Z446: =+IF($Q446="seguro",$Y446,0) -> 0 | AB446: =+IF($Q446="probable",$Y446,0) -> 0 | AD446: =+IF($Q446="dudoso",$Y446,0) -> 0 | AF446: =+IF($Q446="NO CUMPLE",$Y446,0) -> 0 | AH446: =+IF($O446="no aplica",2,0) -> 0
D448: Valoración obtenida: | H448: SEGURO | J448: PROBABLE | L448: DUDOSO
H449: =Z449 -> 0 | J449: =AB449 -> 0 | L449: =AD449 -> 0 | Y449: =SUM(Y446:Y446) -> 1 | Z449: =IF($O444="",0,Z446*$O444/$Y449) -> 0 | AB449: =IF($O444="",0,AB446*$O444/$Y449) -> 0 | AD449: =IF($O444="",0,AD446*$O444/$Y449) -> 0 | AF449: =IF($O444="",0,AF446*$O444/$Y449) -> 0
D452: ='Matriz VERDE-GBCe'!V39 -> AI 03 | E452: =VLOOKUP($D452,'Matriz VERDE-GBCe'!$V$6:$Y$59,2,FALSE) -> Iluminación natural. | O452: =VLOOKUP($D452,'Matriz VERDE-GBCe'!$V$6:$Y$59,3,FALSE) -> 0.0186097849
D454: =IF(DG!$F$31=0,"",DG!$F$31) ->  | Y454: Target | Z454: SEGURO | AB454: PROBABLE | AD454: DUDOSO | AF454: NO CUMPLE | AH454: NO APLICA
... 171 more rows

Sheet PE
C2: ='Matriz VERDE-GBCe'!U6 -> PE | E2: ='Matriz VERDE-GBCe'!V6 -> Parcela y emplazamiento | Y2: EJEMPLO 1
E5: ='Matriz VERDE-GBCe'!V7 -> PE 01 | F5: =VLOOKUP($E5,'Matriz VERDE-GBCe'!$V$7:$Y$51,2,FALSE) -> Proximidad al transporte publico. | G5: =VLOOKUP($E5,'Matriz VERDE-GBCe'!$V$7:$Y$51,3,FALSE) -> 0.01429744853 | O5: Área urbana
O6: Polígono no residencial
F7: =IF(DG!$F$29=DG!$L$29,"Comprueba las particularidades de este criterio para Naves industriales o logísticas en GEA.","") ->  | T7: SE ADJUNTA | V7: SÍ | W7: NO
T8: NO SE ADJUNTA | V8: NO
F9: ¿Dónde se encuentra el edificio? | G9: Área urbana | T9: NO APLICA
F11: =IF(G9="Polígono no residencial","Número de ocupantes","Número de habitantes del municipio") -> Número de habitantes del municipio | Y11: 10000
F13: =IF(G9="Polígono no residencial","","Densidad del entorno de la parcela en viv./ha") -> Densidad del entorno de la parcela en viv./ha | Y13: 150
F15: Dispone de un servicio propio de desplazamiento de trabajadores
F17: =IF(I15="Sí","",IF(DG!$F$29=DG!$L$29,CONCATENATE(N19,O19,P19,Q19,R19),CONCATENATE(N17,O17,P17,Q17,R17))) -> Se cumple con el requisito de 2 líneas de transporte público en las paradas situadas en un radio de 1000 m | M17: Sí | N17: Se cumple con el requisito de | O17: =IF(G9="Polígono no residencial",IF($I$11>=50,6,IF($I$11<50,4,0)),IF(AND($I$13>100,$I$11>100000),6,IF(OR(AND($I$13>100,AND($I$11<100000,$I$11>20000)),AND($I$13<100,$I$11>20000)),4,2)) ) -> 2 | P17: líneas de transporte público en las paradas situadas en un radio de | Q17: =IF(G9="Polígono no residencial",IF($I$11>=50,300,IF($I$11<50,600,0)),IF(AND($I$13>100,$I$11>100000),300,IF(OR(AND($I$13>100,AND($I$11<100000,$I$11>20000)),AND($I$13<100,$I$11>20000)),600,1000))) -> 1000 | R17: m | Y17: SÍ
E19: NOTAS | N19: Se cumple con el requisito de | O19: =IF(G11="Polígono no residencial",IF($I$11>=50,3,IF($I$11<50,2,0)),IF(AND($I$13>100,$I$11>100000),3,IF(OR(AND($I$13>100,AND($I$11<100000,$I$11>20000)),AND($I$13<100,$I$11>20000)),2,1)) ) -> 1 | P19: líneas de transporte público en las paradas situadas en un radio de | Q19: =IF(G11="Polígono no residencial",IF($I$11>=50,300,IF($I$11<50,600,0)),IF(AND($I$13>100,$I$11>100000),300,IF(OR(AND($I$13>100,AND($I$11<100000,$I$11>20000)),AND($I$13<100,$I$11>20000)),600,1000))) -> 1000 | R19: m
E21: DOCUMENTOS JUSTIFICATIVOS
E23: PE 01.01 | F23: Plano de situación del edificio en formato que permita la comprobación de las medidas con herramientas de libre acceso, indicando el círculo del diámetro adecuado para el caso de estudio, la entrada principal y la situación de las paradas de transporte público.
E25: PE 01.02 | F25: =IF(DG!F103=DG!M83,CONCATENATE(PE!N25,PE!O25,PE!P25),CONCATENATE(PE!N25,PE!O25,PE!Q25)) -> Información de los tipos de transporte público y líneas de cada uno de ellos con los horarios de servicio en las paradas incluidas en el diámetro aplicable al caso de estudio vigentes a fecha de visado del proyecto. | N25: Información de los tipos de transporte público y líneas de cada uno de ellos con los horarios de servicio en las paradas incluidas en el diámetro aplicable al caso de estudio | O25: vigentes a fecha de | P25: visado del proyecto. | Q25: puesta en servicio del edificio.
F27: VALORACIÓN DEL CRITERIO | G27: =IF(OR($I17="SÍ",I15="SÍ"),$G5,0) -> 0
E31: ='Matriz VERDE-GBCe'!V8 -> PE 02 | F31: =VLOOKUP($E31,'Matriz VERDE-GBCe'!$V$7:$Y$51,2,FALSE) -> Proximidad a equipamiento y servicios. | G31: =VLOOKUP($E31,'Matriz VERDE-GBCe'!$V$7:$Y$51,3,FALSE) -> 0.01347605113
F33: =IF(DG!$F$29=DG!$L$30,"Comprueba las particularidades de este criterio para urbanizaciones en GEA.",IF(DG!$F$29=DG!L29,"Comprueba las particularidades de este criterio para unifamiliares en GEA.","")) -> 
F35: Número de habitantes del municipio | G35: =I11 -> 0 | N35: =IF(AND($G$37>100,$G$35>100000),"A",IF(OR(AND($G$37>100,AND($G$35<100000,$G$35>20000)),AND($G$37<100,$G$35>20000)),"B","C")) -> C | O35: A | P35: B | Q35: C
F37: Densidad del entorno de la parcela en viv./ha | G37: =I13 -> 0 | O37: =IF(OR($I$39<3,$I$41<3,$I$43<2),0,$G$31) -> 0 | P37: =IF(OR($I$39<3,$I$41<2,$I$43<1),0,$G$31) -> 0 | Q37: =IF(OR($I$39<2,$I$41<1),0,$G$31) -> 0
F39: Número de equipamientos de PRIORIDAD 1 | Y39: 5
F41: Número de equipamientos de PRIORIDAD 2 | Y41: 3
F43: Número de equipamientos de PRIORIDAD 3
E45: NOTAS
E47: DOCUMENTOS JUSTIFICATIVOS
E49: PE 02.01 | F49: =CONCATENATE(N49,O49,P49) -> Plano de situación del edificio en formato que permita la comprobación de las medidas con herramientas de libre acceso, indicando el círculo de diámetro 800 y la situación de Los equipamientos indicando su prioridad y su función. | N49: Plano de situación del edificio en formato que permita la comprobación de las medidas con herramientas de libre acceso, indicando el círculo de diámetro | O49: =IF(DG!F29="unifamiliar",1000,800) -> 800 | P49: y la situación de Los equipamientos indicando su prioridad y su función.
F51: VALORACIÓN DEL CRITERIO | G51: =IF($N35="A",$O37,IF($N35="B",$P37,IF($N35="C",$Q37,0))) -> 0
E55: ='Matriz VERDE-GBCe'!V9 -> PE 03 | F55: =VLOOKUP($E55,'Matriz VERDE-GBCe'!$V$7:$Y$51,2,FALSE) -> Facilidades para la bicicleta. | G55: =VLOOKUP($E55,'Matriz VERDE-GBCe'!$V$7:$Y$51,3,FALSE) -> 0.0162996047
F57: =IF(DG!F31=DG!L72,"Comprueba las particularidades de este criterio para rehabilitaciones en GEA.",IF(DG!F31=DG!L73,"Comprueba las particularidades de este criterio para edificios existentes en GEA.","")) -> 
F59: =DG!$F$29 -> 0
F61: ¿Se dispone de superficie libre de parcela o espacio de aparcamiento?
F63: Número de aparcabicis requerido
F65: Número de aparcabicis del proyecto | Y65: 75
F67: =IF(I61="no","¿Existe un aparcamiento de bicicletas en vía pública a menos de 300 m de la entrada principal que cumple con las especificaciones del criterio?","") ->  | O67: Oficinas o administratico
O69: Naves industriales o logísticas
F70: Se reserva una franja de 0,5 m de ancho entre el espacio ocupados por las bicis y los viales de circulación tanto peatonal, cómo de vehículos | O70: Edificios comerciales | Y70: SÍ
O71: Edificios educacionales
O72: Edificios de equipamiento público
F73: Se ofrece un entorno cómodo para los ciclistas con espacio suficiente para realizar las maniobras necesarias | O73: Hotelero | Y73: SÍ
O74: Servicios de restauración
O75: Mixtos
F76: La instalación cumple con las normativas de accesibilidad de peatones y personas con movilidad reducida. | Y76: SÍ
F79: Los paracabaicis están anclados a una estructura permanente y permiten el anclaje de la bicicleta en dos puntos, al menos una rueda y un bastidor. | Y79: SÍ
F82: El espacio de aparcamiento está debidamente iluminado y ofrece sensación de seguridad. | Y82: SÍ
F84: El aparcabicis previene robos o actos de vandalismo, en caso de desanclar el elemento de aparcamiento del suelo, las bicicletas no podrán ser separadas de él sin romper el candado. | Y84: SÍ
E87: NOTAS
E89: DOCUMENTOS JUSTIFICATIVOS
E91: PE 03.01 | F91: Plano con la situación de los aparcabicis y la justificación de que se cumplen las distancias de seguridad
E93: PE 03.02 | F93: Detalle o ficha técnica de los aparcabicis seleccionados
E95: PE 03.03 | F95: Copia de las facturas de los aparcabicis (pudiendo ocultar el precio)
E97: PE 03.04 | F97: Fotografías de obra construida de los aparcabicis y su relación con el entorno
E99: PE 03.05 | F99: Memoria de cálculos justificativos del número de aparcamientos en función de los ocupantes del edificio
F101: VALORACIÓN DEL CRITERIO | G101: =IF(AND(I61="No",I67="Sí"),G55*0.5,IF(AND(I65>=I63,I70="Sí",I73="Sí",I76="Sí",I79="Sí",I82="Sí",I84="Sí"),G55,0)) -> 0
E105: ='Matriz VERDE-GBCe'!V10 -> PE 04 | F105: =VLOOKUP($E105,'Matriz VERDE-GBCe'!$V$7:$Y$51,2,FALSE) -> Capacidad de carga de vehículos eléctricos. | G105: =VLOOKUP($E105,'Matriz VERDE-GBCe'!$V$7:$Y$51,3,FALSE) -> 0.01601724935 | M105: =IF(OR(I107="No",I107="",I111="",I113=""),0,I113/I111) -> 0 | N105: =IF(DG!F31=DG!L41,1,0) -> 0 | O105: Edificio existente
F107: ¿El edificio cuenta con aparcamiento privado?
F109: ¿Todas las plazas de aparcamiento sin carga cuentan con una preinstalación de carga para vehículos?
F111: Número de plazas de aparcamiento
F113: Número de plazas con carga para vehículos eléctricos
F116: Porcentaje de plazas con carga para vehículos eléctricos | G116: =IF(N105=0,M116,M105) -> 0 | M116: =IF(OR(I107="No",I109="No",I107="",I109="",I111="",I113=""),0,(I113/I111)) -> 0 | N116: =IFERROR(IF(G116<0.2,0,IF(G116>=0.5,G$105,(G116-0.2)/0.3*G$105)),0) -> 0
E119: NOTAS
E121: DOCUMENTOS JUSTIFICATIVOS
E123: PE 04.01 | F123: Extracto de la memoria del proyecto donde se indique el número de plazas de aparcamiento y cuántas de ellas tienen carga para vehículos eléctricos o preinstalación.
E125: PE 04.02 | F125: Extracto de la memoria de instalaciones y planos de instalación eléctrica del proyecto, en los que se justifique que la instalación cuenta con la preinstalación de carga y la de carga se adapta a las exigencias de la ITC BT 52 del REBT
E127: PE 04.03 | F127: Justificación de que el edificio dispone de los requisitos de potencia necesarios para cubrir el consumo de los puntos de carga de vehículos.
F129: VALORACIÓN DEL CRITERIO | G129: =IF((I107="No"),0,N116) -> 0
E133: ='Matriz VERDE-GBCe'!V11 -> PE 05 | F133: =VLOOKUP($E133,'Matriz VERDE-GBCe'!$V$7:$Y$51,2,FALSE) -> Clasificación de RSU. | G133: =VLOOKUP($E133,'Matriz VERDE-GBCe'!$V$7:$Y$51,3,FALSE) -> 0.01129421428
E135: Espacio en planta baja para almacen de trastos:
F137: Superficie mínima del almacen de trastos | M137: 23 | N137: =IF(DG!F31="rehabilitación","RH",IF(DG!F31="NUEVA EDIFICACIÓN","NE","")) ->  | O137: =IF(DG!F29="unifamiliar","Uni", "Res") -> Res | Y137: 23
F139: Diámetro del mayor círculo que se puede inscribir en el almacén | N139: =IF(AND($I137>=7,$I139>=1.5),1,0) -> 0 | O139: =IF(N139=0,0,G133*0.25) -> 0 | Y139: 30
E141: Espacio en cada planta para conenedores de residuos:
F143: Existe en cada planta un espacio reservado para contenedores de aquellas fracciones de residuos generados habitualmente en el edificio | O143: =IF(OR(I$143="",I$146="",I$143="No",I$146="No"),0,(G133*0.25)) -> 0
F146: Estos contenedores disponen de la señalética adecuada
E148: Sistema de revalorización de residuos en la parcela:
F150: Existe un sistema de revalorización de los residuos generados en el edificio | N150: =IF(I150="sí",1,0) -> 0 | O150: =IF(N$150=0,0,G133*0.25) -> 0 | Y150: NO
E152: Otras medidas de mejora
F154: Se han diseñado medidas de mejora en el edificio que favorezcan la reducción, clasificación o recogida de resíduos. | N154: =IF(I154="sí",1,0) -> 0 | O154: =IF(N$154=0,0,G133*0.25) -> 0 | Y154: NO
E157: NOTAS
E159: DOCUMENTOS JUSTIFICATIVOS
E161: PE 05.01 | F161: Plano en formato que permita la comprobación de las medidas con herramientas de libre acceso, en el que se sitúe cada una de las medidas cumplidas
E163: PE 05.02 | F163: Descripción y fichas técnicas del sistema de revalorización de residuos
E165: PE 05.03 | F165: Memoria justificativa de la medida adoptada para incentivar la reducción, separación o reciclado de RSU
E167: PE 05.04 | F167: Copia de las facturas de los sistemas implantados (pudiendo ocultar el precio)
E169: PE 05.05 | F169: Fotografías de obra construida que justifiquen el cumplimiento de las medidas. Deberán aparecer los espacios para contenedores o almacenaje con sus correspondientes carteles y, si hubiera, los sistemas de revalorización instalados, así como la señalética adecuada como espacio para contenedores de residuos
E171: PE 05.06 | F171: Plano en el que se sitúe el local destinado al almacenamiento de muebles y enseres hasta su traslado. (Solo para usos distintos del residencial privado)
F173: VALORACIÓN DEL CRITERIO | G173: =SUM($O139+O143+$O150+$O154) -> 0
E177: ='Matriz VERDE-GBCe'!V12 -> PE 06 | F177: =VLOOKUP($E177,'Matriz VERDE-GBCe'!$V$7:$Y$51,2,FALSE) -> Gestión y Restauración del hábitat. | G177: =VLOOKUP($E177,'Matriz VERDE-GBCe'!$V$7:$Y$51,3,FALSE) -> 0.02281944658
F179: ¿Alguna de las especies vegetales plantadas en la parcela o el edificio está recogida en el catálogo de especies invasoras del Ministerio de Medio Ambiente? | Y179: 1000
F182: Superficie ajardinada de la parcela y el edificio | G182: =DG!$F47 -> 0 | Y182: 1000
F184: Superficie cubierta por plantas autóctonas | Y184: 800
F186: Porcentaje de la superficie ajardinada ocupada por plantas autóctonas | G186: =IF(OR(G182=0,G182="",I184>G182),0,I184/G182) -> 0
E188: NOTAS
E190: DOCUMENTOS JUSTIFICATIVOS
E192: PE 06.01 | F192: Plano de jardinería en el que se incluya el cuadro de cálculo indicando las especies utilizadas, la superficie ocupada por las mismas y si son autóctonas o adaptadas o no.
E194: PE 06.02 | F194: Copia de las facturas (pudiendo ocultar el precio) donde se indique la o las especies plantadas y la superficie ocupadas por las mismas o las unidades entregadas
E196: PE 06.03 | F196: Fotografías de la superficie ajardinada donde se puedan apreciar las especies plantadas y la superficie ocupada por las mismas, serán necesarias fotografías generales y de detalle
E198: PE 06.04 | F198: Informe de Evaluador en el que se garantice que ninguna especie de las plantadas está recogida en el listado de especies invasoras del Ministerio de Medio Ambiente.
F200: VALORACIÓN DEL CRITERIO | G200: =IF(OR(I179="Sí",G186=""),0,IF(G186<0.3,0,IF(G186>=0.8,G177,G177*((G186-0.3)*100/50)))) -> 0
E204: ='Matriz VERDE-GBCe'!V13 -> PE 07 | F204: =VLOOKUP($E204,'Matriz VERDE-GBCe'!$V$7:$Y$51,2,FALSE) -> Uso de plantas para crear sombras. | G204: =VLOOKUP($E204,'Matriz VERDE-GBCe'!$V$7:$Y$51,3,FALSE) -> 0.01812208019
F206: ¿Existen elementos vegetales que sombreen las fachadas este y/u oeste?
F208: Porcentaje de fachada OESTE sombreada por elementos vegetales. | N208: =IF(OR(I206="",I206="no"),0,IF(I208<0.2,0,IF(I208>0.6,0.4*G204,G204*0.4*((I208-0.2)*100/40)))) -> 0
F210: Porcentaje de fachada ESTE sombreada por elementos vegetales. | N210: =IF(OR(I206="",I206="no"),0,IF(I210<0.2,0,IF(I210>0.6,0.3*G204,G204*0.3*((I210-0.2)*100/40)))) -> 0
F212: Porcentaje de fachada SUR sombreada por elementos vegetales. | N212: =IF(OR(I206="",I206="no"),0,IF(I212<0.2,0,IF(I212>0.6,0.3*G204,G204*0.3*((I212-0.2)*100/40)))) -> 0
E214: NOTAS
E216: DOCUMENTOS JUSTIFICATIVOS
E218: PE 07.01 | F218: Plano de planta de la parcela donde se sitúen las plantas con potencial de sombreamiento para las fachadas este y oeste indicando las especies de que se trata.
E220: PE 07.02 | F220: Plano de fachada este, sur y oeste en el que se indique la superficie sombreada por plantas.
E222: PE 07.03 | F222: Memoria de sombreamiento donde se justifique el cumplimiento de los criterios establecidos..
E224: PE 07.04 | F224: Copia de las facturas (pudiendo ocultar el precio) donde se indique la o las especies plantadas y la superficie ocupadas por las mismas o las unidades entregadas.
E226: PE 07.05 | F226: Fotografías de la superficie ajardinada donde se puedan apreciar las especies plantadas y la superficie ocupada por las mismas, serán necesarias fotografías generales y de detalle.
F228: VALORACIÓN DEL CRITERIO | G228: =N210+N208+N212 -> 0
E232: ='Matriz VERDE-GBCe'!V14 -> PE 08 | F232: =VLOOKUP($E232,'Matriz VERDE-GBCe'!$V$7:$Y$51,2,FALSE) -> Efecto isla de calor. | G232: =VLOOKUP($E232,'Matriz VERDE-GBCe'!$V$7:$Y$51,3,FALSE) -> 0.02043226038
E234: Porcentaje de superficie libre de parcela y cubierta que evita la isla de calor
F236: Superficie libre de parcela | G236: =DG!$F45 -> 0
F238: Superficie de cubierta
F240: Superficie ajardinada con un espesor de tierra vegetal con al menos 5 cm de espesor
F242: Superficie con pavimento permeable
F244: Superficies sombreadas que evitan la isla de calor
F246: Superficies con acabado de color claro
F248: ¿Se aportan documentos que justifiquen el ISR?
F250: Porcentaje de superficie libre de parcela más cubierta que evitan la isla de calor | G250: =IF(G236+I238=0,0,(I240+I242+I244+I246)/(G236+I238)) -> 0 | N250: =IF(G250="","",IF(G250<0.4,0,IF(G250>0.7,0.7*G232,G232*0.7*((G250-0.4)*100/30)))) -> 0 | O250: =IF(OR(I248="No",I248=""),0.8*N250,N250) -> 0
E252: Porcentaje de superficie de fachadas este, sur y oeste que evita la isla de calor
F254: Superficies de fachada E-S-O
F256: Superficies de fachada E-S-O de colores claros, sombreadas o cubiertas por vegetación
F258: ¿Se aportan documentos que justifiquen el IRS?
F260: Porcentaje de superficie de fachadas E-S-O que evitan la isla de calor | G260: =IF(OR(I254=0,I254=""),0,I256/I254) -> 0 | N260: =IF(G260="",0,IF(G260<0.4,0,IF(G260>0.7,0.3*G232,G232*0.3*((G260-0.4)*100/30)))) -> 0 | O260: =IF(OR(I258="No",I258=""),0.8*N260,N260) -> 0
E262: NOTAS
E264: DOCUMENTOS JUSTIFICATIVOS
E266: PE 08.01 | F266: Plano en formato que permita la comprobación de las medidas con herramientas de libre acceso , indicando el límite de las siguientes superficies en parcela y cubierta: la zona libre; la zona ajardinada; y la zona sombreada o con un acabado de color claro.
E268: PE 08.02 | F268: Memoria del cálculo del porcentaje de la superficie que evita la isla de calor en zona libre de parcela y cubierta.
E270: PE 08.03 | F270: Detalle constructivo de las zonas ajardinadas donde se detalle el espesor de tierra previsto.
E272: PE 08.04 | F272: Detalle constructivo de las zonas con pavimento permeable donde se detalle el espesor y composición de la base del pavimento.
E274: PE 08.05 | F274: Memoria del cálculo del porcentaje de la superficie de fachadas este, sur y oeste que evita la isla de calor.
E276: PE 08.06 | F276: Estudio de soleamiento tanto de la superficie libre de parcela y cubiertas, como de las fachadas este, sur y oeste.
E278: PE 08.07 | F278: Justificación del IRS de los materiales de acabado
F280: VALORACIÓN DEL CRITERIO | G280: =IFERROR($O250+$O260,0) -> 0
D283: <
E284: ='Matriz VERDE-GBCe'!V15 -> PE 09 | F284: =VLOOKUP($E284,'Matriz VERDE-GBCe'!$V$7:$Y$51,2,FALSE) -> Contaminación lumínica. | G284: =VLOOKUP($E284,'Matriz VERDE-GBCe'!$V$7:$Y$51,3,FALSE) -> 0.01968786899 | N284: E1 | O284: ≤ 1% | P284: 0.01 | Q284: 0.01
N285: E2 | O285: ≤ 5% | P285: 0.02 | Q285: 0.05
F286: Zona de protección lumínica de la parcela | N286: E3 | O286: ≤ 15% | P286: 0.03 | Q286: 0.15
N287: E4 | O287: ≤ 25% | P287: 0.05 | Q287: 0.25
F288: FHS límite para el área de protección lumínica | G288: =IF(I286="","",VLOOKUP(I286,N284:O287,2,FALSE)) -> 
F290: FHS más alto de las luminarias instaladas en la parcela | Q290: =IFERROR(VLOOKUP(I286,N284:Q287,4,FALSE),0) -> 0
P291: 0.05
F292: Porcentaje de mejora respecto a la exigencia normativa | G292: =IF(OR(I290="",I290>Q290),0,1-(I290/Q290)) -> 0
E294: NOTAS
E296: DOCUMENTOS JUSTIFICATIVOS
E298: PE 09.01 | F298: Plano de parcela con localización de la luminarias exteriores e indicación del tipo de luminaria.
E300: PE 09.02 | F300: Curvas fotométricas de las luminarias empleadas o documento técnico donde aparezca el FHS.
E302: PE 09.03 | F302: Identificación y justificación de la zona de protección lumínica.
F304: VALORACIÓN DEL CRITERIO | G304: =IF(G288="",0,IF(G292<0.2,0,IF(G292>0.6,G284,G284*((G292-0.2)*100/40)))) -> 0
G309: VALORACIÓN ÁREA
G311: SUBTOTAL | I311: =IFERROR(G27+G51+G101+G129+G173+G200+G228+G280+G304,"") -> 0
G313: SOBRE | I313: =VLOOKUP(C$2,'Matriz VERDE-GBCe'!$U$4:$Y$51,4,FALSE) -> 0.1524462241
G319: SÍ | I319: x
G320: NO

Sheet EA
C2: ='Matriz VERDE-GBCe'!U16 -> EA | F2: ='Matriz VERDE-GBCe'!V16 -> Energía y atmósfera
F5: ='Matriz VERDE-GBCe'!V18 -> EA 01 | G5: =VLOOKUP($F5,'Matriz VERDE-GBCe'!$V$7:$Y$51,2,FALSE) -> Consumo de energía primaria | H5: =VLOOKUP($F5,'Matriz VERDE-GBCe'!$V$7:$Y$51,3,FALSE) -> 0.075414549 | O5: =IF(DG!$F$31="","",IF(OR(DG!$F$31="rehabilitación",DG!$F$31="Edificio existente"),"RH","NE")) ->  | R5: Sí | U5: SE ADJUNTA | W5: SÍ | X5: NO
R6: No | U6: NO SE ADJUNTA
G7: =IF(DG!F$31=DG!L$42,"Ponte en contacto con GBCe para fijar los datos a introducir.","") ->  | N7: Opción para mixtos en H107 | U7: NO APLICA
G9: ¿Se ha utilizado un método simplificado para la calificación energética del edificio?
G11: ¿La demanda de calefacción y refrigeración cumple con los límites que fijaba el DB He 2017?
F13: =IF(DG!F31="","Completa la pestaña DG",DG!F31) -> Completa la pestaña DG
G15: Demanda conjunta de calefacción y refrigeración del edificio en kWh/m2
G17: Emisiones de CO2 del edificio de referencia en kgCO2 eq./m2.
G19: Emisiones de CO2 del proyecto en kgCO2 eq./m2. | P19: ='zona clima'!C10 ->  | R19: Consumo energía primaria no renovable
F21: Consumo de energía primaria no renovable | P21: Alfa | Q21: A | R21: B | S21: C | T21: D | U21: E
G23: =IF(F13="Nueva Edificación","Consumo límite de energía primaría no renovable para una intensidad de carga interna de 9 W/m2 en la zona climática del edificio","Consumo de energía primaria no renovable del edificio de referencia en kWh/m2") -> Consumo de energía primaria no renovable del edificio de referencia en kWh/m2 | N23: =IF(OR(J26="",J26>J23),0,IF(J26=0,1,1-(J26/J23))) -> 0 | O23: RH | P23: =70+8*9 -> 142 | Q23: =55+8*9 -> 127 | R23: =50+8*9 -> 122 | S23: =35+8*9 -> 107 | T23: =20+8*9 -> 92 | U23: =10+8*9 -> 82
H24: =Q26 ->  | N24: =IF(OR(J26="",J26>H24),0,IF(J26=0,1,1-(J26/H24))) -> 0 | O24: NE
G26: Consumo de energía primaría no renovable para el edificio en kWh/m2 | Q26: =IF(DG!F25="","",IF(P19="","",(HLOOKUP(P19,P21:U23,3)))) ->  | S26: =IF(N24="","",N24*0.5*H5) -> 0 | T26: NE | U26: =IF(N23="","",IF(N23>=0.5,0.5*H5,(N23/0.5)*0.5*H5)) -> 0 | V26: Rehabilita y edificio existente
G28: Porcentaje de reducción del consumo de enería primaria no renovable del proyecto | H28: =IF(O5="NE",N24,N23) -> 0
G30: Valoración del indicador | H30: =IF(O5="NE",S26,U26) -> 0 | R30: Consumo energía primaria total
F32: Consumo de energía primaria total | P32: Alfa | Q32: A | R32: B | S32: C | T32: D | U32: E
G34: =IF(F13="Nueva Edificación","Consumo límite de energía primaría total para una intensidad de carga interna de 9 W/m2 en la zona climática del edificio","Consumo de energía primaria total del edificio de referencia en kWh/m2") -> Consumo de energía primaria total del edificio de referencia en kWh/m2 | N34: =IF(OR(J37="",J37>J34),0,IF(J37=0,1,1-(J37/J34))) -> 0 | O34: RH | P34: =165+9*9 -> 246 | Q34: =155+9*9 -> 236 | R34: =150+9*9 -> 231 | S34: =140+9*9 -> 221 | T34: =130+9*9 -> 211 | U34: =120+9*9 -> 201
H35: =Q37 ->  | N35: =IF(OR(J37="",J37>H35),0,IF(J37=0,1,1-(J37/H35))) -> 0 | O35: NE
G37: Consumo de energía primaría total para el edificio en kWh/m2 | Q37: =IF(DG!F25="","",IF(P19="","",(HLOOKUP(P19,P32:U34,3)))) ->  | S37: =IFERROR(IF(N35=0,0,IF(N35>=0.7,0.5*H5,(N35/0.7*0.5*H5))),0) -> 0 | T37: NE | U37: =IF(N34="","",IF(N34>=0.5,0.5*H5,(N34/0.5)*0.5*H5)) -> 0 | V37: RH y EE
G39: Porcentaje de reducción del consumo de enería primaria total del proyecto | H39: =IF(O5="NE",N35,N34) -> 0
G41: Valoración del indicador | H41: =IF(O5="NE",S37,U37) -> 0
F45: Consumo de energía primaria total es igual o inferior 15 kWh/m2
G47: ¿Se ha realizado el ensayo blower door y cumple con las especificaciones del criterio? | Q47: =IF(J47="",1,IF(AND(J37<=30,J47="No"),0.9,1)) -> 1
F49: NOTAS
F51: DOCUMENTOS JUSTIFICATIVOS
F53: EA 01.01 | G53: Documento justificativo con los parámetros empleados en la simulación energética.
F55: EA 01.02 | G55: Certificado de eficiencia energética junto con el justificante de registro en la comunidad autónoma correspondiente a la localidad en la que se encuentra el edificio
F57: EA 01.03 | G57: Informe de verificación de requisitos de CTE DB HE0 generado por la herramienta de calificación energética empleada o resultado de una simulación horaria realizada con un programa alternativo.
F59: EA 01.03 SOLO RH-NO RESIDENCIALES | G59: Archivos completos del programa de simulación empleado para el edificio de referencia según el documento Condiciones técnicas de los procedimientos para la evaluación de la eficiencia energética de los edificios de abril 2019
F61: EA 01.04 | G61: Esquemas de principio de las instalaciones del edificio con mención expresa de todos y cada uno de los equipos, anexando las correspondientes fichas técnicas de los fabricantes.
F63: EA 01.05 | G63: Ensayo blower door conforme a la norma UNE EN ISO 9972:2015 2019 del edificio en fase de uso que justifique que las renovaciones por hora no son superiores a 5 %.
G65: VALORACIÓN DEL CRITERIO | H65: =IF(OR(J19="",J11="No",J11=""),0,IF(OR(J9="No",J9=""),(H30+H41)*Q47,(H30+H41)*Q47*0.8)) -> 0 | N65: Con Mixtos revisar fórmula de valoración
F69: ='Matriz VERDE-GBCe'!V19 -> EA 02 | G69: =VLOOKUP($F69,'Matriz VERDE-GBCe'!$V$7:$Y$51,2,FALSE) -> Generación distribuida | H69: =VLOOKUP($F69,'Matriz VERDE-GBCe'!$V$7:$Y$51,3,FALSE) -> 0.04851378408 | N69: =DG!F31 -> 0
G71: =IF(DG!F$31=DG!L$42,"Ponte en contacto con GBCe para fijar los datos a introducir.","") ->  | N71: Mixtos texto en H107
W72: NO
F73: NUEVA EDIFICACIÓN Y REHABILITACIÓN | R73: SÍ
G75: Consumo d e Energía primaria total del edificio kWh/m2 | P75: =IF(H83=0,0,IF(H85=R73,H69,IF(H83>=0.8,0.8*H69,(H83/0.8)*0.8*H69))) -> 0 | R75: NO
G77: Energía renovable mínima fijado por el DB HE 04 y DB HE 05 en kWh/m2 para el proyecto | P77: Nueva edificación y rehabilitación
G79: Energía primaria renovable generada en la parcela en kWh/m2
G81: Energía primaria renovable generada en la parcela en kWh/m2 a considerar | H81: =IF(J77>J79,0,J79-J77) -> 0
G83: Porcentaje de energía renovable producida en la parcela | H83: =IF(OR(J75="",J77>J79),0,IF(J79>J75,1,(H81/J75))) -> 0
G85: ¿es un edificio que genera más energía renovable que su consumo de energía primaría total? | H85: =IF(OR(H81<J75,J75=0,J75=""),R75,R73) -> NO
F87: EDIFICIOS EXISTENTES
G89: Potencial de renovables en el edificio o parcela en kWh/m2 | P89: =IF(OR(H93="",H93<=0.6),0,((H93-0.6)/0.4)*H69) -> 0 | Q89: Edificio existente
G91: Energía primaria renovable generada en la parcela en kWh/m2
G93: Porcentaje de energía renovable producida en la parcela | H93: =IFERROR((J91/J89),"") -> 
F95: NOTAS
F97: DOCUMENTOS JUSTIFICATIVOS
F99: EA 02.01 | G99: Archivos completos del programa de simulación empleado para realizar la justificación del criterio.
F101: EA 02.02 | G101: Proyecto de las instalaciones de generación de energía renovable del edificio con mención expresa de todos y cada uno de los equipos, anexando las correspondientes fichas técnicas de los fabricantes, junto con los cálculos de la estimación de la generación de energías renovables.
F103: EA 02.03 | G103: Justificación del cumplimiento del DB HE 0, DB HE 1, DB HE 4 y DB HE 5
F105: EA 02.04 | G105: Justificación del uso de la energía renovable, en caso de ser edificio positivo en energía.
G107: VALORACIÓN DEL CRITERIO | H107: =IFERROR(IF(OR(DG!$F$31=DG!$L$39,DG!$F$31=DG!$L$40),$P75,IF((DG!$F$31=DG!$L$41),$P89,IF(DG!$F$31=DG!$L$42,((P75*DG!F33)+(P89*(DG!F35+DG!F37)))/(DG!F33+DG!F35+DG!F37),0))),0) -> 0 | N107: Con Mixtos revisar fórmula de valoración
F111: ='Matriz VERDE-GBCe'!V20 -> EA 03 | G111: =VLOOKUP($F111,'Matriz VERDE-GBCe'!$V$7:$Y$51,2,FALSE) -> Consumo en zonas comunes | H111: =VLOOKUP($F111,'Matriz VERDE-GBCe'!$V$7:$Y$51,3,FALSE) -> 0.02541198213
F113: Ascensores y montacargas:
G115: El ascensor cuenta con una clasificación, al menos B, según la norma UNE 25745-2
G117: Se cuenta con un paquete de eficiencia energética para los sistemas de comunicación mecánicos.
F119: NOTAS
F121: DOCUMENTOS JUSTIFICATIVOS
F123: EA 03.01 | G123: Clasificación del ascensor según la norma UNE 25745-2
F125: EA 03.02 | G125: Justificación de la existencia de un paquete ahorro conforme el método de cálculo
F127: EA 03.05 | G127: Copia de las facturas (pudiendo ocultar el precio) donde se indique el ascensor o elemento de elevación y transporte instalado
G129: VALORACIÓN DEL CRITERIO | H129: =IF($J115="sí",$H111,IF(J117="Sí",H111*0.5,0)) -> 0
F133: ='Matriz VERDE-GBCe'!V22 -> EA 04 | G133: =VLOOKUP($F133,'Matriz VERDE-GBCe'!$V$7:$Y$51,2,FALSE) -> Elección responsable de refrigerantes | H133: =VLOOKUP($F133,'Matriz VERDE-GBCe'!$V$7:$Y$51,3,FALSE) -> 0.02666974691
G135: Potencial de calentamiento global superior de los refrigerantes empleados | N135: =IF(OR($J135="",J135>=700),0,IF($J135<150,H133*0.8,((700-J135)/550)*H133*0.8)) -> 0
G137: Valor TEWI de la instalación de referencia.
G139: Valor TEWI de la instalación proyectada.
G141: Porcentaje en que el TEWI proyectado supera al de referencia | H141: =IF(OR($J137="",$J139=""),0,(($J139/$J137)-1)) -> 0 | I141: =IF(OR($J137="",$J139=""),0,(($J139/$J137)-1)) -> 0 | N141: =IF(OR(J137="",J139=""),0,IF(H141>=0.4,0,IF(H141<=0.1,1,(1-(H141/0.4))))) -> 0
G143: Existe un protocolo de actuación en caso de fugas acorde a las especificaciones del criterio.
F145: NOTAS
F147: DOCUMENTOS JUSTIFICATIVOS
F149: EA 04.01 | G149: Documentación técnica del refrigerante empleado que justifique su potencial de calentamiento global (GWP)
F151: EA 04.02 | G151: Cálculo del TEWI (Total Equivalent Warming Impact)
F153: EA 04.03 | G153: Protocolo de actuación en caso de fugas
G155: VALORACIÓN DEL CRITERIO | H155: =IF(AND(J137="",J143="",J135=""),0,(IF(N135=0,(N141*H133*0.8),N135)+IF(J143="sí",H133*0.2,0))) -> 0
H159: VALORACIÓN ÁREA
H161: SUBTOTAL | J161: =H65+H107+H129+H155 -> 0
H163: SOBRE | J163: =VLOOKUP(C$2,'Matriz VERDE-GBCe'!$U$7:$Y$51,4,FALSE) -> 0.1760100621
H169: SÍ | J169: x
H170: NO

Sheet RN
C2: ='Matriz VERDE-GBCe'!U23 -> RN | E2: ='Matriz VERDE-GBCe'!V23 -> Recursos naturales
N3: Coste
E5: ='Matriz VERDE-GBCe'!V24 -> RN 01 | F5: =VLOOKUP($E5,'Matriz VERDE-GBCe'!$V$7:$Y$51,2,FALSE) -> Consumo de agua en aparatos sanitarios | G5: =VLOOKUP($E5,'Matriz VERDE-GBCe'!$V$7:$Y$51,3,FALSE) -> 0.0214076698 | T5: SE ADJUNTA | V5: SÍ
T6: NO SE ADJUNTA | V6: NO
T7: NO APLICA
V8: NO
F9: Ir a la hoja de cálculo del criterio
V10: NO
F11: Consumo de agua en sanitarios de referencia (l/m2 año) | G11: ='RN 01'!T43 -> 0
V12: NO
F13: Consumo de agua en sanitarios del proyecto (l/m2 año) | G13: ='RN 01'!T26 -> 0
V14: NO
F15: Porentaje de reducción del consumo de agua en aparatos sanitarios | G15: ='RN 01'!J46 -> 0
E17: NOTAS
E19: DOCUMENTOS JUSTIFICATIVOS
E21: RN 01.01 | F21: Fichas técnicas con los caudales de los aparatos sanitarios aportados por el fabricante.
E23: RN 01.02 | F23: Pestaña de ayuda RN 01
E25: VALORACIÓN DEL CRITERIO | G25: =IF($G15="",0,IF($G15<0.1,0,IF($G15>0.3,$G5,(((($G15*100)-10)/20)*$G5)))) -> 0
E29: ='Matriz VERDE-GBCe'!V25 -> RN 02 | F29: =VLOOKUP($E29,'Matriz VERDE-GBCe'!$V$7:$Y$51,2,FALSE) -> Necesidades de riego en jardines. | G29: =VLOOKUP($E29,'Matriz VERDE-GBCe'!$V$7:$Y$51,3,FALSE) -> 0
F31: Ir a la hoja de cálculo del criterio
F33: ¿Existen zonas ajardinadas con una superficie mayor a 20 m2?
F35: Necesidades de agua para riego de referencia (l/m2 año) | G35: ='RN 02'!R29 -> 0
F37: Necesidades de agua para riego del proyecto (l/m2 año) | G37: ='RN 02'!F29 -> 0
F39: Porcentaje de reducción de las necesidades de riego | G39: ='RN 02'!Z29 -> 0
E41: NOTAS
E43: DOCUMENTOS JUSTIFICATIVOS
E45: RN 02.01 | F45: Plano de jardinería con indicación clara de las especies vegetales a plantar y su superficie de ocupación y sistema de riego empleado en cada zona. El plano deberá presentarse en formato que permita la comprobación de las medidas con herramientas de libre acceso.
E47: RN 02.02 | F47: Pestaña de ayuda RN 02
E49: RN 02.03 | F49: Memoria de la instalación de riego.
E51: VALORACIÓN DEL CRITERIO | G51: =IF(OR($G39="",I33="No",I33=""),0,IF($G39<0.2,0,IF($G39>0.8,$G29,(((($G39*100)-20)/60)*$G29)))) -> 0
E55: ='Matriz VERDE-GBCe'!V26 -> RN 03 | F55: =VLOOKUP($E55,'Matriz VERDE-GBCe'!$V$7:$Y$51,2,FALSE) -> Consumos de agua singulares. | G55: =VLOOKUP($E55,'Matriz VERDE-GBCe'!$V$7:$Y$51,3,FALSE) -> 0.01812208019
F57: ¿Existe un sistema de recogida y reutilización de aguas grises que cubra el 80% de las aguas grises producidas?
E60: NOTAS
E62: DOCUMENTOS JUSTIFICATIVOS
E64: RN 03.02 | F64: Memoria de proyecto del sistema de reciclado y reutilización de las aguas grises generadas por elementos singulares como piscinas, jacuzzis, etc.
E66: VALORACIÓN DEL CRITERIO | G66: =IF($I57="sí",$G55,0) -> 0
E70: ='Matriz VERDE-GBCe'!V27 -> RN 04 | F70: =VLOOKUP($E70,'Matriz VERDE-GBCe'!$V$7:$Y$51,2,FALSE) -> Uso de agua no potable. | G70: =VLOOKUP($E70,'Matriz VERDE-GBCe'!$V$7:$Y$51,3,FALSE) -> 0.02084295908
F72: Recuperación mensual de aguas grises del sistema (l)
F74: Volumen de acumulación de aguas grises (l)
F76: Volumen de agua no potable utilizada para baldeo u otros usos (l)
F78: Superficie de captación de aguas pluviales en m2
F80: Coeficiente de rendimiento de la superficie de captación (e)
F82: Rendimiento hidráulico del filtro (h)
F84: Volumen del aljibe de aguas pluviales (l)
F86: Porcentaje de necesidades de agua cubiertas con agua no potable | G86: =IFERROR('RN 04'!L33,0) -> 0
E88: NOTAS
E90: DOCUMENTOS JUSTIFICATIVOS
E92: RN 04.01 | F92: Proyecto del sistema de recogida, almacenamiento y distribución del aguas pluviales.
E94: RN 04.02 | F94: Proyecto del sistema de recogida, almacenamiento y distribución de aguas grises
E96: RN 04.03 | F96: Memoria del cálculo realizado para obtención de los datos necesarios para evaluar el criterio siguiendo el método de evaluación descrito en la guía.
E98: RN 04.04 | F98: Informe de puesta en marcha de las instalaciones de recogida, almacenamiento y distribución de aguas grises y/o pluviales.
E100: VALORACIÓN DEL CRITERIO | G100: =IF($G86=0,0,IF(G86<0.2,0,IF(G86>0.9,$G70,((((G86*100)-20)/70)*$G70)))) -> 0
F104: Materiales
F106: Vida útil de referencia en años | G106: =DG!F25 -> 0
F108: Unidad Funcional Equivalente (UFE) | I108: masa | N108: masa | O108: =IF(I108="masa",1,0.8) -> 1
N109: coste
F110: =IF(I108="coste", "Coste en € total de los materiales de la obra.","Kilogramos totales de los materiales de la obra.") -> Kilogramos totales de los materiales de la obra.
N111: coste
F112: =IF(I108="coste", "Coste en € total de los elementos cerámicos, áridos, pétreos y hormigones.","Kilogramos totales de los elementos cerámicos, áridos, pétreos y hormigones.") -> Kilogramos totales de los elementos cerámicos, áridos, pétreos y hormigones.
F114: =IF(I108="coste", "Coste en € total de madera o derivados de madera materiales empleados en la obra como encofrados de hormigón o palets.","Kilogramos totales de madera o derivados de madera materiales empleados en la obra como encofrados de hormigón o palets.") -> Kilogramos totales de madera o derivados de madera materiales empleados en la obra como encofrados de hormigón o palets.
N116: coste
E119: ='Matriz VERDE-GBCe'!V28 -> RN 05 | F119: =VLOOKUP($E119,'Matriz VERDE-GBCe'!$V$7:$Y$51,2,FALSE) -> Uso de materiales reciclados. | G119: =VLOOKUP($E119,'Matriz VERDE-GBCe'!$V$7:$Y$51,3,FALSE) -> 0.01812208019
F121: =IF(I108="coste", "Coste en € total de los elementos cerámicos, áridos, pétreos y hormigones, sin incluir hormigón estructural.","Kilogramos totales de los elementos cerámicos, áridos, pétreos y hormigones, sin incluir hormigón estructural.") -> Kilogramos totales de los elementos cerámicos, áridos, pétreos y hormigones, sin incluir hormigón estructural.
F123: =IF(I108="coste", "Contenido en € de reciclados PRE-CONSUMO entre los elementos cerámicos, áridos, pétreos y hormigones.", "Contenido en kg de reciclados PRE-CONSUMO entre los elementos cerámicos, áridos, pétreos y hormigones.") -> Contenido en kg de reciclados PRE-CONSUMO entre los elementos cerámicos, áridos, pétreos y hormigones.
F125: =IF(I108="coste", "Contenido en € de reciclados POST-CONSUMO entre los elementos cerámicos, áridos, pétreos y hormigones.", "Contenido en kg de reciclados POST-CONSUMO entre los elementos cerámicos, áridos, pétreos y hormigones.") -> Contenido en kg de reciclados POST-CONSUMO entre los elementos cerámicos, áridos, pétreos y hormigones.
F127: =CONCATENATE("Porcentaje en ",I108," de elementos cerámicos, áridos, pétreos y hormigones reciclados") -> Porcentaje en masa de elementos cerámicos, áridos, pétreos y hormigones reciclados | G127: =IF(OR(I121=0,I121=""),"",((0.5*I123+I125)/I121)) ->  | N127: =IF(OR(G127="",G127<0.4),0,((G127-0.4)/0.6)*G$119*0.5) -> 0
F129: =IF(I108="coste", "Contenido en € de reciclados PRE-CONSUMO entre el resto de materiales.", "Contenido en kg de reciclados PRE-CONSUMO entre el resto de materiales.") -> Contenido en kg de reciclados PRE-CONSUMO entre el resto de materiales.
F131: =IF(I108="coste", "Contenido en € de reciclados POST-CONSUMO entre el resto de materiales.", "Contenido en kg de reciclados POST-CONSUMO entre el resto de materiales.") -> Contenido en kg de reciclados POST-CONSUMO entre el resto de materiales.
F133: =CONCATENATE("Porcentaje en ",I108," de materiales reciclados") -> Porcentaje en masa de materiales reciclados | G133: =IF(OR((I110-I112)=0),"",((0.5*I129+I131)/(I110-I112))) ->  | N133: =IF(OR(G133="",G133<0.1),0,IF(G133>=0.3,G119*0.5,((G133-0.1)/0.2)*G$119*0.5)) -> 0
E135: NOTAS
E137: DOCUMENTOS JUSTIFICATIVOS
E139: RN 05.01 | F139: Documentos de presupuesto de contrata desglosado en materiales (descontando la mano de obra) donde se detallen los materiales reciclados postconsumo y preconsumo.
E141: RN 05.02 | F141: =CONCATENATE(N141,O141,P141) -> Memoria justificativa de la evaluación del criterio en la que se detallen los materiales reciclados, justificación del porcentaje de reciclado incorporado y su masa sobre el total. | N141: Memoria justificativa de la evaluación del criterio en la que se detallen los materiales reciclados, justificación del porcentaje de reciclado incorporado y su | O141: =IF(I108="","masa",I108) -> masa | P141: sobre el total.
E143: RN 05.03 | F143: Certificado del porcentaje del contenido de material reciclado distinguiendo entre preconsumo y postconsumo.. Estos certificados pueden otorgarse por el productor o por entidades externas como el Distintiu de la Generalitat u otros similares.
E145: VALORACIÓN DEL CRITERIO | G145: =(N127+N133)*O108 -> 0
E149: ='Matriz VERDE-GBCe'!V29 -> RN 06 | F149: =VLOOKUP($E149,'Matriz VERDE-GBCe'!$V$7:$Y$51,2,FALSE) -> Elección responsable de materiales | G149: =VLOOKUP($E149,'Matriz VERDE-GBCe'!$V$7:$Y$51,3,FALSE) -> 0.01878946558
F151: =CONCATENATE("Cantidad en ",O141," de maderas o productos derivados de la madera con certificado de origen en cadena de custodia.") -> Cantidad en masa de maderas o productos derivados de la madera con certificado de origen en cadena de custodia. | M151: =IF(G154="",0,IF(G154<0.2,0,IF(G154>0.5,G149*0.7,((((G154*100)-20)/30))*G149*0.7))) -> 0
F154: =CONCATENATE("Porcentaje en ",O141," de maderas o productos derivados de la madera con certificado de origen en cadena de custodia.") -> Porcentaje en masa de maderas o productos derivados de la madera con certificado de origen en cadena de custodia. | G154: =IF(OR(I114=0,I114=""),"",(I151/I114)) -> 
F157: =CONCATENATE("Contenido en ",O141," de materiales con documento reconocido de procedencia de materias primas.") -> Contenido en masa de materiales con documento reconocido de procedencia de materias primas. | M157: =IF(G160="",0,IF(G160<=0.05,0,IF(G160>=0.15,G149*0.3,((((G160*100)-5)/10))*G149*0.3))) -> 0
F160: =CONCATENATE("Porcentaje en ",O141," de materiales con documento reconocido de procedencia de materias primas.") -> Porcentaje en masa de materiales con documento reconocido de procedencia de materias primas. | G160: =IF(OR(I110=0,I110=""),"",(I$157/I110)) -> 
E163: NOTAS
E165: DOCUMENTOS JUSTIFICATIVOS
E167: RN 06.01 | F167: Pliego de condiciones dónde se especifique la necesidad de comprar maderas o productos derivados de la madera con CoC.
E169: RN 06.02 | F169: Documentos (habitualmente, facturas o albaranes) que recojan la declaración formal de cadena de custodia para cada producto de madera o derivado de madera certificadol así como los propios certificados CoC.
E171: RN 06.03 | F171: Pliego de condiciones donde se especifique la necesidad de comprar productos con documentación que avale la procedencia de las materias primas tal y cómo se especifica en el criterio.
E173: RN 06.04 | F173: Documento acreditativo de la procedencia de las materias primas empleadas según las indicaciones del criterio.
E175: RN 06.05 | F175: =CONCATENATE(N175,O175,P175) -> Memoria justificativa de la evaluación del criterio en la que se detallen los materiales procedentes de recursos sostenibles, justificación de su procedencia y su masa sobre el total. | N175: Memoria justificativa de la evaluación del criterio en la que se detallen los materiales procedentes de recursos sostenibles, justificación de su procedencia y su | O175: =O141 -> masa | P175: sobre el total.
E177: VALORACIÓN DEL CRITERIO | G177: =(M151+M157)*O108 -> 0
E181: ='Matriz VERDE-GBCe'!V30 -> RN 07 | F181: =VLOOKUP($E181,'Matriz VERDE-GBCe'!$V$7:$Y$51,2,FALSE) -> Uso de materiales de producción local. | G181: =VLOOKUP($E181,'Matriz VERDE-GBCe'!$V$7:$Y$51,3,FALSE) -> 0.01973920632 | M181: =DG!F69 -> 0
F183: Ir a la hoja de cálculo del criterio
F185: Porcentaje de elementos cerámicos, áridos, pétreos y hormigones locales | G185: ='RN 07'!J14 -> 0 | M185: =IF($G185<0.4,0,IF($G185>=0.8,$G181*0.4,(((($G185*100)-40)/40))*$G181*0.4)) -> 0
F187: Porcentaje de materiales locales, distintos de cerámicos, áridos, pétreos y hormigones. | G187: ='RN 07'!J19 -> 0 | M187: =IF($G187<0.4,0,IF($G187>=0.8,$G181*0.6,(((($G187*100)-40)/40))*$G181*0.6)) -> 0
E189: NOTAS | M189: =IF($G187<0.2,0,IF($G187>=0.6,$G181*0.6,(((($G187*100)-20)/40))*$G181*0.6)) -> 0 | N189: Insular
E191: DOCUMENTOS JUSTIFICATIVOS
E193: RN 07.01 | F193: Pliego de condiciones donde se detallen las condiciones de aceptación y procedencia de los materiales de obra.
E195: RN 07.02 | F195: Extracto del presupuesto de contrata material desglosado en materiales (descontando la mano de obra) donde se detalle la procedencia de los materiales a emplear.
E197: RN 07.03 | F197: Factura o certificado de la procedencia de los materiales con la dirección de la planta de producción.
E199: VALORACIÓN DEL CRITERIO | G199: =IF(M181="NO",(M185+M187)*O108,(M185+M189)*O108) -> 0
E203: ='Matriz VERDE-GBCe'!V31 -> RN 08 | F203: =VLOOKUP($E203,'Matriz VERDE-GBCe'!$V$7:$Y$51,2,FALSE) -> El edificio como banco de materiales | G203: =VLOOKUP($E203,'Matriz VERDE-GBCe'!$V$7:$Y$51,3,FALSE) -> 0.02163868782 | O203: Sí
O204: No
F205: =IF(I108="coste", "Contenido en € de elementos que favorecen el reciclaje al final de su ciclo de vida del edificio.", "Contenido en kg de elementos que favorecen el reciclaje al final de su ciclo de vida del edificio.") -> Contenido en kg de elementos que favorecen el reciclaje al final de su ciclo de vida del edificio.
F208: =CONCATENATE("Porcentaje en ",I$108," de elementos que favorecen el reciclaje al final de su ciclo de vida del edificio") -> Porcentaje en masa de elementos que favorecen el reciclaje al final de su ciclo de vida del edificio | G208: =IF(OR(I110=0,I110=""),"",(I$205/I110)) ->  | M208: =IF(OR(G208="",$G208<0.4),0,IF($G208>=0.6,$G203*0.4,(((($G208*100)-40)/20))*$G203*0.4)) -> 0
E211: Sistemas constructivos del edificio que favorecen la recuperación de sus elementos al final de su ciclo de vida
F213: Porcentaje de elementos de los cerramientos exteriores que garantizan su recuperación | M213: =IF(OR(I213="",I213<0.6),0,G203*0.1) -> 0
F215: Porcentaje de elementos de las cubiertas que garantizan su recuperación | M215: =IF(OR(I215="",I215<0.6),0,G203*0.1) -> 0
F217: Porcentaje de elementos de la estructura que garantizan su recuperación | M217: =IF(OR(I217="",I217<0.6),0,G203*0.1) -> 0
F219: Porcentaje de elementos de las divisiones interiores que garantizan su recuperación | M219: =IF(OR(I219="",I219<0.6),0,G203*0.1) -> 0
F222: ¿Se ha realizado un estudio del posible uso de los materiales después de su desmontaje al final de la vida del edificio y cumple con las especificaciones del criterio? | M222: =IF(OR(I222="",I222="NO"),0,G203*0.2) -> 0
E225: NOTAS
E227: DOCUMENTOS JUSTIFICATIVOS
E229: RN 08.01 | F229: Documentos de presupuesto de contrata desglosado en materiales (descontando la mano de obra), donde se detallen los materiales que favorecen su reciclado al final de vida del edificio.
E231: RN 08.02 | F231: Declaraciones del fabricante o de una empresa de eliminación, o declaración del evaluador, en la que se especifique una fuente externa fiable, que indique que la recuperación de los materiales es posible y se puede llevar a cabo con la tecnología disponible actualmente
E233: RN 08.03 | F233: Informe sobre la recuperación de los sistemas constructivos analizados en el criterio.
E235: RN 08.04 | F235: Libro del edificio o anexo a este en el que aparezca descrito el procedimiento de recuperación de los elementos analizados al final del ciclo de vida del edificio.
E237: RN 08.05 | F237: Estudio del posible uso de los materiales o elementos después de su desmontaje, con los certificados de los fabricantes.
E239: RN 08.06 | F239: Memoria justificativa de la evaluación del criterio en la que se detallen los materiales que favorecen su reciclado y los sistemas constructivos que favorecen su recuperación al final de vida del edificio.
E241: VALORACIÓN DEL CRITERIO | G241: =(M208+M213+M215+M217+M219+M222)*O108 -> 0
E245: ='Matriz VERDE-GBCe'!V32 -> RN 09 | F245: =VLOOKUP($E245,'Matriz VERDE-GBCe'!$V$7:$Y$51,2,FALSE) -> Gestión de los residuos de la construcción. | G245: =VLOOKUP($E245,'Matriz VERDE-GBCe'!$V$7:$Y$51,3,FALSE) -> 0.01565788798
F247: Existe un Estudio de los Residuos de Construcción o Demolición que cumple con los requisitos del criterio | N247: Sí
N248: No
F250: Existe un Plan de Gestión de los Residuos de Construcción o Demolición que cumple con los requisitos del criterio
F253: Porcentaje de residuos de la construcción a los que se garantiza su revalorización. | M253: =IF($I253="",0,IF(OR(I247="NO",I250="NO"),0,IF($I253<0.5,0,IF($I253>0.75,$G245*0.5,(((($I253*100)-50)/25))*$G245*0.5)))) -> 0
F255: Existe un análisis de las posibles alternativas en la utilización de los sistemas o materiales de construcción utilizados para minimizar la producción de residuos. | M255: =IF(OR(I255="NO",I255=""),0,G245*0.5) -> 0
E258: NOTAS
E260: DOCUMENTOS JUSTIFICATIVOS
E262: RN 09.01 | F262: Estudio de Gestión de Residuos de la Construcción.
E264: RN 09.02 | F264: Resumen del estudio que demuestre el cumplimiento de las condiciones exigidas por el criterio.
E266: RN 09.03 | F266: Plan de Gestión de Residuos de la Construcción.
E268: RN 09.04 | F268: Resumen del Plan que demuestre el cumplimiento de las condiciones exigidas por el criterio.
E270: RN 09.05 | F270: Informe final de obra incluyendo los certificados otorgados por el gestor autorizado de residuos que demuestre que se han revalorizado los materiales en las cantidades indicadas en el Plan de Gestión de Residuos.
E272: VALORACIÓN DEL CRITERIO | G272: =(M253+M255)*O108 -> 0
E276: ='Matriz VERDE-GBCe'!V33 -> RN 10 | F276: =VLOOKUP($E276,'Matriz VERDE-GBCe'!$V$7:$Y$51,2,FALSE) -> Nivel de intervención en rehabilitaciones | G276: =VLOOKUP($E276,'Matriz VERDE-GBCe'!$V$7:$Y$51,3,FALSE) -> 0
E278: Sistemas principales que se conservan en la rehabilitación
F280: Porcentaje de elementos de los cerramientos exteriores verticales que se conservan en la rehabilitación | N280: =IF(OR(I280="",I280<0.6),0,G276*0.2) -> 0
F282: Porcentaje de elementos de las cubiertas que se conservan en la rehabilitación | N282: =IF(OR(I282="",I282<0.6),0,G276*0.2) -> 0
F284: Porcentaje de elementos de la estructura que se conservan en la rehabilitación | N284: =IF(OR(I284="",I284<0.6),0,G276*0.2) -> 0
F286: Porcentaje de elementos de las divisiones interiores verticales que se conservan en la rehabilitación | N286: =IF(OR(I286="",I286<0.6),0,G276*0.2) -> 0
F288: Porcentaje de elementos de cajas de escaleras y huecos de ascensor que se conservan en la rehabilitación | N288: =IF(OR(I288="",I288<0.6),0,G276*0.2) -> 0
E290: NOTAS
E292: DOCUMENTOS JUSTIFICATIVOS
E294: RN 10.01 | F294: Plano de cada uno de los elementos evaluados indicando claramente la superficie en la que se interviene e indicando su superficie, la superficie total del elemento y el porcentaje de intervención.
E296: RN 10.02 | F296: Tabla en la que se refleje claramente las superficies parciales y totales de los elementos, así como las de las zonas intervenidas. En caso de elementos lineales, como pilares y vigas, el porcentaje será lineal. También se indicará con claridad dónde se sitúan las intervenciones a realizar.
E298: RN 10.03 | F298: Justificación de aquellas intervenciones que queden excluidas del cómputo de este criterio tal y cómo se refleja en el apartado «Descripción de los indicadores».
E300: VALORACIÓN DEL CRITERIO | G300: =N280+N282+N284+N286+N288 -> 0
E304: ='Matriz VERDE-GBCe'!V34 -> RN 11 | F304: =VLOOKUP($E304,'Matriz VERDE-GBCe'!$V$7:$Y$51,2,FALSE) -> Impacto de los materiales de la construcción. | G304: =VLOOKUP($E304,'Matriz VERDE-GBCe'!$V$7:$Y$51,3,FALSE) -> 0.05485394527
F306: Ir a la hoja de cálculo del criterio
F308: Existe un ACV parcial en las etapas A1, A2, A3 según la UNE-EN 15978:2012 que contempla los indicadores GWP (kg CO2 eq) y ADP (MJ). | N308: =IF(OR(I308="",I308="NO"),0,G304*0.5) -> 0
F311: Existe un ACV completo en las etapas A1, A2, A3, A4, A5, B4, C3 y C4 según la UNE-EN 15978:2012 que contempla los indicadores GWP(kg CO2 eq) y ADP (MJ). | N311: =IF(OR(I311="",I311="NO"),0,G304*0.3) -> 0
F314: Porcentaje de reducción del GWP (kg CO2 eq) en ACV parcial, fase de producto, respecto del edificio de referencia. | G314: =IF(OR(I326=0,I332=""),"",1-(I332/I326)) ->  | M314: =IF(G314="",0,IF(G314<0.05,0,IF(G314>0.15,G304*0.1,((((G314*100)-5)/10))*G304*0.1))) -> 0 | N314: =IF((M314+M317)>=G304*0.1,G304*0.1,(M314+M317)) -> 0
F317: Porcentaje de reducción del ADP (MJ) en ACV parcial, fase de producto, respecto del edificio de referencia. | G317: =IF(OR(I328=0,I334=""),"",1-(I334/I328)) ->  | M317: =IF(G317="",0,IF(G317<0.05,0,IF(G317>0.15,G304*0.1,(((G317*100)-5)/10))*G304*0.1)) -> 0
F320: Existe un ACV parcial o completo que contempla todos los indicadores establecidos en la norma UNE-EN 15978:2012 | N320: =IF(OR(I320="",I320="NO"),0,G304*0.1) -> 0
E322: Resumen de resultados del ACV parcial. Etapas A1, A2, A3:
E324: Edificio de referencia
F326: Potencial de calentamiento global GWP (kg CO2 eq.)
F328: Agotamiento de recursos abióticos- APD combustibles fósiles (MJ)
E330: Edificio objeto
F332: Potencial de calentamiento globalGWP (kg CO2 eq.)
F334: Agotamiento de recursos abióticos- APD combustibles fósiles (MJ))
E336: Resultados del ACV completo desglosado en las Etapas A1, A2, A3, A4, A5, B4, C3 y C4 :
E338: Etapa construcción A4 y A5
F340: Global Warming Potencial GWP (kg CO2 eq.)
F342: Agotamiento de recursos abióticos- APD combustibles fósiles (MJ))
E344: Etapa uso B4
F346: Global Warming Potencial GWP (kg CO2 eq.)
F348: Agotamiento de recursos abióticos- APD combustibles fósiles (MJ))
E350: Etapa fin de vida, C3 y C4
F352: Global Warming Potencial GWP (kg CO2 eq.)
F354: Agotamiento de recursos abióticos- APD combustibles fósiles (MJ))
E356: Resultados del ACV parcial(A1, A2, A3)o completo (A1, A2, A3, A4, A5, B4, C3 y C4) contemplando todos los indicadores:
E359: Edificio objeto
F361: Potencial de calentamiento globalGWP (kg CO2 eq.)
F363: Agotamiento de recursos abióticos- APD combustibles fósiles (MJ)
F365: Agotamiento de recursos abióticos- APD elementos (kg Sb eq)
F367: Acidificación del suelo y el agua AP (kg SO2 eq)
F369: Agotamiento de la capa de ozono ODP (kg CFC-11 eq)
F371: Eutrofización EP (kg (PO4)3- eq
F373: Formación de ozono fotoquímico POCP (kg etileno eq)
E375: NOTAS
E377: DOCUMENTOS JUSTIFICATIVOS
E379: RN 11.01 | F379: Descripción de los sistemas constructivos
E381: RN 11.02 | F381: Descripción del método de ACV empleado
E383: RN 11.03 | F383: Resultados del edificio objeto con descripción de las hipótesis y aproximaciones realizadas.
E385: RN 11.04 | F385: Resultados del edificio de referencia con descripción de las hipótesis y aproximaciones realizadas.
E387: VALORACIÓN DEL CRITERIO | G387: =N308+N311+N314+N320 -> 0
E391: ='Matriz VERDE-GBCe'!V35 -> RN 12 | F391: =VLOOKUP($E391,'Matriz VERDE-GBCe'!$V$7:$Y$51,2,FALSE) -> Ecoetiquetado de producto. | G391: =VLOOKUP($E391,'Matriz VERDE-GBCe'!$V$7:$Y$51,3,FALSE) -> 0.02004723035
F393: =IF(I108="Coste","Porcentaje en coste de materiales con ecoetiqueta tipo I","Porcentaje en masa de materiales con ecoetiqueta tipo I") -> Porcentaje en masa de materiales con ecoetiqueta tipo I | M393: =IF(I393="",0,IF(I393<0.1,0,IF(I393>0.2,G$391*0.2,((((I393*100)-10)/10))*G$391*0.2))) -> 0
F395: =IF(I108="Coste","Porcentaje en coste de elementos cerámicos, áridos, pétreos y hormigones con ecoetiqueta tipo III, DAP","Porcentaje en masa de elementos cerámicos, áridos, pétreos y hormigones con ecoetiqueta tipo III, DAP") -> Porcentaje en masa de elementos cerámicos, áridos, pétreos y hormigones con ecoetiqueta tipo III, DAP | M395: =IF(I395="",0,IF(I395<=0.7,0,((((I395)-0.7)/0.3))*G$391*0.3)) -> 0
F397: =IF(I108="Coste","Porcentaje en coste de resto de materiales con ecoetiqueta tipo III, DAP","Porcentaje en masa de resto de materiales con ecoetiqueta tipo III, DAP") -> Porcentaje en masa de resto de materiales con ecoetiqueta tipo III, DAP | M397: =IF(I397="",0,IF(I397<0.2,0,IF(I397>=0.4,G391*0.5,((((I397)-0.2)/0.4)*G$391*0.5)))) -> 0
F399: Entre los materiales con DAPs se encuentran elementos estructurales, aislamientos y revestimientos. | M399: =IF(I399="SÍ",G$391*0.2,0) -> 0
F401: Entre las DAP aportadas al menos 50% cuantan con un ACV en todas las fases del ciclo de vida o tienen en cuenta todos los indicadores de la norma UNE-EN 15804:2012 | M401: =IF(I401="SÍ",G$391*0.2,0) -> 0
E404: NOTAS
E406: DOCUMENTOS JUSTIFICATIVOS
E408: RN 12.01 | F408: Eco etiquetas ya sean tipo I o tipo III de los materiales definidos en obra.
E410: RN 12.02 | F410: Justificación del porcentaje en masa de los productos con ecoetiqueta Tipo I y Tipo III (DAP), distinguiendo entre los elementos cerámicos, áridos, petreos y hormigones y el resto.
E412: VALORACIÓN DEL CRITERIO | G412: =IF(AND(M393=0,M395=0,M397=0,M399=0,M401=0),0,IF((M393+M395+M397)>=G391,G391*O108,IF((M393+M395+M397+M399)>=G391,G391*O108,IF((M393+M395+M397+M399+M401)>=G391,G391*O108,(M393+M395+M397+M399+M401)*O108)))) -> 0
G416: VALORACIÓN ÁREA
G418: SUBTOTAL | I418: =G25+G51+G66+G100+G145+G177+G199+G241+G272+G300+G387+G412 -> 0
G420: SOBRE | I420: =VLOOKUP(C$2,'Matriz VERDE-GBCe'!$U$4:$Y$51,4,FALSE) -> 0.2292212126
G426: SÍ | I426: x
G427: NO

Sheet RN 01
D2: Consumo de agua en aparatos sanitarios | AB2: SÍ
D3: VERDE Edificios 2020 Usos distintos del Residencial Privado | AB3: NO
D5: Tipo de actuación | H5: =DG!F31 -> 0
D8: Número de ocupantes
D10: Nº de ocupantes del edificio | I10: =SUM($J9:$J9)+SUM($T9:$T9) -> 0
D12: ¿Hay duchas en el edificio? | H12: SÍ | I12: =SUM($J11:$J11)+SUM($T11:$T11) -> 0 | N12: ¿Hay urinarios en el edificio? | R12: SÍ
D15: Consumo del edificio objeto
H16: Caudal | J16: Consumo (l/pers. Día) Ocupantes | R16: Caudal | T16: Consumo (l/pers. Día) Ocupantes | AC16: consumo/uso | AD16: uso/persona
D18: Grifería lavabo | J18: =AD18 -> 13.5 | N18: Grifería ducha | T18: =AD20 -> 2.4 | AB18: Lavabo | AC18: =IF(OR(H18="",H18=0),H35*0.5,H18*0.5) -> 2.25 | AD18: =AC18*6 -> 13.5
D20: Inodoros descarga larga | J20: =AD22 -> 6 | N20: Inodoros descarga corta | T20: =AD24 -> 3 | AB20: ducha | AC20: =IF(OR(R18="",R18=0),R35*3,R18*3) -> 24 | AD20: =IF(H12="sí",AC20*0.1,"") -> 2.4
D22: Urinarios | J22: =AD26 -> 4 | AB22: descarga larga | AC22: =IF(OR(H20="",H20=0),H37,H20) -> 6 | AD22: =AC22*1 -> 6
AB24: descarga corta | AC24: =IF(OR(R20="",R20=0),R37,R20) -> 3 | AD24: =IF(R12="sí",AC24*1,AC24*2) -> 3
D26: CONSUMO TOTAL POR PERSONA Y DÍA (l/p día) OCUPANTES | J26: =AD27 -> 28.9 | N26: CONSUMO TOTAL EN EL EDIFICIO OBJETO (l/m2 año) | T26: =IFERROR(J26*H10*365/DG!F20,0) -> 0 | AB26: urinario | AC26: =IF(OR(H22="",H22=0),H39,H22) -> 4 | AD26: =IF(R12="sí",AC26*1,"") -> 4
AC27: =SUM(AC18:AC26) -> 39.25 | AD27: =SUM(AD18:AD26) -> 28.9
D31: Consumo del edificio de referencia
H33: Caudal | J33: Consumo (l/pers. Día) Ocupantes | R33: Caudal | T33: Consumo (l/pers. Día) Ocupantes | AC33: consumo/uso | AD33: uso/persona
D35: Grifería lavabo | H35: 4.5 | J35: =AD35 -> 13.5 | N35: Grifería ducha | R35: 8 | T35: =AD37 -> 2.4 | AB35: Lavavo | AC35: =H35*0.5 -> 2.25 | AD35: =AC35*6 -> 13.5
D37: Inodoros descarga larga | H37: 6 | J37: =AD39 -> 6 | N37: Inodoros descarga corta | R37: 3 | T37: =AD41 -> 3 | AB37: ducha | AC37: =R35*3 -> 24 | AD37: =IF(H12="sí",AC37*0.1,"") -> 2.4
D39: Urinarios | H39: 4 | J39: =AD43 -> 4 | AB39: descarga larga | AC39: =H37 -> 6 | AD39: =AC39*1 -> 6
AB41: descarga corta | AC41: =R37 -> 3 | AD41: =IF(R12="sí",AC41*1,AC41*2) -> 3
D43: CONSUMO TOTAL POR PERSONA Y DÍA (l/p día) OCUPANTES | J43: =AD44 -> 28.9 | N43: CONSUMO TOTAL EN EL EDIFICIO REFERENCIA (l/m2 año) | T43: =IFERROR(J43*H10*365/DG!F20,0) -> 0 | AB43: urinario | AC43: =H39 -> 4 | AD43: =IF(R12="sí",AC43*1,"") -> 4
AC44: =SUM(AC35:AC43) -> 39.25 | AD44: =SUM(AD35:AD43) -> 28.9
D46: Porcentaje de ahorro | J46: =IFERROR(IF(J26=0,"",IF(1-(T26/T43)<0,0,1-(T26/T43))),0) -> 0

Sheet BD RIEGO (hidden)
A1: Provincia | B1: estación meteorológica
A2: Albacete | B2: Albacete - Los Llanos / B. Aérea | F2: Tipo de riego | G2: EA
A3: Alicante | B3: Alicante | F3: Riego localizado subterráneo | G3: 0.95
A4: Almería | B4: Almería / Aeropuerto | F4: Riego localizado en superficie | G4: 0.9
A5: Ávila | B5: Ávila | F5: Difusores y microaspersores | G5: 0.8
A6: Badajoz | B6: Badajoz - Talavera la Real / B. Aérea | F6: Aspersores | G6: 0,7-0,8
A7: Barcelona | B7: Barcelona / Aeropuerto | C7: Barcelona / Montseny -Turo De L'Home | F7: Superficie | G7: 0,5-0,65
A8: Bilbao | B8: Bilbao / Aeropuerto
A9: Burgos | B9: Burgos / B. Aérea
A10: Cáceres | B10: Cáceres
A11: Cádiz | B11: Cádiz - Jerez de la Frontera / Aeropuerto | C11: Cádiz - Tarifa
A12: Castellón | B12: Castellón
A13: Ciudad Real | B13: Ciudad Real
A14: Córdoba | B14: Córdoba / Aeropuerto
A15: Cuenca | B15: Cuenca
A16: Gerona | B16: Girona / Aeropuerto
A17: Granada | B17: Granada / Aeropuerto | C17: Granada / B. Aérea
A18: Guadalajara | B18: Guadalajara - Molina De Aragón
A19: Huelva | B19: Huelva
A20: Huesca | B20: Huesca - Monflorite / Aeropuerto
A21: Ibiza | B21: Ibiza / Aeropuerto
A22: Jaén
A23: La Coruña | B23: A Coruña | C23: A Coruña - Santiago Compostela / Aeropuerto
A24: Las Palmas | B24: La Palma / Aeropuerto
A25: León | B25: León - Ponferrada | C25: León - Virgen del Camino / B. Aérea
A26: Lérida | B26: Lleida / Estación 2
A27: Logroño | B27: Logroño - Agoncillo / Aeropuerto
A28: Lugo | B28: Lugo - Rozas / Aeródromo
A29: Madrid | B29: Madrid | C29: Madrid - Barajas / Aeropuerto
A30: Málaga | B30: Málaga / Aeropuerto
A31: Murcia | B31: Murcia - Alcantarilla / Aeropuerto | C31: Murcia - San Javier / Aeropuerto
A32: Orense | B32: Ourense
A33: Oviedo | B33: Oviedo / Aeropuerto | C33: Oviedo
A34: Palencia
A35: Palma de Mallorca | B35: Palma de Mallorca | C35: Palma de Mallorca / Aeropuerto
A36: Pamplona | B36: Pamplona / Aeropuerto
A37: Pontevedra | B37: Pontevedra - Mourente | C37: Pontevedra - Vigo / Aeropuerto
A38: Salamanca | B38: Salamanca - Matacán / B. Aérea
A39: San Sebastián | B39: San Sebastián / Aeropuerto | C39: San Sebastián / Igueldo
A40: Sta. Cruz de Tenerife | B40: Santa Cruz De Tenerife | C40: Tenerife / Aeropuerto Tenerife Sur
A41: Santander | B41: Santander / Aeropuerto
A42: Segovia | B42: Segovia
A43: Sevilla | B43: Sevilla / Aeropuerto | C43: Sevilla / Morón de la Frontera / B. Aérea | D43: Sevilla - Tablada
A44: Soria | B44: Soria
A45: Tarragona | B45: Tarragona / Tortosa | C45: Tarragona - Reus / Aeropuerto
A46: Teruel | B46: Teruel
A47: Toledo | B47: Toledo
A48: Valencia | B48: Valencia | C48: Valencia - Manises
A49: Valladolid | B49: Valladolid | C49: Valladolid / Aeropuerto
A50: Vitoria | B50: Vitoria / Aeropuerto
A51: Zamora | B51: Zamora
A52: Zaragoza | B52: Zaragoza / Aeropuerto

Sheet P (hidden)
C1: Precipitación (mm)
C2: Localidad | D2: Ene | E2: Feb | F2: Mar | G2: Abr | H2: May | I2: Jun | J2: Jul | K2: Ago | L2: Sep | M2: Oct | N2: Nov | O2: Dic
C3: ANDALUCIA
A4: Albacete | C4: Almería | D4: 24 | E4: 25 | F4: 16 | G4: 17 | H4: 12 | I4: 5 | J4: 1 | K4: 1 | L4: 14 | M4: 27 | N4: 28 | O4: 30
A5: Alicante | C5: Cádiz | D5: 69 | E5: 58 | F5: 35 | G5: 45 | H5: 27 | I5: 7 | J5: 0 | K5: 2 | L5: 24 | M5: 67 | N5: 98 | O5: 92
A6: Almería | C6: Jerez_de_ la_Frontera | D6: 78 | E6: 56 | F6: 37 | G6: 49 | H6: 30 | I6: 9 | J6: 1 | K6: 2 | L6: 27 | M6: 72 | N6: 96 | O6: 109
A7: Ávila | C7: Cádiz/Tarifa | D7: 83 | E7: 73 | F7: 60 | G7: 61 | H7: 31 | I7: 9 | J7: 2 | K7: 4 | L7: 14 | M7: 67 | N7: 77 | O7: 118
A8: Badajoz | C8: Jaén | D8: 55 | E8: 50 | F8: 44 | G8: 54 | H8: 43 | I8: 18 | J8: 2 | K8: 9 | L8: 26 | M8: 55 | N8: 62 | O8: 75
A9: Barcelona | C9: Córdoba | D9: 66 | E9: 55 | F9: 49 | G9: 55 | H9: 40 | I9: 13 | J9: 2 | K9: 5 | L9: 35 | M9: 86 | N9: 80 | O9: 111
A10: Bilbao | C10: Granada | D10: 42 | E10: 38 | F10: 32 | G10: 36 | H10: 28 | I10: 11 | J10: 2 | K10: 4 | L10: 19 | M10: 40 | N10: 54 | O10: 56
A11: Burgos | C11: Huelva | D11: 71 | E11: 50 | F11: 38 | G11: 48 | H11: 29 | I11: 8 | J11: 3 | K11: 4 | L11: 26 | M11: 68 | N11: 79 | O11: 99
A12: Cáceres | C12: Málaga | D12: 69 | E12: 60 | F12: 52 | G12: 44 | H12: 20 | I12: 6 | J12: 0 | K12: 6 | L12: 20 | M12: 57 | N12: 100 | O12: 100
A13: Cádiz | C13: Sevilla/Aeropuerto | D13: 66 | E13: 50 | F13: 36 | G13: 54 | H13: 30 | I13: 10 | J13: 2 | K13: 5 | L13: 27 | M13: 68 | N13: 91 | O13: 99
A14: Castellón | C14: Sevilla/Morón_de_la_Frontera/B.Aérea | D14: 68 | E14: 53 | F14: 42 | G14: 60 | H14: 39 | I14: 9 | J14: 2 | K14: 4 | L14: 27 | M14: 67 | N14: 86 | O14: 94
A15: Ceuta | C15: Sevilla/Tablada | D15: 78 | E15: 52 | F15: 40 | G15: 58 | H15: 36 | I15: 13 | J15: 2 | K15: 5 | L15: 20 | M15: 66 | N15: 81 | O15: 103
A16: Ciudad_Real | C16: ARAGON
A17: Córdoba | C17: Huesca | D17: 31 | E17: 28 | F17: 30 | G17: 53 | H17: 52 | I17: 33 | J17: 22 | K17: 29 | L17: 48 | M17: 60 | N17: 47 | O17: 44
A18: La_Coruña | C18: Teruel | D18: 19 | E18: 15 | F18: 21 | G18: 39 | H18: 57 | I18: 46 | J18: 26 | K18: 34 | L18: 36 | M18: 47 | N18: 22 | O18: 19
A19: Cuenca | C19: Zaragoza | D19: 21 | E19: 22 | F19: 19 | G19: 39 | H19: 44 | I19: 26 | J19: 17 | K19: 17 | L19: 30 | M19: 36 | N19: 30 | O19: 21
A20: Gerona | C20: ASTURIAS
A21: Granada | C21: Asturias/Aeropuerto | D21: 103 | E21: 88 | F21: 82 | G21: 99 | H21: 79 | I21: 61 | J21: 47 | K21: 60 | L21: 73 | M21: 116 | N21: 134 | O21: 117
A22: Guadalajara | C22: Oviedo | D22: 84 | E22: 81 | F22: 78 | G22: 100 | H22: 82 | I22: 57 | J22: 45 | K22: 56 | L22: 66 | M22: 98 | N22: 115 | O22: 98
A23: Huelva | C23: BALEARES
A24: Huesca | C24: Ibiza | D24: 37 | E24: 36 | F24: 27 | G24: 31 | H24: 27 | I24: 11 | J24: 5 | K24: 18 | L24: 57 | M24: 58 | N24: 53 | O24: 52
A25: Jaén | C25: Menorca/Mahón | D25: 52 | E25: 54 | F25: 38 | G25: 45 | H25: 37 | I25: 14 | J25: 3 | K25: 20 | L25: 61 | M25: 78 | N25: 88 | O25: 61
A26: León | C26: Palma_de_Mallorca | D26: 42 | E26: 37 | F26: 28 | G26: 39 | H26: 36 | I26: 11 | J26: 6 | K26: 22 | L26: 52 | M26: 69 | N26: 59 | O26: 48
A27: Lérida | C27: Palma_de_Mallorca/Aeropuerto | D27: 37 | E27: 32 | F27: 26 | G27: 34 | H27: 32 | I27: 12 | J27: 5 | K27: 17 | L27: 50 | M27: 62 | N27: 55 | O27: 48
A28: Logroño | C28: CANARIAS
A29: Lugo | C29: Fuerteventura | D29: 14 | E29: 16 | F29: 12 | G29: 5 | H29: 1 | I29: 0 | J29: 0 | K29: 0 | L29: 2 | M29: 8 | N29: 13 | O29: 26
A30: Madrid | C30: Hierro | D30: 28 | E30: 38 | F30: 25 | G30: 13 | H30: 2 | I30: 1 | J30: 0 | K30: 1 | L30: 3 | M30: 14 | N30: 37 | O30: 44
A31: Málaga | C31: Lanzarote | D31: 16 | E31: 18 | F31: 12 | G31: 5 | H31: 2 | I31: 0 | J31: 0 | K31: 0 | L31: 2 | M31: 10 | N31: 15 | O31: 29
A32: Melilla | C32: Las_Palmas_de_Gran_Canaria | D32: 25 | E32: 24 | F32: 12 | G32: 6 | H32: 1 | I32: 0 | J32: 0 | K32: 0 | L32: 9 | M32: 16 | N32: 22 | O32: 31
A33: Murcia | C33: Santa_Cruz_De_Tenerife | D33: 32 | E33: 35 | F33: 38 | G33: 12 | H33: 4 | I33: 1 | J33: 0 | K33: 2 | L33: 7 | M33: 19 | N33: 34 | O33: 43
A34: Orense | C34: Tenerife/Norte | D34: 80 | E34: 70 | F34: 61 | G34: 39 | H34: 19 | I34: 11 | J34: 6 | K34: 5 | L34: 16 | M34: 47 | N34: 81 | O34: 82
A35: Oviedo | C35: Tenerife/Aeropuerto_Tenerife_Sur | D35: 17 | E35: 20 | F35: 15 | G35: 7 | H35: 1 | I35: 0 | J35: 0 | K35: 1 | L35: 4 | M35: 12 | N35: 26 | O35: 30
A36: Palencia | C36: Tenerife/Izaña | D36: 47 | E36: 67 | F36: 58 | G36: 18 | H36: 7 | I36: 0 | J36: 0 | K36: 5 | L36: 13 | M36: 37 | N36: 54 | O36: 60
A37: Las_Palmas_de_Gran_Canaria | C37: CANTABRIA
A38: Palma_de_Mallorca | C38: Santander | D38: 106 | E38: 92 | F38: 88 | G38: 102 | H38: 78 | I38: 58 | J38: 52 | K38: 73 | L38: 83 | M38: 120 | N38: 157 | O38: 118
A39: Pamplona | C39: CASTILLA LA MANCHA
A40: Pontevedra | C40: Albacete | D40: 21 | E40: 25 | F40: 27 | G40: 40 | H40: 43 | I40: 35 | J40: 9 | K40: 11 | L40: 34 | M40: 42 | N40: 34 | O40: 31
A41: Salamanca | C41: Ciudad_Real | D41: 35 | E41: 30 | F41: 28 | G41: 48 | H41: 41 | I41: 25 | J41: 6 | K41: 5 | L41: 26 | M41: 53 | N41: 45 | O41: 59
A42: San_Sebastián | C42: Cuenca | D42: 40 | E42: 38 | F42: 35 | G42: 58 | H42: 52 | I42: 41 | J42: 10 | K42: 20 | L42: 42 | M42: 60 | N42: 48 | O42: 58
A43: Santa_Cruz_de_Tenerife | C43: Guadalajara | D43: 35 | E43: 32 | F43: 25 | G43: 50 | H43: 53 | I43: 25 | J43: 12 | K43: 5 | L43: 28 | M43: 68 | N43: 42 | O43: 46
A44: Santander | C44: Toledo | D44: 26 | E44: 25 | F44: 23 | G44: 39 | H44: 44 | I44: 24 | J44: 7 | K44: 9 | L44: 18 | M44: 48 | N44: 39 | O44: 41
A45: Segovia | C45: CASTILLA LEON
A46: Sevilla | C46: Ávila | D46: 34 | E46: 24 | F46: 23 | G46: 40 | H46: 55 | I46: 33 | J46: 12 | K46: 19 | L46: 30 | M46: 53 | N46: 48 | O46: 42
A47: Soria | C47: Burgos | D47: 44 | E47: 35 | F47: 34 | G47: 61 | H47: 63 | I47: 41 | J47: 23 | K47: 23 | L47: 38 | M47: 60 | N47: 60 | O47: 63
A48: Tarragona | C48: Palencia | D48: 67 | E48: 54 | F48: 46 | G48: 50 | H48: 54 | I48: 32 | J48: 23 | K48: 25 | L48: 49 | M48: 81 | N48: 82 | O48: 89
A49: Teruel | C49: León | D49: 50 | E49: 34 | F49: 32 | G49: 45 | H49: 56 | I49: 31 | J49: 19 | K49: 23 | L49: 39 | M49: 61 | N49: 59 | O49: 66
A50: Toledo | C50: León/Virgen del Camino | D50: 58 | E50: 46 | F50: 29 | G50: 50 | H50: 58 | I50: 39 | J50: 28 | K50: 24 | L50: 39 | M50: 56 | N50: 58 | O50: 70
A51: Valencia | C51: Salamanca | D51: 30 | E51: 25 | F51: 21 | G51: 38 | H51: 47 | I51: 29 | J51: 11 | K51: 12 | L51: 32 | M51: 46 | N51: 40 | O51: 42
A52: Valladolid | C52: Segovia | D52: 38 | E52: 31 | F52: 30 | G52: 44 | H52: 66 | I52: 43 | J52: 17 | K52: 20 | L52: 28 | M52: 59 | N52: 52 | O52: 46
A53: Vitoria | C53: Soria | D53: 37 | E53: 36 | F53: 30 | G53: 55 | H53: 67 | I53: 40 | J53: 30 | K53: 30 | L53: 33 | M53: 55 | N53: 50 | O53: 50
A54: Zamora | C54: Valladolid | D54: 40 | E54: 27 | F54: 22 | G54: 46 | H54: 49 | I54: 29 | J54: 13 | K54: 16 | L54: 31 | M54: 55 | N54: 52 | O54: 53
A55: Zaragoza | C55: Valladolid/Aeropuerto | D55: 36 | E55: 26 | F55: 23 | G55: 43 | H55: 53 | I55: 30 | J55: 15 | K55: 21 | L55: 32 | M55: 52 | N55: 51 | O55: 53
C56: Zamora | D56: 32 | E56: 25 | F56: 22 | G56: 39 | H56: 43 | I56: 23 | J56: 12 | K56: 13 | L56: 28 | M56: 50 | N56: 45 | O56: 46
C57: CATALUÑA
C58: Barcelona | D58: 37 | E58: 35 | F58: 36 | G58: 40 | H58: 47 | I58: 30 | J58: 21 | K58: 62 | L58: 81 | M58: 91 | N58: 59 | O58: 40
C59: Barcelona/Fabra | D59: 50 | E59: 43 | F59: 44 | G59: 53 | H59: 58 | I59: 30 | J59: 24 | K59: 41 | L59: 75 | M59: 91 | N59: 66 | O59: 46
C60: Girona | D60: 62 | E60: 51 | F60: 50 | G60: 67 | H60: 71 | I60: 60 | J60: 32 | K60: 46 | L60: 70 | M60: 88 | N60: 70 | O60: 56
C61: Lleida | D61: 26 | E61: 15 | F61: 21 | G61: 39 | H61: 42 | I61: 27 | J61: 12 | K61: 18 | L61: 41 | M61: 43 | N61: 30 | O61: 24
C62: Tarragona | D62: 33 | E62: 28 | F62: 30 | G62: 48 | H62: 58 | I62: 25 | J62: 15 | K62: 33 | L62: 59 | M62: 78 | N62: 60 | O62: 41
C63: Tarragona/Reus | D63: 29 | E63: 28 | F63: 28 | G63: 37 | H63: 54 | I63: 25 | J63: 15 | K63: 42 | L63: 77 | M63: 75 | N63: 53 | O63: 36
C64: CEUTA
C65: Ceuta | D65: 122 | E65: 145 | F65: 90 | G65: 57 | H65: 21 | I65: 3 | J65: 1 | K65: 3 | L65: 37 | M65: 82 | N65: 127 | O65: 161
C66: COMUNIDAD DE MADRID
C67: Colmenar_Viejo | D67: 52 | E67: 41 | F67: 36 | G67: 52 | H67: 57 | I67: 28 | J67: 14 | K67: 16 | L67: 36 | M67: 76 | N67: 78 | O67: 68
C68: Madrid | D68: 33 | E68: 34 | F68: 25 | G68: 45 | H68: 50 | I68: 21 | J68: 12 | K68: 10 | L68: 22 | M68: 60 | N68: 58 | O68: 51
C69: Barajas | D69: 29 | E69: 32 | F69: 22 | G69: 38 | H69: 44 | I69: 22 | J69: 9 | K69: 10 | L69: 24 | M69: 51 | N69: 49 | O69: 42
C70: Cuatro_Vientos | D70: 34 | E70: 35 | F70: 25 | G70: 43 | H70: 50 | I70: 24 | J70: 12 | K70: 11 | L70: 24 | M70: 60 | N70: 57 | O70: 53
C71: Getafe | D71: 30 | E71: 32 | F71: 24 | G71: 38 | H71: 39 | I71: 19 | J71: 9 | K71: 9 | L71: 22 | M71: 50 | N71: 48 | O71: 45
C72: Puerto_Navacerrada | D72: 124 | E72: 96 | F72: 84 | G72: 127 | H72: 124 | I72: 64 | J72: 23 | K72: 26 | L72: 60 | M72: 156 | N72: 176 | O72: 163
C73: Torrejón_De_Ardoz | D73: 29 | E73: 31 | F73: 23 | G73: 40 | H73: 48 | I73: 19 | J73: 13 | K73: 9 | L73: 25 | M73: 50 | N73: 49 | O73: 42
C74: COMUNIDAD VALENCIANA
C75: Alicante | D75: 23 | E75: 22 | F75: 23 | G75: 29 | H75: 28 | I75: 12 | J75: 4 | K75: 7 | L75: 56 | M75: 47 | N75: 36 | O75: 25
C76: Castellón | D76: 36 | E76: 31 | F76: 31 | G76: 42 | H76: 44 | I76: 19 | J76: 9 | K76: 24 | L76: 71 | M76: 70 | N76: 49 | O76: 42
C77: Valencia | D77: 37 | E77: 36 | F77: 33 | G77: 38 | H77: 39 | I77: 22 | J77: 8 | K77: 20 | L77: 70 | M77: 77 | N77: 47 | O77: 48
C78: Valencia-Manises | D78: 37 | E78: 34 | F78: 30 | G78: 40 | H78: 38 | I78: 18 | J78: 12 | K78: 16 | L78: 63 | M78: 72 | N78: 51 | O78: 48
C79: EXTREMADURA
C80: Badajoz | D80: 50 | E80: 42 | F80: 30 | G80: 49 | H80: 36 | I80: 14 | J80: 4 | K80: 5 | L80: 24 | M80: 61 | N80: 65 | O80: 69
C81: Cáceres | D81: 54 | E81: 48 | F81: 36 | G81: 52 | H81: 50 | I81: 20 | J81: 6 | K81: 7 | L81: 30 | M81: 77 | N81: 89 | O81: 77
C82: GALICIA
